Workbook

Sheet Kamatok (hidden)
C1: 10 éves | D1: 5 éves | E1: 6 havi
A2: 2 - 4,99 M Ft | B2: KK0 | C2: =Kalkulátor!J14 -> 0.0694 | D2: =Kalkulátor!J20 -> 0.0609 | E2: =Kalkulátor!J26 -> 0.0526
B3: KK1 | C3: =C2-0.5% -> 0.0644 | D3: =D2-0.5% -> 0.0559 | E3: =E2-0.5% -> 0.0476 | H3: 5000000 | I3: 4999999
B4: KK2 | C4: =C2-0.75% -> 0.0619 | D4: =D2-0.75% -> 0.0534 | E4: =E2-0.75% -> 0.0451 | H4: 20000000 | I4: 19999999
B5: KK4 | C5: =C2-1.15% -> 0.0579 | D5: =D2-1.15% -> 0.0494 | E5: =E2-1.15% -> 0.0411
B6: KK5 | C6: =C2-1.4% -> 0.0554 | D6: =D2-1.4% -> 0.0469 | E6: =E2-1.4% -> 0.0386
A7: 5 - 19,99 M Ft | B7: KK0 | C7: =Kalkulátor!J15 -> 0.0579 | D7: =Kalkulátor!J22 -> 0.0524 | E7: =Kalkulátor!J27 -> 0.0441
B8: KK1 | C8: =C7-0.5% -> 0.0529 | D8: =D7-0.5% -> 0.0474 | E8: =E7-0.5% -> 0.0391 | H8: 5 éves | I8: 10 éves
B9: KK2 | C9: =C7-0.75% -> 0.0504 | D9: =D7-0.75% -> 0.0449 | E9: =E7-0.75% -> 0.0366 | H9: 10-19,99
B10: KK4 | C10: =C7-1.15% -> 0.0464 | D10: =D7-1.15% -> 0.0409 | E10: =E7-1.15% -> 0.0326 | G10: KK4 | H10: 0.0404 | I10: 0.0349
B11: KK5 | C11: =C7-1.4% -> 0.0439 | D11: =D7-1.4% -> 0.0384 | E11: =E7-1.4% -> 0.0301 | G11: KK5 | H11: 0.0379 | I11: 0.0324
A12: 20M Ft-tól | B12: KK0 | C12: =Kalkulátor!J17 -> 0.0549 | D12: =Kalkulátor!J23 -> 0.0494 | E12: =Kalkulátor!J28 -> 0.0431 | H12: 20-
B13: KK1 | C13: =C12-0.5% -> 0.0499 | D13: =D12-0.5% -> 0.0444 | E13: =E12-0.5% -> 0.0381 | G13: KK4 | H13: 0.0374 | I13: 0.0319
B14: KK2 | C14: =C12-0.75% -> 0.0474 | D14: =D12-0.75% -> 0.0419 | E14: =E12-0.75% -> 0.0356 | G14: KK5 | H14: 0.0349 | I14: 0.0294
B15: KK4 | C15: =C12-1.15% -> 0.0434 | D15: =D12-1.15% -> 0.0379 | E15: =E12-1.15% -> 0.0316
B16: KK5 | C16: =C12-1.4% -> 0.0409 | D16: =D12-1.4% -> 0.0354 | E16: =E12-1.4% -> 0.0291

Sheet Egyenlítő_nélkül (hidden)
A1: Input | B1: 2 | C1: 3 | D1: 4 | E1: 5 | F1: 6 | G1: 7 | H1: 8 | I1: 9 | J1: 10 | K1: 11 | S1: 12 | AP1: =+#REF! -> 
A2: Disbursement Date | B2: 2019-07-01 | E2: Output | AP2: =+#REF! -> 
A3: Loan Amount | B3: =Kalkulátor!C4 -> 10000000 | C3: =+F4+B9 -> 4374764.35 | E3: Fee Income | F3: =SUM(E21:E380) -> 0 | AP3: =+#REF! -> 
A4: Monthly Hand Fee (fix Amt) | B4: 0 | C4: =+B3+C3 -> 14374764.35 | E4: Interest Income | F4: =SUM(F21:F380) -> 4345637.35 | AP4: =+#REF! -> 
A5: Interest | B5: =Kalkulátor!C12 -> 0.0384 | H5: Output | I5: Communication | K5: havi megtakarítás | L5: 0
A6: Interest Only Period | E6: Starting Date | F6: =+Egyenlítővel_kedv!F6 -> 2020-09-10 | H6: Loan Amount | I6: =+B3 -> 10000000 | K6: Havi számlára érkező pénz | L6: 0
A7: Term | B7: =Kalkulátor!C5 -> 240 | E7: First Duedate | F7: =+F6 -> 2020-09-10 | H7: Term | I7: =+B7 -> 240 | K7: Éves egyszeri megtakarítás | L7: 0
A8: HUF Upfront Fee % of the Disb Amt | B8: 0 | C8: Utalási díj | D8: FH költség | E8: Ending Date | F8: =+VLOOKUP(B7+B6, A20:D45,2) -> 2022-09-10 | H8: Interest Only Period | I8: =+B6 -> 0 | K8: Kezdeti megtakarítás | L8: 0
A9: HUF Upfront Fee Fix Amt | B9: =C9+D9+C11 -> 29127 | C9: 16527 | D9: 12600 | E9: Installment wo TI | F9: =XPMT(IF(B6=0,B2,VLOOKUP(B6,A21:B380,2,)),VLOOKUP(B6+1,A21:B380,2,),B7-B6,0,B3,B5,B4, B14,B13) -> 59933.17605 | H9: Installment w TI | I9: =+F10 -> 59933.17605
A10: FX Upfront Fee Fix Amt (to be paid in FX) | B10: 0 | C10: ÉB díj | D10: Trkpmás | E10: Installment | F10: =F9*B$12 / B11 -> 59933.17605 | H10: APR | K10: Törlesztőrészlet | L10: =F9-B4 -> 59933.17605
A11: FX bid currency | B11: 1 | C11: 0 | D11: 0 | E11: XIRR | F11: =XIRR(I20:I380,B20:B380) -> 0.03942805231 | H11: XIRR | I11: =+F11 -> 0.03942805231 | K11: PPI-al | L11: =L10+K21 -> 59933.17605
A12: FX ask currency | B12: 1 | K12: Ügyfél által megfizetett tőke | L12: =SUM(H21:H380)-SUM(T20:T380) -> 10000000 | N12: =+L12+L13+B9 -> 14374764.35
A13: 30-days (if not then real calendar days) | B13: 0 | F13: KK5 | K13: Ügyfél által megfizetett kamat | L13: =SUM(F21:F380) -> 4345637.35
A14: Days in Years | B14: 365 | E14: PPI díj | F14: 0.049 | H14: Módusuló futamidő | K14: Tényleges futamidő | L14: =MATCH(0,D21:D380,0)-1 -> 240
A15: Product | B15: Mortgage | C15: Maradványérték | E15: PPI díjjal kell számolni? | F15: =IF(F13=Kalkulátor!C7,"i","n") -> n | K15: Meg nem fizetett törlesztőrészletek száma és összege | L15: =CONCATENATE(B7-L14," db., ",TEXT((B7-L14)*L10,"0 000 Ft")) -> 0 db., 0 000 Ft
C16: =+D81/B3 -> 0.8168000961 | K16: Felhalmozott megtakarítások | L16: =MAX(Q20:Q380) -> 0
C17: =D141/B3 -> 0.5937318105 | F17: 12592617.72 | G17: 3935193.037 | H17: =+F17+G17 -> 16527810.76
A18: Details
A19: Term | B19: PaymentDate | C19: DaysBetween | D19: Capital | E19: Fee | F19: Interest | G19: Interest+Fee | H19: Principal | I19: CF- with TradeIncome | J19: THM Calculation | K19: PPI | L19: Módosított tőke | M19: Megtakarítás | N19: Éves egyszeri | O19: havi bejövő | P19: Kezdeti | Q19: Összeg | R19: 70%-os korláttal | S19: Kedvezmény | T19: Kedvezmény tőke számításhoz
A20: 0- Disbursement | B20: =+Egyenlítővel_kedv!B20 -> 2020-08-01 | C20: 0 | D20: 0 | E20: 0 | F20: 0 | G20: 0 | H20: 0 | I20: =- B3 + B8*B3 + B9 + B10 / B11 -> -9970873 | J20: =SUM(J21:J380)+I20 -> 11557.15622 | L20: =D20 -> 0 | M20: =$L$5 -> 0 | O20: =L6/2 -> 0 | P20: =$L$8 -> 0 | Q20: =SUM(M20:P20) -> 0 | R20: =IF(Q20<=L21*0.7,Q20,L21*0.7) -> 0 | S20: =R20*$B$5/$B$14*C21 -> 0
A21: 1 | B21: =+F6 -> 2020-09-10 | C21: =+IF($B$13=1, 30, B21-B20) -> 40 | D21: =$B$3 -> 10000000 | E21: =IF(D21>0,$B$4,0) -> 0 | F21: =+C21/$B$14*$B$5*D21 -> 42082.19178 | G21: =E21+F21 -> 42082.19178 | H21: =+IF(A21<=$B$6,0,IF(D21>0,IF($F$9-G21+IF(MOD(A21,6)=0,S21,0)>D21,D21,$F$9-G21+IF(MOD(A21,6)=0,S21,0)),0)) -> 17850.98427 | I21: =IF(D21>0,+G21+H21+K21-IF(MOD(A21,6)=0,S21,0),0) -> 59933.17605 | J21: =+I21/POWER((1+$I$11),A21/12) -> 59740.3492 | K21: =IF(D21>0,IF($F$15="I",($F$9-$B$4)*$F$14,0),0) -> 0 | L21: =D21 -> 10000000 | M21: =$L$5 -> 0 | N21: =IF(MOD(A21,12)=0,$L$7,0) -> 0 | Q21: =IF(D21>0,SUM(M21:P21)+Q20,0) -> 0 | R21: =IF(Q21<=L21*0.7,Q21,L21*0.7) -> 0 | S21: =IF(MOD(A21,6)=0,SUM(S16:S20)+R21*$B$5/$B$14*C21,R21*$B$5/$B$14*C21) -> 0 | T21: =IF(MOD(A21,6)=0,S21,0) -> 0
A22: 2 | B22: =IF(MONTH(B21)=12,DATE(YEAR(B21)+1,1,DAY(B21)),DATE(YEAR(B21),MONTH(B21)+1,DAY(B21))) -> 2020-10-10 | C22: 30 | D22: =IF(D21-IF(H21<0,0,H21)<0,0,D21-IF(H21<0,0,H21)) -> 9982149.016 | E22: =IF(D22>0,$B$4,0) -> 0 | F22: 31505.30319 | G22: 31505.30319 | H22: 28427.87285 | I22: =IF(D22>0,+G22+H22+K22-IF(MOD(A22,6)=0,S22,0),0) -> 59933.17605 | J22: =+I22/POWER((1+$I$11),A22/12) -> 59548.14274 | K22: =IF(D22>0,IF($F$15="I",($F$9-$B$4)*$F$14,0),0) -> 0 | L22: 9982149.016 | M22: 0 | N22: =IF(MOD(A22,12)=0,$L$7,0) -> 0 | Q22: =IF(D22>0,SUM(M22:P22)+Q21,0) -> 0 | R22: =IF(Q22<=L22*0.7,Q22,L22*0.7) -> 0 | S22: =IF(MOD(A22,6)=0,SUM(S17:S21)+R22*$B$5/$B$14*C22,R22*$B$5/$B$14*C22) -> 0 | T22: =IF(MOD(A22,6)=0,S22,0) -> 0
A23: 3 | B23: 2020-11-10 | C23: 31 | D23: =IF(D22-IF(H22<0,0,H22)<0,0,D22-IF(H22<0,0,H22)) -> 9953721.143 | E23: 0 | F23: 32462.76616 | G23: 32462.76616 | H23: 27470.40989 | I23: 59933.17605 | J23: 59356.55468 | K23: 0 | L23: 9953721.143 | M23: 0 | N23: 0 | Q23: 0 | R23: 0 | S23: 0 | T23: 0
A24: 4 | B24: 2020-12-10 | C24: 30 | D24: 9926250.733 | E24: 0 | F24: 31328.87903 | G24: 31328.87903 | H24: 28604.29702 | I24: 59933.17605 | J24: 59165.58302 | K24: 0 | L24: 9926250.733 | M24: 0 | N24: 0 | Q24: 0 | R24: 0 | S24: 0 | T24: 0
A25: 5 | B25: 2021-01-10 | C25: 31 | D25: 9897646.436 | E25: 0 | F25: 32279.8858 | G25: 32279.8858 | H25: 27653.29025 | I25: 59933.17605 | J25: 58975.2258 | K25: 0 | L25: 9897646.436 | M25: 0 | N25: 0 | Q25: 0 | R25: 0 | S25: 0 | T25: 0
A26: 6 | B26: 2021-02-10 | C26: 31 | D26: 9869993.146 | E26: 0 | F26: =+C26/$B$14*$B$5*D26 -> 32189.69819 | G26: 32189.69819 | H26: 27743.47786 | I26: 59933.17605 | J26: 58785.48102 | K26: 0 | L26: 9869993.146 | M26: 0 | N26: 0 | Q26: 0 | R26: 0 | S26: 0 | T26: 0
A27: 7 | B27: 2021-03-10 | C27: 28 | D27: 9842249.668 | E27: 0 | F27: 28992.84067 | G27: 28992.84067 | H27: 30940.33538 | I27: 59933.17605 | J27: 58596.34672 | K27: 0 | L27: 9842249.668 | M27: 0 | N27: 0 | Q27: 0 | R27: 0 | S27: 0 | T27: 0
A28: 8 | B28: 2021-04-10 | C28: 31 | D28: 9811309.332 | E28: 0 | F28: 31998.30857 | G28: 31998.30857 | H28: 27934.86748 | I28: 59933.17605 | J28: 58407.82093 | K28: 0 | L28: 9811309.332 | M28: 0 | N28: 0 | Q28: 0 | R28: 0 | S28: 0 | T28: 0
A29: 9 | B29: 2021-05-10 | C29: 30 | D29: 9783374.465 | E29: 0 | F29: 30877.93804 | G29: 30877.93804 | H29: 29055.23801 | I29: 59933.17605 | J29: 58219.9017 | K29: 0 | L29: 9783374.465 | M29: 0 | N29: 0 | Q29: 0 | R29: 0 | S29: 0 | T29: 0
A30: 10 | B30: 2021-06-10 | C30: 31 | D30: 9754319.227 | E30: 0 | F30: 31812.44276 | G30: 31812.44276 | H30: 28120.73329 | I30: 59933.17605 | J30: 58032.58708 | K30: 0 | L30: 9754319.227 | M30: 0 | N30: 0 | Q30: 0 | R30: 0 | S30: 0 | T30: 0
A31: 11 | B31: 2021-07-10 | C31: 30 | D31: 9726198.494 | E31: 0 | F31: 30697.48127 | G31: 30697.48127 | H31: 29235.69478 | I31: 59933.17605 | J31: 57845.87511 | K31: 0 | L31: 9726198.494 | M31: 0 | N31: 0 | Q31: 0 | R31: 0 | S31: 0 | T31: 0
A32: 12 | B32: 2021-08-10 | C32: 31 | D32: 9696962.799 | E32: 0 | F32: 31625.38224 | G32: 31625.38224 | H32: 28307.79381 | I32: 59933.17605 | J32: 57659.76386 | K32: 0 | L32: 9696962.799 | M32: 0 | N32: 0 | Q32: 0 | R32: 0 | S32: 0 | T32: 0
A33: 13 | B33: 2021-09-10 | C33: 31 | D33: 9668655.005 | E33: 0 | F33: 31533.06005 | G33: 31533.06005 | H33: 28400.116 | I33: 59933.17605 | J33: 57474.25141 | K33: 0 | L33: 9668655.005 | M33: 0 | N33: 0 | Q33: 0 | R33: 0 | S33: 0 | T33: 0
A34: 14 | B34: 2021-10-10 | C34: 30 | D34: 9640254.889 | E34: 0 | F34: 30426.22913 | G34: 30426.22913 | H34: 29506.94692 | I34: 59933.17605 | J34: 57289.33581 | K34: 0 | L34: 9640254.889 | M34: 0 | N34: 0 | Q34: 0 | R34: 0 | S34: 0 | T34: 0
A35: 15 | B35: 2021-11-10 | C35: 31 | D35: 9610747.942 | E35: 0 | F35: 31344.2037 | G35: 31344.2037 | H35: 28588.97235 | I35: 59933.17605 | J35: 57105.01515 | K35: 0 | L35: 9610747.942 | M35: 0 | N35: 0 | Q35: 0 | R35: 0 | S35: 0 | T35: 0
A36: 16 | B36: 2021-12-10 | C36: 30 | D36: 9582158.97 | E36: 0 | F36: 30242.86886 | G36: 30242.86886 | H36: 29690.30719 | I36: 59933.17605 | J36: 56921.28752 | K36: 0 | L36: 9582158.97 | M36: 0 | N36: 0 | Q36: 0 | R36: 0 | S36: 0 | T36: 0
A37: 17 | B37: 2022-01-10 | C37: 31 | D37: 9552468.663 | E37: 0 | F37: 31154.13341 | G37: 31154.13341 | H37: 28779.04264 | I37: 59933.17605 | J37: 56738.15101 | K37: 0 | L37: 9552468.663 | M37: 0 | N37: 0 | Q37: 0 | R37: 0 | S37: 0 | T37: 0
A38: 18 | B38: 2022-02-10 | C38: 31 | D38: 9523689.62 | E38: 0 | F38: 31060.27431 | G38: 31060.27431 | H38: 28872.90174 | I38: 59933.17605 | J38: 56555.60372 | K38: 0 | L38: 9523689.62 | M38: 0 | N38: 0 | Q38: 0 | R38: 0 | S38: 0 | T38: 0
A39: 19 | B39: 2022-03-10 | C39: 28 | D39: 9494816.718 | E39: 0 | F39: 27969.38886 | G39: 27969.38886 | H39: 31963.78718 | I39: 59933.17605 | J39: 56373.64374 | K39: 0 | L39: 9494816.718 | M39: 0 | N39: 0 | Q39: 0 | R39: 0 | S39: 0 | T39: 0
A40: 20 | B40: 2022-04-10 | C40: 31 | D40: 9462852.931 | E40: 0 | F40: 30861.86337 | G40: 30861.86337 | H40: 29071.31268 | I40: 59933.17605 | J40: 56192.2692 | K40: 0 | L40: 9462852.931 | M40: 0 | N40: 0 | Q40: 0 | R40: 0 | S40: 0 | T40: 0
A41: 21 | B41: 2022-05-10 | C41: 30 | D41: 9433781.618 | E41: 0 | F41: 29774.56555 | G41: 29774.56555 | H41: 30158.6105 | I41: 59933.17605 | J41: 56011.47821 | K41: 0 | L41: 9433781.618 | M41: 0 | N41: 0 | Q41: 0 | R41: 0 | S41: 0 | T41: 0
A42: 22 | B42: 2022-06-10 | C42: 31 | D42: 9403623.008 | E42: 0 | F42: 30668.69268 | G42: 30668.69268 | H42: 29264.48337 | I42: 59933.17605 | J42: 55831.26889 | K42: 0 | L42: 9403623.008 | M42: 0 | N42: 0 | Q42: 0 | R42: 0 | S42: 0 | T42: 0
A43: 23 | B43: 2022-07-10 | C43: 30 | D43: 9374358.525 | E43: 0 | F43: 29587.01649 | G43: 29587.01649 | H43: 30346.15956 | I43: 59933.17605 | J43: 55651.63936 | K43: 0 | L43: 9374358.525 | M43: 0 | N43: 0 | Q43: 0 | R43: 0 | S43: 0 | T43: 0
A44: 24 | B44: 2022-08-10 | C44: 31 | D44: 9344012.365 | E44: 0 | F44: 30474.28033 | G44: 30474.28033 | H44: 29458.89572 | I44: 59933.17605 | J44: 55472.58777 | K44: 0 | L44: 9344012.365 | M44: 0 | N44: 0 | Q44: 0 | R44: 0 | S44: 0 | T44: 0
A45: 25 | B45: 2022-09-10 | C45: 31 | D45: 9314553.469 | E45: 0 | F45: 30378.20397 | G45: 30378.20397 | H45: 29554.97208 | I45: 59933.17605 | J45: 55294.11226 | K45: 0 | L45: 9314553.469 | M45: 0 | N45: 0 | Q45: 0 | R45: 0 | S45: 0 | T45: 0
A46: 26 | B46: 2022-10-10 | C46: 30 | D46: 9284998.497 | E46: 0 | F46: 29304.98156 | G46: 29304.98156 | H46: 30628.19449 | I46: 59933.17605 | J46: 55116.21096 | K46: 0 | L46: 9284998.497 | M46: 0 | N46: 0 | Q46: 0 | R46: 0 | S46: 0 | T46: 0
A47: 27 | B47: 2022-11-10 | C47: 31 | D47: 9254370.303 | E47: 0 | F47: 30181.92441 | G47: 30181.92441 | H47: 29751.25164 | I47: 59933.17605 | J47: 54938.88204 | K47: 0 | L47: 9254370.303 | M47: 0 | N47: 0 | Q47: 0 | R47: 0 | S47: 0 | T47: 0
A48: 28 | B48: 2022-12-10 | C48: 30 | D48: 9224619.051 | E48: 0 | F48: 29114.4141 | G48: 29114.4141 | H48: 30818.76195 | I48: 59933.17605 | J48: 54762.12365 | K48: 0 | L48: 9224619.051 | M48: 0 | N48: 0 | Q48: 0 | R48: 0 | S48: 0 | T48: 0
A49: 29 | B49: 2023-01-10 | C49: 31 | D49: 9193800.289 | E49: 0 | F49: 29984.38319 | G49: 29984.38319 | H49: 29948.79286 | I49: 59933.17605 | J49: 54585.93395 | K49: 0 | L49: 9193800.289 | M49: 0 | N49: 0 | Q49: 0 | R49: 0 | S49: 0 | T49: 0
A50: 30 | B50: 2023-02-10 | C50: 31 | D50: 9163851.496 | E50: 0 | F50: 29886.7091 | G50: 29886.7091 | H50: 30046.46695 | I50: 59933.17605 | J50: 54410.31112 | K50: 0 | L50: 9163851.496 | M50: 0 | N50: 0 | Q50: 0 | R50: 0 | S50: 0 | T50: 0
A51: 31 | B51: 2023-03-10 | C51: 28 | D51: 9133805.029 | E51: 0 | F51: 26905.93745 | G51: 26905.93745 | H51: 33027.2386 | I51: 59933.17605 | J51: 54235.25334 | K51: 0 | L51: 9133805.029 | M51: 0 | N51: 0 | Q51: 0 | R51: 0 | S51: 0 | T51: 0
A52: 32 | B52: 2023-04-10 | C52: 31 | D52: 9100777.791 | E52: 0 | F52: 29681.00242 | G52: 29681.00242 | H52: 30252.17363 | I52: 59933.17605 | J52: 54060.75878 | K52: 0 | L52: 9100777.791 | M52: 0 | N52: 0 | Q52: 0 | R52: 0 | S52: 0 | T52: 0
A53: 33 | B53: 2023-05-10 | C53: 30 | D53: 9070525.617 | E53: 0 | F53: 28628.06989 | G53: 28628.06989 | H53: 31305.10616 | I53: 59933.17605 | J53: 53886.82563 | K53: 0 | L53: 9070525.617 | M53: 0 | N53: 0 | Q53: 0 | R53: 0 | S53: 0 | T53: 0
A54: 34 | B54: 2023-06-10 | C54: 31 | D54: 9039220.511 | E54: 0 | F54: 29480.24136 | G54: 29480.24136 | H54: 30452.93469 | I54: 59933.17605 | J54: 53713.45209 | K54: 0 | L54: 9039220.511 | M54: 0 | N54: 0 | Q54: 0 | R54: 0 | S54: 0 | T54: 0
A55: 35 | B55: 2023-07-10 | C55: 30 | D55: 9008767.576 | E55: 0 | F55: 28433.15136 | G55: 28433.15136 | H55: 31500.02469 | I55: 59933.17605 | J55: 53540.63635 | K55: 0 | L55: 9008767.576 | M55: 0 | N55: 0 | Q55: 0 | R55: 0 | S55: 0 | T55: 0
A56: 36 | B56: 2023-08-10 | C56: 31 | D56: 8977267.552 | E56: 0 | F56: 29278.18984 | G56: 29278.18984 | H56: 30654.9862 | I56: 59933.17605 | J56: 53368.37663 | K56: 0 | L56: 8977267.552 | M56: 0 | N56: 0 | Q56: 0 | R56: 0 | S56: 0 | T56: 0
A57: 37 | B57: 2023-09-10 | C57: 31 | D57: 8946612.565 | E57: 0 | F57: 29178.2126 | G57: 29178.2126 | H57: 30754.96345 | I57: 59933.17605 | J57: 53196.67112 | K57: 0 | L57: 8946612.565 | M57: 0 | N57: 0 | Q57: 0 | R57: 0 | S57: 0 | T57: 0
A58: 38 | B58: 2023-10-10 | C58: 30 | D58: 8915857.602 | E58: 0 | F58: 28139.91221 | G58: 28139.91221 | H58: 31793.26384 | I58: 59933.17605 | J58: 53025.51806 | K58: 0 | L58: 8915857.602 | M58: 0 | N58: 0 | Q58: 0 | R58: 0 | S58: 0 | T58: 0
A59: 39 | B59: 2023-11-10 | C59: 31 | D59: 8884064.338 | E59: 0 | F59: 28974.21969 | G59: 28974.21969 | H59: 30958.95636 | I59: 59933.17605 | J59: 52854.91566 | K59: 0 | L59: 8884064.338 | M59: 0 | N59: 0 | Q59: 0 | R59: 0 | S59: 0 | T59: 0
A60: 40 | B60: 2023-12-10 | C60: 30 | D60: 8853105.382 | E60: 0 | F60: 27941.85589 | G60: 27941.85589 | H60: 31991.32016 | I60: 59933.17605 | J60: 52684.86215 | K60: 0 | L60: 8853105.382 | M60: 0 | N60: 0 | Q60: 0 | R60: 0 | S60: 0 | T60: 0
A61: 41 | B61: 2024-01-10 | C61: 31 | D61: 8821114.062 | E61: 0 | F61: 28768.91556 | G61: 28768.91556 | H61: 31164.26049 | I61: 59933.17605 | J61: 52515.35576 | K61: 0 | L61: 8821114.062 | M61: 0 | N61: 0 | Q61: 0 | R61: 0 | S61: 0 | T61: 0
A62: 42 | B62: 2024-02-10 | C62: 31 | D62: 8789949.801 | E62: 0 | F62: 28667.27738 | G62: 28667.27738 | H62: 31265.89867 | I62: 59933.17605 | J62: 52346.39473 | K62: 0 | L62: 8789949.801 | M62: 0 | N62: 0 | Q62: 0 | R62: 0 | S62: 0 | T62: 0
A63: 43 | B63: 2024-03-10 | C63: 29 | D63: 8758683.902 | E63: 0 | F63: 26722.38464 | G63: 26722.38464 | H63: 33210.79141 | I63: 59933.17605 | J63: 52177.97732 | K63: 0 | L63: 8758683.902 | M63: 0 | N63: 0 | Q63: 0 | R63: 0 | S63: 0 | T63: 0
A64: 44 | B64: 2024-04-10 | C64: 31 | D64: 8725473.111 | E64: 0 | F64: 28456.99504 | G64: 28456.99504 | H64: 31476.181 | I64: 59933.17605 | J64: 52010.10177 | K64: 0 | L64: 8725473.111 | M64: 0 | N64: 0 | Q64: 0 | R64: 0 | S64: 0 | T64: 0
A65: 45 | B65: 2024-05-10 | C65: 30 | D65: 8693996.93 | E65: 0 | F65: 27439.68346 | G65: 27439.68346 | H65: 32493.49259 | I65: 59933.17605 | J65: 51842.76633 | K65: 0 | L65: 8693996.93 | M65: 0 | N65: 0 | Q65: 0 | R65: 0 | S65: 0 | T65: 0
A66: 46 | B66: 2024-06-10 | C66: 31 | D66: 8661503.437 | E66: 0 | F66: 28248.36628 | G66: 28248.36628 | H66: 31684.80977 | I66: 59933.17605 | J66: 51675.96927 | K66: 0 | L66: 8661503.437 | M66: 0 | N66: 0 | Q66: 0 | R66: 0 | S66: 0 | T66: 0
A67: 47 | B67: 2024-07-10 | C67: 30 | D67: 8629818.628 | E67: 0 | F67: 27237.12619 | G67: 27237.12619 | H67: 32696.04986 | I67: 59933.17605 | J67: 51509.70886 | K67: 0 | L67: 8629818.628 | M67: 0 | N67: 0 | Q67: 0 | R67: 0 | S67: 0 | T67: 0
A68: 48 | B68: 2024-08-10 | C68: 31 | D68: 8597122.578 | E68: 0 | F68: 28038.39648 | G68: 28038.39648 | H68: 31894.77957 | I68: 59933.17605 | J68: 51343.98336 | K68: 0 | L68: 8597122.578 | M68: 0 | N68: 0 | Q68: 0 | R68: 0 | S68: 0 | T68: 0
A69: 49 | B69: 2024-09-10 | C69: 31 | D69: 8565227.798 | E69: 0 | F69: 27934.37581 | G69: 27934.37581 | H69: 31998.80024 | I69: 59933.17605 | J69: 51178.79107 | K69: 0 | L69: 8565227.798 | M69: 0 | N69: 0 | Q69: 0 | R69: 0 | S69: 0 | T69: 0
A70: 50 | B70: 2024-10-10 | C70: 30 | D70: 8533228.998 | E70: 0 | F70: 26932.27344 | G70: 26932.27344 | H70: 33000.90261 | I70: 59933.17605 | J70: 51014.13026 | K70: 0 | L70: 8533228.998 | M70: 0 | N70: 0 | Q70: 0 | R70: 0 | S70: 0 | T70: 0
A71: 51 | B71: 2024-11-10 | C71: 31 | D71: 8500228.095 | E71: 0 | F71: 27722.38774 | G71: 27722.38774 | H71: 32210.78831 | I71: 59933.17605 | J71: 50849.99923 | K71: 0 | L71: 8500228.095 | M71: 0 | N71: 0 | Q71: 0 | R71: 0 | S71: 0 | T71: 0
A72: 52 | B72: 2024-12-10 | C72: 30 | D72: 8468017.307 | E72: 0 | F72: 26726.45462 | G72: 26726.45462 | H72: 33206.72143 | I72: 59933.17605 | J72: 50686.39626 | K72: 0 | L72: 8468017.307 | M72: 0 | N72: 0 | Q72: 0 | R72: 0 | S72: 0 | T72: 0
A73: 53 | B73: 2025-01-10 | C73: 31 | D73: 8434810.586 | E73: 0 | F73: 27509.03704 | G73: 27509.03704 | H73: 32424.13901 | I73: 59933.17605 | J73: 50523.31967 | K73: 0 | L73: 8434810.586 | M73: 0 | N73: 0 | Q73: 0 | R73: 0 | S73: 0 | T73: 0
A74: 54 | B74: 2025-02-10 | C74: 31 | D74: 8402386.447 | E74: 0 | F74: 27403.28993 | G74: 27403.28993 | H74: 32529.88612 | I74: 59933.17605 | J74: 50360.76775 | K74: 0 | L74: 8402386.447 | M74: 0 | N74: 0 | Q74: 0 | R74: 0 | S74: 0 | T74: 0
A75: 55 | B75: 2025-03-10 | C75: 28 | D75: 8369856.56 | E75: 0 | F75: 24655.53363 | G75: 24655.53363 | H75: 35277.64242 | I75: 59933.17605 | J75: 50198.73882 | K75: 0 | L75: 8369856.56 | M75: 0 | N75: 0 | Q75: 0 | R75: 0 | S75: 0 | T75: 0
A76: 56 | B76: 2025-04-10 | C76: 31 | D76: 8334578.918 | E76: 0 | F76: 27182.1445 | G76: 27182.1445 | H76: 32751.03155 | I76: 59933.17605 | J76: 50037.2312 | K76: 0 | L76: 8334578.918 | M76: 0 | N76: 0 | Q76: 0 | R76: 0 | S76: 0 | T76: 0
A77: 57 | B77: 2025-05-10 | C77: 30 | D77: 8301827.886 | E77: 0 | F77: 26201.93349 | G77: 26201.93349 | H77: 33731.24256 | I77: 59933.17605 | J77: 49876.2432 | K77: 0 | L77: 8301827.886 | M77: 0 | N77: 0 | Q77: 0 | R77: 0 | S77: 0 | T77: 0
A78: 58 | B78: 2025-06-10 | C78: 31 | D78: 8268096.644 | E78: 0 | F78: 26965.32122 | G78: 26965.32122 | H78: 32967.85483 | I78: 59933.17605 | J78: 49715.77316 | K78: 0 | L78: 8268096.644 | M78: 0 | N78: 0 | Q78: 0 | R78: 0 | S78: 0 | T78: 0
A79: 59 | B79: 2025-07-10 | C79: 30 | D79: 8235128.789 | E79: 0 | F79: 25991.42018 | G79: 25991.42018 | H79: 33941.75587 | I79: 59933.17605 | J79: 49555.81942 | K79: 0 | L79: 8235128.789 | M79: 0 | N79: 0 | Q79: 0 | R79: 0 | S79: 0 | T79: 0
A80: 60 | B80: 2025-08-10 | C80: 31 | D80: 8201187.033 | E80: 0 | F80: 26747.10423 | G80: 26747.10423 | H80: 33186.07182 | I80: 59933.17605 | J80: 49396.3803 | K80: 0 | L80: 8201187.033 | M80: 0 | N80: 0 | Q80: 0 | R80: 0 | S80: 0 | T80: 0
A81: 61 | B81: 2025-09-10 | C81: 31 | D81: 8168000.961 | E81: 0 | F81: 26638.87218 | G81: 26638.87218 | H81: 33294.30387 | I81: 59933.17605 | J81: 49237.45415 | K81: 0 | L81: 8168000.961 | M81: 0 | N81: 0 | Q81: 0 | R81: 0 | S81: 0 | T81: 0
A82: 62 | B82: 2025-10-10 | C82: 30 | D82: 8134706.658 | E82: 0 | F82: 25674.47142 | G82: 25674.47142 | H82: 34258.70463 | I82: 59933.17605 | J82: 49079.03933 | K82: 0 | L82: 8134706.658 | M82: 0 | N82: 0 | Q82: 0 | R82: 0 | S82: 0 | T82: 0
A83: 63 | B83: 2025-11-10 | C83: 31 | D83: 8100447.953 | E83: 0 | F83: 26418.55683 | G83: 26418.55683 | H83: 33514.61922 | I83: 59933.17605 | J83: 48921.13419 | K83: 0 | L83: 8100447.953 | M83: 0 | N83: 0 | Q83: 0 | R83: 0 | S83: 0 | T83: 0
A84: 64 | B84: 2025-12-10 | C84: 30 | D84: 8066933.334 | E84: 0 | F84: 25460.56767 | G84: 25460.56767 | H84: 34472.60838 | I84: 59933.17605 | J84: 48763.73709 | K84: 0 | L84: 8066933.334 | M84: 0 | N84: 0 | Q84: 0 | R84: 0 | S84: 0 | T84: 0
A85: 65 | B85: 2026-01-10 | C85: =+IF($B$13=1, 30, B85-B84) -> 31 | D85: 8032460.725 | E85: 0 | F85: =+C85/$B$14*$B$5*D85 -> 26196.82534 | G85: =E85+F85 -> 26196.82534 | H85: =+IF(A85<=$B$6,0,IF(D85>0,IF($F$9-G85+IF(MOD(A85,6)=0,S85,0)>D85,D85,$F$9-G85+IF(MOD(A85,6)=0,S85,0)),0)) -> 33736.35071 | I85: 59933.17605 | J85: 48606.84639 | K85: 0 | L85: =D85 -> 8032460.725 | M85: =$L$5 -> 0 | N85: 0 | Q85: 0 | R85: 0 | S85: 0 | T85: 0
A86: 66 | B86: =IF(MONTH(B85)=12,DATE(YEAR(B85)+1,1,DAY(B85)),DATE(YEAR(B85),MONTH(B85)+1,DAY(B85))) -> 2026-02-10 | C86: 31 | D86: 7998724.375 | E86: =IF(D86>0,$B$4,0) -> 0 | F86: 26086.79862 | G86: 26086.79862 | H86: 33846.37743 | I86: =IF(D86>0,+G86+H86+K86-IF(MOD(A86,6)=0,S86,0),0) -> 59933.17605 | J86: =+I86/POWER((1+$I$11),A86/12) -> 48450.46046 | K86: =IF(D86>0,IF($F$15="I",($F$9-$B$4)*$F$14,0),0) -> 0 | L86: 7998724.375 | M86: 0 | N86: =IF(MOD(A86,12)=0,$L$7,0) -> 0 | Q86: =IF(D86>0,SUM(M86:P86)+Q85,0) -> 0 | R86: =IF(Q86<=L86*0.7,Q86,L86*0.7) -> 0 | S86: =IF(MOD(A86,6)=0,SUM(S81:S85)+R86*$B$5/$B$14*C86,R86*$B$5/$B$14*C86) -> 0 | T86: =IF(MOD(A86,6)=0,S86,0) -> 0
A87: 67 | B87: 2026-03-10 | C87: 28 | D87: =IF(D86-IF(H86<0,0,H86)<0,0,D86-IF(H86<0,0,H86)) -> 7964877.997 | E87: 0 | F87: 23462.56664 | G87: 23462.56664 | H87: 36470.60941 | I87: 59933.17605 | J87: 48294.57768 | K87: 0 | L87: 7964877.997 | M87: 0 | N87: 0 | Q87: 0 | R87: 0 | S87: 0 | T87: 0
A88: 68 | B88: 2026-04-10 | C88: 31 | D88: 7928407.388 | E88: 0 | F88: 25857.46892 | G88: 25857.46892 | H88: 34075.70713 | I88: 59933.17605 | J88: 48139.19644 | K88: 0 | L88: 7928407.388 | M88: 0 | N88: 0 | Q88: 0 | R88: 0 | S88: 0 | T88: 0
A89: 69 | B89: 2026-05-10 | C89: 30 | D89: 7894331.681 | E89: 0 | F89: 24915.80848 | G89: 24915.80848 | H89: 35017.36757 | I89: 59933.17605 | J89: 47984.31512 | K89: 0 | L89: 7894331.681 | M89: 0 | N89: 0 | Q89: 0 | R89: 0 | S89: 0 | T89: 0
A90: 70 | B90: 2026-06-10 | C90: 31 | D90: 7859314.313 | E90: 0 | F90: 25632.13084 | G90: 25632.13084 | H90: 34301.0452 | I90: 59933.17605 | J90: 47829.9321 | K90: 0 | L90: 7859314.313 | M90: 0 | N90: 0 | Q90: 0 | R90: 0 | S90: 0 | T90: 0
A91: 71 | B91: 2026-07-10 | C91: 30 | D91: 7825013.268 | E91: 0 | F91: 24697.02818 | G91: 24697.02818 | H91: 35236.14787 | I91: 59933.17605 | J91: 47676.04579 | K91: 0 | L91: 7825013.268 | M91: 0 | N91: 0 | Q91: 0 | R91: 0 | S91: 0 | T91: 0
A92: 72 | B92: 2026-08-10 | C92: 31 | D92: 7789777.12 | E92: 0 | F92: 25405.34434 | G92: 25405.34434 | H92: 34527.83171 | I92: 59933.17605 | J92: 47522.65459 | K92: 0 | L92: 7789777.12 | M92: 0 | N92: 0 | Q92: 0 | R92: 0 | S92: 0 | T92: 0
A93: 73 | B93: 2026-09-10 | C93: 31 | D93: 7755249.288 | E93: 0 | F93: 25292.73631 | G93: 25292.73631 | H93: 34640.43974 | I93: 59933.17605 | J93: 47369.7569 | K93: 0 | L93: 7755249.288 | M93: 0 | N93: 0 | Q93: 0 | R93: 0 | S93: 0 | T93: 0
A94: 74 | B94: 2026-10-10 | C94: 30 | D94: 7720608.849 | E94: 0 | F94: 24367.51067 | G94: 24367.51067 | H94: 35565.66538 | I94: 59933.17605 | J94: 47217.35114 | K94: 0 | L94: 7720608.849 | M94: 0 | N94: 0 | Q94: 0 | R94: 0 | S94: 0 | T94: 0
A95: 75 | B95: 2026-11-10 | C95: 31 | D95: 7685043.183 | E95: 0 | F95: 25063.76823 | G95: 25063.76823 | H95: 34869.40782 | I95: 59933.17605 | J95: 47065.43573 | K95: 0 | L95: 7685043.183 | M95: 0 | N95: 0 | Q95: 0 | R95: 0 | S95: 0 | T95: 0
A96: 76 | B96: 2026-12-10 | C96: 30 | D96: 7650173.775 | E96: 0 | F96: 24145.206 | G96: 24145.206 | H96: 35787.97005 | I96: 59933.17605 | J96: 46914.00908 | K96: 0 | L96: 7650173.775 | M96: 0 | N96: 0 | Q96: 0 | R96: 0 | S96: 0 | T96: 0
A97: 77 | B97: 2027-01-10 | C97: 31 | D97: 7614385.805 | E97: 0 | F97: 24833.32839 | G97: 24833.32839 | H97: 35099.84766 | I97: 59933.17605 | J97: 46763.06963 | K97: 0 | L97: 7614385.805 | M97: 0 | N97: 0 | Q97: 0 | R97: 0 | S97: 0 | T97: 0
A98: 78 | B98: 2027-02-10 | C98: 31 | D98: 7579285.958 | E98: 0 | F98: 24718.85481 | G98: 24718.85481 | H98: 35214.32124 | I98: 59933.17605 | J98: 46612.61581 | K98: 0 | L98: 7579285.958 | M98: 0 | N98: 0 | Q98: 0 | R98: 0 | S98: 0 | T98: 0
A99: 79 | B99: 2027-03-10 | C99: 28 | D99: 7544071.636 | E99: 0 | F99: 22222.97486 | G99: 22222.97486 | H99: 37710.20119 | I99: 59933.17605 | J99: 46462.64605 | K99: 0 | L99: 7544071.636 | M99: 0 | N99: 0 | Q99: 0 | R99: 0 | S99: 0 | T99: 0
A100: 80 | B100: 2027-04-10 | C100: 31 | D100: 7506361.435 | E100: 0 | F100: 24481.02097 | G100: 24481.02097 | H100: 35452.15508 | I100: 59933.17605 | J100: 46313.15879 | K100: 0 | L100: 7506361.435 | M100: 0 | N100: 0 | Q100: 0 | R100: 0 | S100: 0 | T100: 0
A101: 81 | B101: 2027-05-10 | C101: 30 | D101: 7470909.28 | E101: 0 | F101: 23579.41778 | G101: 23579.41778 | H101: 36353.75827 | I101: 59933.17605 | J101: 46164.1525 | K101: 0 | L101: 7470909.28 | M101: 0 | N101: 0 | Q101: 0 | R101: 0 | S101: 0 | T101: 0
A102: 82 | B102: 2027-06-10 | C102: 31 | D102: 7434555.522 | E102: 0 | F102: 24246.83532 | G102: 24246.83532 | H102: 35686.34073 | I102: 59933.17605 | J102: 46015.62561 | K102: 0 | L102: 7434555.522 | M102: 0 | N102: 0 | Q102: 0 | R102: 0 | S102: 0 | T102: 0
A103: 83 | B103: 2027-07-10 | C103: 30 | D103: 7398869.181 | E103: 0 | F103: 23352.04739 | G103: 23352.04739 | H103: 36581.12866 | I103: 59933.17605 | J103: 45867.57658 | K103: 0 | L103: 7398869.181 | M103: 0 | N103: 0 | Q103: 0 | R103: 0 | S103: 0 | T103: 0
A104: 84 | B104: 2027-08-10 | C104: 31 | D104: 7362288.052 | E104: 0 | F104: 24011.14438 | G104: 24011.14438 | H104: 35922.03167 | I104: 59933.17605 | J104: 45720.00388 | K104: 0 | L104: 7362288.052 | M104: 0 | N104: 0 | Q104: 0 | R104: 0 | S104: 0 | T104: 0
A105: 85 | B105: 2027-09-10 | C105: 31 | D105: 7326366.021 | E105: 0 | F105: 23893.98935 | G105: 23893.98935 | H105: 36039.1867 | I105: 59933.17605 | J105: 45572.90598 | K105: 0 | L105: 7326366.021 | M105: 0 | N105: 0 | Q105: 0 | R105: 0 | S105: 0 | T105: 0
A106: 86 | B106: 2027-10-10 | C106: 30 | D106: 7290326.834 | E106: 0 | F106: 23009.4699 | G106: 23009.4699 | H106: 36923.70615 | I106: 59933.17605 | J106: 45426.28135 | K106: 0 | L106: 7290326.834 | M106: 0 | N106: 0 | Q106: 0 | R106: 0 | S106: 0 | T106: 0
A107: 87 | B107: 2027-11-10 | C107: 31 | D107: 7253403.128 | E107: 0 | F107: 23656.03037 | G107: 23656.03037 | H107: 36277.14568 | I107: 59933.17605 | J107: 45280.12846 | K107: 0 | L107: 7253403.128 | M107: 0 | N107: 0 | Q107: 0 | R107: 0 | S107: 0 | T107: 0
A108: 88 | B108: 2027-12-10 | C108: 30 | D108: 7217125.982 | E108: 0 | F108: 22778.43598 | G108: 22778.43598 | H108: 37154.74007 | I108: 59933.17605 | J108: 45134.44579 | K108: 0 | L108: 7217125.982 | M108: 0 | N108: 0 | Q108: 0 | R108: 0 | S108: 0 | T108: 0
A109: 89 | B109: 2028-01-10 | C109: 31 | D109: 7179971.242 | E109: 0 | F109: 23416.54183 | G109: 23416.54183 | H109: 36516.63422 | I109: 59933.17605 | J109: 44989.23184 | K109: 0 | L109: 7179971.242 | M109: 0 | N109: 0 | Q109: 0 | R109: 0 | S109: 0 | T109: 0
A110: 90 | B110: 2028-02-10 | C110: 31 | D110: 7143454.608 | E110: 0 | F110: 23297.44758 | G110: 23297.44758 | H110: 36635.72847 | I110: 59933.17605 | J110: 44844.4851 | K110: 0 | L110: 7143454.608 | M110: 0 | N110: 0 | Q110: 0 | R110: 0 | S110: 0 | T110: 0
A111: 91 | B111: 2028-03-10 | C111: 29 | D111: 7106818.879 | E111: 0 | F111: 21682.61234 | G111: 21682.61234 | H111: 38250.56371 | I111: 59933.17605 | J111: 44700.20406 | K111: 0 | L111: 7106818.879 | M111: 0 | N111: 0 | Q111: 0 | R111: 0 | S111: 0 | T111: 0
A112: 92 | B112: 2028-04-10 | C112: 31 | D112: 7068568.316 | E112: 0 | F112: 23053.21568 | G112: 23053.21568 | H112: 36879.96037 | I112: 59933.17605 | J112: 44556.38723 | K112: 0 | L112: 7068568.316 | M112: 0 | N112: 0 | Q112: 0 | R112: 0 | S112: 0 | T112: 0
A113: 93 | B113: 2028-05-10 | C113: 30 | D113: 7031688.355 | E113: 0 | F113: 22193.16434 | G113: 22193.16434 | H113: 37740.01171 | I113: 59933.17605 | J113: 44413.0331 | K113: 0 | L113: 7031688.355 | M113: 0 | N113: 0 | Q113: 0 | R113: 0 | S113: 0 | T113: 0
A114: 94 | B114: 2028-06-10 | C114: 31 | D114: 6993948.344 | E114: 0 | F114: 22809.85235 | G114: 22809.85235 | H114: 37123.3237 | I114: 59933.17605 | J114: 44270.1402 | K114: 0 | L114: 6993948.344 | M114: 0 | N114: 0 | Q114: 0 | R114: 0 | S114: 0 | T114: 0
A115: 95 | B115: 2028-07-10 | C115: 30 | D115: 6956825.02 | E115: 0 | F115: 21956.88335 | G115: 21956.88335 | H115: 37976.2927 | I115: 59933.17605 | J115: 44127.70704 | K115: 0 | L115: 6956825.02 | M115: 0 | N115: 0 | Q115: 0 | R115: 0 | S115: 0 | T115: 0
A116: 96 | B116: 2028-08-10 | C116: 31 | D116: 6918848.727 | E116: 0 | F116: 22564.92473 | G116: 22564.92473 | H116: 37368.25132 | I116: 59933.17605 | J116: 43985.73214 | K116: 0 | L116: 6918848.727 | M116: 0 | N116: 0 | Q116: 0 | R116: 0 | S116: 0 | T116: 0
A117: 97 | B117: 2028-09-10 | C117: 31 | D117: 6881480.476 | E117: 0 | F117: 22443.05304 | G117: 22443.05304 | H117: 37490.12301 | I117: 59933.17605 | J117: 43844.21402 | K117: 0 | L117: 6881480.476 | M117: 0 | N117: 0 | Q117: 0 | R117: 0 | S117: 0 | T117: 0
A118: 98 | B118: 2028-10-10 | C118: 30 | D118: 6843990.353 | E118: 0 | F118: 21600.75859 | G118: 21600.75859 | H118: 38332.41746 | I118: 59933.17605 | J118: 43703.15121 | K118: 0 | L118: 6843990.353 | M118: 0 | N118: 0 | Q118: 0 | R118: 0 | S118: 0 | T118: 0
A119: 99 | B119: 2028-11-10 | C119: 31 | D119: 6805657.935 | E119: 0 | F119: 22195.76769 | G119: 22195.76769 | H119: 37737.40836 | I119: 59933.17605 | J119: 43562.54226 | K119: 0 | L119: 6805657.935 | M119: 0 | N119: 0 | Q119: 0 | R119: 0 | S119: 0 | T119: 0
A120: 100 | B120: 2028-12-10 | C120: 30 | D120: 6767920.527 | E120: 0 | F120: 21360.66972 | G120: 21360.66972 | H120: 38572.50633 | I120: 59933.17605 | J120: 43422.3857 | K120: 0 | L120: 6767920.527 | M120: 0 | N120: 0 | Q120: 0 | R120: 0 | S120: 0 | T120: 0
A121: 101 | B121: 2029-01-10 | C121: 31 | D121: 6729348.021 | E121: 0 | F121: 21946.89283 | G121: 21946.89283 | H121: 37986.28322 | I121: 59933.17605 | J121: 43282.68007 | K121: 0 | L121: 6729348.021 | M121: 0 | N121: 0 | Q121: 0 | R121: 0 | S121: 0 | T121: 0
A122: 102 | B122: 2029-02-10 | C122: 31 | D122: 6691361.738 | E122: 0 | F122: 21823.00551 | G122: 21823.00551 | H122: 38110.17054 | I122: 59933.17605 | J122: 43143.42393 | K122: 0 | L122: 6691361.738 | M122: 0 | N122: 0 | Q122: 0 | R122: 0 | S122: 0 | T122: 0
A123: 103 | B123: 2029-03-10 | C123: 28 | D123: 6653251.567 | E123: 0 | F123: 19598.83859 | G123: 19598.83859 | H123: 40334.33746 | I123: 59933.17605 | J123: 43004.61582 | K123: 0 | L123: 6653251.567 | M123: 0 | N123: 0 | Q123: 0 | R123: 0 | S123: 0 | T123: 0
A124: 104 | B124: 2029-04-10 | C124: 31 | D124: 6612917.23 | E124: 0 | F124: 21567.16896 | G124: 21567.16896 | H124: 38366.00709 | I124: 59933.17605 | J124: 42866.25431 | K124: 0 | L124: 6612917.23 | M124: 0 | N124: 0 | Q124: 0 | R124: 0 | S124: 0 | T124: 0
A125: 105 | B125: 2029-05-10 | C125: 30 | D125: 6574551.223 | E125: 0 | F125: 20750.36441 | G125: 20750.36441 | H125: 39182.81164 | I125: 59933.17605 | J125: 42728.33796 | K125: 0 | L125: 6574551.223 | M125: 0 | N125: 0 | Q125: 0 | R125: 0 | S125: 0 | T125: 0
A126: 106 | B126: 2029-06-10 | C126: 31 | D126: 6535368.411 | E126: 0 | F126: 21314.25358 | G126: 21314.25358 | H126: 38618.92247 | I126: 59933.17605 | J126: 42590.86534 | K126: 0 | L126: 6535368.411 | M126: 0 | N126: 0 | Q126: 0 | R126: 0 | S126: 0 | T126: 0
A127: 107 | B127: 2029-07-10 | C127: 30 | D127: 6496749.488 | E127: 0 | F127: 20504.80934 | G127: 20504.80934 | H127: 39428.36671 | I127: 59933.17605 | J127: 42453.83501 | K127: 0 | L127: 6496749.488 | M127: 0 | N127: 0 | Q127: 0 | R127: 0 | S127: 0 | T127: 0
A128: 108 | B128: 2029-08-10 | C128: 31 | D128: 6457321.122 | E128: 0 | F128: 21059.7125 | G128: 21059.7125 | H128: 38873.46355 | I128: 59933.17605 | J128: 42317.24556 | K128: 0 | L128: 6457321.122 | M128: 0 | N128: 0 | Q128: 0 | R128: 0 | S128: 0 | T128: 0
A129: 109 | B129: 2029-09-10 | C129: 31 | D129: 6418447.658 | E129: 0 | F129: 20932.93176 | G129: 20932.93176 | H129: 39000.24429 | I129: 59933.17605 | J129: 42181.09557 | K129: 0 | L129: 6418447.658 | M129: 0 | N129: 0 | Q129: 0 | R129: 0 | S129: 0 | T129: 0
A130: 110 | B130: 2029-10-10 | C130: 30 | D130: 6379447.414 | E130: 0 | F130: 20134.58471 | G130: 20134.58471 | H130: 39798.59133 | I130: 59933.17605 | J130: 42045.38363 | K130: 0 | L130: 6379447.414 | M130: 0 | N130: 0 | Q130: 0 | R130: 0 | S130: 0 | T130: 0
A131: 111 | B131: 2029-11-10 | C131: 31 | D131: 6339648.823 | E131: 0 | F131: 20675.93961 | G131: 20675.93961 | H131: 39257.23644 | I131: 59933.17605 | J131: 41910.10832 | K131: 0 | L131: 6339648.823 | M131: 0 | N131: 0 | Q131: 0 | R131: 0 | S131: 0 | T131: 0
A132: 112 | B132: 2029-12-10 | C132: 30 | D132: 6300391.586 | E132: 0 | F132: 19885.07153 | G132: 19885.07153 | H132: 40048.10452 | I132: 59933.17605 | J132: 41775.26824 | K132: 0 | L132: 6300391.586 | M132: 0 | N132: 0 | Q132: 0 | R132: 0 | S132: 0 | T132: 0
A133: 113 | B133: 2030-01-10 | C133: 31 | D133: 6260343.482 | E133: 0 | F133: 20417.29556 | G133: 20417.29556 | H133: 39515.88049 | I133: 59933.17605 | J133: 41640.86199 | K133: 0 | L133: 6260343.482 | M133: 0 | N133: 0 | Q133: 0 | R133: 0 | S133: 0 | T133: 0
A134: 114 | B134: 2030-02-10 | C134: 31 | D134: 6220827.601 | E134: 0 | F134: 20288.41966 | G134: 20288.41966 | H134: 39644.75639 | I134: 59933.17605 | J134: 41506.88817 | K134: 0 | L134: 6220827.601 | M134: 0 | N134: 0 | Q134: 0 | R134: 0 | S134: 0 | T134: 0
A135: 115 | B135: 2030-03-10 | C135: 28 | D135: 6181182.845 | E135: 0 | F135: 18208.24053 | G135: 18208.24053 | H135: 41724.93552 | I135: 59933.17605 | J135: 41373.34539 | K135: 0 | L135: 6181182.845 | M135: 0 | N135: 0 | Q135: 0 | R135: 0 | S135: 0 | T135: 0
A136: 116 | B136: 2030-04-10 | C136: 31 | D136: 6139457.909 | E136: 0 | F136: 20023.043 | G136: 20023.043 | H136: 39910.13305 | I136: 59933.17605 | J136: 41240.23227 | K136: 0 | L136: 6139457.909 | M136: 0 | N136: 0 | Q136: 0 | R136: 0 | S136: 0 | T136: 0
A137: 117 | B137: 2030-05-10 | C137: 30 | D137: 6099547.776 | E137: 0 | F137: 19251.17545 | G137: 19251.17545 | H137: 40682.0006 | I137: 59933.17605 | J137: 41107.54743 | K137: 0 | L137: 6099547.776 | M137: 0 | N137: 0 | Q137: 0 | R137: 0 | S137: 0 | T137: 0
A138: 118 | B138: 2030-06-10 | C138: 31 | D138: 6058865.776 | E138: 0 | F138: 19760.20224 | G138: 19760.20224 | H138: 40172.9738 | I138: 59933.17605 | J138: 40975.28948 | K138: 0 | L138: 6058865.776 | M138: 0 | N138: 0 | Q138: 0 | R138: 0 | S138: 0 | T138: 0
A139: 119 | B139: 2030-07-10 | C139: 30 | D139: 6018692.802 | E139: 0 | F139: 18995.98386 | G139: 18995.98386 | H139: 40937.19219 | I139: 59933.17605 | J139: 40843.45705 | K139: 0 | L139: 6018692.802 | M139: 0 | N139: 0 | Q139: 0 | R139: 0 | S139: 0 | T139: 0
A140: 120 | B140: 2030-08-10 | C140: 31 | D140: 5977755.61 | E140: 0 | F140: 19495.67199 | G140: 19495.67199 | H140: 40437.50406 | I140: 59933.17605 | J140: 40712.04878 | K140: 0 | L140: 5977755.61 | M140: 0 | N140: 0 | Q140: 0 | R140: 0 | S140: 0 | T140: 0
A141: 121 | B141: 2030-09-10 | C141: 31 | D141: 5937318.105 | E141: 0 | F141: 19363.79034 | G141: 19363.79034 | H141: 40569.38571 | I141: 59933.17605 | J141: 40581.06329 | K141: 0 | L141: 5937318.105 | M141: 0 | N141: 0 | Q141: 0 | R141: 0 | S141: 0 | T141: 0
A142: 122 | B142: 2030-10-10 | C142: 30 | D142: 5896748.72 | E142: 0 | F142: 18611.10829 | G142: 18611.10829 | H142: 41322.06776 | I142: 59933.17605 | J142: 40450.49923 | K142: 0 | L142: 5896748.72 | M142: 0 | N142: 0 | Q142: 0 | R142: 0 | S142: 0 | T142: 0
A143: 123 | B143: 2030-11-10 | C143: 31 | D143: 5855426.652 | E143: 0 | F143: 19096.71202 | G143: 19096.71202 | H143: 40836.46403 | I143: 59933.17605 | J143: 40320.35524 | K143: 0 | L143: 5855426.652 | M143: 0 | N143: 0 | Q143: 0 | R143: 0 | S143: 0 | T143: 0
A144: 124 | B144: 2030-12-10 | C144: 30 | D144: 5814590.188 | E144: 0 | F144: 18351.80246 | G144: 18351.80246 | H144: 41581.37359 | I144: 59933.17605 | J144: 40190.62998 | K144: 0 | L144: 5814590.188 | M144: 0 | N144: 0 | Q144: 0 | R144: 0 | S144: 0 | T144: 0
A145: 125 | B145: 2031-01-10 | C145: 31 | D145: 5773008.814 | E145: 0 | F145: 18827.91697 | G145: 18827.91697 | H145: 41105.25908 | I145: 59933.17605 | J145: 40061.32208 | K145: 0 | L145: 5773008.814 | M145: 0 | N145: 0 | Q145: 0 | R145: 0 | S145: 0 | T145: 0
A146: 126 | B146: 2031-02-10 | C146: 31 | D146: 5731903.555 | E146: 0 | F146: 18693.85751 | G146: 18693.85751 | H146: 41239.31854 | I146: 59933.17605 | J146: 39932.43022 | K146: 0 | L146: 5731903.555 | M146: 0 | N146: 0 | Q146: 0 | R146: 0 | S146: 0 | T146: 0
A147: 127 | B147: 2031-03-10 | C147: 28 | D147: 5690664.237 | E147: 0 | F147: 16763.29366 | G147: 16763.29366 | H147: 43169.88239 | I147: 59933.17605 | J147: 39803.95305 | K147: 0 | L147: 5690664.237 | M147: 0 | N147: 0 | Q147: 0 | R147: 0 | S147: 0 | T147: 0
A148: 128 | B148: 2031-04-10 | C148: 31 | D148: 5647494.354 | E148: 0 | F148: 18418.56789 | G148: 18418.56789 | H148: 41514.60816 | I148: 59933.17605 | J148: 39675.88924 | K148: 0 | L148: 5647494.354 | M148: 0 | N148: 0 | Q148: 0 | R148: 0 | S148: 0 | T148: 0
A149: 129 | B149: 2031-05-10 | C149: =+IF($B$13=1, 30, B149-B148) -> 30 | D149: 5605979.746 | E149: 0 | F149: =+C149/$B$14*$B$5*D149 -> 17693.39361 | G149: =E149+F149 -> 17693.39361 | H149: =+IF(A149<=$B$6,0,IF(D149>0,IF($F$9-G149+IF(MOD(A149,6)=0,S149,0)>D149,D149,$F$9-G149+IF(MOD(A149,6)=0,S149,0)),0)) -> 42239.78244 | I149: 59933.17605 | J149: 39548.23745 | K149: 0 | L149: =D149 -> 5605979.746 | M149: =$L$5 -> 0 | N149: 0 | Q149: 0 | R149: 0 | S149: 0 | T149: 0
A150: 130 | B150: =IF(MONTH(B149)=12,DATE(YEAR(B149)+1,1,DAY(B149)),DATE(YEAR(B149),MONTH(B149)+1,DAY(B149))) -> 2031-06-10 | C150: 31 | D150: 5563739.964 | E150: =IF(D150>0,$B$4,0) -> 0 | F150: 18145.41384 | G150: 18145.41384 | H150: 41787.76221 | I150: =IF(D150>0,+G150+H150+K150-IF(MOD(A150,6)=0,S150,0),0) -> 59933.17605 | J150: =+I150/POWER((1+$I$11),A150/12) -> 39420.99637 | K150: =IF(D150>0,IF($F$15="I",($F$9-$B$4)*$F$14,0),0) -> 0 | L150: 5563739.964 | M150: 0 | N150: =IF(MOD(A150,12)=0,$L$7,0) -> 0 | Q150: =IF(D150>0,SUM(M150:P150)+Q149,0) -> 0 | R150: =IF(Q150<=L150*0.7,Q150,L150*0.7) -> 0 | S150: =IF(MOD(A150,6)=0,SUM(S145:S149)+R150*$B$5/$B$14*C150,R150*$B$5/$B$14*C150) -> 0 | T150: =IF(MOD(A150,6)=0,S150,0) -> 0
A151: 131 | B151: 2031-07-10 | C151: 30 | D151: =IF(D150-IF(H150<0,0,H150)<0,0,D150-IF(H150<0,0,H150)) -> 5521952.202 | E151: 0 | F151: 17428.18887 | G151: 17428.18887 | H151: 42504.98718 | I151: 59933.17605 | J151: 39294.16467 | K151: 0 | L151: 5521952.202 | M151: 0 | N151: 0 | Q151: 0 | R151: 0 | S151: 0 | T151: 0
A152: 132 | B152: 2031-08-10 | C152: 31 | D152: 5479447.214 | E152: 0 | F152: 17870.50401 | G152: 17870.50401 | H152: 42062.67204 | I152: 59933.17605 | J152: 39167.74103 | K152: 0 | L152: 5479447.214 | M152: 0 | N152: 0 | Q152: 0 | R152: 0 | S152: 0 | T152: 0
A153: 133 | B153: 2031-09-10 | C153: 31 | D153: 5437384.542 | E153: 0 | F153: 17733.32208 | G153: 17733.32208 | H153: 42199.85397 | I153: 59933.17605 | J153: 39041.72415 | K153: 0 | L153: 5437384.542 | M153: 0 | N153: 0 | Q153: 0 | R153: 0 | S153: 0 | T153: 0
A154: 134 | B154: 2031-10-10 | C154: 30 | D154: 5395184.688 | E154: 0 | F154: 17028.08976 | G154: 17028.08976 | H154: 42905.08629 | I154: 59933.17605 | J154: 38916.1127 | K154: 0 | L154: 5395184.688 | M154: 0 | N154: 0 | Q154: 0 | R154: 0 | S154: 0 | T154: 0
A155: 135 | B155: 2031-11-10 | C155: 31 | D155: 5352279.602 | E155: 0 | F155: 17455.76339 | G155: 17455.76339 | H155: 42477.41266 | I155: 59933.17605 | J155: 38790.9054 | K155: 0 | L155: 5352279.602 | M155: 0 | N155: 0 | Q155: 0 | R155: 0 | S155: 0 | T155: 0
A156: 136 | B156: 2031-12-10 | C156: 30 | D156: 5309802.189 | E156: 0 | F156: 16758.60855 | G156: 16758.60855 | H156: 43174.5675 | I156: 59933.17605 | J156: 38666.10093 | K156: 0 | L156: 5309802.189 | M156: 0 | N156: 0 | Q156: 0 | R156: 0 | S156: 0 | T156: 0
A157: 137 | B157: 2032-01-10 | C157: 31 | D157: 5266627.622 | E157: 0 | F157: 17176.42061 | G157: 17176.42061 | H157: 42756.75544 | I157: 59933.17605 | J157: 38541.698 | K157: 0 | L157: 5266627.622 | M157: 0 | N157: 0 | Q157: 0 | R157: 0 | S157: 0 | T157: 0
A158: 138 | B158: 2032-02-10 | C158: 31 | D158: 5223870.866 | E158: 0 | F158: 17036.97501 | G158: 17036.97501 | H158: 42896.20104 | I158: 59933.17605 | J158: 38417.69532 | K158: 0 | L158: 5223870.866 | M158: 0 | N158: 0 | Q158: 0 | R158: 0 | S158: 0 | T158: 0
A159: 139 | B159: 2032-03-10 | C159: 29 | D159: 5180974.665 | E159: 0 | F159: 15806.94079 | G159: 15806.94079 | H159: 44126.23526 | I159: 59933.17605 | J159: 38294.0916 | K159: 0 | L159: 5180974.665 | M159: 0 | N159: 0 | Q159: 0 | R159: 0 | S159: 0 | T159: 0
A160: 140 | B160: 2032-04-10 | C160: 31 | D160: 5136848.43 | E160: 0 | F160: 16753.16266 | G160: 16753.16266 | H160: 43180.01339 | I160: 59933.17605 | J160: 38170.88557 | K160: 0 | L160: 5136848.43 | M160: 0 | N160: 0 | Q160: 0 | R160: 0 | S160: 0 | T160: 0
A161: 141 | B161: 2032-05-10 | C161: 30 | D161: 5093668.417 | E161: 0 | F161: 16076.45484 | G161: 16076.45484 | H161: 43856.72121 | I161: 59933.17605 | J161: 38048.07593 | K161: 0 | L161: 5093668.417 | M161: 0 | N161: 0 | Q161: 0 | R161: 0 | S161: 0 | T161: 0
A162: 142 | B162: 2032-06-10 | C162: 31 | D162: 5049811.696 | E162: 0 | F162: 16469.30368 | G162: 16469.30368 | H162: 43463.87237 | I162: 59933.17605 | J162: 37925.66141 | K162: 0 | L162: 5049811.696 | M162: 0 | N162: 0 | Q162: 0 | R162: 0 | S162: 0 | T162: 0
A163: 143 | B163: 2032-07-10 | C163: 30 | D163: 5006347.823 | E163: 0 | F163: 15800.85669 | G163: 15800.85669 | H163: 44132.31936 | I163: 59933.17605 | J163: 37803.64075 | K163: 0 | L163: 5006347.823 | M163: 0 | N163: 0 | Q163: 0 | R163: 0 | S163: 0 | T163: 0
A164: 144 | B164: 2032-08-10 | C164: 31 | D164: 4962215.504 | E164: 0 | F164: 16183.6201 | G164: 16183.6201 | H164: 43749.55595 | I164: 59933.17605 | J164: 37682.01267 | K164: 0 | L164: 4962215.504 | M164: 0 | N164: 0 | Q164: 0 | R164: 0 | S164: 0 | T164: 0
A165: 145 | B165: 2032-09-10 | C165: 31 | D165: 4918465.948 | E165: 0 | F165: 16040.93661 | G165: 16040.93661 | H165: 43892.23943 | I165: 59933.17605 | J165: 37560.77591 | K165: 0 | L165: 4918465.948 | M165: 0 | N165: 0 | Q165: 0 | R165: 0 | S165: 0 | T165: 0
A166: 146 | B166: 2032-10-10 | C166: 30 | D166: 4874573.708 | E166: 0 | F166: 15384.95592 | G166: 15384.95592 | H166: 44548.22013 | I166: 59933.17605 | J166: 37439.92921 | K166: 0 | L166: 4874573.708 | M166: 0 | N166: 0 | Q166: 0 | R166: 0 | S166: 0 | T166: 0
A167: 147 | B167: 2032-11-10 | C167: 31 | D167: 4830025.488 | E167: 0 | F167: 15752.49957 | G167: 15752.49957 | H167: 44180.67648 | I167: 59933.17605 | J167: 37319.47133 | K167: 0 | L167: 4830025.488 | M167: 0 | N167: 0 | Q167: 0 | R167: 0 | S167: 0 | T167: 0
A168: 148 | B168: 2032-12-10 | C168: 30 | D168: 4785844.812 | E168: 0 | F168: 15104.91294 | G168: 15104.91294 | H168: 44828.26311 | I168: 59933.17605 | J168: 37199.401 | K168: 0 | L168: 4785844.812 | M168: 0 | N168: 0 | Q168: 0 | R168: 0 | S168: 0 | T168: 0
A169: 149 | B169: 2033-01-10 | C169: 31 | D169: 4741016.549 | E169: 0 | F169: 15462.20849 | G169: 15462.20849 | H169: 44470.96756 | I169: 59933.17605 | J169: 37079.71698 | K169: 0 | L169: 4741016.549 | M169: 0 | N169: 0 | Q169: 0 | R169: 0 | S169: 0 | T169: 0
A170: 150 | B170: 2033-02-10 | C170: 31 | D170: 4696545.581 | E170: 0 | F170: 15317.17222 | G170: 15317.17222 | H170: 44616.00383 | I170: 59933.17605 | J170: 36960.41803 | K170: 0 | L170: 4696545.581 | M170: 0 | N170: 0 | Q170: 0 | R170: 0 | S170: 0 | T170: 0
A171: 151 | B171: 2033-03-10 | C171: 28 | D171: 4651929.577 | E171: 0 | F171: 13703.43748 | G171: 13703.43748 | H171: 46229.73857 | I171: 59933.17605 | J171: 36841.5029 | K171: 0 | L171: 4651929.577 | M171: 0 | N171: 0 | Q171: 0 | R171: 0 | S171: 0 | T171: 0
A172: 152 | B172: 2033-04-10 | C172: 31 | D172: 4605699.839 | E172: 0 | F172: 15020.89065 | G172: 15020.89065 | H172: 44912.2854 | I172: 59933.17605 | J172: 36722.97037 | K172: 0 | L172: 4605699.839 | M172: 0 | N172: 0 | Q172: 0 | R172: 0 | S172: 0 | T172: 0
A173: 153 | B173: 2033-05-10 | C173: 30 | D173: 4560787.553 | E173: 0 | F173: 14394.59524 | G173: 14394.59524 | H173: 45538.58081 | I173: 59933.17605 | J173: 36604.8192 | K173: 0 | L173: 4560787.553 | M173: 0 | N173: 0 | Q173: 0 | R173: 0 | S173: 0 | T173: 0
A174: 154 | B174: 2033-06-10 | C174: 31 | D174: 4515248.973 | E174: 0 | F174: 14725.89692 | G174: 14725.89692 | H174: 45207.27913 | I174: 59933.17605 | J174: 36487.04817 | K174: 0 | L174: 4515248.973 | M174: 0 | N174: 0 | Q174: 0 | R174: 0 | S174: 0 | T174: 0
A175: 155 | B175: 2033-07-10 | C175: 30 | D175: 4470041.693 | E175: 0 | F175: 14108.18639 | G175: 14108.18639 | H175: 45824.98966 | I175: 59933.17605 | J175: 36369.65605 | K175: 0 | L175: 4470041.693 | M175: 0 | N175: 0 | Q175: 0 | R175: 0 | S175: 0 | T175: 0
A176: 156 | B176: 2033-08-10 | C176: 31 | D176: 4424216.704 | E176: 0 | F176: 14429.00703 | G176: 14429.00703 | H176: 45504.16902 | I176: 59933.17605 | J176: 36252.64162 | K176: 0 | L176: 4424216.704 | M176: 0 | N176: 0 | Q176: 0 | R176: 0 | S176: 0 | T176: 0
A177: 157 | B177: 2033-09-10 | C177: 31 | D177: 4378712.535 | E177: 0 | F177: 14280.6011 | G177: 14280.6011 | H177: 45652.57495 | I177: 59933.17605 | J177: 36136.00367 | K177: 0 | L177: 4378712.535 | M177: 0 | N177: 0 | Q177: 0 | R177: 0 | S177: 0 | T177: 0
A178: 158 | B178: 2033-10-10 | C178: 30 | D178: 4333059.96 | E178: 0 | F178: 13675.84952 | G178: 13675.84952 | H178: 46257.32653 | I178: 59933.17605 | J178: 36019.74098 | K178: 0 | L178: 4333059.96 | M178: 0 | N178: 0 | Q178: 0 | R178: 0 | S178: 0 | T178: 0
A179: 159 | B179: 2033-11-10 | C179: 31 | D179: 4286802.633 | E179: 0 | F179: 13980.84892 | G179: 13980.84892 | H179: 45952.32713 | I179: 59933.17605 | J179: 35903.85236 | K179: 0 | L179: 4286802.633 | M179: 0 | N179: 0 | Q179: 0 | R179: 0 | S179: 0 | T179: 0
A180: 160 | B180: 2033-12-10 | C180: 30 | D180: 4240850.306 | E180: 0 | F180: 13384.82069 | G180: 13384.82069 | H180: 46548.35536 | I180: 59933.17605 | J180: 35788.33659 | K180: 0 | L180: 4240850.306 | M180: 0 | N180: 0 | Q180: 0 | R180: 0 | S180: 0 | T180: 0
A181: 161 | B181: 2034-01-10 | C181: 31 | D181: 4194301.951 | E181: 0 | F181: 13679.16998 | G181: 13679.16998 | H181: 46254.00607 | I181: 59933.17605 | J181: 35673.19248 | K181: 0 | L181: 4194301.951 | M181: 0 | N181: 0 | Q181: 0 | R181: 0 | S181: 0 | T181: 0
A182: 162 | B182: 2034-02-10 | C182: 31 | D182: 4148047.945 | E182: 0 | F182: 13528.31856 | G182: 13528.31856 | H182: 46404.85749 | I182: 59933.17605 | J182: 35558.41883 | K182: 0 | L182: 4148047.945 | M182: 0 | N182: 0 | Q182: 0 | R182: 0 | S182: 0 | T182: 0
A183: 163 | B183: 2034-03-10 | C183: 28 | D183: 4101643.087 | E183: 0 | F183: 12082.42917 | G183: 12082.42917 | H183: 47850.74688 | I183: 59933.17605 | J183: 35444.01445 | K183: 0 | L183: 4101643.087 | M183: 0 | N183: 0 | Q183: 0 | R183: 0 | S183: 0 | T183: 0
A184: 164 | B184: 2034-04-10 | C184: 31 | D184: 4053792.34 | E184: 0 | F184: 13220.91617 | G184: 13220.91617 | H184: 46712.25988 | I184: 59933.17605 | J184: 35329.97814 | K184: 0 | L184: 4053792.34 | M184: 0 | N184: 0 | Q184: 0 | R184: 0 | S184: 0 | T184: 0
A185: 165 | B185: 2034-05-10 | C185: 30 | D185: 4007080.08 | E185: 0 | F185: 12647.00343 | G185: 12647.00343 | H185: 47286.17262 | I185: 59933.17605 | J185: 35216.30874 | K185: 0 | L185: 4007080.08 | M185: 0 | N185: 0 | Q185: 0 | R185: 0 | S185: 0 | T185: 0
A186: 166 | B186: 2034-06-10 | C186: 31 | D186: 3959793.908 | E186: 0 | F186: 12914.35251 | G186: 12914.35251 | H186: 47018.82353 | I186: 59933.17605 | J186: 35103.00505 | K186: 0 | L186: 3959793.908 | M186: 0 | N186: 0 | Q186: 0 | R186: 0 | S186: 0 | T186: 0
A187: 167 | B187: 2034-07-10 | C187: 30 | D187: 3912775.084 | E187: 0 | F187: 12349.36136 | G187: 12349.36136 | H187: 47583.81469 | I187: 59933.17605 | J187: 34990.0659 | K187: 0 | L187: 3912775.084 | M187: 0 | N187: 0 | Q187: 0 | R187: 0 | S187: 0 | T187: 0
A188: 168 | B188: 2034-08-10 | C188: 31 | D188: 3865191.27 | E188: 0 | F188: 12605.81832 | G188: 12605.81832 | H188: 47327.35773 | I188: 59933.17605 | J188: 34877.49011 | K188: 0 | L188: 3865191.27 | M188: 0 | N188: 0 | Q188: 0 | R188: 0 | S188: 0 | T188: 0
A189: 169 | B189: 2034-09-10 | C189: 31 | D189: 3817863.912 | E189: 0 | F189: 12451.4663 | G189: 12451.4663 | H189: 47481.70975 | I189: 59933.17605 | J189: 34765.27653 | K189: 0 | L189: 3817863.912 | M189: 0 | N189: 0 | Q189: 0 | R189: 0 | S189: 0 | T189: 0
A190: 170 | B190: 2034-10-10 | C190: 30 | D190: 3770382.202 | E190: 0 | F190: 11899.94602 | G190: 11899.94602 | H190: 48033.23003 | I190: 59933.17605 | J190: 34653.42397 | K190: 0 | L190: 3770382.202 | M190: 0 | N190: 0 | Q190: 0 | R190: 0 | S190: 0 | T190: 0
A191: 171 | B191: 2034-11-10 | C191: 31 | D191: 3722348.972 | E191: 0 | F191: 12139.95676 | G191: 12139.95676 | H191: 47793.21929 | I191: 59933.17605 | J191: 34541.93129 | K191: 0 | L191: 3722348.972 | M191: 0 | N191: 0 | Q191: 0 | R191: 0 | S191: 0 | T191: 0
A192: 172 | B192: 2034-12-10 | C192: 30 | D192: 3674555.753 | E192: 0 | F192: 11597.50199 | G192: 11597.50199 | H192: 48335.67406 | I192: 59933.17605 | J192: 34430.79731 | K192: 0 | L192: 3674555.753 | M192: 0 | N192: 0 | Q192: 0 | R192: 0 | S192: 0 | T192: 0
A193: 173 | B193: 2035-01-10 | C193: 31 | D193: 3626220.079 | E193: 0 | F193: 11826.44488 | G193: 11826.44488 | H193: 48106.73117 | I193: 59933.17605 | J193: 34320.0209 | K193: 0 | L193: 3626220.079 | M193: 0 | N193: 0 | Q193: 0 | R193: 0 | S193: 0 | T193: 0
A194: 174 | B194: 2035-02-10 | C194: 31 | D194: 3578113.348 | E194: 0 | F194: 11669.55104 | G194: 11669.55104 | H194: 48263.62501 | I194: 59933.17605 | J194: 34209.60089 | K194: 0 | L194: 3578113.348 | M194: 0 | N194: 0 | Q194: 0 | R194: 0 | S194: 0 | T194: 0
A195: 175 | B195: 2035-03-10 | C195: 28 | D195: 3529849.723 | E195: 0 | F195: 10398.06691 | G195: 10398.06691 | H195: 49535.10914 | I195: 59933.17605 | J195: 34099.53615 | K195: 0 | L195: 3529849.723 | M195: 0 | N195: 0 | Q195: 0 | R195: 0 | S195: 0 | T195: 0
A196: 176 | B196: 2035-04-10 | C196: 31 | D196: 3480314.613 | E196: 0 | F196: 11350.59319 | G196: 11350.59319 | H196: 48582.58286 | I196: 59933.17605 | J196: 33989.82552 | K196: 0 | L196: 3480314.613 | M196: 0 | N196: 0 | Q196: 0 | R196: 0 | S196: 0 | T196: 0
A197: 177 | B197: 2035-05-10 | C197: 30 | D197: 3431732.031 | E197: 0 | F197: 10831.11041 | G197: 10831.11041 | H197: 49102.06564 | I197: 59933.17605 | J197: 33880.46788 | K197: 0 | L197: 3431732.031 | M197: 0 | N197: 0 | Q197: 0 | R197: 0 | S197: 0 | T197: 0
A198: 178 | B198: 2035-06-10 | C198: 31 | D198: 3382629.965 | E198: 0 | F198: 11032.00743 | G198: 11032.00743 | H198: 48901.16862 | I198: 59933.17605 | J198: 33771.46207 | K198: 0 | L198: 3382629.965 | M198: 0 | N198: 0 | Q198: 0 | R198: 0 | S198: 0 | T198: 0
A199: 179 | B199: 2035-07-10 | C199: 30 | D199: 3333728.796 | E199: 0 | F199: 10521.79609 | G199: 10521.79609 | H199: 49411.37996 | I199: 59933.17605 | J199: 33662.80698 | K199: 0 | L199: 3333728.796 | M199: 0 | N199: 0 | Q199: 0 | R199: 0 | S199: 0 | T199: 0
A200: 180 | B200: 2035-08-10 | C200: 31 | D200: 3284317.416 | E200: 0 | F200: 10711.37384 | G200: 10711.37384 | H200: 49221.80221 | I200: 59933.17605 | J200: 33554.50147 | K200: 0 | L200: 3284317.416 | M200: 0 | N200: 0 | Q200: 0 | R200: 0 | S200: 0 | T200: 0
... 180 more rows

Sheet Egyenlítővel (hidden)
A1: Input | B1: 2 | C1: 3 | D1: 4 | E1: 5 | F1: 6 | G1: 7 | H1: 8 | I1: 9 | K1: 10 | L1: 11 | T1: 12 | AQ1: =+#REF! -> 
A2: Disbursement Date | B2: 2019-07-01 | E2: Output | AQ2: =+#REF! -> 
A3: Loan Amount | B3: =Kalkulátor!C4 -> 10000000 | C3: =+F4+B9 -> 4210961.082 | E3: Fee Income | F3: =SUM(E21:E380) -> 0 | AQ3: =+#REF! -> 
A4: Monthly Hand Fee (fix Amt) | B4: 0 | C4: =+B3+C3 -> 14210961.08 | E4: Interest Income | F4: =SUM(F21:F380) -> 4181834.082 | AQ4: =+#REF! -> 
A5: Interest | B5: =Kalkulátor!D12 -> 0.0409 | H5: Output | I5: Communication | L5: havi megtakarítás | M5: =Kalkulátor!G5 -> 20000
A6: Interest Only Period | E6: Starting Date | F6: =+Egyenlítővel_kedv!F6 -> 2020-09-10 | H6: Loan Amount | I6: =+B3 -> 10000000 | L6: Havi számlára érkező pénz | M6: =Kalkulátor!G6 -> 0
A7: Term | B7: =Kalkulátor!C5 -> 240 | E7: First Duedate | F7: =+F6 -> 2020-09-10 | H7: Term | I7: =+B7 -> 240 | L7: Éves egyszeri megtakarítás | M7: =Kalkulátor!G7 -> 0
A8: HUF Upfront Fee % of the Disb Amt | B8: 0 | C8: Utalási díj | D8: FH költség | E8: Ending Date | F8: =+VLOOKUP(B7+B6, A20:D45,2) -> 2022-09-10 | H8: Interest Only Period | I8: =+B6 -> 0 | L8: Kezdeti megtakarítás | M8: =Kalkulátor!G8 -> 0
A9: HUF Upfront Fee Fix Amt | B9: =C9+D9+C11 -> 29127 | C9: 16527 | D9: 12600 | E9: Installment wo TI | F9: =XPMT(IF(B6=0,B2,VLOOKUP(B6,A21:B380,2,)),VLOOKUP(B6+1,A21:B380,2,),B7-B6,0,B3,B5,B4, B14,B13) -> 61247.79301 | H9: Installment w TI | I9: =+F10 -> 61247.79301
A10: FX Upfront Fee Fix Amt (to be paid in FX) | B10: 0 | C10: ÉB díj | D10: Trkpmás | E10: Installment | F10: =F9*B$12 / B11 -> 61247.79301 | H10: APR | L10: Törlesztőrészlet | M10: =F9-B4 -> 61247.79301
A11: FX bid currency | B11: 1 | C11: 0 | D11: 0 | E11: XIRR | F11: =XIRR(I20:I380,B20:B380) -> 0.03242692649 | H11: XIRR | I11: =+F11 -> 0.03242692649 | L11: PPI-al | M11: =M10+L21 -> 61247.79301
A12: FX ask currency | B12: 1 | L12: Ügyfél által megfizetett tőke | M12: =SUM(H21:H380)-SUM(U20:U380) -> 8921778.677 | O12: =+M12+M13+B9 -> 13132739.76
A13: 30-days (if not then real calendar days) | B13: 0 | F13: KK5 | L13: Ügyfél által megfizetett kamat | M13: =SUM(F21:F380) -> 4181834.082
A14: Days in Years | B14: 365 | E14: PPI díj | F14: 0.049 | H14: Módusuló futamidő | L14: Tényleges futamidő | M14: =MATCH(0,D21:D380,0)-1 -> 214 | N14: =B7-M14 -> 26
A15: Product | B15: Mortgage | C15: Maradványérték | E15: PPI díjjal kell számolni? | F15: =IF(F13=Kalkulátor!C7,"i","n") -> n | L15: Meg nem fizetett törlesztőrészletek száma és összege | M15: =CONCATENATE(B7-M14," db, ",TEXT((B7-M14)*M10,"0 000 Ft")) -> 26 db, 1 592 443 Ft
C16: =+D81/B3 -> 0.8071258081 | L16: Felhalmozott megtakarítások | M16: =MAX(R20:R380) -> 4300000
C17: =D141/B3 -> 0.5423623422 | F17: 12592617.72 | G17: 3935193.037 | H17: =+F17+G17 -> 16527810.76
A18: Details
A19: Term | B19: PaymentDate | C19: DaysBetween | D19: Capital | E19: Fee | F19: Interest | G19: Interest+Fee | H19: Principal | I19: CF- with TradeIncome | K19: THM Calculation | L19: PPI | M19: Módosított tőke | N19: Megtakarítás | O19: Éves egyszeri | P19: havi bejövő | Q19: Kezdeti | R19: Összeg | S19: 70%-os korláttal | T19: Kedvezmény | U19: Kedvezmény tőke számításhoz
A20: 0- Disbursement | B20: =+Egyenlítővel_kedv!B20 -> 2020-08-01 | C20: 0 | D20: 0 | E20: 0 | F20: 0 | G20: 0 | H20: 0 | I20: =- B3 + B8*B3 + B9 + B10 / B11 -> -9970873 | J20: =+I20 -> -9970873 | K20: =SUM(K21:K380)+I20 -> 9410.800375 | M20: =D20 -> 0 | N20: =$M$5 -> 20000 | P20: =M6/2 -> 0 | Q20: =$M$8 -> 0 | R20: =SUM(N20:Q20) -> 20000 | S20: =IF(R20<=M21*0.7,R20,M21*0.7) -> 20000 | T20: =S20*$B$5/$B$14*C21 -> 89.64383562
A21: 1 | B21: =+F6 -> 2020-09-10 | C21: =+IF($B$13=1, 30, B21-B20) -> 40 | D21: =$B$3 -> 10000000 | E21: =IF(D21>0,$B$4,0) -> 0 | F21: =+C21/$B$14*$B$5*D21 -> 44821.91781 | G21: =E21+F21 -> 44821.91781 | H21: =+IF(A21<=$B$6,0,IF(D21>0,IF($F$9-G21+IF(MOD(A21,6)=0,T21,0)>D21,D21,$F$9-G21+IF(MOD(A21,6)=0,T21,0)),0)) -> 16425.8752 | I21: =IF(D21>0,+G21+H21+L21-IF(MOD(A21,6)=0,T21,0),0) -> 61247.79301 | J21: =IF(I21=0,0,I21-(IF(MOD(A21,6)=0,T21,0))) -> 61247.79301 | K21: =+I21/POWER((1+$I$11),A21/12) -> 61085.12972 | L21: =IF(D21>0,IF($F$15="I",($F$9-$B$4)*$F$14,0),0) -> 0 | M21: =D21 -> 10000000 | N21: =$M$5 -> 20000 | O21: =IF(MOD(A21,12)=0,$M$7,0) -> 0 | R21: =IF(D21>0,SUM(N21:Q21)+R20,0) -> 40000 | S21: =IF(R21<=M21*0.7,R21,M21*0.7) -> 40000 | T21: =IF(MOD(A21,6)=0,SUM(T16:T20)+S21*$B$5/$B$14*C21,S21*$B$5/$B$14*C21) -> 179.2876712 | U21: =IF(MOD(A21,6)=0,T21,0) -> 0
A22: 2 | B22: =IF(MONTH(B21)=12,DATE(YEAR(B21)+1,1,DAY(B21)),DATE(YEAR(B21),MONTH(B21)+1,DAY(B21))) -> 2020-10-10 | C22: 30 | D22: =IF(D21-IF(H21<0,0,H21)<0,0,D21-IF(H21<0,0,H21)) -> 9983574.125 | E22: =IF(D22>0,$B$4,0) -> 0 | F22: 33561.22041 | G22: 33561.22041 | H22: 27686.5726 | I22: =IF(D22>0,+G22+H22+L22-IF(MOD(A22,6)=0,T22,0),0) -> 61247.79301 | J22: =IF(I22=0,0,I22-(IF(MOD(A22,6)=0,T22,0))) -> 61247.79301 | K22: =+I22/POWER((1+$I$11),A22/12) -> 60922.89844 | L22: =IF(D22>0,IF($F$15="I",($F$9-$B$4)*$F$14,0),0) -> 0 | M22: 9983574.125 | N22: 20000 | O22: =IF(MOD(A22,12)=0,$M$7,0) -> 0 | R22: =IF(D22>0,SUM(N22:Q22)+R21,0) -> 60000 | S22: =IF(R22<=M22*0.7,R22,M22*0.7) -> 60000 | T22: =IF(MOD(A22,6)=0,SUM(T17:T21)+S22*$B$5/$B$14*C22,S22*$B$5/$B$14*C22) -> 201.6986301 | U22: =IF(MOD(A22,6)=0,T22,0) -> 0
A23: 3 | B23: 2020-11-10 | C23: 31 | D23: =IF(D22-IF(H22<0,0,H22)<0,0,D22-IF(H22<0,0,H22)) -> 9955887.552 | E23: 0 | F23: 34583.75295 | G23: 34583.75295 | H23: 26664.04006 | I23: 61247.79301 | J23: 61247.79301 | K23: 60761.09801 | L23: 0 | M23: 9955887.552 | N23: 20000 | O23: 0 | R23: 80000 | S23: 80000 | T23: 277.8958904 | U23: 0
A24: 4 | B24: 2020-12-10 | C24: 30 | D24: 9929223.512 | E24: 0 | F24: 33378.51301 | G24: 33378.51301 | H24: 27869.28 | I24: 61247.79301 | J24: 61247.79301 | K24: 60599.72729 | L24: 0 | M24: 9929223.512 | N24: 20000 | O24: 0 | R24: 100000 | S24: 100000 | T24: 336.1643836 | U24: 0
A25: 5 | B25: 2021-01-10 | C25: 31 | D25: 9901354.232 | E25: 0 | F25: 34394.32063 | G25: 34394.32063 | H25: 26853.47238 | I25: 61247.79301 | J25: 61247.79301 | K25: 60438.78515 | L25: 0 | M25: 9901354.232 | N25: 20000 | O25: 0 | R25: 120000 | S25: 120000 | T25: 416.8438356 | U25: 0
A26: 6 | B26: 2021-02-10 | C26: 31 | D26: 9874500.76 | E26: 0 | F26: =+C26/$B$14*$B$5*D26 -> 34301.03976 | G26: 34301.03976 | H26: 28844.96147 | I26: 61247.79301 | J26: 59349.58479 | K26: 60278.27044 | L26: 0 | M26: 9874500.76 | N26: 20000 | O26: 0 | R26: 140000 | S26: 140000 | T26: 1898.208219 | U26: 1898.208219
A27: 7 | B27: 2021-03-10 | C27: 28 | D27: 9845655.798 | E27: 0 | F27: 30891.08225 | G27: 30891.08225 | H27: 30356.71076 | I27: 61247.79301 | J27: 61247.79301 | K27: 60118.18203 | L27: 0 | M27: 9845655.798 | N27: 20000 | O27: 0 | R27: 160000 | S27: 160000 | T27: 502.0054795 | U27: 0
A28: 8 | B28: 2021-04-10 | C28: 31 | D28: 9815299.088 | E28: 0 | F28: 34095.39099 | G28: 34095.39099 | H28: 27152.40202 | I28: 61247.79301 | J28: 61247.79301 | K28: 59958.51879 | L28: 0 | M28: 9815299.088 | N28: 20000 | O28: 0 | R28: 180000 | S28: 180000 | T28: 625.2657534 | U28: 0
A29: 9 | B29: 2021-05-10 | C29: 30 | D29: 9788146.686 | E29: 0 | F29: 32904.26297 | G29: 32904.26297 | H29: 28343.53004 | I29: 61247.79301 | J29: 61247.79301 | K29: 59799.27959 | L29: 0 | M29: 9788146.686 | N29: 20000 | O29: 0 | R29: 200000 | S29: 200000 | T29: 672.3287671 | U29: 0
A30: 10 | B30: 2021-06-10 | C30: 31 | D30: 9759803.155 | E30: 0 | F30: 33902.61485 | G30: 33902.61485 | H30: 27345.17816 | I30: 61247.79301 | J30: 61247.79301 | K30: 59640.46329 | L30: 0 | M30: 9759803.155 | N30: 20000 | O30: 0 | R30: 220000 | S30: 220000 | T30: 764.2136986 | U30: 0
A31: 11 | B31: 2021-07-10 | C31: 30 | D31: 9732457.977 | E31: 0 | F31: 32717.05736 | G31: 32717.05736 | H31: 28530.73565 | I31: 61247.79301 | J31: 61247.79301 | K31: 59482.06878 | L31: 0 | M31: 9732457.977 | N31: 20000 | O31: 0 | R31: 240000 | S31: 240000 | T31: 806.7945205 | U31: 0
A32: 12 | B32: 2021-08-10 | C32: 31 | D32: 9703927.242 | E32: 0 | F32: 33708.51877 | G32: 33708.51877 | H32: 31813.04411 | I32: 61247.79301 | J32: 56974.02315 | K32: 59324.09494 | L32: 0 | M32: 9703927.242 | N32: 20000 | O32: 0 | R32: 260000 | S32: 260000 | T32: 4273.769863 | U32: 4273.769863
A33: 13 | B33: 2021-09-10 | C33: 31 | D33: 9672114.198 | E33: 0 | F33: 33598.00984 | G33: 33598.00984 | H33: 27649.78317 | I33: 61247.79301 | J33: 61247.79301 | K33: 59166.54066 | L33: 0 | M33: 9672114.198 | N33: 20000 | O33: 0 | R33: 280000 | S33: =IF(R33<=M33*0.7,R33,M33*0.7) -> 280000 | T33: 972.6356164 | U33: 0
A34: 14 | B34: 2021-10-10 | C34: 30 | D34: 9644464.414 | E34: 0 | F34: 32421.25435 | G34: 32421.25435 | H34: 28826.53866 | I34: 61247.79301 | J34: 61247.79301 | K34: 59009.4048 | L34: 0 | M34: 9644464.414 | N34: 20000 | O34: 0 | R34: 300000 | S34: 300000 | T34: 1008.493151 | U34: 0
A35: 15 | B35: 2021-11-10 | C35: 31 | D35: 9615637.876 | E35: 0 | F35: 33401.82812 | G35: 33401.82812 | H35: 27845.96489 | I35: 61247.79301 | J35: 61247.79301 | K35: 58852.68628 | L35: 0 | M35: 9615637.876 | N35: 20000 | O35: 0 | R35: 320000 | S35: 320000 | T35: 1111.583562 | U35: 0
A36: 16 | B36: 2021-12-10 | C36: 30 | D36: 9587791.911 | E36: 0 | F36: 32230.74157 | G36: 32230.74157 | H36: 29017.05144 | I36: 61247.79301 | J36: 61247.79301 | K36: 58696.38397 | L36: 0 | M36: 9587791.911 | N36: 20000 | O36: 0 | R36: 340000 | S36: 340000 | T36: 1142.958904 | U36: 0
A37: 17 | B37: 2022-01-10 | C37: 31 | D37: 9558774.859 | E37: 0 | F37: 33204.30313 | G37: 33204.30313 | H37: 28043.48988 | I37: 61247.79301 | J37: 61247.79301 | K37: 58540.49677 | L37: 0 | M37: 9558774.859 | N37: 20000 | O37: 0 | R37: 360000 | S37: 360000 | T37: 1250.531507 | U37: 0
A38: 18 | B38: 2022-02-10 | C38: 31 | D38: 9530731.37 | E38: 0 | F38: 33106.8885 | G38: 33106.8885 | H38: 34947.11273 | I38: 61247.79301 | J38: 54441.58479 | K38: 58385.02358 | L38: 0 | M38: 9530731.37 | N38: 20000 | O38: 0 | R38: 380000 | S38: 380000 | T38: 6806.208219 | U38: 6806.208219
A39: 19 | B39: 2022-03-10 | C39: 28 | D39: 9495784.257 | E39: 0 | F39: 29793.3483 | G39: 29793.3483 | H39: 31454.44471 | I39: 61247.79301 | J39: 61247.79301 | K39: 58229.96329 | L39: 0 | M39: 9495784.257 | N39: 20000 | O39: 0 | R39: 400000 | S39: 400000 | T39: 1255.013699 | U39: 0
A40: 20 | B40: 2022-04-10 | C40: 31 | D40: 9464329.812 | E40: 0 | F40: 32876.2295 | G40: 32876.2295 | H40: 28371.56351 | I40: 61247.79301 | J40: 61247.79301 | K40: 58075.31483 | L40: 0 | M40: 9464329.812 | N40: 20000 | O40: 0 | R40: 420000 | S40: 420000 | T40: 1458.953425 | U40: 0
A41: 21 | B41: 2022-05-10 | C41: 30 | D41: 9435958.249 | E41: 0 | F41: 31720.33088 | G41: 31720.33088 | H41: 29527.46213 | I41: 61247.79301 | J41: 61247.79301 | K41: 57921.07708 | L41: 0 | M41: 9435958.249 | N41: 20000 | O41: 0 | R41: 440000 | S41: 440000 | T41: 1479.123288 | U41: 0
A42: 22 | B42: 2022-06-10 | C42: 31 | D42: 9406430.786 | E42: 0 | F42: 32675.10574 | G42: 32675.10574 | H42: 28572.68727 | I42: 61247.79301 | J42: 61247.79301 | K42: 57767.24895 | L42: 0 | M42: 9406430.786 | N42: 20000 | O42: 0 | R42: 460000 | S42: 460000 | T42: 1597.90137 | U42: 0
A43: 23 | B43: 2022-07-10 | C43: 30 | D43: 9377858.099 | E43: 0 | F43: 31525.01887 | G43: 31525.01887 | H43: 29722.77414 | I43: 61247.79301 | J43: 61247.79301 | K43: 57613.82937 | L43: 0 | M43: 9377858.099 | N43: 20000 | O43: 0 | R43: 480000 | S43: 480000 | T43: 1613.589041 | U43: 0
A44: 24 | B44: 2022-08-10 | C44: 31 | D44: 9348135.325 | E44: 0 | F44: 32472.60487 | G44: 32472.60487 | H44: 37916.61827 | I44: 61247.79301 | J44: 52106.36287 | K44: 57460.81725 | L44: 0 | M44: 9348135.325 | N44: 20000 | O44: 0 | R44: 500000 | S44: 500000 | T44: 9141.430137 | U44: 9141.430137
A45: 25 | B45: 2022-09-10 | C45: 31 | D45: 9310218.707 | E45: 0 | F45: 32340.89397 | G45: 32340.89397 | H45: 28906.89904 | I45: 61247.79301 | J45: 61247.79301 | K45: 57308.21149 | L45: 0 | M45: 9310218.707 | N45: 20000 | O45: 0 | R45: 520000 | S45: 520000 | T45: 1806.323288 | U45: 0
A46: 26 | B46: 2022-10-10 | C46: 30 | D46: 9281311.808 | E46: 0 | F46: 31200.46462 | G46: 31200.46462 | H46: 30047.32839 | I46: 61247.79301 | J46: 61247.79301 | K46: 57156.01104 | L46: 0 | M46: 9281311.808 | N46: 20000 | O46: 0 | R46: 540000 | S46: 540000 | T46: 1815.287671 | U46: 0
A47: 27 | B47: 2022-11-10 | C47: 31 | D47: 9251264.479 | E47: 0 | F47: 32136.10475 | G47: 32136.10475 | H47: 29111.68826 | I47: 61247.79301 | J47: 61247.79301 | K47: 57004.21479 | L47: 0 | M47: 9251264.479 | N47: 20000 | O47: 0 | R47: 560000 | S47: 560000 | T47: 1945.271233 | U47: 0
A48: 28 | B48: 2022-12-10 | C48: 30 | D48: 9222152.791 | E48: 0 | F48: 31001.59308 | G48: 31001.59308 | H48: 30246.19993 | I48: 61247.79301 | J48: 61247.79301 | K48: 56852.8217 | L48: 0 | M48: 9222152.791 | N48: 20000 | O48: 0 | R48: 580000 | S48: 580000 | T48: 1949.753425 | U48: 0
A49: 29 | B49: 2023-01-10 | C49: 31 | D49: 9191906.591 | E49: 0 | F49: 31929.91333 | G49: 31929.91333 | H49: 29317.87968 | I49: 61247.79301 | J49: 61247.79301 | K49: 56701.83067 | L49: 0 | M49: 9191906.591 | N49: 20000 | O49: 0 | R49: 600000 | S49: 600000 | T49: 2084.219178 | U49: 0
A50: 30 | B50: 2023-02-10 | C50: 31 | D50: 9162588.711 | E50: 0 | F50: 31828.07186 | G50: 31828.07186 | H50: 41174.2691 | I50: 61247.79301 | J50: 49493.24507 | K50: 56551.24065 | L50: 0 | M50: 9162588.711 | N50: 20000 | O50: 0 | R50: 620000 | S50: 620000 | T50: 11754.54795 | U50: 11754.54795
A51: 31 | B51: 2023-03-10 | C51: 28 | D51: 9121414.442 | E51: 0 | F51: 28618.75019 | G51: 28618.75019 | H51: 32629.04282 | I51: 61247.79301 | J51: 61247.79301 | K51: 56401.05057 | L51: 0 | M51: 9121414.442 | N51: 20000 | O51: 0 | R51: 640000 | S51: 640000 | T51: 2008.021918 | U51: 0
A52: 32 | B52: 2023-04-10 | C52: 31 | D52: 9088785.4 | E52: 0 | F52: 31571.70139 | G52: 31571.70139 | H52: 29676.09162 | I52: 61247.79301 | J52: 61247.79301 | K52: 56251.25937 | L52: 0 | M52: 9088785.4 | N52: 20000 | O52: 0 | R52: 660000 | S52: 660000 | T52: 2292.641096 | U52: 0
A53: 33 | B53: 2023-05-10 | C53: 30 | D53: 9059109.308 | E53: 0 | F53: 30453.49896 | G53: 30453.49896 | H53: 30794.29405 | I53: 61247.79301 | J53: 61247.79301 | K53: 56101.86599 | L53: 0 | M53: 9059109.308 | N53: 20000 | O53: 0 | R53: 680000 | S53: 680000 | T53: 2285.917808 | U53: 0
A54: 34 | B54: 2023-06-10 | C54: 31 | D54: 9028315.014 | E54: 0 | F54: 31361.6455 | G54: 31361.6455 | H54: 29886.14751 | I54: 61247.79301 | J54: 61247.79301 | K54: 55952.86937 | L54: 0 | M54: 9028315.014 | N54: 20000 | O54: 0 | R54: 700000 | S54: 700000 | T54: 2431.589041 | U54: 0
A55: 35 | B55: 2023-07-10 | C55: 30 | D55: 8998428.866 | E55: 0 | F55: 30249.51293 | G55: 30249.51293 | H55: 30998.28008 | I55: 61247.79301 | J55: 61247.79301 | K55: 55804.26846 | L55: 0 | M55: 8998428.866 | N55: 20000 | O55: 0 | R55: 720000 | S55: 720000 | T55: 2420.383562 | U55: 0
A56: 36 | B56: 2023-08-10 | C56: 31 | D56: 8967430.586 | E56: 0 | F56: 31150.15134 | G56: 31150.15134 | H56: 44106.73208 | I56: 61247.79301 | J56: 47238.7026 | K56: 55656.06221 | L56: 0 | M56: 8967430.586 | N56: 20000 | O56: 0 | R56: 740000 | S56: 740000 | T56: 14009.09041 | U56: 14009.09041
A57: 37 | B57: 2023-09-10 | C57: 31 | D57: 8923323.854 | E57: 0 | F57: 30996.93785 | G57: 30996.93785 | H57: 30250.85516 | I57: 61247.79301 | J57: 61247.79301 | K57: 55508.24957 | L57: 0 | M57: 8923323.854 | N57: 20000 | O57: 0 | R57: 760000 | S57: 760000 | T57: 2640.010959 | U57: 0
A58: 38 | B58: 2023-10-10 | C58: 30 | D58: 8893072.999 | E58: 0 | F58: 29895.34403 | G58: 29895.34403 | H58: 31352.44898 | I58: 61247.79301 | J58: 61247.79301 | K58: 55360.82949 | L58: 0 | M58: 8893072.999 | N58: 20000 | O58: 0 | R58: 780000 | S58: 780000 | T58: 2622.082192 | U58: 0
A59: 39 | B59: 2023-11-10 | C59: 31 | D59: 8861720.55 | E59: 0 | F59: 30782.94654 | G59: 30782.94654 | H59: 30464.84648 | I59: 61247.79301 | J59: 61247.79301 | K59: 55213.80093 | L59: 0 | M59: 8861720.55 | N59: 20000 | O59: 0 | R59: 800000 | S59: 800000 | T59: 2778.958904 | U59: 0
A60: 40 | B60: 2023-12-10 | C60: 30 | D60: 8831255.704 | E60: 0 | F60: 29687.5363 | G60: 29687.5363 | H60: 31560.25671 | I60: 61247.79301 | J60: 61247.79301 | K60: 55067.16285 | L60: 0 | M60: 8831255.704 | N60: 20000 | O60: 0 | R60: 820000 | S60: 820000 | T60: 2756.547945 | U60: 0
A61: 41 | B61: 2024-01-10 | C61: 31 | D61: 8799695.447 | E61: 0 | F61: 30567.49002 | G61: 30567.49002 | H61: 30680.30299 | I61: 61247.79301 | J61: 61247.79301 | K61: 54920.91422 | L61: 0 | M61: 8799695.447 | N61: 20000 | O61: 0 | R61: 840000 | S61: 840000 | T61: 2917.906849 | U61: 0
A62: 42 | B62: 2024-02-10 | C62: 31 | D62: 8769015.144 | E62: 0 | F62: 30460.91589 | G62: 30460.91589 | H62: 47489.76479 | I62: 61247.79301 | J62: 44544.90534 | K62: 54775.054 | L62: 0 | M62: 8769015.144 | N62: 20000 | O62: 0 | R62: 860000 | S62: 860000 | T62: 16702.88767 | U62: 16702.88767
A63: 43 | B63: 2024-03-10 | C63: 29 | D63: 8721525.379 | E63: 0 | F63: 28341.37329 | G63: 28341.37329 | H63: 32906.41972 | I63: 61247.79301 | J63: 61247.79301 | K63: 54629.58116 | L63: 0 | M63: 8721525.379 | N63: 20000 | O63: 0 | R63: 880000 | S63: 880000 | T63: 2859.638356 | U63: 0
A64: 44 | B64: 2024-04-10 | C64: 31 | D64: 8688618.959 | E64: 0 | F64: 30181.64378 | G64: 30181.64378 | H64: 31066.14923 | I64: 61247.79301 | J64: 61247.79301 | K64: 54484.49467 | L64: 0 | M64: 8688618.959 | N64: 20000 | O64: 0 | R64: 900000 | S64: 900000 | T64: 3126.328767 | U64: 0
A65: 45 | B65: 2024-05-10 | C65: 30 | D65: 8657552.81 | E65: 0 | F65: 29103.60904 | G65: 29103.60904 | H65: 32144.18397 | I65: 61247.79301 | J65: 61247.79301 | K65: 54339.7935 | L65: 0 | M65: 8657552.81 | N65: 20000 | O65: 0 | R65: 920000 | S65: 920000 | T65: 3092.712329 | U65: 0
A66: 46 | B66: 2024-06-10 | C66: 31 | D66: 8625408.626 | E66: 0 | F66: 29962.07013 | G66: 29962.07013 | H66: 31285.72288 | I66: 61247.79301 | J66: 61247.79301 | K66: 54195.47664 | L66: 0 | M66: 8625408.626 | N66: 20000 | O66: 0 | R66: 940000 | S66: 940000 | T66: 3265.276712 | U66: 0
A67: 47 | B67: 2024-07-10 | C67: 30 | D67: 8594122.903 | E67: 0 | F67: 28890.38028 | G67: 28890.38028 | H67: 32357.41273 | I67: 61247.79301 | J67: 61247.79301 | K67: 54051.54305 | L67: 0 | M67: 8594122.903 | N67: 20000 | O67: 0 | R67: 960000 | S67: 960000 | T67: 3227.178082 | U67: 0
A68: 48 | B68: 2024-08-10 | C68: 31 | D68: 8561765.491 | E68: 0 | F68: 29740.99306 | G68: 29740.99306 | H68: 50482.15886 | I68: 61247.79301 | J68: 42272.43411 | K68: 53907.99172 | L68: 0 | M68: 8561765.491 | N68: 20000 | O68: 0 | R68: 980000 | S68: 980000 | T68: 18975.3589 | U68: 18975.3589
A69: 49 | B69: 2024-09-10 | C69: 31 | D69: 8511283.332 | E69: 0 | F69: 29565.63325 | G69: 29565.63325 | H69: 31682.15976 | I69: 61247.79301 | J69: 61247.79301 | K69: 53764.82165 | L69: 0 | M69: 8511283.332 | N69: 20000 | O69: 0 | R69: 1000000 | S69: 1000000 | T69: 3473.69863 | U69: 0
A70: 50 | B70: 2024-10-10 | C70: 30 | D70: 8479601.172 | E70: 0 | F70: 28505.39901 | G70: 28505.39901 | H70: 32742.394 | I70: 61247.79301 | J70: 61247.79301 | K70: 53622.0318 | L70: 0 | M70: 8479601.172 | N70: 20000 | O70: 0 | R70: 1020000 | S70: 1020000 | T70: 3428.876712 | U70: 0
A71: 51 | B71: 2024-11-10 | C71: 31 | D71: 8446858.778 | E71: 0 | F71: 29341.84177 | G71: 29341.84177 | H71: 31905.95124 | I71: 61247.79301 | J71: 61247.79301 | K71: 53479.62118 | L71: 0 | M71: 8446858.778 | N71: 20000 | O71: 0 | R71: 1040000 | S71: 1040000 | T71: 3612.646575 | U71: 0
A72: 52 | B72: 2024-12-10 | C72: 30 | D72: 8414952.827 | E72: 0 | F72: 28288.0743 | G72: 28288.0743 | H72: 32959.71871 | I72: 61247.79301 | J72: 61247.79301 | K72: 53337.58878 | L72: 0 | M72: 8414952.827 | N72: 20000 | O72: 0 | R72: 1060000 | S72: 1060000 | T72: 3563.342466 | U72: 0
A73: 53 | B73: 2025-01-10 | C73: 31 | D73: 8381993.108 | E73: 0 | F73: 29116.51798 | G73: 29116.51798 | H73: 32131.27503 | I73: 61247.79301 | J73: 61247.79301 | K73: 53195.93359 | L73: 0 | M73: 8381993.108 | N73: 20000 | O73: 0 | R73: 1080000 | S73: 1080000 | T73: 3751.594521 | U73: 0
A74: 54 | B74: 2025-02-10 | C74: 31 | D74: 8349861.833 | E74: 0 | F74: 29004.90361 | G74: 29004.90361 | H74: 53894.1168 | I74: 61247.79301 | J74: 39596.56561 | K74: 53054.65462 | L74: 0 | M74: 8349861.833 | N74: 20000 | O74: 0 | R74: 1100000 | S74: 1100000 | T74: 21651.2274 | U74: 21651.2274
A75: 55 | B75: 2025-03-10 | C75: 28 | D75: 8295967.716 | E75: 0 | F75: 26028.88282 | G75: 26028.88282 | H75: 35218.91019 | I75: 61247.79301 | J75: 61247.79301 | K75: 52913.75085 | L75: 0 | M75: 8295967.716 | N75: 20000 | O75: 0 | R75: 1120000 | S75: 1120000 | T75: 3514.038356 | U75: 0
A76: 56 | B76: 2025-04-10 | C76: 31 | D76: 8260748.806 | E76: 0 | F76: 28695.35181 | G76: 28695.35181 | H76: 32552.4412 | I76: 61247.79301 | J76: 61247.79301 | K76: 52773.2213 | L76: 0 | M76: 8260748.806 | N76: 20000 | O76: 0 | R76: 1140000 | S76: 1140000 | T76: 3960.016438 | U76: 0
A77: 57 | B77: 2025-05-10 | C77: 30 | D77: 8228196.365 | E77: 0 | F77: 27660.26559 | G77: 27660.26559 | H77: 33587.52742 | I77: 61247.79301 | J77: 61247.79301 | K77: 52633.06497 | L77: 0 | M77: 8228196.365 | N77: 20000 | O77: 0 | R77: 1160000 | S77: 1160000 | T77: 3899.506849 | U77: 0
A78: 58 | B78: 2025-06-10 | C78: 31 | D78: 8194608.837 | E78: 0 | F78: 28465.60149 | G78: 28465.60149 | H78: 32782.19152 | I78: 61247.79301 | J78: 61247.79301 | K78: 52493.28088 | L78: 0 | M78: 8194608.837 | N78: 20000 | O78: 0 | R78: 1180000 | S78: 1180000 | T78: 4098.964384 | U78: 0
A79: 59 | B79: 2025-07-10 | C79: 30 | D79: 8161826.646 | E79: 0 | F79: 27437.15423 | G79: 27437.15423 | H79: 33810.63878 | I79: 61247.79301 | J79: 61247.79301 | K79: 52353.86802 | L79: 0 | M79: 8161826.646 | N79: 20000 | O79: 0 | R79: 1200000 | S79: 1200000 | T79: 4033.972603 | U79: 0
A80: 60 | B80: 2025-08-10 | C80: 31 | D80: 8128016.007 | E80: 0 | F80: 28234.27807 | G80: 28234.27807 | H80: 56757.9259 | I80: 61247.79301 | J80: 37503.38205 | K80: 52214.82542 | L80: 0 | M80: 8128016.007 | N80: 20000 | O80: 0 | R80: 1220000 | S80: 1220000 | T80: 23744.41096 | U80: 23744.41096
A81: 61 | B81: 2025-09-10 | C81: 31 | D81: 8071258.081 | E81: 0 | F81: 28037.11814 | G81: 28037.11814 | H81: 33210.67487 | I81: 61247.79301 | J81: 61247.79301 | K81: 52076.15209 | L81: 0 | M81: 8071258.081 | N81: 20000 | O81: 0 | R81: 1240000 | S81: 1240000 | T81: 4307.386301 | U81: 0
A82: 62 | B82: 2025-10-10 | C82: 30 | D82: 8038047.406 | E82: 0 | F82: 27021.05251 | G82: 27021.05251 | H82: 34226.7405 | I82: 61247.79301 | J82: 61247.79301 | K82: 51937.84705 | L82: 0 | M82: 8038047.406 | N82: 20000 | O82: 0 | R82: 1260000 | S82: 1260000 | T82: 4235.671233 | U82: 0
A83: 63 | B83: 2025-11-10 | C83: 31 | D83: 8003820.666 | E83: 0 | F83: 27802.86088 | G83: 27802.86088 | H83: 33444.93213 | I83: 61247.79301 | J83: 61247.79301 | K83: 51799.90933 | L83: 0 | M83: 8003820.666 | N83: 20000 | O83: 0 | R83: 1280000 | S83: 1280000 | T83: 4446.334247 | U83: 0
A84: 64 | B84: 2025-12-10 | C84: 30 | D84: 7970375.734 | E84: 0 | F84: 26793.56445 | G84: 26793.56445 | H84: 34454.22856 | I84: 61247.79301 | J84: 61247.79301 | K84: 51662.33795 | L84: 0 | M84: 7970375.734 | N84: 20000 | O84: 0 | R84: 1300000 | S84: 1300000 | T84: 4370.136986 | U84: 0
A85: 65 | B85: 2026-01-10 | C85: =+IF($B$13=1, 30, B85-B84) -> 31 | D85: 7935921.505 | E85: 0 | F85: =+C85/$B$14*$B$5*D85 -> 27566.99966 | G85: =E85+F85 -> 27566.99966 | H85: =+IF(A85<=$B$6,0,IF(D85>0,IF($F$9-G85+IF(MOD(A85,6)=0,T85,0)>D85,D85,$F$9-G85+IF(MOD(A85,6)=0,T85,0)),0)) -> 33680.79335 | I85: 61247.79301 | J85: 61247.79301 | K85: 51525.13193 | L85: 0 | M85: =D85 -> 7935921.505 | N85: =$M$5 -> 20000 | O85: 0 | R85: 1320000 | S85: 1320000 | T85: 4585.282192 | U85: 0
A86: 66 | B86: =IF(MONTH(B85)=12,DATE(YEAR(B85)+1,1,DAY(B85)),DATE(YEAR(B85),MONTH(B85)+1,DAY(B85))) -> 2026-02-10 | C86: 31 | D86: 7902240.712 | E86: =IF(D86>0,$B$4,0) -> 0 | F86: 27450.00274 | G86: 27450.00274 | H86: 60397.3574 | I86: =IF(D86>0,+G86+H86+L86-IF(MOD(A86,6)=0,T86,0),0) -> 61247.79301 | J86: =IF(I86=0,0,I86-(IF(MOD(A86,6)=0,T86,0))) -> 34648.22589 | K86: =+I86/POWER((1+$I$11),A86/12) -> 51388.2903 | L86: =IF(D86>0,IF($F$15="I",($F$9-$B$4)*$F$14,0),0) -> 0 | M86: 7902240.712 | N86: 20000 | O86: =IF(MOD(A86,12)=0,$M$7,0) -> 0 | R86: =IF(D86>0,SUM(N86:Q86)+R85,0) -> 1340000 | S86: 1340000 | T86: =IF(MOD(A86,6)=0,SUM(T81:T85)+S86*$B$5/$B$14*C86,S86*$B$5/$B$14*C86) -> 26599.56712 | U86: =IF(MOD(A86,6)=0,T86,0) -> 26599.56712
A87: 67 | B87: 2026-03-10 | C87: 28 | D87: =IF(D86-IF(H86<0,0,H86)<0,0,D86-IF(H86<0,0,H86)) -> 7841843.354 | E87: 0 | F87: 24604.05208 | G87: 24604.05208 | H87: 36643.74093 | I87: 61247.79301 | J87: 61247.79301 | K87: 51251.81211 | L87: 0 | M87: 7841843.354 | N87: 20000 | O87: 0 | R87: 1360000 | S87: 1360000 | T87: 4267.046575 | U87: 0
A88: 68 | B88: 2026-04-10 | C88: 31 | D88: 7805199.613 | E88: 0 | F88: 27112.9112 | G88: 27112.9112 | H88: 34134.88181 | I88: 61247.79301 | J88: 61247.79301 | K88: 51115.69637 | L88: 0 | M88: 7805199.613 | N88: 20000 | O88: 0 | R88: 1380000 | S88: 1380000 | T88: 4793.70411 | U88: 0
A89: 69 | B89: 2026-05-10 | C89: 30 | D89: 7771064.732 | E89: 0 | F89: 26123.55185 | G89: 26123.55185 | H89: 35124.24116 | I89: 61247.79301 | J89: 61247.79301 | K89: 50979.94214 | L89: 0 | M89: 7771064.732 | N89: 20000 | O89: 0 | R89: 1400000 | S89: 1400000 | T89: 4706.30137 | U89: 0
A90: 70 | B90: 2026-06-10 | C90: 31 | D90: 7735940.49 | E90: 0 | F90: 26872.32588 | G90: 26872.32588 | H90: 34375.46713 | I90: 61247.79301 | J90: 61247.79301 | K90: 50844.54844 | L90: 0 | M90: 7735940.49 | N90: 20000 | O90: 0 | R90: 1420000 | S90: 1420000 | T90: 4932.652055 | U90: 0
A91: 71 | B91: 2026-07-10 | C91: 30 | D91: 7701565.023 | E91: 0 | F91: 25889.91859 | G91: 25889.91859 | H91: 35357.87443 | I91: 61247.79301 | J91: 61247.79301 | K91: 50709.51433 | L91: 0 | M91: 7701565.023 | N91: 20000 | O91: 0 | R91: 1440000 | S91: 1440000 | T91: 4840.767123 | U91: 0
A92: 72 | B92: 2026-08-10 | C92: 31 | D92: 7666207.149 | E92: 0 | F92: 26630.09327 | G92: 26630.09327 | H92: 63229.77097 | I92: 61247.79301 | J92: 32635.72178 | K92: 50574.83884 | L92: 0 | M92: 7666207.149 | N92: 20000 | O92: 0 | R92: 1460000 | S92: 1460000 | T92: 28612.07123 | U92: 28612.07123
A93: 73 | B93: 2026-09-10 | C93: 31 | D93: 7602977.378 | E93: 0 | F93: 26410.4521 | G93: 26410.4521 | H93: 34837.34091 | I93: 61247.79301 | J93: 61247.79301 | K93: 50440.52102 | L93: 0 | M93: 7602977.378 | N93: 20000 | O93: 0 | R93: 1480000 | S93: 1480000 | T93: 5141.073973 | U93: 0
A94: 74 | B94: 2026-10-10 | C94: 30 | D94: 7568140.037 | E94: 0 | F94: 25441.3913 | G94: 25441.3913 | H94: 35806.40171 | I94: 61247.79301 | J94: 61247.79301 | K94: 50306.55993 | L94: 0 | M94: 7568140.037 | N94: 20000 | O94: 0 | R94: 1500000 | S94: 1500000 | T94: 5042.465753 | U94: 0
A95: 75 | B95: 2026-11-10 | C95: 31 | D95: 7532333.635 | E95: 0 | F95: 26165.05703 | G95: 26165.05703 | H95: 35082.73598 | I95: 61247.79301 | J95: 61247.79301 | K95: 50172.95462 | L95: 0 | M95: 7532333.635 | N95: 20000 | O95: 0 | R95: 1520000 | S95: 1520000 | T95: 5280.021918 | U95: 0
A96: 76 | B96: 2026-12-10 | C96: 30 | D96: 7497250.899 | E96: 0 | F96: 25203.08727 | G96: 25203.08727 | H96: 36044.70574 | I96: 61247.79301 | J96: 61247.79301 | K96: 50039.70414 | L96: 0 | M96: 7497250.899 | N96: 20000 | O96: 0 | R96: 1540000 | S96: 1540000 | T96: 5176.931507 | U96: 0
A97: 77 | B97: 2027-01-10 | C97: 31 | D97: 7461206.194 | E97: 0 | F97: 25917.98173 | G97: 25917.98173 | H97: 35329.81128 | I97: 61247.79301 | J97: 61247.79301 | K97: 49906.80755 | L97: 0 | M97: 7461206.194 | N97: 20000 | O97: 0 | R97: 1560000 | S97: =IF(R97<=M97*0.7,R97,M97*0.7) -> 1560000 | T97: 5418.969863 | U97: 0
A98: 78 | B98: 2027-02-10 | C98: 31 | D98: 7425876.382 | E98: 0 | F98: 25795.25662 | G98: 25795.25662 | H98: 67000.44324 | I98: 61247.79301 | J98: 29699.88616 | K98: 49774.26391 | L98: 0 | M98: 7425876.382 | N98: 20000 | O98: 0 | R98: 1580000 | S98: 1580000 | T98: 31547.90685 | U98: 31547.90685
A99: 79 | B99: 2027-03-10 | C99: 28 | D99: 7358875.939 | E99: 0 | F99: 23088.72528 | G99: 23088.72528 | H99: 38159.06774 | I99: 61247.79301 | J99: 61247.79301 | K99: 49642.07228 | L99: 0 | M99: 7358875.939 | N99: 20000 | O99: 0 | R99: 1600000 | S99: 1600000 | T99: 5020.054795 | U99: 0
A100: 80 | B100: 2027-04-10 | C100: 31 | D100: 7320716.871 | E100: 0 | F100: 25429.96417 | G100: 25429.96417 | H100: 35817.82884 | I100: 61247.79301 | J100: 61247.79301 | K100: 49510.23173 | L100: 0 | M100: 7320716.871 | N100: 20000 | O100: 0 | R100: 1620000 | S100: 1620000 | T100: 5627.391781 | U100: 0
A101: 81 | B101: 2027-05-10 | C101: 30 | D101: 7284899.042 | E101: 0 | F101: 24489.23596 | G101: 24489.23596 | H101: 36758.55705 | I101: 61247.79301 | J101: 61247.79301 | K101: 49378.74132 | L101: 0 | M101: 7284899.042 | N101: 20000 | O101: 0 | R101: 1640000 | S101: 1640000 | T101: 5513.09589 | U101: 0
A102: 82 | B102: 2027-06-10 | C102: 31 | D102: 7248140.485 | E102: 0 | F102: 25177.85568 | G102: 25177.85568 | H102: 36069.93734 | I102: 61247.79301 | J102: 61247.79301 | K102: 49247.60013 | L102: 0 | M102: 7248140.485 | N102: 20000 | O102: 0 | R102: 1660000 | S102: 1660000 | T102: 5766.339726 | U102: 0
A103: 83 | B103: 2027-07-10 | C103: 30 | D103: 7212070.548 | E103: 0 | F103: 24244.4125 | G103: 24244.4125 | H103: 37003.38051 | I103: 61247.79301 | J103: 61247.79301 | K103: 49116.80723 | L103: 0 | M103: 7212070.548 | N103: 20000 | O103: 0 | R103: 1680000 | S103: 1680000 | T103: 5647.561644 | U103: 0
A104: 84 | B104: 2027-08-10 | C104: 31 | D104: 7175067.168 | E104: 0 | F104: 24924.02099 | G104: 24924.02099 | H104: 69803.50353 | I104: 61247.79301 | J104: 27768.0615 | K104: 48986.36169 | L104: 0 | M104: 7175067.168 | N104: 20000 | O104: 0 | R104: 1700000 | S104: 1700000 | T104: 33479.73151 | U104: 33479.73151
A105: 85 | B105: 2027-09-10 | C105: 31 | D105: 7105263.664 | E105: 0 | F105: 24681.54466 | G105: 24681.54466 | H105: 36566.24835 | I105: 61247.79301 | J105: 61247.79301 | K105: 48856.26259 | L105: 0 | M105: 7105263.664 | N105: 20000 | O105: 0 | R105: 1720000 | S105: 1720000 | T105: 5974.761644 | U105: 0
A106: 86 | B106: 2027-10-10 | C106: 30 | D106: 7068697.416 | E106: 0 | F106: 23762.44309 | G106: 23762.44309 | H106: 37485.34992 | I106: 61247.79301 | J106: 61247.79301 | K106: 48726.50901 | L106: 0 | M106: 7068697.416 | N106: 20000 | O106: 0 | R106: 1740000 | S106: 1740000 | T106: 5849.260274 | U106: 0
A107: 87 | B107: 2027-11-10 | C107: 31 | D107: 7031212.066 | E107: 0 | F107: 24424.31172 | G107: 24424.31172 | H107: 36823.48129 | I107: 61247.79301 | J107: 61247.79301 | K107: 48597.10003 | L107: 0 | M107: 7031212.066 | N107: 20000 | O107: 0 | R107: 1760000 | S107: 1760000 | T107: 6113.709589 | U107: 0
A108: 88 | B108: 2027-12-10 | C108: 30 | D108: 6994388.584 | E108: 0 | F108: 23512.64327 | G108: 23512.64327 | H108: 37735.14974 | I108: 61247.79301 | J108: 61247.79301 | K108: 48468.03474 | L108: 0 | M108: 6994388.584 | N108: 20000 | O108: 0 | R108: 1780000 | S108: 1780000 | T108: 5983.726027 | U108: 0
A109: 89 | B109: 2028-01-10 | C109: 31 | D109: 6956653.435 | E109: 0 | F109: 24165.31751 | G109: 24165.31751 | H109: 37082.4755 | I109: 61247.79301 | J109: 61247.79301 | K109: 48339.31222 | L109: 0 | M109: 6956653.435 | N109: 20000 | O109: 0 | R109: 1800000 | S109: 1800000 | T109: 6252.657534 | U109: 0
A110: 90 | B110: 2028-02-10 | C110: 31 | D110: 6919570.959 | E110: 0 | F110: 24036.50416 | G110: 24036.50416 | H110: 73707.53542 | I110: 61247.79301 | J110: 24751.54644 | K110: 48210.93157 | L110: 0 | M110: 6919570.959 | N110: 20000 | O110: 0 | R110: 1820000 | S110: 1820000 | T110: 36496.24658 | U110: 36496.24658
A111: 91 | B111: 2028-03-10 | C111: 29 | D111: 6845863.424 | E111: 0 | F111: 22246.24276 | G111: 22246.24276 | H111: 39001.55025 | I111: 61247.79301 | J111: 61247.79301 | K111: 48082.89188 | L111: 0 | M111: 6845863.424 | N111: 20000 | O111: 0 | R111: 1840000 | S111: 1840000 | T111: 5979.243836 | U111: 0
A112: 92 | B112: 2028-04-10 | C112: 31 | D112: 6806861.874 | E112: 0 | F112: 23644.98677 | G112: 23644.98677 | H112: 37602.80624 | I112: 61247.79301 | J112: 61247.79301 | K112: 47955.19223 | L112: 0 | M112: 6806861.874 | N112: 20000 | O112: 0 | R112: 1860000 | S112: 1860000 | T112: 6461.079452 | U112: 0
A113: 93 | B113: 2028-05-10 | C113: 30 | D113: 6769259.067 | E113: 0 | F113: 22755.83802 | G113: 22755.83802 | H113: 38491.955 | I113: 61247.79301 | J113: 61247.79301 | K113: 47827.83174 | L113: 0 | M113: 6769259.067 | N113: 20000 | O113: 0 | R113: 1880000 | S113: 1880000 | T113: 6319.890411 | U113: 0
A114: 94 | B114: 2028-06-10 | C114: 31 | D114: 6730767.112 | E114: 0 | F114: 23380.6565 | G114: 23380.6565 | H114: 37867.13651 | I114: 61247.79301 | J114: 61247.79301 | K114: 47700.80949 | L114: 0 | M114: 6730767.112 | N114: 20000 | O114: 0 | R114: 1900000 | S114: 1900000 | T114: 6600.027397 | U114: 0
A115: 95 | B115: 2028-07-10 | C115: 30 | D115: 6692899.976 | E115: 0 | F115: 22499.14595 | G115: 22499.14595 | H115: 38748.64706 | I115: 61247.79301 | J115: 61247.79301 | K115: 47574.12459 | L115: 0 | M115: 6692899.976 | N115: 20000 | O115: 0 | R115: 1920000 | S115: 1920000 | T115: 6454.356164 | U115: 0
A116: 96 | B116: 2028-08-10 | C116: 31 | D116: 6654151.329 | E116: 0 | F116: 23114.51636 | G116: 23114.51636 | H116: 76686.84926 | I116: 61247.79301 | J116: 22694.22041 | K116: 47447.77614 | L116: 0 | M116: 6654151.329 | N116: 20000 | O116: 0 | R116: 1940000 | S116: 1940000 | T116: 38553.5726 | U116: 38553.5726
A117: 97 | B117: 2028-09-10 | C117: 31 | D117: 6577464.479 | E117: 0 | F117: 22848.12935 | G117: 22848.12935 | H117: 38399.66366 | I117: 61247.79301 | J117: 61247.79301 | K117: 47321.76325 | L117: 0 | M117: 6577464.479 | N117: 20000 | O117: 0 | R117: 1960000 | S117: 1960000 | T117: 6808.449315 | U117: 0
A118: 98 | B118: 2028-10-10 | C118: 30 | D118: 6539064.816 | E118: 0 | F118: 21982.00693 | G118: 21982.00693 | H118: 39265.78608 | I118: 61247.79301 | J118: 61247.79301 | K118: 47196.08503 | L118: 0 | M118: 6539064.816 | N118: 20000 | O118: 0 | R118: 1980000 | S118: 1980000 | T118: 6656.054795 | U118: 0
A119: 99 | B119: 2028-11-10 | C119: 31 | D119: 6499799.03 | E119: 0 | F119: 22578.34299 | G119: 22578.34299 | H119: 38669.45002 | I119: 61247.79301 | J119: 61247.79301 | K119: 47070.74059 | L119: 0 | M119: 6499799.03 | N119: 20000 | O119: 0 | R119: 2000000 | S119: 2000000 | T119: 6947.39726 | U119: 0
A120: 100 | B120: 2028-12-10 | C120: 30 | D120: 6461129.58 | E120: 0 | F120: 21720.01642 | G120: 21720.01642 | H120: 39527.77659 | I120: 61247.79301 | J120: 61247.79301 | K120: 46945.72904 | L120: 0 | M120: 6461129.58 | N120: 20000 | O120: 0 | R120: 2020000 | S120: 2020000 | T120: 6790.520548 | U120: 0
A121: 101 | B121: 2029-01-10 | C121: 31 | D121: 6421601.803 | E121: 0 | F121: 22306.70939 | G121: 22306.70939 | H121: 38941.08362 | I121: 61247.79301 | J121: 61247.79301 | K121: 46821.04949 | L121: 0 | M121: 6421601.803 | N121: 20000 | O121: 0 | R121: 2040000 | S121: 2040000 | T121: 7086.345205 | U121: 0
A122: 102 | B122: 2029-02-10 | C122: 31 | D122: 6382660.72 | E122: 0 | F122: 22171.4398 | G122: 22171.4398 | H122: 80520.93951 | I122: 61247.79301 | J122: 19803.20671 | K122: 46696.70108 | L122: 0 | M122: 6382660.72 | N122: 20000 | O122: 0 | R122: 2060000 | S122: 2060000 | T122: 41444.5863 | U122: 41444.5863
A123: 103 | B123: 2029-03-10 | C123: 28 | D123: 6302139.78 | E123: 0 | F123: 19773.17939 | G123: 19773.17939 | H123: 41474.61362 | I123: 61247.79301 | J123: 61247.79301 | K123: 46572.68291 | L123: 0 | M123: 6302139.78 | N123: 20000 | O123: 0 | R123: 2080000 | S123: 2080000 | T123: 6526.071233 | U123: 0
A124: 104 | B124: 2029-04-10 | C124: 31 | D124: 6260665.166 | E124: 0 | F124: 21747.66401 | G124: 21747.66401 | H124: 39500.129 | I124: 61247.79301 | J124: 61247.79301 | K124: 46448.99412 | L124: 0 | M124: 6260665.166 | N124: 20000 | O124: 0 | R124: 2100000 | S124: 2100000 | T124: 7294.767123 | U124: 0
A125: 105 | B125: 2029-05-10 | C125: 30 | D125: 6221165.037 | E125: 0 | F125: 20913.3411 | G125: 20913.3411 | H125: 40334.45191 | I125: 61247.79301 | J125: 61247.79301 | K125: 46325.63382 | L125: 0 | M125: 6221165.037 | N125: 20000 | O125: 0 | R125: 2120000 | S125: 2120000 | T125: 7126.684932 | U125: 0
A126: 106 | B126: 2029-06-10 | C126: 31 | D126: 6180830.585 | E126: 0 | F126: 21470.34274 | G126: 21470.34274 | H126: 39777.45027 | I126: 61247.79301 | J126: 61247.79301 | K126: 46202.60114 | L126: 0 | M126: 6180830.585 | N126: 20000 | O126: 0 | R126: 2140000 | S126: 2140000 | T126: 7433.715068 | U126: 0
A127: 107 | B127: 2029-07-10 | C127: 30 | D127: 6141053.135 | E127: 0 | F127: 20644.03342 | G127: 20644.03342 | H127: 40603.75959 | I127: 61247.79301 | J127: 61247.79301 | K127: 46079.89521 | L127: 0 | M127: 6141053.135 | N127: 20000 | O127: 0 | R127: 2160000 | S127: 2160000 | T127: 7261.150685 | U127: 0
A128: 108 | B128: 2029-08-10 | C128: 31 | D128: 6100449.376 | E128: 0 | F128: 21191.12264 | G128: 21191.12264 | H128: 83271.72243 | I128: 61247.79301 | J128: 18032.74096 | K128: 45957.51517 | L128: 0 | M128: 6100449.376 | N128: 20000 | O128: 0 | R128: 2180000 | S128: 2180000 | T128: 43215.05205 | U128: 43215.05205
A129: 109 | B129: 2029-09-10 | C129: 31 | D129: 6017177.653 | E129: 0 | F129: 20901.86177 | G129: 20901.86177 | H129: 40345.93124 | I129: 61247.79301 | J129: 61247.79301 | K129: 45835.46015 | L129: 0 | M129: 6017177.653 | N129: 20000 | O129: 0 | R129: 2200000 | S129: 2200000 | T129: 7642.136986 | U129: 0
A130: 110 | B130: 2029-10-10 | C130: 30 | D130: 5976831.722 | E130: 0 | F130: 20091.97951 | G130: 20091.97951 | H130: 41155.8135 | I130: 61247.79301 | J130: 61247.79301 | K130: 45713.72929 | L130: 0 | M130: 5976831.722 | N130: 20000 | O130: 0 | R130: 2220000 | S130: 2220000 | T130: 7462.849315 | U130: 0
A131: 111 | B131: 2029-11-10 | C131: 31 | D131: 5935675.908 | E131: 0 | F131: 20618.74927 | G131: 20618.74927 | H131: 40629.04374 | I131: 61247.79301 | J131: 61247.79301 | K131: 45592.32172 | L131: 0 | M131: 5935675.908 | N131: 20000 | O131: 0 | R131: 2240000 | S131: 2240000 | T131: 7781.084932 | U131: 0
A132: 112 | B132: 2029-12-10 | C132: 30 | D132: 5895046.865 | E132: 0 | F132: 19817.04795 | G132: 19817.04795 | H132: 41430.74506 | I132: 61247.79301 | J132: 61247.79301 | K132: 45471.23659 | L132: 0 | M132: 5895046.865 | N132: 20000 | O132: 0 | R132: 2260000 | S132: 2260000 | T132: 7597.315068 | U132: 0
A133: 113 | B133: 2030-01-10 | C133: 31 | D133: 5853616.12 | E133: 0 | F133: 20333.6983 | G133: 20333.6983 | H133: 40914.09471 | I133: 61247.79301 | J133: 61247.79301 | K133: 45350.47304 | L133: 0 | M133: 5853616.12 | N133: 20000 | O133: 0 | R133: 2280000 | S133: 2280000 | T133: 7920.032877 | U133: 0
A134: 114 | B134: 2030-02-10 | C134: 31 | D134: 5812702.025 | E134: 0 | F134: 20191.57506 | G134: 20191.57506 | H134: 87449.14398 | I134: 61247.79301 | J134: 14854.86698 | K134: 45230.03021 | L134: 0 | M134: 5812702.025 | N134: 20000 | O134: 0 | R134: 2300000 | S134: 2300000 | T134: 46392.92603 | U134: 46392.92603
A135: 115 | B135: 2030-03-10 | C135: 28 | D135: 5725252.881 | E135: 0 | F135: 17963.17698 | G135: 17963.17698 | H135: 43284.61603 | I135: 61247.79301 | J135: 61247.79301 | K135: 45109.90727 | L135: 0 | M135: 5725252.881 | N135: 20000 | O135: 0 | R135: 2320000 | S135: 2320000 | T135: 7279.079452 | U135: 0
A136: 116 | B136: 2030-04-10 | C136: 31 | D136: 5681968.265 | E136: 0 | F136: 19737.44538 | G136: 19737.44538 | H136: 41510.34763 | I136: 61247.79301 | J136: 61247.79301 | K136: 44990.10334 | L136: 0 | M136: 5681968.265 | N136: 20000 | O136: 0 | R136: 2340000 | S136: 2340000 | T136: 8128.454795 | U136: 0
A137: 117 | B137: 2030-05-10 | C137: 30 | D137: 5640457.917 | E137: 0 | F137: 18961.21059 | G137: 18961.21059 | H137: 42286.58242 | I137: 61247.79301 | J137: 61247.79301 | K137: 44870.6176 | L137: 0 | M137: 5640457.917 | N137: 20000 | O137: 0 | R137: 2360000 | S137: 2360000 | T137: 7933.479452 | U137: 0
A138: 118 | B138: 2030-06-10 | C138: 31 | D138: 5598171.335 | E138: 0 | F138: 19446.3601 | G138: 19446.3601 | H138: 41801.43291 | I138: 61247.79301 | J138: 61247.79301 | K138: 44751.44918 | L138: 0 | M138: 5598171.335 | N138: 20000 | O138: 0 | R138: 2380000 | S138: 2380000 | T138: 8267.40274 | U138: 0
A139: 119 | B139: 2030-07-10 | C139: 30 | D139: 5556369.902 | E139: 0 | F139: 18678.53663 | G139: 18678.53663 | H139: 42569.25638 | I139: 61247.79301 | J139: 61247.79301 | K139: 44632.59726 | L139: 0 | M139: 5556369.902 | N139: 20000 | O139: 0 | R139: 2400000 | S139: 2400000 | T139: 8067.945205 | U139: 0
A140: 120 | B140: 2030-08-10 | C140: 31 | D140: 5513800.646 | E140: 0 | F140: 19153.28175 | G140: 19153.28175 | H140: 90177.22359 | I140: 61247.79301 | J140: 13165.08068 | K140: 44514.06099 | L140: 0 | M140: 5513800.646 | N140: 20000 | O140: 0 | R140: 2420000 | S140: 2420000 | T140: 48082.71233 | U140: 48082.71233
A141: 121 | B141: 2030-09-10 | C141: 31 | D141: 5423623.422 | E141: 0 | F141: 18840.03325 | G141: 18840.03325 | H141: 42407.75976 | I141: 61247.79301 | J141: 61247.79301 | K141: 44395.83953 | L141: 0 | M141: 5423623.422 | N141: 20000 | O141: 0 | R141: 2440000 | S141: 2440000 | T141: 8475.824658 | U141: 0
A142: 122 | B142: 2030-10-10 | C142: 30 | D142: 5381215.662 | E142: 0 | F142: 18089.73046 | G142: 18089.73046 | H142: 43158.06255 | I142: 61247.79301 | J142: 61247.79301 | K142: 44277.93204 | L142: 0 | M142: 5381215.662 | N142: 20000 | O142: 0 | R142: 2460000 | S142: 2460000 | T142: 8269.643836 | U142: 0
A143: 123 | B143: 2030-11-10 | C143: 31 | D143: 5338057.6 | E143: 0 | F143: 18542.80337 | G143: 18542.80337 | H143: 42704.98964 | I143: 61247.79301 | J143: 61247.79301 | K143: 44160.3377 | L143: 0 | M143: 5338057.6 | N143: 20000 | O143: 0 | R143: 2480000 | S143: 2480000 | T143: 8614.772603 | U143: 0
A144: 124 | B144: 2030-12-10 | C144: 30 | D144: 5295352.61 | E144: 0 | F144: 17801.08946 | G144: 17801.08946 | H144: 43446.70355 | I144: 61247.79301 | J144: 61247.79301 | K144: 44043.05566 | L144: 0 | M144: 5295352.61 | N144: 20000 | O144: 0 | R144: 2500000 | S144: 2500000 | T144: 8404.109589 | U144: 0
A145: 125 | B145: 2031-01-10 | C145: 31 | D145: 5251905.906 | E145: 0 | F145: 18243.53835 | G145: 18243.53835 | H145: 43004.25466 | I145: 61247.79301 | J145: 61247.79301 | K145: 43926.08511 | L145: 0 | M145: 5251905.906 | N145: 20000 | O145: 0 | R145: 2520000 | S145: 2520000 | T145: 8753.720548 | U145: 0
A146: 126 | B146: 2031-02-10 | C146: 31 | D146: 5208901.652 | E146: 0 | F146: 18094.15453 | G146: 18094.15453 | H146: 94494.90423 | I146: 61247.79301 | J146: 9906.527257 | K146: 43809.4252 | L146: 0 | M146: 5208901.652 | N146: 20000 | O146: 0 | R146: 2540000 | S146: 2540000 | T146: 51341.26575 | U146: 51341.26575
A147: 127 | B147: 2031-03-10 | C147: 28 | D147: 5114406.748 | E147: 0 | F147: 16046.62632 | G147: 16046.62632 | H147: 45201.16669 | I147: 61247.79301 | J147: 61247.79301 | K147: 43693.07513 | L147: 0 | M147: 5114406.748 | N147: 20000 | O147: 0 | R147: 2560000 | S147: 2560000 | T147: 8032.087671 | U147: 0
A148: 128 | B148: 2031-04-10 | C148: 31 | D148: 5069205.581 | E148: 0 | F148: 17608.89248 | G148: 17608.89248 | H148: 43638.90053 | I148: 61247.79301 | J148: 61247.79301 | K148: 43577.03406 | L148: 0 | M148: 5069205.581 | N148: 20000 | O148: 0 | R148: 2580000 | S148: 2580000 | T148: 8962.142466 | U148: 0
A149: 129 | B149: 2031-05-10 | C149: =+IF($B$13=1, 30, B149-B148) -> 30 | D149: 5025566.68 | E149: 0 | F149: =+C149/$B$14*$B$5*D149 -> 16894.16525 | G149: =E149+F149 -> 16894.16525 | H149: =+IF(A149<=$B$6,0,IF(D149>0,IF($F$9-G149+IF(MOD(A149,6)=0,T149,0)>D149,D149,$F$9-G149+IF(MOD(A149,6)=0,T149,0)),0)) -> 44353.62776 | I149: 61247.79301 | J149: 61247.79301 | K149: 43461.30118 | L149: 0 | M149: =D149 -> 5025566.68 | N149: =$M$5 -> 20000 | O149: 0 | R149: 2600000 | S149: 2600000 | T149: 8740.273973 | U149: 0
A150: 130 | B150: =IF(MONTH(B149)=12,DATE(YEAR(B149)+1,1,DAY(B149)),DATE(YEAR(B149),MONTH(B149)+1,DAY(B149))) -> 2031-06-10 | C150: 31 | D150: 4981213.053 | E150: =IF(D150>0,$B$4,0) -> 0 | F150: 17303.23296 | G150: 17303.23296 | H150: 43944.56005 | I150: =IF(D150>0,+G150+H150+L150-IF(MOD(A150,6)=0,T150,0),0) -> 61247.79301 | J150: =IF(I150=0,0,I150-(IF(MOD(A150,6)=0,T150,0))) -> 61247.79301 | K150: =+I150/POWER((1+$I$11),A150/12) -> 43345.87566 | L150: =IF(D150>0,IF($F$15="I",($F$9-$B$4)*$F$14,0),0) -> 0 | M150: 4981213.053 | N150: 20000 | O150: =IF(MOD(A150,12)=0,$M$7,0) -> 0 | R150: =IF(D150>0,SUM(N150:Q150)+R149,0) -> 2620000 | S150: 2620000 | T150: =IF(MOD(A150,6)=0,SUM(T145:T149)+S150*$B$5/$B$14*C150,S150*$B$5/$B$14*C150) -> 9101.090411 | U150: =IF(MOD(A150,6)=0,T150,0) -> 0
A151: 131 | B151: 2031-07-10 | C151: 30 | D151: =IF(D150-IF(H150<0,0,H150)<0,0,D150-IF(H150<0,0,H150)) -> 4937268.493 | E151: 0 | F151: 16597.33819 | G151: 16597.33819 | H151: 44650.45482 | I151: 61247.79301 | J151: 61247.79301 | K151: 43230.75669 | L151: 0 | M151: 4937268.493 | N151: 20000 | O151: 0 | R151: 2640000 | S151: 2640000 | T151: 8874.739726 | U151: 0
A152: 132 | B152: 2031-08-10 | C152: 31 | D152: 4892618.038 | E152: 0 | F152: 16995.48058 | G152: 16995.48058 | H152: 97202.68504 | I152: 61247.79301 | J152: 8297.420408 | K152: 43115.94346 | L152: 0 | M152: 4892618.038 | N152: 20000 | O152: 0 | R152: 2660000 | S152: 2660000 | T152: 52950.3726 | U152: 52950.3726
A153: 133 | B153: 2031-09-10 | C153: 31 | D153: 4795415.353 | E153: 0 | F153: 16657.82774 | G153: 16657.82774 | H153: 44589.96527 | I153: 61247.79301 | J153: 61247.79301 | K153: 43001.43515 | L153: 0 | M153: 4795415.353 | N153: 20000 | O153: 0 | R153: 2680000 | S153: 2680000 | T153: 9309.512329 | U153: 0
A154: 134 | B154: 2031-10-10 | C154: 30 | D154: 4750825.387 | E154: 0 | F154: 15970.58288 | G154: 15970.58288 | H154: 45277.21013 | I154: 61247.79301 | J154: 61247.79301 | K154: 42887.23095 | L154: 0 | M154: 4750825.387 | N154: 20000 | O154: 0 | R154: 2700000 | S154: 2700000 | T154: 9076.438356 | U154: 0
A155: 135 | B155: 2031-11-10 | C155: 31 | D155: 4705548.177 | E155: 0 | F155: 16345.65626 | G155: 16345.65626 | H155: 44902.13675 | I155: 61247.79301 | J155: 61247.79301 | K155: 42773.33007 | L155: 0 | M155: 4705548.177 | N155: 20000 | O155: 0 | R155: 2720000 | S155: 2720000 | T155: 9448.460274 | U155: 0
A156: 136 | B156: 2031-12-10 | C156: 30 | D156: 4660646.041 | E156: 0 | F156: 15667.43203 | G156: 15667.43203 | H156: 45580.36098 | I156: 61247.79301 | J156: 61247.79301 | K156: 42659.73168 | L156: 0 | M156: 4660646.041 | N156: 20000 | O156: 0 | R156: 2740000 | S156: 2740000 | T156: 9210.90411 | U156: 0
A157: 137 | B157: 2032-01-10 | C157: 31 | D157: 4615065.68 | E157: 0 | F157: 16031.34733 | G157: 16031.34733 | H157: 45216.44568 | I157: 61247.79301 | J157: 61247.79301 | K157: 42546.43499 | L157: 0 | M157: 4615065.68 | N157: 20000 | O157: 0 | R157: 2760000 | S157: 2760000 | T157: 9587.408219 | U157: 0
A158: 138 | B158: 2032-02-10 | C158: 31 | D158: 4569849.234 | E158: 0 | F158: 15874.27902 | G158: 15874.27902 | H158: 101663.1195 | I158: 61247.79301 | J158: 4958.187531 | K158: 42433.43919 | L158: 0 | M158: 4569849.234 | N158: 20000 | O158: 0 | R158: 2780000 | S158: 2780000 | T158: 56289.60548 | U158: 56289.60548
A159: 139 | B159: 2032-03-10 | C159: 29 | D159: 4468186.114 | E159: 0 | F159: 14519.76863 | G159: 14519.76863 | H159: 46728.02438 | I159: 61247.79301 | J159: 61247.79301 | K159: 42320.74349 | L159: 0 | M159: 4468186.114 | N159: 20000 | O159: 0 | R159: 2800000 | S159: 2800000 | T159: 9098.849315 | U159: 0
A160: 140 | B160: 2032-04-10 | C160: 31 | D160: 4421458.09 | E160: 0 | F160: 15358.81291 | G160: 15358.81291 | H160: 45888.9801 | I160: 61247.79301 | J160: 61247.79301 | K160: 42208.34709 | L160: 0 | M160: 4421458.09 | N160: 20000 | O160: 0 | R160: 2820000 | S160: 2820000 | T160: 9795.830137 | U160: 0
A161: 141 | B161: 2032-05-10 | C161: 30 | D161: 4375569.11 | E161: 0 | F161: 14709.10493 | G161: 14709.10493 | H161: 46538.68808 | I161: 61247.79301 | J161: 61247.79301 | K161: 42096.2492 | L161: 0 | M161: 4375569.11 | N161: 20000 | O161: 0 | R161: 2840000 | S161: =IF(R161<=M161*0.7,R161,M161*0.7) -> 2840000 | T161: 9547.068493 | U161: 0
A162: 142 | B162: 2032-06-10 | C162: 31 | D162: 4329030.422 | E162: 0 | F162: 15037.74705 | G162: 15037.74705 | H162: 46210.04596 | I162: 61247.79301 | J162: 61247.79301 | K162: 41984.44902 | L162: 0 | M162: 4329030.422 | N162: 20000 | O162: 0 | R162: 2860000 | S162: 2860000 | T162: 9934.778082 | U162: 0
A163: 143 | B163: 2032-07-10 | C163: 30 | D163: 4282820.376 | E163: 0 | F163: 14397.31672 | G163: 14397.31672 | H163: 46850.4763 | I163: 61247.79301 | J163: 61247.79301 | K163: 41872.94576 | L163: 0 | M163: 4282820.376 | N163: 20000 | O163: 0 | R163: 2880000 | S163: 2880000 | T163: 9681.534247 | U163: 0
A164: 144 | B164: 2032-08-10 | C164: 31 | D164: 4235969.9 | E164: 0 | F164: 14714.48284 | G164: 14714.48284 | H164: 104665.0965 | I164: 61247.79301 | J164: 3116.006709 | K164: 41761.73863 | L164: 0 | M164: 4235969.9 | N164: 20000 | O164: 0 | R164: 2900000 | S164: 2900000 | T164: 58131.7863 | U164: 58131.7863
A165: 145 | B165: 2032-09-10 | C165: 31 | D165: 4131304.803 | E165: 0 | F165: 14350.90784 | G165: 14350.90784 | H165: 46896.88518 | I165: 61247.79301 | J165: 61247.79301 | K165: 41650.82685 | L165: 0 | M165: 4131304.803 | N165: 20000 | O165: 0 | R165: 2920000 | S165: 2891913.362 | T165: 10045.63548 | U165: 0
A166: 146 | B166: 2032-10-10 | C166: 30 | D166: 4084407.918 | E166: 0 | F166: 13730.3247 | G166: 13730.3247 | H166: 47517.46831 | I166: 61247.79301 | J166: 61247.79301 | K166: 41540.20963 | L166: 0 | M166: 4084407.918 | N166: 20000 | O166: 0 | R166: 2940000 | S166: 2859085.543 | T166: 9611.22729 | U166: 0
A167: 147 | B167: 2032-11-10 | C167: 31 | D167: 4036890.45 | E167: 0 | F167: 14022.94082 | G167: 14022.94082 | H167: 47224.85219 | I167: 61247.79301 | J167: 61247.79301 | K167: 41429.88619 | L167: 0 | M167: 4036890.45 | N167: 20000 | O167: 0 | R167: 2960000 | S167: 2825823.315 | T167: 9816.058577 | U167: 0
A168: 148 | B168: 2032-12-10 | C168: 30 | D168: 3989665.597 | E168: 0 | F168: 13411.83476 | G168: 13411.83476 | H168: 47835.95825 | I168: 61247.79301 | J168: 61247.79301 | K168: 41319.85575 | L168: 0 | M168: 3989665.597 | N168: 20000 | O168: 0 | R168: 2980000 | S168: 2792765.918 | T168: 9388.284333 | U168: 0
A169: 149 | B169: 2033-01-10 | C169: 31 | D169: 3941829.639 | E169: 0 | F169: 13692.72822 | G169: 13692.72822 | H169: 47555.06479 | I169: 61247.79301 | J169: 61247.79301 | K169: 41210.11753 | L169: 0 | M169: 3941829.639 | N169: 20000 | O169: 0 | R169: 3000000 | S169: 2759280.747 | T169: 9584.909753 | U169: 0
A170: 150 | B170: 2033-02-10 | C170: 31 | D170: 3894274.574 | E170: 0 | F170: 13527.53625 | G170: 13527.53625 | H170: 105635.6476 | I170: 61247.79301 | J170: 3332.402195 | K170: 41100.67076 | L170: 0 | M170: 3894274.574 | N170: 20000 | O170: 0 | R170: 3020000 | S170: 2725992.202 | T170: 57915.39082 | U170: 57915.39082
A171: 151 | B171: 2033-03-10 | C171: 28 | D171: 3788638.927 | E171: 0 | F171: 11886.98438 | G171: 11886.98438 | H171: 49360.80863 | I171: 61247.79301 | J171: 61247.79301 | K171: 40991.51466 | L171: 0 | M171: 3788638.927 | N171: 20000 | O171: 0 | R171: 3040000 | S171: 2652047.249 | T171: 8320.889067 | U171: 0
A172: 152 | B172: 2033-04-10 | C172: 31 | D172: 3739278.118 | E172: 0 | F172: 12989.12528 | G172: 12989.12528 | H172: 48258.66773 | I172: 61247.79301 | J172: 61247.79301 | K172: 40882.64846 | L172: 0 | M172: 3739278.118 | N172: 20000 | O172: 0 | R172: 3060000 | S172: 2617494.683 | T172: 9092.387694 | U172: 0
A173: 153 | B173: 2033-05-10 | C173: 30 | D173: 3691019.45 | E173: 0 | F173: 12407.89278 | G173: 12407.89278 | H173: 48839.90023 | I173: 61247.79301 | J173: 61247.79301 | K173: 40774.07138 | L173: 0 | M173: 3691019.45 | N173: 20000 | O173: 0 | R173: 3080000 | S173: 2583713.615 | T173: 8685.524948 | U173: 0
A174: 154 | B174: 2033-06-10 | C174: 31 | D174: 3642179.55 | E174: 0 | F174: 12651.83411 | G174: 12651.83411 | H174: 48595.9589 | I174: 61247.79301 | J174: 61247.79301 | K174: 40665.78267 | L174: 0 | M174: 3642179.55 | N174: 20000 | O174: 0 | R174: 3100000 | S174: 2549525.685 | T174: 8856.28388 | U174: 0
A175: 155 | B175: 2033-07-10 | C175: 30 | D175: 3593583.591 | E175: 0 | F175: 12080.34813 | G175: 12080.34813 | H175: 49167.44488 | I175: 61247.79301 | J175: 61247.79301 | K175: 40557.78156 | L175: 0 | M175: 3593583.591 | N175: 20000 | O175: 0 | R175: 3120000 | S175: 2515508.514 | T175: 8456.243689 | U175: 0
A176: 156 | B176: 2033-08-10 | C176: 31 | D176: 3544416.146 | E176: 0 | F176: 12312.23351 | G176: 12312.23351 | H176: 100965.4522 | I176: 61247.79301 | J176: 9217.900274 | K176: 40450.06727 | L176: 0 | M176: 3544416.146 | N176: 20000 | O176: 0 | R176: 3140000 | S176: 2481091.303 | T176: 52029.89274 | U176: 52029.89274
A177: 157 | B177: 2033-09-10 | C177: 31 | D177: 3443450.694 | E177: 0 | F177: 11961.50996 | G177: 11961.50996 | H177: 49286.28305 | I177: 61247.79301 | J177: 61247.79301 | K177: 40342.63906 | L177: 0 | M177: 3443450.694 | N177: 20000 | O177: 0 | R177: 3160000 | S177: 2410415.486 | T177: 8373.056972 | U177: 0
A178: 158 | B178: 2033-10-10 | C178: 30 | D178: 3394164.411 | E178: 0 | F178: 11409.97187 | G178: 11409.97187 | H178: 49837.82114 | I178: 61247.79301 | J178: 61247.79301 | K178: 40235.49615 | L178: 0 | M178: 3394164.411 | N178: 20000 | O178: 0 | R178: 3180000 | S178: 2375915.088 | T178: 7986.980309 | U178: 0
A179: 159 | B179: 2033-11-10 | C179: 31 | D179: 3344326.59 | E179: 0 | F179: 11617.18269 | G179: 11617.18269 | H179: 49630.61032 | I179: 61247.79301 | J179: 61247.79301 | K179: 40128.6378 | L179: 0 | M179: 3344326.59 | N179: 20000 | O179: 0 | R179: 3200000 | S179: 2341028.613 | T179: 8132.027886 | U179: 0
A180: 160 | B180: 2033-12-10 | C180: 30 | D180: 3294695.98 | E180: 0 | F180: 11075.59443 | G180: 11075.59443 | H180: 50172.19858 | I180: 61247.79301 | J180: 61247.79301 | K180: 40022.06325 | L180: 0 | M180: 3294695.98 | N180: 20000 | O180: 0 | R180: 3220000 | S180: 2306287.186 | T180: 7752.916101 | U180: 0
A181: 161 | B181: 2034-01-10 | C181: 31 | D181: 3244523.781 | E181: 0 | F181: 11270.49781 | G181: 11270.49781 | H181: 49977.2952 | I181: 61247.79301 | J181: 61247.79301 | K181: 39915.77174 | L181: 0 | M181: 3244523.781 | N181: 20000 | O181: 0 | R181: 3240000 | S181: 2271166.647 | T181: 7889.34847 | U181: 0
A182: 162 | B182: 2034-02-10 | C182: 31 | D182: 3194546.486 | E182: 0 | F182: 11096.89175 | G182: 11096.89175 | H182: 98053.05522 | I182: 61247.79301 | J182: 13345.63905 | K182: 39809.76252 | L182: 0 | M182: 3194546.486 | N182: 20000 | O182: 0 | R182: 3260000 | S182: 2236182.54 | T182: 47902.15396 | U182: 47902.15396
A183: 163 | B183: 2034-03-10 | C183: 28 | D183: 3096493.431 | E183: 0 | F183: 9715.354183 | G183: 9715.354183 | H183: 51532.43883 | I183: 61247.79301 | J183: 61247.79301 | K183: 39704.03484 | L183: 0 | M183: 3096493.431 | N183: 20000 | O183: 0 | R183: 3280000 | S183: 2167545.401 | T183: 6800.747928 | U183: 0
A184: 164 | B184: 2034-04-10 | C184: 31 | D184: 3044960.992 | E184: 0 | F184: 10577.27683 | G184: 10577.27683 | H184: 50670.51618 | I184: 61247.79301 | J184: 61247.79301 | K184: 39598.58796 | L184: 0 | M184: 3044960.992 | N184: 20000 | O184: 0 | R184: 3300000 | S184: 2131472.694 | T184: 7404.093778 | U184: 0
A185: 165 | B185: 2034-05-10 | C185: 30 | D185: 2994290.476 | E185: 0 | F185: 10065.73812 | G185: 10065.73812 | H185: 51182.05489 | I185: 61247.79301 | J185: 61247.79301 | K185: 39493.42112 | L185: 0 | M185: 2994290.476 | N185: 20000 | O185: 0 | R185: 3320000 | S185: 2096003.333 | T185: 7046.016684 | U185: 0
A186: 166 | B186: 2034-06-10 | C186: 31 | D186: 2943108.421 | E186: 0 | F186: 10223.47169 | G186: 10223.47169 | H186: 51024.32132 | I186: 61247.79301 | J186: 61247.79301 | K186: 39388.53359 | L186: 0 | M186: 2943108.421 | N186: 20000 | O186: 0 | R186: 3340000 | S186: 2060175.895 | T186: 7156.430183 | U186: 0
A187: 167 | B187: 2034-07-10 | C187: 30 | D187: 2892084.099 | E187: 0 | F187: 9722.156685 | G187: 9722.156685 | H187: 51525.63633 | I187: 61247.79301 | J187: 61247.79301 | K187: 39283.92462 | L187: 0 | M187: 2892084.099 | N187: 20000 | O187: 0 | R187: 3360000 | S187: 2024458.87 | T187: 6805.50968 | U187: 0
A188: 168 | B188: 2034-08-10 | C188: 31 | D188: 2840558.463 | E188: 0 | F188: 9867.244042 | G188: 9867.244042 | H188: 93500.41805 | I188: 61247.79301 | J188: 19127.92393 | K188: 39179.59347 | L188: 0 | M188: 2840558.463 | N188: 20000 | O188: 0 | R188: 3380000 | S188: 1988390.924 | T188: 42119.86908 | U188: 42119.86908
A189: 169 | B189: 2034-09-10 | C189: 31 | D189: 2747058.045 | E189: 0 | F189: 9542.451768 | G189: 9542.451768 | H189: 51705.34124 | I189: 61247.79301 | J189: 61247.79301 | K189: 39075.53941 | L189: 0 | M189: 2747058.045 | N189: 20000 | O189: 0 | R189: 3400000 | S189: 1922940.632 | T189: 6679.716238 | U189: 0
A190: 170 | B190: 2034-10-10 | C190: 30 | D190: 2695352.704 | E190: 0 | F190: 9060.815802 | G190: 9060.815802 | H190: 52186.97721 | I190: 61247.79301 | J190: 61247.79301 | K190: 38971.7617 | L190: 0 | M190: 2695352.704 | N190: 20000 | O190: 0 | R190: 3420000 | S190: 1886746.893 | T190: 6342.571061 | U190: 0
A191: 171 | B191: 2034-11-10 | C191: 31 | D191: 2643165.727 | E191: 0 | F191: 9181.561164 | G191: 9181.561164 | H191: 52066.23185 | I191: 61247.79301 | J191: 61247.79301 | K191: 38868.25961 | L191: 0 | M191: 2643165.727 | N191: 20000 | O191: 0 | R191: 3440000 | S191: 1850216.009 | T191: 6427.092815 | U191: 0
A192: 172 | B192: 2034-12-10 | C192: 30 | D192: 2591099.495 | E192: 0 | F192: 8710.353644 | G192: 8710.353644 | H192: 52537.43937 | I192: 61247.79301 | J192: 61247.79301 | K192: 38765.03239 | L192: 0 | M192: 2591099.495 | N192: 20000 | O192: 0 | R192: 3460000 | S192: 1813769.646 | T192: 6097.247551 | U192: 0
A193: 173 | B193: 2035-01-10 | C193: 31 | D193: 2538562.055 | E193: 0 | F193: 8818.199535 | G193: 8818.199535 | H193: 52429.59348 | I193: 61247.79301 | J193: 61247.79301 | K193: 38662.07933 | L193: 0 | M193: 2538562.055 | N193: 20000 | O193: 0 | R193: 3480000 | S193: 1776993.439 | T193: 6172.739674 | U193: 0
A194: 174 | B194: 2035-02-10 | C194: 31 | D194: 2486132.462 | E194: 0 | F194: 8636.074927 | G194: 8636.074927 | H194: 90376.33787 | I194: 61247.79301 | J194: 23483.17322 | K194: 38559.3997 | L194: 0 | M194: 2486132.462 | N194: 20000 | O194: 0 | R194: 3500000 | S194: 1740292.723 | T194: 37764.61979 | U194: 37764.61979
A195: 175 | B195: 2035-03-10 | C195: 28 | D195: 2395756.124 | E195: 0 | F195: 7516.766886 | G195: 7516.766886 | H195: 53731.02612 | I195: 61247.79301 | J195: 61247.79301 | K195: 38456.99276 | L195: 0 | M195: 2395756.124 | N195: 20000 | O195: 0 | R195: 3520000 | S195: 1677029.287 | T195: 5261.73682 | U195: 0
A196: 176 | B196: 2035-04-10 | C196: 31 | D196: 2342025.098 | E196: 0 | F196: 8135.489375 | G196: 8135.489375 | H196: 53112.30364 | I196: 61247.79301 | J196: 61247.79301 | K196: 38354.8578 | L196: 0 | M196: 2342025.098 | N196: 20000 | O196: 0 | R196: 3540000 | S196: 1639417.569 | T196: 5694.842562 | U196: 0
A197: 177 | B197: 2035-05-10 | C197: 30 | D197: 2288912.794 | E197: 0 | F197: 7694.509585 | G197: 7694.509585 | H197: 53553.28343 | I197: 61247.79301 | J197: 61247.79301 | K197: 38252.99409 | L197: 0 | M197: 2288912.794 | N197: 20000 | O197: 0 | R197: 3560000 | S197: 1602238.956 | T197: 5386.15671 | U197: 0
A198: 178 | B198: 2035-06-10 | C198: 31 | D198: 2235359.511 | E198: 0 | F198: 7764.965271 | G198: 7764.965271 | H198: 53482.82774 | I198: 61247.79301 | J198: 61247.79301 | K198: 38151.40092 | L198: 0 | M198: 2235359.511 | N198: 20000 | O198: 0 | R198: 3580000 | S198: 1564751.658 | T198: 5435.47569 | U198: 0
A199: 179 | B199: 2035-07-10 | C199: 30 | D199: 2181876.683 | E199: 0 | F199: 7334.692302 | G199: 7334.692302 | H199: 53913.10071 | I199: 61247.79301 | J199: 61247.79301 | K199: 38050.07755 | L199: 0 | M199: 2181876.683 | N199: 20000 | O199: 0 | R199: 3600000 | S199: 1527313.678 | T199: 5134.284611 | U199: 0
A200: 180 | B200: 2035-08-10 | C200: 31 | D200: 2127963.582 | E200: 0 | F200: 7391.904181 | G200: 7391.904181 | H200: 85942.71815 | I200: 61247.79301 | J200: 29160.96369 | K200: 37949.02329 | L200: 0 | M200: 2127963.582 | N200: 20000 | O200: 0 | R200: 3620000 | S200: 1489574.508 | T200: 32086.82932 | U200: 32086.82932
... 180 more rows

Sheet Egyenlítő_nélkül_kedv (hidden)
A1: Input | B1: 2 | C1: 3 | D1: 4 | E1: 5 | F1: 6 | G1: 7 | H1: 8 | I1: 9 | J1: 10 | K1: 11 | S1: 12 | AP1: =+#REF! -> 
A2: Disbursement Date | B2: 2019-07-01 | E2: Output | AP2: =+#REF! -> 
A3: Loan Amount | B3: =Kalkulátor!C4 -> 10000000 | C3: =+F4+B9 -> 4374764.35 | E3: Fee Income | F3: =SUM(E21:E380) -> 0 | AP3: =+#REF! -> 
A4: Monthly Hand Fee (fix Amt) | B4: 0 | C4: =+B3+C3 -> 14374764.35 | E4: Interest Income | F4: =SUM(F21:F380) -> 4345637.35 | AP4: =+#REF! -> 
A5: Interest | B5: =Kalkulátor!F12 -> 0.0384 | H5: Output | I5: Communication | K5: havi megtakarítás | L5: 0
A6: Interest Only Period | E6: Starting Date | F6: =+Egyenlítővel_kedv!F6 -> 2020-09-10 | H6: Loan Amount | I6: =+B3 -> 10000000 | K6: Havi számlára érkező pénz | L6: 0
A7: Term | B7: =Kalkulátor!C5 -> 240 | E7: First Duedate | F7: =+F6 -> 2020-09-10 | H7: Term | I7: =+B7 -> 240 | K7: Éves egyszeri megtakarítás | L7: 0
A8: HUF Upfront Fee % of the Disb Amt | B8: 0 | C8: Utalási díj | D8: FH költség | E8: Ending Date | F8: =+VLOOKUP(B7+B6, A20:D45,2) -> 2022-09-10 | H8: Interest Only Period | I8: =+B6 -> 0 | K8: Kezdeti megtakarítás | L8: 0
A9: HUF Upfront Fee Fix Amt | B9: =C9+D9+C11 -> 29127 | C9: 16527 | D9: 12600 | E9: Installment wo TI | F9: =XPMT(IF(B6=0,B2,VLOOKUP(B6,A21:B380,2,)),VLOOKUP(B6+1,A21:B380,2,),B7-B6,0,B3,B5,B4, B14,B13) -> 59933.17605 | H9: Installment w TI | I9: =+F10 -> 59933.17605
A10: FX Upfront Fee Fix Amt (to be paid in FX) | B10: 0 | C10: ÉB díj | D10: Trkpmás | E10: Installment | F10: =F9*B$12 / B11 -> 59933.17605 | H10: APR | K10: Törlesztőrészlet | L10: =F9-B4 -> 59933.17605
A11: FX bid currency | B11: 1 | C11: 0 | D11: 0 | E11: XIRR | F11: =XIRR(I20:I380,B20:B380) -> 0.03942805231 | H11: XIRR | I11: =+F11 -> 0.03942805231 | K11: PPI-al | L11: =L10+K21 -> 59933.17605
A12: FX ask currency | B12: 1 | K12: Ügyfél által megfizetett tőke | L12: =SUM(H21:H380)-SUM(T20:T380) -> 10000000 | N12: =+L12+L13+B9 -> 14374764.35
A13: 30-days (if not then real calendar days) | B13: 0 | F13: KK5 | K13: Ügyfél által megfizetett kamat | L13: =SUM(F21:F380) -> 4345637.35
A14: Days in Years | B14: 365 | E14: PPI díj | F14: 0.049 | H14: Módusuló futamidő | K14: Tényleges futamidő | L14: =MATCH(0,D21:D380,0)-1 -> 240
A15: Product | B15: Mortgage | C15: Maradványérték | E15: PPI díjjal kell számolni? | F15: =IF(F13=Kalkulátor!C7,"i","n") -> n | K15: Meg nem fizetett törlesztőrészletek száma és összege | L15: =CONCATENATE(B7-L14," db., ",TEXT((B7-L14)*L10,"0 000 Ft")) -> 0 db., 0 000 Ft
C16: =+D81/B3 -> 0.8168000961 | K16: Felhalmozott megtakarítások | L16: =MAX(Q20:Q380) -> 0
C17: =D141/B3 -> 0.5937318105 | F17: 12592617.72 | G17: 3935193.037 | H17: =+F17+G17 -> 16527810.76
A18: Details
A19: Term | B19: PaymentDate | C19: DaysBetween | D19: Capital | E19: Fee | F19: Interest | G19: Interest+Fee | H19: Principal | I19: CF- with TradeIncome | J19: THM Calculation | K19: PPI | L19: Módosított tőke | M19: Megtakarítás | N19: Éves egyszeri | O19: havi bejövő | P19: Kezdeti | Q19: Összeg | R19: 70%-os korláttal | S19: Kedvezmény | T19: Kedvezmény tőke számításhoz
A20: 0- Disbursement | B20: =+Egyenlítővel_kedv!B20 -> 2020-08-01 | C20: 0 | D20: 0 | E20: 0 | F20: 0 | G20: 0 | H20: 0 | I20: =- B3 + B8*B3 + B9 + B10 / B11 -> -9970873 | J20: =SUM(J21:J380)+I20 -> 11557.15622 | L20: =D20 -> 0 | M20: =$L$5 -> 0 | O20: =L6/2 -> 0 | P20: =$L$8 -> 0 | Q20: =SUM(M20:P20) -> 0 | R20: =IF(Q20<=L21*0.7,Q20,L21*0.7) -> 0 | S20: =R20*$B$5/$B$14*C21 -> 0
A21: 1 | B21: =+F6 -> 2020-09-10 | C21: =+IF($B$13=1, 30, B21-B20) -> 40 | D21: =$B$3 -> 10000000 | E21: =IF(D21>0,$B$4,0) -> 0 | F21: =+C21/$B$14*$B$5*D21 -> 42082.19178 | G21: =E21+F21 -> 42082.19178 | H21: =+IF(A21<=$B$6,0,IF(D21>0,IF($F$9-G21+IF(MOD(A21,6)=0,S21,0)>D21,D21,$F$9-G21+IF(MOD(A21,6)=0,S21,0)),0)) -> 17850.98427 | I21: =IF(D21>0,+G21+H21+K21-IF(MOD(A21,6)=0,S21,0),0) -> 59933.17605 | J21: =+I21/POWER((1+$I$11),A21/12) -> 59740.3492 | K21: =IF(D21>0,IF($F$15="I",($F$9-$B$4)*$F$14,0),0) -> 0 | L21: =D21 -> 10000000 | M21: =$L$5 -> 0 | N21: =IF(MOD(A21,12)=0,$L$7,0) -> 0 | Q21: =IF(D21>0,SUM(M21:P21)+Q20,0) -> 0 | R21: =IF(Q21<=L21*0.7,Q21,L21*0.7) -> 0 | S21: =IF(MOD(A21,6)=0,SUM(S16:S20)+R21*$B$5/$B$14*C21,R21*$B$5/$B$14*C21) -> 0 | T21: =IF(MOD(A21,6)=0,S21,0) -> 0
A22: 2 | B22: =IF(MONTH(B21)=12,DATE(YEAR(B21)+1,1,DAY(B21)),DATE(YEAR(B21),MONTH(B21)+1,DAY(B21))) -> 2020-10-10 | C22: 30 | D22: =IF(D21-IF(H21<0,0,H21)<0,0,D21-IF(H21<0,0,H21)) -> 9982149.016 | E22: =IF(D22>0,$B$4,0) -> 0 | F22: 31505.30319 | G22: 31505.30319 | H22: 28427.87285 | I22: =IF(D22>0,+G22+H22+K22-IF(MOD(A22,6)=0,S22,0),0) -> 59933.17605 | J22: =+I22/POWER((1+$I$11),A22/12) -> 59548.14274 | K22: =IF(D22>0,IF($F$15="I",($F$9-$B$4)*$F$14,0),0) -> 0 | L22: 9982149.016 | M22: 0 | N22: =IF(MOD(A22,12)=0,$L$7,0) -> 0 | Q22: =IF(D22>0,SUM(M22:P22)+Q21,0) -> 0 | R22: =IF(Q22<=L22*0.7,Q22,L22*0.7) -> 0 | S22: =IF(MOD(A22,6)=0,SUM(S17:S21)+R22*$B$5/$B$14*C22,R22*$B$5/$B$14*C22) -> 0 | T22: =IF(MOD(A22,6)=0,S22,0) -> 0
A23: 3 | B23: 2020-11-10 | C23: 31 | D23: =IF(D22-IF(H22<0,0,H22)<0,0,D22-IF(H22<0,0,H22)) -> 9953721.143 | E23: 0 | F23: 32462.76616 | G23: 32462.76616 | H23: 27470.40989 | I23: 59933.17605 | J23: 59356.55468 | K23: 0 | L23: 9953721.143 | M23: 0 | N23: 0 | Q23: 0 | R23: 0 | S23: 0 | T23: 0
A24: 4 | B24: 2020-12-10 | C24: 30 | D24: 9926250.733 | E24: 0 | F24: 31328.87903 | G24: 31328.87903 | H24: 28604.29702 | I24: 59933.17605 | J24: 59165.58302 | K24: 0 | L24: 9926250.733 | M24: 0 | N24: 0 | Q24: 0 | R24: 0 | S24: 0 | T24: 0
A25: 5 | B25: 2021-01-10 | C25: 31 | D25: 9897646.436 | E25: 0 | F25: 32279.8858 | G25: 32279.8858 | H25: 27653.29025 | I25: 59933.17605 | J25: 58975.2258 | K25: 0 | L25: 9897646.436 | M25: 0 | N25: 0 | Q25: 0 | R25: 0 | S25: 0 | T25: 0
A26: 6 | B26: 2021-02-10 | C26: 31 | D26: 9869993.146 | E26: 0 | F26: =+C26/$B$14*$B$5*D26 -> 32189.69819 | G26: 32189.69819 | H26: 27743.47786 | I26: 59933.17605 | J26: 58785.48102 | K26: 0 | L26: 9869993.146 | M26: 0 | N26: 0 | Q26: 0 | R26: 0 | S26: 0 | T26: 0
A27: 7 | B27: 2021-03-10 | C27: 28 | D27: 9842249.668 | E27: 0 | F27: 28992.84067 | G27: 28992.84067 | H27: 30940.33538 | I27: 59933.17605 | J27: 58596.34672 | K27: 0 | L27: 9842249.668 | M27: 0 | N27: 0 | Q27: 0 | R27: 0 | S27: 0 | T27: 0
A28: 8 | B28: 2021-04-10 | C28: 31 | D28: 9811309.332 | E28: 0 | F28: 31998.30857 | G28: 31998.30857 | H28: 27934.86748 | I28: 59933.17605 | J28: 58407.82093 | K28: 0 | L28: 9811309.332 | M28: 0 | N28: 0 | Q28: 0 | R28: 0 | S28: 0 | T28: 0
A29: 9 | B29: 2021-05-10 | C29: 30 | D29: 9783374.465 | E29: 0 | F29: 30877.93804 | G29: 30877.93804 | H29: 29055.23801 | I29: 59933.17605 | J29: 58219.9017 | K29: 0 | L29: 9783374.465 | M29: 0 | N29: 0 | Q29: 0 | R29: 0 | S29: 0 | T29: 0
A30: 10 | B30: 2021-06-10 | C30: 31 | D30: 9754319.227 | E30: 0 | F30: 31812.44276 | G30: 31812.44276 | H30: 28120.73329 | I30: 59933.17605 | J30: 58032.58708 | K30: 0 | L30: 9754319.227 | M30: 0 | N30: 0 | Q30: 0 | R30: 0 | S30: 0 | T30: 0
A31: 11 | B31: 2021-07-10 | C31: 30 | D31: 9726198.494 | E31: 0 | F31: 30697.48127 | G31: 30697.48127 | H31: 29235.69478 | I31: 59933.17605 | J31: 57845.87511 | K31: 0 | L31: 9726198.494 | M31: 0 | N31: 0 | Q31: 0 | R31: 0 | S31: 0 | T31: 0
A32: 12 | B32: 2021-08-10 | C32: 31 | D32: 9696962.799 | E32: 0 | F32: 31625.38224 | G32: 31625.38224 | H32: 28307.79381 | I32: 59933.17605 | J32: 57659.76386 | K32: 0 | L32: 9696962.799 | M32: 0 | N32: 0 | Q32: 0 | R32: 0 | S32: 0 | T32: 0
A33: 13 | B33: 2021-09-10 | C33: 31 | D33: 9668655.005 | E33: 0 | F33: 31533.06005 | G33: 31533.06005 | H33: 28400.116 | I33: 59933.17605 | J33: 57474.25141 | K33: 0 | L33: 9668655.005 | M33: 0 | N33: 0 | Q33: 0 | R33: 0 | S33: 0 | T33: 0
A34: 14 | B34: 2021-10-10 | C34: 30 | D34: 9640254.889 | E34: 0 | F34: 30426.22913 | G34: 30426.22913 | H34: 29506.94692 | I34: 59933.17605 | J34: 57289.33581 | K34: 0 | L34: 9640254.889 | M34: 0 | N34: 0 | Q34: 0 | R34: 0 | S34: 0 | T34: 0
A35: 15 | B35: 2021-11-10 | C35: 31 | D35: 9610747.942 | E35: 0 | F35: 31344.2037 | G35: 31344.2037 | H35: 28588.97235 | I35: 59933.17605 | J35: 57105.01515 | K35: 0 | L35: 9610747.942 | M35: 0 | N35: 0 | Q35: 0 | R35: 0 | S35: 0 | T35: 0
A36: 16 | B36: 2021-12-10 | C36: 30 | D36: 9582158.97 | E36: 0 | F36: 30242.86886 | G36: 30242.86886 | H36: 29690.30719 | I36: 59933.17605 | J36: 56921.28752 | K36: 0 | L36: 9582158.97 | M36: 0 | N36: 0 | Q36: 0 | R36: 0 | S36: 0 | T36: 0
A37: 17 | B37: 2022-01-10 | C37: 31 | D37: 9552468.663 | E37: 0 | F37: 31154.13341 | G37: 31154.13341 | H37: 28779.04264 | I37: 59933.17605 | J37: 56738.15101 | K37: 0 | L37: 9552468.663 | M37: 0 | N37: 0 | Q37: 0 | R37: 0 | S37: 0 | T37: 0
A38: 18 | B38: 2022-02-10 | C38: 31 | D38: 9523689.62 | E38: 0 | F38: 31060.27431 | G38: 31060.27431 | H38: 28872.90174 | I38: 59933.17605 | J38: 56555.60372 | K38: 0 | L38: 9523689.62 | M38: 0 | N38: 0 | Q38: 0 | R38: 0 | S38: 0 | T38: 0
A39: 19 | B39: 2022-03-10 | C39: 28 | D39: 9494816.718 | E39: 0 | F39: 27969.38886 | G39: 27969.38886 | H39: 31963.78718 | I39: 59933.17605 | J39: 56373.64374 | K39: 0 | L39: 9494816.718 | M39: 0 | N39: 0 | Q39: 0 | R39: 0 | S39: 0 | T39: 0
A40: 20 | B40: 2022-04-10 | C40: 31 | D40: 9462852.931 | E40: 0 | F40: 30861.86337 | G40: 30861.86337 | H40: 29071.31268 | I40: 59933.17605 | J40: 56192.2692 | K40: 0 | L40: 9462852.931 | M40: 0 | N40: 0 | Q40: 0 | R40: 0 | S40: 0 | T40: 0
A41: 21 | B41: 2022-05-10 | C41: 30 | D41: 9433781.618 | E41: 0 | F41: 29774.56555 | G41: 29774.56555 | H41: 30158.6105 | I41: 59933.17605 | J41: 56011.47821 | K41: 0 | L41: 9433781.618 | M41: 0 | N41: 0 | Q41: 0 | R41: 0 | S41: 0 | T41: 0
A42: 22 | B42: 2022-06-10 | C42: 31 | D42: 9403623.008 | E42: 0 | F42: 30668.69268 | G42: 30668.69268 | H42: 29264.48337 | I42: 59933.17605 | J42: 55831.26889 | K42: 0 | L42: 9403623.008 | M42: 0 | N42: 0 | Q42: 0 | R42: 0 | S42: 0 | T42: 0
A43: 23 | B43: 2022-07-10 | C43: 30 | D43: 9374358.525 | E43: 0 | F43: 29587.01649 | G43: 29587.01649 | H43: 30346.15956 | I43: 59933.17605 | J43: 55651.63936 | K43: 0 | L43: 9374358.525 | M43: 0 | N43: 0 | Q43: 0 | R43: 0 | S43: 0 | T43: 0
A44: 24 | B44: 2022-08-10 | C44: 31 | D44: 9344012.365 | E44: 0 | F44: 30474.28033 | G44: 30474.28033 | H44: 29458.89572 | I44: 59933.17605 | J44: 55472.58777 | K44: 0 | L44: 9344012.365 | M44: 0 | N44: 0 | Q44: 0 | R44: 0 | S44: 0 | T44: 0
A45: 25 | B45: 2022-09-10 | C45: 31 | D45: 9314553.469 | E45: 0 | F45: 30378.20397 | G45: 30378.20397 | H45: 29554.97208 | I45: 59933.17605 | J45: 55294.11226 | K45: 0 | L45: 9314553.469 | M45: 0 | N45: 0 | Q45: 0 | R45: 0 | S45: 0 | T45: 0
A46: 26 | B46: 2022-10-10 | C46: 30 | D46: 9284998.497 | E46: 0 | F46: 29304.98156 | G46: 29304.98156 | H46: 30628.19449 | I46: 59933.17605 | J46: 55116.21096 | K46: 0 | L46: 9284998.497 | M46: 0 | N46: 0 | Q46: 0 | R46: 0 | S46: 0 | T46: 0
A47: 27 | B47: 2022-11-10 | C47: 31 | D47: 9254370.303 | E47: 0 | F47: 30181.92441 | G47: 30181.92441 | H47: 29751.25164 | I47: 59933.17605 | J47: 54938.88204 | K47: 0 | L47: 9254370.303 | M47: 0 | N47: 0 | Q47: 0 | R47: 0 | S47: 0 | T47: 0
A48: 28 | B48: 2022-12-10 | C48: 30 | D48: 9224619.051 | E48: 0 | F48: 29114.4141 | G48: 29114.4141 | H48: 30818.76195 | I48: 59933.17605 | J48: 54762.12365 | K48: 0 | L48: 9224619.051 | M48: 0 | N48: 0 | Q48: 0 | R48: 0 | S48: 0 | T48: 0
A49: 29 | B49: 2023-01-10 | C49: 31 | D49: 9193800.289 | E49: 0 | F49: 29984.38319 | G49: 29984.38319 | H49: 29948.79286 | I49: 59933.17605 | J49: 54585.93395 | K49: 0 | L49: 9193800.289 | M49: 0 | N49: 0 | Q49: 0 | R49: 0 | S49: 0 | T49: 0
A50: 30 | B50: 2023-02-10 | C50: 31 | D50: 9163851.496 | E50: 0 | F50: 29886.7091 | G50: 29886.7091 | H50: 30046.46695 | I50: 59933.17605 | J50: 54410.31112 | K50: 0 | L50: 9163851.496 | M50: 0 | N50: 0 | Q50: 0 | R50: 0 | S50: 0 | T50: 0
A51: 31 | B51: 2023-03-10 | C51: 28 | D51: 9133805.029 | E51: 0 | F51: 26905.93745 | G51: 26905.93745 | H51: 33027.2386 | I51: 59933.17605 | J51: 54235.25334 | K51: 0 | L51: 9133805.029 | M51: 0 | N51: 0 | Q51: 0 | R51: 0 | S51: 0 | T51: 0
A52: 32 | B52: 2023-04-10 | C52: 31 | D52: 9100777.791 | E52: 0 | F52: 29681.00242 | G52: 29681.00242 | H52: 30252.17363 | I52: 59933.17605 | J52: 54060.75878 | K52: 0 | L52: 9100777.791 | M52: 0 | N52: 0 | Q52: 0 | R52: 0 | S52: 0 | T52: 0
A53: 33 | B53: 2023-05-10 | C53: 30 | D53: 9070525.617 | E53: 0 | F53: 28628.06989 | G53: 28628.06989 | H53: 31305.10616 | I53: 59933.17605 | J53: 53886.82563 | K53: 0 | L53: 9070525.617 | M53: 0 | N53: 0 | Q53: 0 | R53: 0 | S53: 0 | T53: 0
A54: 34 | B54: 2023-06-10 | C54: 31 | D54: 9039220.511 | E54: 0 | F54: 29480.24136 | G54: 29480.24136 | H54: 30452.93469 | I54: 59933.17605 | J54: 53713.45209 | K54: 0 | L54: 9039220.511 | M54: 0 | N54: 0 | Q54: 0 | R54: 0 | S54: 0 | T54: 0
A55: 35 | B55: 2023-07-10 | C55: 30 | D55: 9008767.576 | E55: 0 | F55: 28433.15136 | G55: 28433.15136 | H55: 31500.02469 | I55: 59933.17605 | J55: 53540.63635 | K55: 0 | L55: 9008767.576 | M55: 0 | N55: 0 | Q55: 0 | R55: 0 | S55: 0 | T55: 0
A56: 36 | B56: 2023-08-10 | C56: 31 | D56: 8977267.552 | E56: 0 | F56: 29278.18984 | G56: 29278.18984 | H56: 30654.9862 | I56: 59933.17605 | J56: 53368.37663 | K56: 0 | L56: 8977267.552 | M56: 0 | N56: 0 | Q56: 0 | R56: 0 | S56: 0 | T56: 0
A57: 37 | B57: 2023-09-10 | C57: 31 | D57: 8946612.565 | E57: 0 | F57: 29178.2126 | G57: 29178.2126 | H57: 30754.96345 | I57: 59933.17605 | J57: 53196.67112 | K57: 0 | L57: 8946612.565 | M57: 0 | N57: 0 | Q57: 0 | R57: 0 | S57: 0 | T57: 0
A58: 38 | B58: 2023-10-10 | C58: 30 | D58: 8915857.602 | E58: 0 | F58: 28139.91221 | G58: 28139.91221 | H58: 31793.26384 | I58: 59933.17605 | J58: 53025.51806 | K58: 0 | L58: 8915857.602 | M58: 0 | N58: 0 | Q58: 0 | R58: 0 | S58: 0 | T58: 0
A59: 39 | B59: 2023-11-10 | C59: 31 | D59: 8884064.338 | E59: 0 | F59: 28974.21969 | G59: 28974.21969 | H59: 30958.95636 | I59: 59933.17605 | J59: 52854.91566 | K59: 0 | L59: 8884064.338 | M59: 0 | N59: 0 | Q59: 0 | R59: 0 | S59: 0 | T59: 0
A60: 40 | B60: 2023-12-10 | C60: 30 | D60: 8853105.382 | E60: 0 | F60: 27941.85589 | G60: 27941.85589 | H60: 31991.32016 | I60: 59933.17605 | J60: 52684.86215 | K60: 0 | L60: 8853105.382 | M60: 0 | N60: 0 | Q60: 0 | R60: 0 | S60: 0 | T60: 0
A61: 41 | B61: 2024-01-10 | C61: 31 | D61: 8821114.062 | E61: 0 | F61: 28768.91556 | G61: 28768.91556 | H61: 31164.26049 | I61: 59933.17605 | J61: 52515.35576 | K61: 0 | L61: 8821114.062 | M61: 0 | N61: 0 | Q61: 0 | R61: 0 | S61: 0 | T61: 0
A62: 42 | B62: 2024-02-10 | C62: 31 | D62: 8789949.801 | E62: 0 | F62: 28667.27738 | G62: 28667.27738 | H62: 31265.89867 | I62: 59933.17605 | J62: 52346.39473 | K62: 0 | L62: 8789949.801 | M62: 0 | N62: 0 | Q62: 0 | R62: 0 | S62: 0 | T62: 0
A63: 43 | B63: 2024-03-10 | C63: 29 | D63: 8758683.902 | E63: 0 | F63: 26722.38464 | G63: 26722.38464 | H63: 33210.79141 | I63: 59933.17605 | J63: 52177.97732 | K63: 0 | L63: 8758683.902 | M63: 0 | N63: 0 | Q63: 0 | R63: 0 | S63: 0 | T63: 0
A64: 44 | B64: 2024-04-10 | C64: 31 | D64: 8725473.111 | E64: 0 | F64: 28456.99504 | G64: 28456.99504 | H64: 31476.181 | I64: 59933.17605 | J64: 52010.10177 | K64: 0 | L64: 8725473.111 | M64: 0 | N64: 0 | Q64: 0 | R64: 0 | S64: 0 | T64: 0
A65: 45 | B65: 2024-05-10 | C65: 30 | D65: 8693996.93 | E65: 0 | F65: 27439.68346 | G65: 27439.68346 | H65: 32493.49259 | I65: 59933.17605 | J65: 51842.76633 | K65: 0 | L65: 8693996.93 | M65: 0 | N65: 0 | Q65: 0 | R65: 0 | S65: 0 | T65: 0
A66: 46 | B66: 2024-06-10 | C66: 31 | D66: 8661503.437 | E66: 0 | F66: 28248.36628 | G66: 28248.36628 | H66: 31684.80977 | I66: 59933.17605 | J66: 51675.96927 | K66: 0 | L66: 8661503.437 | M66: 0 | N66: 0 | Q66: 0 | R66: 0 | S66: 0 | T66: 0
A67: 47 | B67: 2024-07-10 | C67: 30 | D67: 8629818.628 | E67: 0 | F67: 27237.12619 | G67: 27237.12619 | H67: 32696.04986 | I67: 59933.17605 | J67: 51509.70886 | K67: 0 | L67: 8629818.628 | M67: 0 | N67: 0 | Q67: 0 | R67: 0 | S67: 0 | T67: 0
A68: 48 | B68: 2024-08-10 | C68: 31 | D68: 8597122.578 | E68: 0 | F68: 28038.39648 | G68: 28038.39648 | H68: 31894.77957 | I68: 59933.17605 | J68: 51343.98336 | K68: 0 | L68: 8597122.578 | M68: 0 | N68: 0 | Q68: 0 | R68: 0 | S68: 0 | T68: 0
A69: 49 | B69: 2024-09-10 | C69: 31 | D69: 8565227.798 | E69: 0 | F69: 27934.37581 | G69: 27934.37581 | H69: 31998.80024 | I69: 59933.17605 | J69: 51178.79107 | K69: 0 | L69: 8565227.798 | M69: 0 | N69: 0 | Q69: 0 | R69: 0 | S69: 0 | T69: 0
A70: 50 | B70: 2024-10-10 | C70: 30 | D70: 8533228.998 | E70: 0 | F70: 26932.27344 | G70: 26932.27344 | H70: 33000.90261 | I70: 59933.17605 | J70: 51014.13026 | K70: 0 | L70: 8533228.998 | M70: 0 | N70: 0 | Q70: 0 | R70: 0 | S70: 0 | T70: 0
A71: 51 | B71: 2024-11-10 | C71: 31 | D71: 8500228.095 | E71: 0 | F71: 27722.38774 | G71: 27722.38774 | H71: 32210.78831 | I71: 59933.17605 | J71: 50849.99923 | K71: 0 | L71: 8500228.095 | M71: 0 | N71: 0 | Q71: 0 | R71: 0 | S71: 0 | T71: 0
A72: 52 | B72: 2024-12-10 | C72: 30 | D72: 8468017.307 | E72: 0 | F72: 26726.45462 | G72: 26726.45462 | H72: 33206.72143 | I72: 59933.17605 | J72: 50686.39626 | K72: 0 | L72: 8468017.307 | M72: 0 | N72: 0 | Q72: 0 | R72: 0 | S72: 0 | T72: 0
A73: 53 | B73: 2025-01-10 | C73: 31 | D73: 8434810.586 | E73: 0 | F73: 27509.03704 | G73: 27509.03704 | H73: 32424.13901 | I73: 59933.17605 | J73: 50523.31967 | K73: 0 | L73: 8434810.586 | M73: 0 | N73: 0 | Q73: 0 | R73: 0 | S73: 0 | T73: 0
A74: 54 | B74: 2025-02-10 | C74: 31 | D74: 8402386.447 | E74: 0 | F74: 27403.28993 | G74: 27403.28993 | H74: 32529.88612 | I74: 59933.17605 | J74: 50360.76775 | K74: 0 | L74: 8402386.447 | M74: 0 | N74: 0 | Q74: 0 | R74: 0 | S74: 0 | T74: 0
A75: 55 | B75: 2025-03-10 | C75: 28 | D75: 8369856.56 | E75: 0 | F75: 24655.53363 | G75: 24655.53363 | H75: 35277.64242 | I75: 59933.17605 | J75: 50198.73882 | K75: 0 | L75: 8369856.56 | M75: 0 | N75: 0 | Q75: 0 | R75: 0 | S75: 0 | T75: 0
A76: 56 | B76: 2025-04-10 | C76: 31 | D76: 8334578.918 | E76: 0 | F76: 27182.1445 | G76: 27182.1445 | H76: 32751.03155 | I76: 59933.17605 | J76: 50037.2312 | K76: 0 | L76: 8334578.918 | M76: 0 | N76: 0 | Q76: 0 | R76: 0 | S76: 0 | T76: 0
A77: 57 | B77: 2025-05-10 | C77: 30 | D77: 8301827.886 | E77: 0 | F77: 26201.93349 | G77: 26201.93349 | H77: 33731.24256 | I77: 59933.17605 | J77: 49876.2432 | K77: 0 | L77: 8301827.886 | M77: 0 | N77: 0 | Q77: 0 | R77: 0 | S77: 0 | T77: 0
A78: 58 | B78: 2025-06-10 | C78: 31 | D78: 8268096.644 | E78: 0 | F78: 26965.32122 | G78: 26965.32122 | H78: 32967.85483 | I78: 59933.17605 | J78: 49715.77316 | K78: 0 | L78: 8268096.644 | M78: 0 | N78: 0 | Q78: 0 | R78: 0 | S78: 0 | T78: 0
A79: 59 | B79: 2025-07-10 | C79: 30 | D79: 8235128.789 | E79: 0 | F79: 25991.42018 | G79: 25991.42018 | H79: 33941.75587 | I79: 59933.17605 | J79: 49555.81942 | K79: 0 | L79: 8235128.789 | M79: 0 | N79: 0 | Q79: 0 | R79: 0 | S79: 0 | T79: 0
A80: 60 | B80: 2025-08-10 | C80: 31 | D80: 8201187.033 | E80: 0 | F80: 26747.10423 | G80: 26747.10423 | H80: 33186.07182 | I80: 59933.17605 | J80: 49396.3803 | K80: 0 | L80: 8201187.033 | M80: 0 | N80: 0 | Q80: 0 | R80: 0 | S80: 0 | T80: 0
A81: 61 | B81: 2025-09-10 | C81: 31 | D81: 8168000.961 | E81: 0 | F81: 26638.87218 | G81: 26638.87218 | H81: 33294.30387 | I81: 59933.17605 | J81: 49237.45415 | K81: 0 | L81: 8168000.961 | M81: 0 | N81: 0 | Q81: 0 | R81: 0 | S81: 0 | T81: 0
A82: 62 | B82: 2025-10-10 | C82: 30 | D82: 8134706.658 | E82: 0 | F82: 25674.47142 | G82: 25674.47142 | H82: 34258.70463 | I82: 59933.17605 | J82: 49079.03933 | K82: 0 | L82: 8134706.658 | M82: 0 | N82: 0 | Q82: 0 | R82: 0 | S82: 0 | T82: 0
A83: 63 | B83: 2025-11-10 | C83: 31 | D83: 8100447.953 | E83: 0 | F83: 26418.55683 | G83: 26418.55683 | H83: 33514.61922 | I83: 59933.17605 | J83: 48921.13419 | K83: 0 | L83: 8100447.953 | M83: 0 | N83: 0 | Q83: 0 | R83: 0 | S83: 0 | T83: 0
A84: 64 | B84: 2025-12-10 | C84: 30 | D84: 8066933.334 | E84: 0 | F84: 25460.56767 | G84: 25460.56767 | H84: 34472.60838 | I84: 59933.17605 | J84: 48763.73709 | K84: 0 | L84: 8066933.334 | M84: 0 | N84: 0 | Q84: 0 | R84: 0 | S84: 0 | T84: 0
A85: 65 | B85: 2026-01-10 | C85: =+IF($B$13=1, 30, B85-B84) -> 31 | D85: 8032460.725 | E85: 0 | F85: =+C85/$B$14*$B$5*D85 -> 26196.82534 | G85: =E85+F85 -> 26196.82534 | H85: =+IF(A85<=$B$6,0,IF(D85>0,IF($F$9-G85+IF(MOD(A85,6)=0,S85,0)>D85,D85,$F$9-G85+IF(MOD(A85,6)=0,S85,0)),0)) -> 33736.35071 | I85: 59933.17605 | J85: 48606.84639 | K85: 0 | L85: =D85 -> 8032460.725 | M85: =$L$5 -> 0 | N85: 0 | Q85: 0 | R85: 0 | S85: 0 | T85: 0
A86: 66 | B86: =IF(MONTH(B85)=12,DATE(YEAR(B85)+1,1,DAY(B85)),DATE(YEAR(B85),MONTH(B85)+1,DAY(B85))) -> 2026-02-10 | C86: 31 | D86: 7998724.375 | E86: =IF(D86>0,$B$4,0) -> 0 | F86: 26086.79862 | G86: 26086.79862 | H86: 33846.37743 | I86: =IF(D86>0,+G86+H86+K86-IF(MOD(A86,6)=0,S86,0),0) -> 59933.17605 | J86: =+I86/POWER((1+$I$11),A86/12) -> 48450.46046 | K86: =IF(D86>0,IF($F$15="I",($F$9-$B$4)*$F$14,0),0) -> 0 | L86: 7998724.375 | M86: 0 | N86: =IF(MOD(A86,12)=0,$L$7,0) -> 0 | Q86: =IF(D86>0,SUM(M86:P86)+Q85,0) -> 0 | R86: =IF(Q86<=L86*0.7,Q86,L86*0.7) -> 0 | S86: =IF(MOD(A86,6)=0,SUM(S81:S85)+R86*$B$5/$B$14*C86,R86*$B$5/$B$14*C86) -> 0 | T86: =IF(MOD(A86,6)=0,S86,0) -> 0
A87: 67 | B87: 2026-03-10 | C87: 28 | D87: =IF(D86-IF(H86<0,0,H86)<0,0,D86-IF(H86<0,0,H86)) -> 7964877.997 | E87: 0 | F87: 23462.56664 | G87: 23462.56664 | H87: 36470.60941 | I87: 59933.17605 | J87: 48294.57768 | K87: 0 | L87: 7964877.997 | M87: 0 | N87: 0 | Q87: 0 | R87: 0 | S87: 0 | T87: 0
A88: 68 | B88: 2026-04-10 | C88: 31 | D88: 7928407.388 | E88: 0 | F88: 25857.46892 | G88: 25857.46892 | H88: 34075.70713 | I88: 59933.17605 | J88: 48139.19644 | K88: 0 | L88: 7928407.388 | M88: 0 | N88: 0 | Q88: 0 | R88: 0 | S88: 0 | T88: 0
A89: 69 | B89: 2026-05-10 | C89: 30 | D89: 7894331.681 | E89: 0 | F89: 24915.80848 | G89: 24915.80848 | H89: 35017.36757 | I89: 59933.17605 | J89: 47984.31512 | K89: 0 | L89: 7894331.681 | M89: 0 | N89: 0 | Q89: 0 | R89: 0 | S89: 0 | T89: 0
A90: 70 | B90: 2026-06-10 | C90: 31 | D90: 7859314.313 | E90: 0 | F90: 25632.13084 | G90: 25632.13084 | H90: 34301.0452 | I90: 59933.17605 | J90: 47829.9321 | K90: 0 | L90: 7859314.313 | M90: 0 | N90: 0 | Q90: 0 | R90: 0 | S90: 0 | T90: 0
A91: 71 | B91: 2026-07-10 | C91: 30 | D91: 7825013.268 | E91: 0 | F91: 24697.02818 | G91: 24697.02818 | H91: 35236.14787 | I91: 59933.17605 | J91: 47676.04579 | K91: 0 | L91: 7825013.268 | M91: 0 | N91: 0 | Q91: 0 | R91: 0 | S91: 0 | T91: 0
A92: 72 | B92: 2026-08-10 | C92: 31 | D92: 7789777.12 | E92: 0 | F92: 25405.34434 | G92: 25405.34434 | H92: 34527.83171 | I92: 59933.17605 | J92: 47522.65459 | K92: 0 | L92: 7789777.12 | M92: 0 | N92: 0 | Q92: 0 | R92: 0 | S92: 0 | T92: 0
A93: 73 | B93: 2026-09-10 | C93: 31 | D93: 7755249.288 | E93: 0 | F93: 25292.73631 | G93: 25292.73631 | H93: 34640.43974 | I93: 59933.17605 | J93: 47369.7569 | K93: 0 | L93: 7755249.288 | M93: 0 | N93: 0 | Q93: 0 | R93: 0 | S93: 0 | T93: 0
A94: 74 | B94: 2026-10-10 | C94: 30 | D94: 7720608.849 | E94: 0 | F94: 24367.51067 | G94: 24367.51067 | H94: 35565.66538 | I94: 59933.17605 | J94: 47217.35114 | K94: 0 | L94: 7720608.849 | M94: 0 | N94: 0 | Q94: 0 | R94: 0 | S94: 0 | T94: 0
A95: 75 | B95: 2026-11-10 | C95: 31 | D95: 7685043.183 | E95: 0 | F95: 25063.76823 | G95: 25063.76823 | H95: 34869.40782 | I95: 59933.17605 | J95: 47065.43573 | K95: 0 | L95: 7685043.183 | M95: 0 | N95: 0 | Q95: 0 | R95: 0 | S95: 0 | T95: 0
A96: 76 | B96: 2026-12-10 | C96: 30 | D96: 7650173.775 | E96: 0 | F96: 24145.206 | G96: 24145.206 | H96: 35787.97005 | I96: 59933.17605 | J96: 46914.00908 | K96: 0 | L96: 7650173.775 | M96: 0 | N96: 0 | Q96: 0 | R96: 0 | S96: 0 | T96: 0
A97: 77 | B97: 2027-01-10 | C97: 31 | D97: 7614385.805 | E97: 0 | F97: 24833.32839 | G97: 24833.32839 | H97: 35099.84766 | I97: 59933.17605 | J97: 46763.06963 | K97: 0 | L97: 7614385.805 | M97: 0 | N97: 0 | Q97: 0 | R97: 0 | S97: 0 | T97: 0
A98: 78 | B98: 2027-02-10 | C98: 31 | D98: 7579285.958 | E98: 0 | F98: 24718.85481 | G98: 24718.85481 | H98: 35214.32124 | I98: 59933.17605 | J98: 46612.61581 | K98: 0 | L98: 7579285.958 | M98: 0 | N98: 0 | Q98: 0 | R98: 0 | S98: 0 | T98: 0
A99: 79 | B99: 2027-03-10 | C99: 28 | D99: 7544071.636 | E99: 0 | F99: 22222.97486 | G99: 22222.97486 | H99: 37710.20119 | I99: 59933.17605 | J99: 46462.64605 | K99: 0 | L99: 7544071.636 | M99: 0 | N99: 0 | Q99: 0 | R99: 0 | S99: 0 | T99: 0
A100: 80 | B100: 2027-04-10 | C100: 31 | D100: 7506361.435 | E100: 0 | F100: 24481.02097 | G100: 24481.02097 | H100: 35452.15508 | I100: 59933.17605 | J100: 46313.15879 | K100: 0 | L100: 7506361.435 | M100: 0 | N100: 0 | Q100: 0 | R100: 0 | S100: 0 | T100: 0
A101: 81 | B101: 2027-05-10 | C101: 30 | D101: 7470909.28 | E101: 0 | F101: 23579.41778 | G101: 23579.41778 | H101: 36353.75827 | I101: 59933.17605 | J101: 46164.1525 | K101: 0 | L101: 7470909.28 | M101: 0 | N101: 0 | Q101: 0 | R101: 0 | S101: 0 | T101: 0
A102: 82 | B102: 2027-06-10 | C102: 31 | D102: 7434555.522 | E102: 0 | F102: 24246.83532 | G102: 24246.83532 | H102: 35686.34073 | I102: 59933.17605 | J102: 46015.62561 | K102: 0 | L102: 7434555.522 | M102: 0 | N102: 0 | Q102: 0 | R102: 0 | S102: 0 | T102: 0
A103: 83 | B103: 2027-07-10 | C103: 30 | D103: 7398869.181 | E103: 0 | F103: 23352.04739 | G103: 23352.04739 | H103: 36581.12866 | I103: 59933.17605 | J103: 45867.57658 | K103: 0 | L103: 7398869.181 | M103: 0 | N103: 0 | Q103: 0 | R103: 0 | S103: 0 | T103: 0
A104: 84 | B104: 2027-08-10 | C104: 31 | D104: 7362288.052 | E104: 0 | F104: 24011.14438 | G104: 24011.14438 | H104: 35922.03167 | I104: 59933.17605 | J104: 45720.00388 | K104: 0 | L104: 7362288.052 | M104: 0 | N104: 0 | Q104: 0 | R104: 0 | S104: 0 | T104: 0
A105: 85 | B105: 2027-09-10 | C105: 31 | D105: 7326366.021 | E105: 0 | F105: 23893.98935 | G105: 23893.98935 | H105: 36039.1867 | I105: 59933.17605 | J105: 45572.90598 | K105: 0 | L105: 7326366.021 | M105: 0 | N105: 0 | Q105: 0 | R105: 0 | S105: 0 | T105: 0
A106: 86 | B106: 2027-10-10 | C106: 30 | D106: 7290326.834 | E106: 0 | F106: 23009.4699 | G106: 23009.4699 | H106: 36923.70615 | I106: 59933.17605 | J106: 45426.28135 | K106: 0 | L106: 7290326.834 | M106: 0 | N106: 0 | Q106: 0 | R106: 0 | S106: 0 | T106: 0
A107: 87 | B107: 2027-11-10 | C107: 31 | D107: 7253403.128 | E107: 0 | F107: 23656.03037 | G107: 23656.03037 | H107: 36277.14568 | I107: 59933.17605 | J107: 45280.12846 | K107: 0 | L107: 7253403.128 | M107: 0 | N107: 0 | Q107: 0 | R107: 0 | S107: 0 | T107: 0
A108: 88 | B108: 2027-12-10 | C108: 30 | D108: 7217125.982 | E108: 0 | F108: 22778.43598 | G108: 22778.43598 | H108: 37154.74007 | I108: 59933.17605 | J108: 45134.44579 | K108: 0 | L108: 7217125.982 | M108: 0 | N108: 0 | Q108: 0 | R108: 0 | S108: 0 | T108: 0
A109: 89 | B109: 2028-01-10 | C109: 31 | D109: 7179971.242 | E109: 0 | F109: 23416.54183 | G109: 23416.54183 | H109: 36516.63422 | I109: 59933.17605 | J109: 44989.23184 | K109: 0 | L109: 7179971.242 | M109: 0 | N109: 0 | Q109: 0 | R109: 0 | S109: 0 | T109: 0
A110: 90 | B110: 2028-02-10 | C110: 31 | D110: 7143454.608 | E110: 0 | F110: 23297.44758 | G110: 23297.44758 | H110: 36635.72847 | I110: 59933.17605 | J110: 44844.4851 | K110: 0 | L110: 7143454.608 | M110: 0 | N110: 0 | Q110: 0 | R110: 0 | S110: 0 | T110: 0
A111: 91 | B111: 2028-03-10 | C111: 29 | D111: 7106818.879 | E111: 0 | F111: 21682.61234 | G111: 21682.61234 | H111: 38250.56371 | I111: 59933.17605 | J111: 44700.20406 | K111: 0 | L111: 7106818.879 | M111: 0 | N111: 0 | Q111: 0 | R111: 0 | S111: 0 | T111: 0
A112: 92 | B112: 2028-04-10 | C112: 31 | D112: 7068568.316 | E112: 0 | F112: 23053.21568 | G112: 23053.21568 | H112: 36879.96037 | I112: 59933.17605 | J112: 44556.38723 | K112: 0 | L112: 7068568.316 | M112: 0 | N112: 0 | Q112: 0 | R112: 0 | S112: 0 | T112: 0
A113: 93 | B113: 2028-05-10 | C113: 30 | D113: 7031688.355 | E113: 0 | F113: 22193.16434 | G113: 22193.16434 | H113: 37740.01171 | I113: 59933.17605 | J113: 44413.0331 | K113: 0 | L113: 7031688.355 | M113: 0 | N113: 0 | Q113: 0 | R113: 0 | S113: 0 | T113: 0
A114: 94 | B114: 2028-06-10 | C114: 31 | D114: 6993948.344 | E114: 0 | F114: 22809.85235 | G114: 22809.85235 | H114: 37123.3237 | I114: 59933.17605 | J114: 44270.1402 | K114: 0 | L114: 6993948.344 | M114: 0 | N114: 0 | Q114: 0 | R114: 0 | S114: 0 | T114: 0
A115: 95 | B115: 2028-07-10 | C115: 30 | D115: 6956825.02 | E115: 0 | F115: 21956.88335 | G115: 21956.88335 | H115: 37976.2927 | I115: 59933.17605 | J115: 44127.70704 | K115: 0 | L115: 6956825.02 | M115: 0 | N115: 0 | Q115: 0 | R115: 0 | S115: 0 | T115: 0
A116: 96 | B116: 2028-08-10 | C116: 31 | D116: 6918848.727 | E116: 0 | F116: 22564.92473 | G116: 22564.92473 | H116: 37368.25132 | I116: 59933.17605 | J116: 43985.73214 | K116: 0 | L116: 6918848.727 | M116: 0 | N116: 0 | Q116: 0 | R116: 0 | S116: 0 | T116: 0
A117: 97 | B117: 2028-09-10 | C117: 31 | D117: 6881480.476 | E117: 0 | F117: 22443.05304 | G117: 22443.05304 | H117: 37490.12301 | I117: 59933.17605 | J117: 43844.21402 | K117: 0 | L117: 6881480.476 | M117: 0 | N117: 0 | Q117: 0 | R117: 0 | S117: 0 | T117: 0
A118: 98 | B118: 2028-10-10 | C118: 30 | D118: 6843990.353 | E118: 0 | F118: 21600.75859 | G118: 21600.75859 | H118: 38332.41746 | I118: 59933.17605 | J118: 43703.15121 | K118: 0 | L118: 6843990.353 | M118: 0 | N118: 0 | Q118: 0 | R118: 0 | S118: 0 | T118: 0
A119: 99 | B119: 2028-11-10 | C119: 31 | D119: 6805657.935 | E119: 0 | F119: 22195.76769 | G119: 22195.76769 | H119: 37737.40836 | I119: 59933.17605 | J119: 43562.54226 | K119: 0 | L119: 6805657.935 | M119: 0 | N119: 0 | Q119: 0 | R119: 0 | S119: 0 | T119: 0
A120: 100 | B120: 2028-12-10 | C120: 30 | D120: 6767920.527 | E120: 0 | F120: 21360.66972 | G120: 21360.66972 | H120: 38572.50633 | I120: 59933.17605 | J120: 43422.3857 | K120: 0 | L120: 6767920.527 | M120: 0 | N120: 0 | Q120: 0 | R120: 0 | S120: 0 | T120: 0
A121: 101 | B121: 2029-01-10 | C121: 31 | D121: 6729348.021 | E121: 0 | F121: 21946.89283 | G121: 21946.89283 | H121: 37986.28322 | I121: 59933.17605 | J121: 43282.68007 | K121: 0 | L121: 6729348.021 | M121: 0 | N121: 0 | Q121: 0 | R121: 0 | S121: 0 | T121: 0
A122: 102 | B122: 2029-02-10 | C122: 31 | D122: 6691361.738 | E122: 0 | F122: 21823.00551 | G122: 21823.00551 | H122: 38110.17054 | I122: 59933.17605 | J122: 43143.42393 | K122: 0 | L122: 6691361.738 | M122: 0 | N122: 0 | Q122: 0 | R122: 0 | S122: 0 | T122: 0
A123: 103 | B123: 2029-03-10 | C123: 28 | D123: 6653251.567 | E123: 0 | F123: 19598.83859 | G123: 19598.83859 | H123: 40334.33746 | I123: 59933.17605 | J123: 43004.61582 | K123: 0 | L123: 6653251.567 | M123: 0 | N123: 0 | Q123: 0 | R123: 0 | S123: 0 | T123: 0
A124: 104 | B124: 2029-04-10 | C124: 31 | D124: 6612917.23 | E124: 0 | F124: 21567.16896 | G124: 21567.16896 | H124: 38366.00709 | I124: 59933.17605 | J124: 42866.25431 | K124: 0 | L124: 6612917.23 | M124: 0 | N124: 0 | Q124: 0 | R124: 0 | S124: 0 | T124: 0
A125: 105 | B125: 2029-05-10 | C125: 30 | D125: 6574551.223 | E125: 0 | F125: 20750.36441 | G125: 20750.36441 | H125: 39182.81164 | I125: 59933.17605 | J125: 42728.33796 | K125: 0 | L125: 6574551.223 | M125: 0 | N125: 0 | Q125: 0 | R125: 0 | S125: 0 | T125: 0
A126: 106 | B126: 2029-06-10 | C126: 31 | D126: 6535368.411 | E126: 0 | F126: 21314.25358 | G126: 21314.25358 | H126: 38618.92247 | I126: 59933.17605 | J126: 42590.86534 | K126: 0 | L126: 6535368.411 | M126: 0 | N126: 0 | Q126: 0 | R126: 0 | S126: 0 | T126: 0
A127: 107 | B127: 2029-07-10 | C127: 30 | D127: 6496749.488 | E127: 0 | F127: 20504.80934 | G127: 20504.80934 | H127: 39428.36671 | I127: 59933.17605 | J127: 42453.83501 | K127: 0 | L127: 6496749.488 | M127: 0 | N127: 0 | Q127: 0 | R127: 0 | S127: 0 | T127: 0
A128: 108 | B128: 2029-08-10 | C128: 31 | D128: 6457321.122 | E128: 0 | F128: 21059.7125 | G128: 21059.7125 | H128: 38873.46355 | I128: 59933.17605 | J128: 42317.24556 | K128: 0 | L128: 6457321.122 | M128: 0 | N128: 0 | Q128: 0 | R128: 0 | S128: 0 | T128: 0
A129: 109 | B129: 2029-09-10 | C129: 31 | D129: 6418447.658 | E129: 0 | F129: 20932.93176 | G129: 20932.93176 | H129: 39000.24429 | I129: 59933.17605 | J129: 42181.09557 | K129: 0 | L129: 6418447.658 | M129: 0 | N129: 0 | Q129: 0 | R129: 0 | S129: 0 | T129: 0
A130: 110 | B130: 2029-10-10 | C130: 30 | D130: 6379447.414 | E130: 0 | F130: 20134.58471 | G130: 20134.58471 | H130: 39798.59133 | I130: 59933.17605 | J130: 42045.38363 | K130: 0 | L130: 6379447.414 | M130: 0 | N130: 0 | Q130: 0 | R130: 0 | S130: 0 | T130: 0
A131: 111 | B131: 2029-11-10 | C131: 31 | D131: 6339648.823 | E131: 0 | F131: 20675.93961 | G131: 20675.93961 | H131: 39257.23644 | I131: 59933.17605 | J131: 41910.10832 | K131: 0 | L131: 6339648.823 | M131: 0 | N131: 0 | Q131: 0 | R131: 0 | S131: 0 | T131: 0
A132: 112 | B132: 2029-12-10 | C132: 30 | D132: 6300391.586 | E132: 0 | F132: 19885.07153 | G132: 19885.07153 | H132: 40048.10452 | I132: 59933.17605 | J132: 41775.26824 | K132: 0 | L132: 6300391.586 | M132: 0 | N132: 0 | Q132: 0 | R132: 0 | S132: 0 | T132: 0
A133: 113 | B133: 2030-01-10 | C133: 31 | D133: 6260343.482 | E133: 0 | F133: 20417.29556 | G133: 20417.29556 | H133: 39515.88049 | I133: 59933.17605 | J133: 41640.86199 | K133: 0 | L133: 6260343.482 | M133: 0 | N133: 0 | Q133: 0 | R133: 0 | S133: 0 | T133: 0
A134: 114 | B134: 2030-02-10 | C134: 31 | D134: 6220827.601 | E134: 0 | F134: 20288.41966 | G134: 20288.41966 | H134: 39644.75639 | I134: 59933.17605 | J134: 41506.88817 | K134: 0 | L134: 6220827.601 | M134: 0 | N134: 0 | Q134: 0 | R134: 0 | S134: 0 | T134: 0
A135: 115 | B135: 2030-03-10 | C135: 28 | D135: 6181182.845 | E135: 0 | F135: 18208.24053 | G135: 18208.24053 | H135: 41724.93552 | I135: 59933.17605 | J135: 41373.34539 | K135: 0 | L135: 6181182.845 | M135: 0 | N135: 0 | Q135: 0 | R135: 0 | S135: 0 | T135: 0
A136: 116 | B136: 2030-04-10 | C136: 31 | D136: 6139457.909 | E136: 0 | F136: 20023.043 | G136: 20023.043 | H136: 39910.13305 | I136: 59933.17605 | J136: 41240.23227 | K136: 0 | L136: 6139457.909 | M136: 0 | N136: 0 | Q136: 0 | R136: 0 | S136: 0 | T136: 0
A137: 117 | B137: 2030-05-10 | C137: 30 | D137: 6099547.776 | E137: 0 | F137: 19251.17545 | G137: 19251.17545 | H137: 40682.0006 | I137: 59933.17605 | J137: 41107.54743 | K137: 0 | L137: 6099547.776 | M137: 0 | N137: 0 | Q137: 0 | R137: 0 | S137: 0 | T137: 0
A138: 118 | B138: 2030-06-10 | C138: 31 | D138: 6058865.776 | E138: 0 | F138: 19760.20224 | G138: 19760.20224 | H138: 40172.9738 | I138: 59933.17605 | J138: 40975.28948 | K138: 0 | L138: 6058865.776 | M138: 0 | N138: 0 | Q138: 0 | R138: 0 | S138: 0 | T138: 0
A139: 119 | B139: 2030-07-10 | C139: 30 | D139: 6018692.802 | E139: 0 | F139: 18995.98386 | G139: 18995.98386 | H139: 40937.19219 | I139: 59933.17605 | J139: 40843.45705 | K139: 0 | L139: 6018692.802 | M139: 0 | N139: 0 | Q139: 0 | R139: 0 | S139: 0 | T139: 0
A140: 120 | B140: 2030-08-10 | C140: 31 | D140: 5977755.61 | E140: 0 | F140: 19495.67199 | G140: 19495.67199 | H140: 40437.50406 | I140: 59933.17605 | J140: 40712.04878 | K140: 0 | L140: 5977755.61 | M140: 0 | N140: 0 | Q140: 0 | R140: 0 | S140: 0 | T140: 0
A141: 121 | B141: 2030-09-10 | C141: 31 | D141: 5937318.105 | E141: 0 | F141: 19363.79034 | G141: 19363.79034 | H141: 40569.38571 | I141: 59933.17605 | J141: 40581.06329 | K141: 0 | L141: 5937318.105 | M141: 0 | N141: 0 | Q141: 0 | R141: 0 | S141: 0 | T141: 0
A142: 122 | B142: 2030-10-10 | C142: 30 | D142: 5896748.72 | E142: 0 | F142: 18611.10829 | G142: 18611.10829 | H142: 41322.06776 | I142: 59933.17605 | J142: 40450.49923 | K142: 0 | L142: 5896748.72 | M142: 0 | N142: 0 | Q142: 0 | R142: 0 | S142: 0 | T142: 0
A143: 123 | B143: 2030-11-10 | C143: 31 | D143: 5855426.652 | E143: 0 | F143: 19096.71202 | G143: 19096.71202 | H143: 40836.46403 | I143: 59933.17605 | J143: 40320.35524 | K143: 0 | L143: 5855426.652 | M143: 0 | N143: 0 | Q143: 0 | R143: 0 | S143: 0 | T143: 0
A144: 124 | B144: 2030-12-10 | C144: 30 | D144: 5814590.188 | E144: 0 | F144: 18351.80246 | G144: 18351.80246 | H144: 41581.37359 | I144: 59933.17605 | J144: 40190.62998 | K144: 0 | L144: 5814590.188 | M144: 0 | N144: 0 | Q144: 0 | R144: 0 | S144: 0 | T144: 0
A145: 125 | B145: 2031-01-10 | C145: 31 | D145: 5773008.814 | E145: 0 | F145: 18827.91697 | G145: 18827.91697 | H145: 41105.25908 | I145: 59933.17605 | J145: 40061.32208 | K145: 0 | L145: 5773008.814 | M145: 0 | N145: 0 | Q145: 0 | R145: 0 | S145: 0 | T145: 0
A146: 126 | B146: 2031-02-10 | C146: 31 | D146: 5731903.555 | E146: 0 | F146: 18693.85751 | G146: 18693.85751 | H146: 41239.31854 | I146: 59933.17605 | J146: 39932.43022 | K146: 0 | L146: 5731903.555 | M146: 0 | N146: 0 | Q146: 0 | R146: 0 | S146: 0 | T146: 0
A147: 127 | B147: 2031-03-10 | C147: 28 | D147: 5690664.237 | E147: 0 | F147: 16763.29366 | G147: 16763.29366 | H147: 43169.88239 | I147: 59933.17605 | J147: 39803.95305 | K147: 0 | L147: 5690664.237 | M147: 0 | N147: 0 | Q147: 0 | R147: 0 | S147: 0 | T147: 0
A148: 128 | B148: 2031-04-10 | C148: 31 | D148: 5647494.354 | E148: 0 | F148: 18418.56789 | G148: 18418.56789 | H148: 41514.60816 | I148: 59933.17605 | J148: 39675.88924 | K148: 0 | L148: 5647494.354 | M148: 0 | N148: 0 | Q148: 0 | R148: 0 | S148: 0 | T148: 0
A149: 129 | B149: 2031-05-10 | C149: =+IF($B$13=1, 30, B149-B148) -> 30 | D149: 5605979.746 | E149: 0 | F149: =+C149/$B$14*$B$5*D149 -> 17693.39361 | G149: =E149+F149 -> 17693.39361 | H149: =+IF(A149<=$B$6,0,IF(D149>0,IF($F$9-G149+IF(MOD(A149,6)=0,S149,0)>D149,D149,$F$9-G149+IF(MOD(A149,6)=0,S149,0)),0)) -> 42239.78244 | I149: 59933.17605 | J149: 39548.23745 | K149: 0 | L149: =D149 -> 5605979.746 | M149: =$L$5 -> 0 | N149: 0 | Q149: 0 | R149: 0 | S149: 0 | T149: 0
A150: 130 | B150: =IF(MONTH(B149)=12,DATE(YEAR(B149)+1,1,DAY(B149)),DATE(YEAR(B149),MONTH(B149)+1,DAY(B149))) -> 2031-06-10 | C150: 31 | D150: 5563739.964 | E150: =IF(D150>0,$B$4,0) -> 0 | F150: 18145.41384 | G150: 18145.41384 | H150: 41787.76221 | I150: =IF(D150>0,+G150+H150+K150-IF(MOD(A150,6)=0,S150,0),0) -> 59933.17605 | J150: =+I150/POWER((1+$I$11),A150/12) -> 39420.99637 | K150: =IF(D150>0,IF($F$15="I",($F$9-$B$4)*$F$14,0),0) -> 0 | L150: 5563739.964 | M150: 0 | N150: =IF(MOD(A150,12)=0,$L$7,0) -> 0 | Q150: =IF(D150>0,SUM(M150:P150)+Q149,0) -> 0 | R150: =IF(Q150<=L150*0.7,Q150,L150*0.7) -> 0 | S150: =IF(MOD(A150,6)=0,SUM(S145:S149)+R150*$B$5/$B$14*C150,R150*$B$5/$B$14*C150) -> 0 | T150: =IF(MOD(A150,6)=0,S150,0) -> 0
A151: 131 | B151: 2031-07-10 | C151: 30 | D151: =IF(D150-IF(H150<0,0,H150)<0,0,D150-IF(H150<0,0,H150)) -> 5521952.202 | E151: 0 | F151: 17428.18887 | G151: 17428.18887 | H151: 42504.98718 | I151: 59933.17605 | J151: 39294.16467 | K151: 0 | L151: 5521952.202 | M151: 0 | N151: 0 | Q151: 0 | R151: 0 | S151: 0 | T151: 0
A152: 132 | B152: 2031-08-10 | C152: 31 | D152: 5479447.214 | E152: 0 | F152: 17870.50401 | G152: 17870.50401 | H152: 42062.67204 | I152: 59933.17605 | J152: 39167.74103 | K152: 0 | L152: 5479447.214 | M152: 0 | N152: 0 | Q152: 0 | R152: 0 | S152: 0 | T152: 0
A153: 133 | B153: 2031-09-10 | C153: 31 | D153: 5437384.542 | E153: 0 | F153: 17733.32208 | G153: 17733.32208 | H153: 42199.85397 | I153: 59933.17605 | J153: 39041.72415 | K153: 0 | L153: 5437384.542 | M153: 0 | N153: 0 | Q153: 0 | R153: 0 | S153: 0 | T153: 0
A154: 134 | B154: 2031-10-10 | C154: 30 | D154: 5395184.688 | E154: 0 | F154: 17028.08976 | G154: 17028.08976 | H154: 42905.08629 | I154: 59933.17605 | J154: 38916.1127 | K154: 0 | L154: 5395184.688 | M154: 0 | N154: 0 | Q154: 0 | R154: 0 | S154: 0 | T154: 0
A155: 135 | B155: 2031-11-10 | C155: 31 | D155: 5352279.602 | E155: 0 | F155: 17455.76339 | G155: 17455.76339 | H155: 42477.41266 | I155: 59933.17605 | J155: 38790.9054 | K155: 0 | L155: 5352279.602 | M155: 0 | N155: 0 | Q155: 0 | R155: 0 | S155: 0 | T155: 0
A156: 136 | B156: 2031-12-10 | C156: 30 | D156: 5309802.189 | E156: 0 | F156: 16758.60855 | G156: 16758.60855 | H156: 43174.5675 | I156: 59933.17605 | J156: 38666.10093 | K156: 0 | L156: 5309802.189 | M156: 0 | N156: 0 | Q156: 0 | R156: 0 | S156: 0 | T156: 0
A157: 137 | B157: 2032-01-10 | C157: 31 | D157: 5266627.622 | E157: 0 | F157: 17176.42061 | G157: 17176.42061 | H157: 42756.75544 | I157: 59933.17605 | J157: 38541.698 | K157: 0 | L157: 5266627.622 | M157: 0 | N157: 0 | Q157: 0 | R157: 0 | S157: 0 | T157: 0
A158: 138 | B158: 2032-02-10 | C158: 31 | D158: 5223870.866 | E158: 0 | F158: 17036.97501 | G158: 17036.97501 | H158: 42896.20104 | I158: 59933.17605 | J158: 38417.69532 | K158: 0 | L158: 5223870.866 | M158: 0 | N158: 0 | Q158: 0 | R158: 0 | S158: 0 | T158: 0
A159: 139 | B159: 2032-03-10 | C159: 29 | D159: 5180974.665 | E159: 0 | F159: 15806.94079 | G159: 15806.94079 | H159: 44126.23526 | I159: 59933.17605 | J159: 38294.0916 | K159: 0 | L159: 5180974.665 | M159: 0 | N159: 0 | Q159: 0 | R159: 0 | S159: 0 | T159: 0
A160: 140 | B160: 2032-04-10 | C160: 31 | D160: 5136848.43 | E160: 0 | F160: 16753.16266 | G160: 16753.16266 | H160: 43180.01339 | I160: 59933.17605 | J160: 38170.88557 | K160: 0 | L160: 5136848.43 | M160: 0 | N160: 0 | Q160: 0 | R160: 0 | S160: 0 | T160: 0
A161: 141 | B161: 2032-05-10 | C161: 30 | D161: 5093668.417 | E161: 0 | F161: 16076.45484 | G161: 16076.45484 | H161: 43856.72121 | I161: 59933.17605 | J161: 38048.07593 | K161: 0 | L161: 5093668.417 | M161: 0 | N161: 0 | Q161: 0 | R161: 0 | S161: 0 | T161: 0
A162: 142 | B162: 2032-06-10 | C162: 31 | D162: 5049811.696 | E162: 0 | F162: 16469.30368 | G162: 16469.30368 | H162: 43463.87237 | I162: 59933.17605 | J162: 37925.66141 | K162: 0 | L162: 5049811.696 | M162: 0 | N162: 0 | Q162: 0 | R162: 0 | S162: 0 | T162: 0
A163: 143 | B163: 2032-07-10 | C163: 30 | D163: 5006347.823 | E163: 0 | F163: 15800.85669 | G163: 15800.85669 | H163: 44132.31936 | I163: 59933.17605 | J163: 37803.64075 | K163: 0 | L163: 5006347.823 | M163: 0 | N163: 0 | Q163: 0 | R163: 0 | S163: 0 | T163: 0
A164: 144 | B164: 2032-08-10 | C164: 31 | D164: 4962215.504 | E164: 0 | F164: 16183.6201 | G164: 16183.6201 | H164: 43749.55595 | I164: 59933.17605 | J164: 37682.01267 | K164: 0 | L164: 4962215.504 | M164: 0 | N164: 0 | Q164: 0 | R164: 0 | S164: 0 | T164: 0
A165: 145 | B165: 2032-09-10 | C165: 31 | D165: 4918465.948 | E165: 0 | F165: 16040.93661 | G165: 16040.93661 | H165: 43892.23943 | I165: 59933.17605 | J165: 37560.77591 | K165: 0 | L165: 4918465.948 | M165: 0 | N165: 0 | Q165: 0 | R165: 0 | S165: 0 | T165: 0
A166: 146 | B166: 2032-10-10 | C166: 30 | D166: 4874573.708 | E166: 0 | F166: 15384.95592 | G166: 15384.95592 | H166: 44548.22013 | I166: 59933.17605 | J166: 37439.92921 | K166: 0 | L166: 4874573.708 | M166: 0 | N166: 0 | Q166: 0 | R166: 0 | S166: 0 | T166: 0
A167: 147 | B167: 2032-11-10 | C167: 31 | D167: 4830025.488 | E167: 0 | F167: 15752.49957 | G167: 15752.49957 | H167: 44180.67648 | I167: 59933.17605 | J167: 37319.47133 | K167: 0 | L167: 4830025.488 | M167: 0 | N167: 0 | Q167: 0 | R167: 0 | S167: 0 | T167: 0
A168: 148 | B168: 2032-12-10 | C168: 30 | D168: 4785844.812 | E168: 0 | F168: 15104.91294 | G168: 15104.91294 | H168: 44828.26311 | I168: 59933.17605 | J168: 37199.401 | K168: 0 | L168: 4785844.812 | M168: 0 | N168: 0 | Q168: 0 | R168: 0 | S168: 0 | T168: 0
A169: 149 | B169: 2033-01-10 | C169: 31 | D169: 4741016.549 | E169: 0 | F169: 15462.20849 | G169: 15462.20849 | H169: 44470.96756 | I169: 59933.17605 | J169: 37079.71698 | K169: 0 | L169: 4741016.549 | M169: 0 | N169: 0 | Q169: 0 | R169: 0 | S169: 0 | T169: 0
A170: 150 | B170: 2033-02-10 | C170: 31 | D170: 4696545.581 | E170: 0 | F170: 15317.17222 | G170: 15317.17222 | H170: 44616.00383 | I170: 59933.17605 | J170: 36960.41803 | K170: 0 | L170: 4696545.581 | M170: 0 | N170: 0 | Q170: 0 | R170: 0 | S170: 0 | T170: 0
A171: 151 | B171: 2033-03-10 | C171: 28 | D171: 4651929.577 | E171: 0 | F171: 13703.43748 | G171: 13703.43748 | H171: 46229.73857 | I171: 59933.17605 | J171: 36841.5029 | K171: 0 | L171: 4651929.577 | M171: 0 | N171: 0 | Q171: 0 | R171: 0 | S171: 0 | T171: 0
A172: 152 | B172: 2033-04-10 | C172: 31 | D172: 4605699.839 | E172: 0 | F172: 15020.89065 | G172: 15020.89065 | H172: 44912.2854 | I172: 59933.17605 | J172: 36722.97037 | K172: 0 | L172: 4605699.839 | M172: 0 | N172: 0 | Q172: 0 | R172: 0 | S172: 0 | T172: 0
A173: 153 | B173: 2033-05-10 | C173: 30 | D173: 4560787.553 | E173: 0 | F173: 14394.59524 | G173: 14394.59524 | H173: 45538.58081 | I173: 59933.17605 | J173: 36604.8192 | K173: 0 | L173: 4560787.553 | M173: 0 | N173: 0 | Q173: 0 | R173: 0 | S173: 0 | T173: 0
A174: 154 | B174: 2033-06-10 | C174: 31 | D174: 4515248.973 | E174: 0 | F174: 14725.89692 | G174: 14725.89692 | H174: 45207.27913 | I174: 59933.17605 | J174: 36487.04817 | K174: 0 | L174: 4515248.973 | M174: 0 | N174: 0 | Q174: 0 | R174: 0 | S174: 0 | T174: 0
A175: 155 | B175: 2033-07-10 | C175: 30 | D175: 4470041.693 | E175: 0 | F175: 14108.18639 | G175: 14108.18639 | H175: 45824.98966 | I175: 59933.17605 | J175: 36369.65605 | K175: 0 | L175: 4470041.693 | M175: 0 | N175: 0 | Q175: 0 | R175: 0 | S175: 0 | T175: 0
A176: 156 | B176: 2033-08-10 | C176: 31 | D176: 4424216.704 | E176: 0 | F176: 14429.00703 | G176: 14429.00703 | H176: 45504.16902 | I176: 59933.17605 | J176: 36252.64162 | K176: 0 | L176: 4424216.704 | M176: 0 | N176: 0 | Q176: 0 | R176: 0 | S176: 0 | T176: 0
A177: 157 | B177: 2033-09-10 | C177: 31 | D177: 4378712.535 | E177: 0 | F177: 14280.6011 | G177: 14280.6011 | H177: 45652.57495 | I177: 59933.17605 | J177: 36136.00367 | K177: 0 | L177: 4378712.535 | M177: 0 | N177: 0 | Q177: 0 | R177: 0 | S177: 0 | T177: 0
A178: 158 | B178: 2033-10-10 | C178: 30 | D178: 4333059.96 | E178: 0 | F178: 13675.84952 | G178: 13675.84952 | H178: 46257.32653 | I178: 59933.17605 | J178: 36019.74098 | K178: 0 | L178: 4333059.96 | M178: 0 | N178: 0 | Q178: 0 | R178: 0 | S178: 0 | T178: 0
A179: 159 | B179: 2033-11-10 | C179: 31 | D179: 4286802.633 | E179: 0 | F179: 13980.84892 | G179: 13980.84892 | H179: 45952.32713 | I179: 59933.17605 | J179: 35903.85236 | K179: 0 | L179: 4286802.633 | M179: 0 | N179: 0 | Q179: 0 | R179: 0 | S179: 0 | T179: 0
A180: 160 | B180: 2033-12-10 | C180: 30 | D180: 4240850.306 | E180: 0 | F180: 13384.82069 | G180: 13384.82069 | H180: 46548.35536 | I180: 59933.17605 | J180: 35788.33659 | K180: 0 | L180: 4240850.306 | M180: 0 | N180: 0 | Q180: 0 | R180: 0 | S180: 0 | T180: 0
A181: 161 | B181: 2034-01-10 | C181: 31 | D181: 4194301.951 | E181: 0 | F181: 13679.16998 | G181: 13679.16998 | H181: 46254.00607 | I181: 59933.17605 | J181: 35673.19248 | K181: 0 | L181: 4194301.951 | M181: 0 | N181: 0 | Q181: 0 | R181: 0 | S181: 0 | T181: 0
A182: 162 | B182: 2034-02-10 | C182: 31 | D182: 4148047.945 | E182: 0 | F182: 13528.31856 | G182: 13528.31856 | H182: 46404.85749 | I182: 59933.17605 | J182: 35558.41883 | K182: 0 | L182: 4148047.945 | M182: 0 | N182: 0 | Q182: 0 | R182: 0 | S182: 0 | T182: 0
A183: 163 | B183: 2034-03-10 | C183: 28 | D183: 4101643.087 | E183: 0 | F183: 12082.42917 | G183: 12082.42917 | H183: 47850.74688 | I183: 59933.17605 | J183: 35444.01445 | K183: 0 | L183: 4101643.087 | M183: 0 | N183: 0 | Q183: 0 | R183: 0 | S183: 0 | T183: 0
A184: 164 | B184: 2034-04-10 | C184: 31 | D184: 4053792.34 | E184: 0 | F184: 13220.91617 | G184: 13220.91617 | H184: 46712.25988 | I184: 59933.17605 | J184: 35329.97814 | K184: 0 | L184: 4053792.34 | M184: 0 | N184: 0 | Q184: 0 | R184: 0 | S184: 0 | T184: 0
A185: 165 | B185: 2034-05-10 | C185: 30 | D185: 4007080.08 | E185: 0 | F185: 12647.00343 | G185: 12647.00343 | H185: 47286.17262 | I185: 59933.17605 | J185: 35216.30874 | K185: 0 | L185: 4007080.08 | M185: 0 | N185: 0 | Q185: 0 | R185: 0 | S185: 0 | T185: 0
A186: 166 | B186: 2034-06-10 | C186: 31 | D186: 3959793.908 | E186: 0 | F186: 12914.35251 | G186: 12914.35251 | H186: 47018.82353 | I186: 59933.17605 | J186: 35103.00505 | K186: 0 | L186: 3959793.908 | M186: 0 | N186: 0 | Q186: 0 | R186: 0 | S186: 0 | T186: 0
A187: 167 | B187: 2034-07-10 | C187: 30 | D187: 3912775.084 | E187: 0 | F187: 12349.36136 | G187: 12349.36136 | H187: 47583.81469 | I187: 59933.17605 | J187: 34990.0659 | K187: 0 | L187: 3912775.084 | M187: 0 | N187: 0 | Q187: 0 | R187: 0 | S187: 0 | T187: 0
A188: 168 | B188: 2034-08-10 | C188: 31 | D188: 3865191.27 | E188: 0 | F188: 12605.81832 | G188: 12605.81832 | H188: 47327.35773 | I188: 59933.17605 | J188: 34877.49011 | K188: 0 | L188: 3865191.27 | M188: 0 | N188: 0 | Q188: 0 | R188: 0 | S188: 0 | T188: 0
A189: 169 | B189: 2034-09-10 | C189: 31 | D189: 3817863.912 | E189: 0 | F189: 12451.4663 | G189: 12451.4663 | H189: 47481.70975 | I189: 59933.17605 | J189: 34765.27653 | K189: 0 | L189: 3817863.912 | M189: 0 | N189: 0 | Q189: 0 | R189: 0 | S189: 0 | T189: 0
A190: 170 | B190: 2034-10-10 | C190: 30 | D190: 3770382.202 | E190: 0 | F190: 11899.94602 | G190: 11899.94602 | H190: 48033.23003 | I190: 59933.17605 | J190: 34653.42397 | K190: 0 | L190: 3770382.202 | M190: 0 | N190: 0 | Q190: 0 | R190: 0 | S190: 0 | T190: 0
A191: 171 | B191: 2034-11-10 | C191: 31 | D191: 3722348.972 | E191: 0 | F191: 12139.95676 | G191: 12139.95676 | H191: 47793.21929 | I191: 59933.17605 | J191: 34541.93129 | K191: 0 | L191: 3722348.972 | M191: 0 | N191: 0 | Q191: 0 | R191: 0 | S191: 0 | T191: 0
A192: 172 | B192: 2034-12-10 | C192: 30 | D192: 3674555.753 | E192: 0 | F192: 11597.50199 | G192: 11597.50199 | H192: 48335.67406 | I192: 59933.17605 | J192: 34430.79731 | K192: 0 | L192: 3674555.753 | M192: 0 | N192: 0 | Q192: 0 | R192: 0 | S192: 0 | T192: 0
A193: 173 | B193: 2035-01-10 | C193: 31 | D193: 3626220.079 | E193: 0 | F193: 11826.44488 | G193: 11826.44488 | H193: 48106.73117 | I193: 59933.17605 | J193: 34320.0209 | K193: 0 | L193: 3626220.079 | M193: 0 | N193: 0 | Q193: 0 | R193: 0 | S193: 0 | T193: 0
A194: 174 | B194: 2035-02-10 | C194: 31 | D194: 3578113.348 | E194: 0 | F194: 11669.55104 | G194: 11669.55104 | H194: 48263.62501 | I194: 59933.17605 | J194: 34209.60089 | K194: 0 | L194: 3578113.348 | M194: 0 | N194: 0 | Q194: 0 | R194: 0 | S194: 0 | T194: 0
A195: 175 | B195: 2035-03-10 | C195: 28 | D195: 3529849.723 | E195: 0 | F195: 10398.06691 | G195: 10398.06691 | H195: 49535.10914 | I195: 59933.17605 | J195: 34099.53615 | K195: 0 | L195: 3529849.723 | M195: 0 | N195: 0 | Q195: 0 | R195: 0 | S195: 0 | T195: 0
A196: 176 | B196: 2035-04-10 | C196: 31 | D196: 3480314.613 | E196: 0 | F196: 11350.59319 | G196: 11350.59319 | H196: 48582.58286 | I196: 59933.17605 | J196: 33989.82552 | K196: 0 | L196: 3480314.613 | M196: 0 | N196: 0 | Q196: 0 | R196: 0 | S196: 0 | T196: 0
A197: 177 | B197: 2035-05-10 | C197: 30 | D197: 3431732.031 | E197: 0 | F197: 10831.11041 | G197: 10831.11041 | H197: 49102.06564 | I197: 59933.17605 | J197: 33880.46788 | K197: 0 | L197: 3431732.031 | M197: 0 | N197: 0 | Q197: 0 | R197: 0 | S197: 0 | T197: 0
A198: 178 | B198: 2035-06-10 | C198: 31 | D198: 3382629.965 | E198: 0 | F198: 11032.00743 | G198: 11032.00743 | H198: 48901.16862 | I198: 59933.17605 | J198: 33771.46207 | K198: 0 | L198: 3382629.965 | M198: 0 | N198: 0 | Q198: 0 | R198: 0 | S198: 0 | T198: 0
A199: 179 | B199: 2035-07-10 | C199: 30 | D199: 3333728.796 | E199: 0 | F199: 10521.79609 | G199: 10521.79609 | H199: 49411.37996 | I199: 59933.17605 | J199: 33662.80698 | K199: 0 | L199: 3333728.796 | M199: 0 | N199: 0 | Q199: 0 | R199: 0 | S199: 0 | T199: 0
A200: 180 | B200: 2035-08-10 | C200: 31 | D200: 3284317.416 | E200: 0 | F200: 10711.37384 | G200: 10711.37384 | H200: 49221.80221 | I200: 59933.17605 | J200: 33554.50147 | K200: 0 | L200: 3284317.416 | M200: 0 | N200: 0 | Q200: 0 | R200: 0 | S200: 0 | T200: 0
... 180 more rows

Sheet Egyenlítővel_kedv (hidden)
A1: Input | B1: 2 | C1: 3 | D1: 4 | E1: 5 | F1: 6 | G1: 7 | H1: 8 | I1: 9 | K1: 10 | L1: 11 | T1: 12 | AQ1: =+#REF! -> 
A2: Disbursement Date | B2: 2019-07-01 | E2: Output | AQ2: =+#REF! -> 
A3: Loan Amount | B3: =Kalkulátor!C4 -> 10000000 | C3: =+F4+B9 -> 4210961.082 | E3: Fee Income | F3: =SUM(E21:E380) -> 0 | AQ3: =+#REF! -> 
A4: Monthly Hand Fee (fix Amt) | B4: 0 | C4: =+B3+C3 -> 14210961.08 | E4: Interest Income | F4: =SUM(F21:F380) -> 4181834.082 | AQ4: =+#REF! -> 
A5: Interest | B5: =Kalkulátor!G12 -> 0.0409 | H5: Output | I5: Communication | L5: havi megtakarítás | M5: =Kalkulátor!G5 -> 20000
A6: Interest Only Period | E6: Starting Date | F6: =DATE(IF(MONTH(B20)=12,YEAR(B20)+1,YEAR(B20)),IF(MONTH(B20)=12,1,MONTH(B20)+1),10) -> 2020-09-10 | H6: Loan Amount | I6: =+B3 -> 10000000 | L6: Havi számlára érkező pénz | M6: =Kalkulátor!G6 -> 0
A7: Term | B7: =Kalkulátor!C5 -> 240 | E7: First Duedate | F7: =+F6 -> 2020-09-10 | H7: Term | I7: =+B7 -> 240 | L7: Éves egyszeri megtakarítás | M7: =Kalkulátor!G7 -> 0
A8: HUF Upfront Fee % of the Disb Amt | B8: 0 | C8: Utalási díj | D8: FH költség | E8: Ending Date | F8: =+VLOOKUP(B7+B6, A20:D45,2) -> 2022-09-10 | H8: Interest Only Period | I8: =+B6 -> 0 | L8: Kezdeti megtakarítás | M8: =Kalkulátor!G8 -> 0
A9: HUF Upfront Fee Fix Amt | B9: =C9+D9+C11 -> 29127 | C9: 16527 | D9: 12600 | E9: Installment wo TI | F9: =XPMT(IF(B6=0,B2,VLOOKUP(B6,A21:B380,2,)),VLOOKUP(B6+1,A21:B380,2,),B7-B6,0,B3,B5,B4, B14,B13) -> 61247.79301 | H9: Installment w TI | I9: =+F10 -> 61247.79301
A10: FX Upfront Fee Fix Amt (to be paid in FX) | B10: 0 | C10: ÉB díj | D10: Trkpmás | E10: Installment | F10: =F9*B$12 / B11 -> 61247.79301 | H10: APR | L10: Törlesztőrészlet | M10: =F9-B4 -> 61247.79301
A11: FX bid currency | B11: 1 | C11: 0 | D11: 0 | E11: XIRR | F11: =XIRR(I20:I380,B20:B380) -> 0.03242692649 | H11: XIRR | I11: =+F11 -> 0.03242692649 | L11: PPI-al | M11: =M10+L21 -> 61247.79301
A12: FX ask currency | B12: 1 | F12: =XIRR(I20:I380,B20:B380) -> 0.03242692649 | L12: Ügyfél által megfizetett tőke | M12: =SUM(H21:H380)-SUM(U20:U380) -> 8921778.677 | O12: =+M12+M13+B9 -> 13132739.76
A13: 30-days (if not then real calendar days) | B13: 0 | F13: KK5 | L13: Ügyfél által megfizetett kamat | M13: =SUM(F21:F380) -> 4181834.082
A14: Days in Years | B14: 365 | E14: PPI díj | F14: 0.049 | H14: Módusuló futamidő | L14: Tényleges futamidő | M14: =MATCH(0,D21:D380,0)-1 -> 214 | N14: =B7-M14 -> 26
A15: Product | B15: Mortgage | C15: Maradványérték | E15: PPI díjjal kell számolni? | F15: =IF(F13=Kalkulátor!C7,"i","n") -> n | L15: Meg nem fizetett törlesztőrészletek száma és összege | M15: =CONCATENATE(B7-M14," db, ",TEXT((B7-M14)*M10,"0 000 Ft")) -> 26 db, 1 592 443 Ft
C16: =+D81/B3 -> 0.8071258081 | L16: Felhalmozott megtakarítások | M16: =MAX(R20:R380) -> 4300000
A17: =DATE(IF(MONTH(TODAY())=12,YEAR(TODAY())+1,YEAR(TODAY())),IF(MONTH(TODAY())=12,1,MONTH(TODAY())+1),1) -> 2020-08-01 | B17: =TODAY() -> 2020-07-01 | C17: =D141/B3 -> 0.5423623422 | F17: 12592617.72 | G17: 3935193.037 | H17: =+F17+G17 -> 16527810.76
A18: Details
A19: Term | B19: PaymentDate | C19: DaysBetween | D19: Capital | E19: Fee | F19: Interest | G19: Interest+Fee | H19: Principal | I19: CF- with TradeIncome | K19: THM Calculation | L19: PPI | M19: Módosított tőke | N19: Megtakarítás | O19: Éves egyszeri | P19: havi bejövő | Q19: Kezdeti | R19: Összeg | S19: 70%-os korláttal | T19: Kedvezmény | U19: Kedvezmény tőke számításhoz
A20: 0- Disbursement | B20: =+A17 -> 2020-08-01 | C20: 0 | D20: 0 | E20: 0 | F20: 0 | G20: 0 | H20: 0 | I20: =- B3 + B8*B3 + B9 + B10 / B11 -> -9970873 | J20: =+I20 -> -9970873 | K20: =SUM(K21:K380)+I20 -> 9410.800375 | M20: =D20 -> 0 | N20: =$M$5 -> 20000 | P20: =M6/2 -> 0 | Q20: =$M$8 -> 0 | R20: =SUM(N20:Q20) -> 20000 | S20: =IF(R20<=M21*0.7,R20,M21*0.7) -> 20000 | T20: =S20*$B$5/$B$14*C21 -> 89.64383562
A21: 1 | B21: =+F6 -> 2020-09-10 | C21: =+IF($B$13=1, 30, B21-B20) -> 40 | D21: =$B$3 -> 10000000 | E21: =IF(D21>0,$B$4,0) -> 0 | F21: =+C21/$B$14*$B$5*D21 -> 44821.91781 | G21: =E21+F21 -> 44821.91781 | H21: =+IF(A21<=$B$6,0,IF(D21>0,IF($F$9-G21+IF(MOD(A21,6)=0,T21,0)>D21,D21,$F$9-G21+IF(MOD(A21,6)=0,T21,0)),0)) -> 16425.8752 | I21: =IF(D21>0,+G21+H21+L21-IF(MOD(A21,6)=0,T21,0),0) -> 61247.79301 | J21: =IF(I21=0,0,+$M$11-IF(MOD(A21,6)=0,T21,0)) -> 61247.79301 | K21: =+I21/POWER((1+$I$11),A21/12) -> 61085.12972 | L21: =IF(D21>0,IF($F$15="I",($F$9-$B$4)*$F$14,0),0) -> 0 | M21: =D21 -> 10000000 | N21: =$M$5 -> 20000 | O21: =IF(MOD(A21,12)=0,$M$7,0) -> 0 | R21: =IF(D21>0,SUM(N21:Q21)+R20,0) -> 40000 | S21: =IF(R21<=M21*0.7,R21,M21*0.7) -> 40000 | T21: =IF(MOD(A21,6)=0,SUM(T16:T20)+S21*$B$5/$B$14*C21,S21*$B$5/$B$14*C21) -> 179.2876712 | U21: =IF(MOD(A21,6)=0,T21,0) -> 0
A22: 2 | B22: =IF(MONTH(B21)=12,DATE(YEAR(B21)+1,1,DAY(B21)),DATE(YEAR(B21),MONTH(B21)+1,DAY(B21))) -> 2020-10-10 | C22: 30 | D22: =IF(D21-IF(H21<0,0,H21)<0,0,D21-IF(H21<0,0,H21)) -> 9983574.125 | E22: =IF(D22>0,$B$4,0) -> 0 | F22: 33561.22041 | G22: 33561.22041 | H22: 27686.5726 | I22: =IF(D22>0,+G22+H22+L22-IF(MOD(A22,6)=0,T22,0),0) -> 61247.79301 | J22: =IF(I22=0,0,+$M$11-IF(MOD(A22,6)=0,T22,0)) -> 61247.79301 | K22: =+I22/POWER((1+$I$11),A22/12) -> 60922.89844 | L22: =IF(D22>0,IF($F$15="I",($F$9-$B$4)*$F$14,0),0) -> 0 | M22: 9983574.125 | N22: 20000 | O22: =IF(MOD(A22,12)=0,$M$7,0) -> 0 | R22: =IF(D22>0,SUM(N22:Q22)+R21,0) -> 60000 | S22: =IF(R22<=M22*0.7,R22,M22*0.7) -> 60000 | T22: =IF(MOD(A22,6)=0,SUM(T17:T21)+S22*$B$5/$B$14*C22,S22*$B$5/$B$14*C22) -> 201.6986301 | U22: =IF(MOD(A22,6)=0,T22,0) -> 0
A23: 3 | B23: 2020-11-10 | C23: 31 | D23: =IF(D22-IF(H22<0,0,H22)<0,0,D22-IF(H22<0,0,H22)) -> 9955887.552 | E23: 0 | F23: 34583.75295 | G23: 34583.75295 | H23: 26664.04006 | I23: 61247.79301 | J23: 61247.79301 | K23: 60761.09801 | L23: 0 | M23: 9955887.552 | N23: 20000 | O23: 0 | R23: 80000 | S23: 80000 | T23: 277.8958904 | U23: 0
A24: 4 | B24: 2020-12-10 | C24: 30 | D24: 9929223.512 | E24: 0 | F24: 33378.51301 | G24: 33378.51301 | H24: 27869.28 | I24: 61247.79301 | J24: 61247.79301 | K24: 60599.72729 | L24: 0 | M24: 9929223.512 | N24: 20000 | O24: 0 | R24: 100000 | S24: 100000 | T24: 336.1643836 | U24: 0
A25: 5 | B25: 2021-01-10 | C25: 31 | D25: 9901354.232 | E25: 0 | F25: 34394.32063 | G25: 34394.32063 | H25: 26853.47238 | I25: 61247.79301 | J25: 61247.79301 | K25: 60438.78515 | L25: 0 | M25: 9901354.232 | N25: 20000 | O25: 0 | R25: 120000 | S25: 120000 | T25: 416.8438356 | U25: 0
A26: 6 | B26: 2021-02-10 | C26: 31 | D26: 9874500.76 | E26: 0 | F26: =+C26/$B$14*$B$5*D26 -> 34301.03976 | G26: 34301.03976 | H26: 28844.96147 | I26: 61247.79301 | J26: 59349.58479 | K26: 60278.27044 | L26: 0 | M26: 9874500.76 | N26: 20000 | O26: 0 | R26: 140000 | S26: 140000 | T26: 1898.208219 | U26: 1898.208219
A27: 7 | B27: 2021-03-10 | C27: 28 | D27: 9845655.798 | E27: 0 | F27: 30891.08225 | G27: 30891.08225 | H27: 30356.71076 | I27: 61247.79301 | J27: 61247.79301 | K27: 60118.18203 | L27: 0 | M27: 9845655.798 | N27: 20000 | O27: 0 | R27: 160000 | S27: 160000 | T27: 502.0054795 | U27: 0
A28: 8 | B28: 2021-04-10 | C28: 31 | D28: 9815299.088 | E28: 0 | F28: 34095.39099 | G28: 34095.39099 | H28: 27152.40202 | I28: 61247.79301 | J28: 61247.79301 | K28: 59958.51879 | L28: 0 | M28: 9815299.088 | N28: 20000 | O28: 0 | R28: 180000 | S28: 180000 | T28: 625.2657534 | U28: 0
A29: 9 | B29: 2021-05-10 | C29: 30 | D29: 9788146.686 | E29: 0 | F29: 32904.26297 | G29: 32904.26297 | H29: 28343.53004 | I29: 61247.79301 | J29: 61247.79301 | K29: 59799.27959 | L29: 0 | M29: 9788146.686 | N29: 20000 | O29: 0 | R29: 200000 | S29: 200000 | T29: 672.3287671 | U29: 0
A30: 10 | B30: 2021-06-10 | C30: 31 | D30: 9759803.155 | E30: 0 | F30: 33902.61485 | G30: 33902.61485 | H30: 27345.17816 | I30: 61247.79301 | J30: 61247.79301 | K30: 59640.46329 | L30: 0 | M30: 9759803.155 | N30: 20000 | O30: 0 | R30: 220000 | S30: 220000 | T30: 764.2136986 | U30: 0
A31: 11 | B31: 2021-07-10 | C31: 30 | D31: 9732457.977 | E31: 0 | F31: 32717.05736 | G31: 32717.05736 | H31: 28530.73565 | I31: 61247.79301 | J31: 61247.79301 | K31: 59482.06878 | L31: 0 | M31: 9732457.977 | N31: 20000 | O31: 0 | R31: 240000 | S31: 240000 | T31: 806.7945205 | U31: 0
A32: 12 | B32: 2021-08-10 | C32: 31 | D32: 9703927.242 | E32: 0 | F32: 33708.51877 | G32: 33708.51877 | H32: 31813.04411 | I32: 61247.79301 | J32: 56974.02315 | K32: 59324.09494 | L32: 0 | M32: 9703927.242 | N32: 20000 | O32: 0 | R32: 260000 | S32: 260000 | T32: 4273.769863 | U32: 4273.769863
A33: 13 | B33: 2021-09-10 | C33: 31 | D33: 9672114.198 | E33: 0 | F33: 33598.00984 | G33: 33598.00984 | H33: 27649.78317 | I33: 61247.79301 | J33: 61247.79301 | K33: 59166.54066 | L33: 0 | M33: 9672114.198 | N33: 20000 | O33: 0 | R33: 280000 | S33: 280000 | T33: 972.6356164 | U33: 0
A34: 14 | B34: 2021-10-10 | C34: 30 | D34: 9644464.414 | E34: 0 | F34: 32421.25435 | G34: 32421.25435 | H34: 28826.53866 | I34: 61247.79301 | J34: 61247.79301 | K34: 59009.4048 | L34: 0 | M34: 9644464.414 | N34: 20000 | O34: 0 | R34: 300000 | S34: 300000 | T34: 1008.493151 | U34: 0
A35: 15 | B35: 2021-11-10 | C35: 31 | D35: 9615637.876 | E35: 0 | F35: 33401.82812 | G35: 33401.82812 | H35: 27845.96489 | I35: 61247.79301 | J35: 61247.79301 | K35: 58852.68628 | L35: 0 | M35: 9615637.876 | N35: 20000 | O35: 0 | R35: 320000 | S35: 320000 | T35: 1111.583562 | U35: 0
A36: 16 | B36: 2021-12-10 | C36: 30 | D36: 9587791.911 | E36: 0 | F36: 32230.74157 | G36: 32230.74157 | H36: 29017.05144 | I36: 61247.79301 | J36: 61247.79301 | K36: 58696.38397 | L36: 0 | M36: 9587791.911 | N36: 20000 | O36: 0 | R36: 340000 | S36: 340000 | T36: 1142.958904 | U36: 0
A37: 17 | B37: 2022-01-10 | C37: 31 | D37: 9558774.859 | E37: 0 | F37: 33204.30313 | G37: 33204.30313 | H37: 28043.48988 | I37: 61247.79301 | J37: 61247.79301 | K37: 58540.49677 | L37: 0 | M37: 9558774.859 | N37: 20000 | O37: 0 | R37: 360000 | S37: 360000 | T37: 1250.531507 | U37: 0
A38: 18 | B38: 2022-02-10 | C38: 31 | D38: 9530731.37 | E38: 0 | F38: 33106.8885 | G38: 33106.8885 | H38: 34947.11273 | I38: 61247.79301 | J38: 54441.58479 | K38: 58385.02358 | L38: 0 | M38: 9530731.37 | N38: 20000 | O38: 0 | R38: 380000 | S38: 380000 | T38: 6806.208219 | U38: 6806.208219
A39: 19 | B39: 2022-03-10 | C39: 28 | D39: 9495784.257 | E39: 0 | F39: 29793.3483 | G39: 29793.3483 | H39: 31454.44471 | I39: 61247.79301 | J39: 61247.79301 | K39: 58229.96329 | L39: 0 | M39: 9495784.257 | N39: 20000 | O39: 0 | R39: 400000 | S39: 400000 | T39: 1255.013699 | U39: 0
A40: 20 | B40: 2022-04-10 | C40: 31 | D40: 9464329.812 | E40: 0 | F40: 32876.2295 | G40: 32876.2295 | H40: 28371.56351 | I40: 61247.79301 | J40: 61247.79301 | K40: 58075.31483 | L40: 0 | M40: 9464329.812 | N40: 20000 | O40: 0 | R40: 420000 | S40: 420000 | T40: 1458.953425 | U40: 0
A41: 21 | B41: 2022-05-10 | C41: 30 | D41: 9435958.249 | E41: 0 | F41: 31720.33088 | G41: 31720.33088 | H41: 29527.46213 | I41: 61247.79301 | J41: 61247.79301 | K41: 57921.07708 | L41: 0 | M41: 9435958.249 | N41: 20000 | O41: 0 | R41: 440000 | S41: 440000 | T41: 1479.123288 | U41: 0
A42: 22 | B42: 2022-06-10 | C42: 31 | D42: 9406430.786 | E42: 0 | F42: 32675.10574 | G42: 32675.10574 | H42: 28572.68727 | I42: 61247.79301 | J42: 61247.79301 | K42: 57767.24895 | L42: 0 | M42: 9406430.786 | N42: 20000 | O42: 0 | R42: 460000 | S42: 460000 | T42: 1597.90137 | U42: 0
A43: 23 | B43: 2022-07-10 | C43: 30 | D43: 9377858.099 | E43: 0 | F43: 31525.01887 | G43: 31525.01887 | H43: 29722.77414 | I43: 61247.79301 | J43: 61247.79301 | K43: 57613.82937 | L43: 0 | M43: 9377858.099 | N43: 20000 | O43: 0 | R43: 480000 | S43: 480000 | T43: 1613.589041 | U43: 0
A44: 24 | B44: 2022-08-10 | C44: 31 | D44: 9348135.325 | E44: 0 | F44: 32472.60487 | G44: 32472.60487 | H44: 37916.61827 | I44: 61247.79301 | J44: 52106.36287 | K44: 57460.81725 | L44: 0 | M44: 9348135.325 | N44: 20000 | O44: 0 | R44: 500000 | S44: 500000 | T44: 9141.430137 | U44: 9141.430137
A45: 25 | B45: 2022-09-10 | C45: 31 | D45: 9310218.707 | E45: 0 | F45: 32340.89397 | G45: 32340.89397 | H45: 28906.89904 | I45: 61247.79301 | J45: 61247.79301 | K45: 57308.21149 | L45: 0 | M45: 9310218.707 | N45: 20000 | O45: 0 | R45: 520000 | S45: 520000 | T45: 1806.323288 | U45: 0
A46: 26 | B46: 2022-10-10 | C46: 30 | D46: 9281311.808 | E46: 0 | F46: 31200.46462 | G46: 31200.46462 | H46: 30047.32839 | I46: 61247.79301 | J46: 61247.79301 | K46: 57156.01104 | L46: 0 | M46: 9281311.808 | N46: 20000 | O46: 0 | R46: 540000 | S46: 540000 | T46: 1815.287671 | U46: 0
A47: 27 | B47: 2022-11-10 | C47: 31 | D47: 9251264.479 | E47: 0 | F47: 32136.10475 | G47: 32136.10475 | H47: 29111.68826 | I47: 61247.79301 | J47: 61247.79301 | K47: 57004.21479 | L47: 0 | M47: 9251264.479 | N47: 20000 | O47: 0 | R47: 560000 | S47: 560000 | T47: 1945.271233 | U47: 0
A48: 28 | B48: 2022-12-10 | C48: 30 | D48: 9222152.791 | E48: 0 | F48: 31001.59308 | G48: 31001.59308 | H48: 30246.19993 | I48: 61247.79301 | J48: 61247.79301 | K48: 56852.8217 | L48: 0 | M48: 9222152.791 | N48: 20000 | O48: 0 | R48: 580000 | S48: 580000 | T48: 1949.753425 | U48: 0
A49: 29 | B49: 2023-01-10 | C49: 31 | D49: 9191906.591 | E49: 0 | F49: 31929.91333 | G49: 31929.91333 | H49: 29317.87968 | I49: 61247.79301 | J49: 61247.79301 | K49: 56701.83067 | L49: 0 | M49: 9191906.591 | N49: 20000 | O49: 0 | R49: 600000 | S49: 600000 | T49: 2084.219178 | U49: 0
A50: 30 | B50: 2023-02-10 | C50: 31 | D50: 9162588.711 | E50: 0 | F50: 31828.07186 | G50: 31828.07186 | H50: 41174.2691 | I50: 61247.79301 | J50: 49493.24507 | K50: 56551.24065 | L50: 0 | M50: 9162588.711 | N50: 20000 | O50: 0 | R50: 620000 | S50: 620000 | T50: 11754.54795 | U50: 11754.54795
A51: 31 | B51: 2023-03-10 | C51: 28 | D51: 9121414.442 | E51: 0 | F51: 28618.75019 | G51: 28618.75019 | H51: 32629.04282 | I51: 61247.79301 | J51: 61247.79301 | K51: 56401.05057 | L51: 0 | M51: 9121414.442 | N51: 20000 | O51: 0 | R51: 640000 | S51: 640000 | T51: 2008.021918 | U51: 0
A52: 32 | B52: 2023-04-10 | C52: 31 | D52: 9088785.4 | E52: 0 | F52: 31571.70139 | G52: 31571.70139 | H52: 29676.09162 | I52: 61247.79301 | J52: 61247.79301 | K52: 56251.25937 | L52: 0 | M52: 9088785.4 | N52: 20000 | O52: 0 | R52: 660000 | S52: 660000 | T52: 2292.641096 | U52: 0
A53: 33 | B53: 2023-05-10 | C53: 30 | D53: 9059109.308 | E53: 0 | F53: 30453.49896 | G53: 30453.49896 | H53: 30794.29405 | I53: 61247.79301 | J53: 61247.79301 | K53: 56101.86599 | L53: 0 | M53: 9059109.308 | N53: 20000 | O53: 0 | R53: 680000 | S53: 680000 | T53: 2285.917808 | U53: 0
A54: 34 | B54: 2023-06-10 | C54: 31 | D54: 9028315.014 | E54: 0 | F54: 31361.6455 | G54: 31361.6455 | H54: 29886.14751 | I54: 61247.79301 | J54: 61247.79301 | K54: 55952.86937 | L54: 0 | M54: 9028315.014 | N54: 20000 | O54: 0 | R54: 700000 | S54: 700000 | T54: 2431.589041 | U54: 0
A55: 35 | B55: 2023-07-10 | C55: 30 | D55: 8998428.866 | E55: 0 | F55: 30249.51293 | G55: 30249.51293 | H55: 30998.28008 | I55: 61247.79301 | J55: 61247.79301 | K55: 55804.26846 | L55: 0 | M55: 8998428.866 | N55: 20000 | O55: 0 | R55: 720000 | S55: 720000 | T55: 2420.383562 | U55: 0
A56: 36 | B56: 2023-08-10 | C56: 31 | D56: 8967430.586 | E56: 0 | F56: 31150.15134 | G56: 31150.15134 | H56: 44106.73208 | I56: 61247.79301 | J56: 47238.7026 | K56: 55656.06221 | L56: 0 | M56: 8967430.586 | N56: 20000 | O56: 0 | R56: 740000 | S56: 740000 | T56: 14009.09041 | U56: 14009.09041
A57: 37 | B57: 2023-09-10 | C57: 31 | D57: 8923323.854 | E57: 0 | F57: 30996.93785 | G57: 30996.93785 | H57: 30250.85516 | I57: 61247.79301 | J57: 61247.79301 | K57: 55508.24957 | L57: 0 | M57: 8923323.854 | N57: 20000 | O57: 0 | R57: 760000 | S57: 760000 | T57: 2640.010959 | U57: 0
A58: 38 | B58: 2023-10-10 | C58: 30 | D58: 8893072.999 | E58: 0 | F58: 29895.34403 | G58: 29895.34403 | H58: 31352.44898 | I58: 61247.79301 | J58: 61247.79301 | K58: 55360.82949 | L58: 0 | M58: 8893072.999 | N58: 20000 | O58: 0 | R58: 780000 | S58: 780000 | T58: 2622.082192 | U58: 0
A59: 39 | B59: 2023-11-10 | C59: 31 | D59: 8861720.55 | E59: 0 | F59: 30782.94654 | G59: 30782.94654 | H59: 30464.84648 | I59: 61247.79301 | J59: 61247.79301 | K59: 55213.80093 | L59: 0 | M59: 8861720.55 | N59: 20000 | O59: 0 | R59: 800000 | S59: 800000 | T59: 2778.958904 | U59: 0
A60: 40 | B60: 2023-12-10 | C60: 30 | D60: 8831255.704 | E60: 0 | F60: 29687.5363 | G60: 29687.5363 | H60: 31560.25671 | I60: 61247.79301 | J60: 61247.79301 | K60: 55067.16285 | L60: 0 | M60: 8831255.704 | N60: 20000 | O60: 0 | R60: 820000 | S60: 820000 | T60: 2756.547945 | U60: 0
A61: 41 | B61: 2024-01-10 | C61: 31 | D61: 8799695.447 | E61: 0 | F61: 30567.49002 | G61: 30567.49002 | H61: 30680.30299 | I61: 61247.79301 | J61: 61247.79301 | K61: 54920.91422 | L61: 0 | M61: 8799695.447 | N61: 20000 | O61: 0 | R61: 840000 | S61: 840000 | T61: 2917.906849 | U61: 0
A62: 42 | B62: 2024-02-10 | C62: 31 | D62: 8769015.144 | E62: 0 | F62: 30460.91589 | G62: 30460.91589 | H62: 47489.76479 | I62: 61247.79301 | J62: 44544.90534 | K62: 54775.054 | L62: 0 | M62: 8769015.144 | N62: 20000 | O62: 0 | R62: 860000 | S62: 860000 | T62: 16702.88767 | U62: 16702.88767
A63: 43 | B63: 2024-03-10 | C63: 29 | D63: 8721525.379 | E63: 0 | F63: 28341.37329 | G63: 28341.37329 | H63: 32906.41972 | I63: 61247.79301 | J63: 61247.79301 | K63: 54629.58116 | L63: 0 | M63: 8721525.379 | N63: 20000 | O63: 0 | R63: 880000 | S63: 880000 | T63: 2859.638356 | U63: 0
A64: 44 | B64: 2024-04-10 | C64: 31 | D64: 8688618.959 | E64: 0 | F64: 30181.64378 | G64: 30181.64378 | H64: 31066.14923 | I64: 61247.79301 | J64: 61247.79301 | K64: 54484.49467 | L64: 0 | M64: 8688618.959 | N64: 20000 | O64: 0 | R64: 900000 | S64: 900000 | T64: 3126.328767 | U64: 0
A65: 45 | B65: 2024-05-10 | C65: 30 | D65: 8657552.81 | E65: 0 | F65: 29103.60904 | G65: 29103.60904 | H65: 32144.18397 | I65: 61247.79301 | J65: 61247.79301 | K65: 54339.7935 | L65: 0 | M65: 8657552.81 | N65: 20000 | O65: 0 | R65: 920000 | S65: 920000 | T65: 3092.712329 | U65: 0
A66: 46 | B66: 2024-06-10 | C66: 31 | D66: 8625408.626 | E66: 0 | F66: 29962.07013 | G66: 29962.07013 | H66: 31285.72288 | I66: 61247.79301 | J66: 61247.79301 | K66: 54195.47664 | L66: 0 | M66: 8625408.626 | N66: 20000 | O66: 0 | R66: 940000 | S66: 940000 | T66: 3265.276712 | U66: 0
A67: 47 | B67: 2024-07-10 | C67: 30 | D67: 8594122.903 | E67: 0 | F67: 28890.38028 | G67: 28890.38028 | H67: 32357.41273 | I67: 61247.79301 | J67: 61247.79301 | K67: 54051.54305 | L67: 0 | M67: 8594122.903 | N67: 20000 | O67: 0 | R67: 960000 | S67: 960000 | T67: 3227.178082 | U67: 0
A68: 48 | B68: 2024-08-10 | C68: 31 | D68: 8561765.491 | E68: 0 | F68: 29740.99306 | G68: 29740.99306 | H68: 50482.15886 | I68: 61247.79301 | J68: 42272.43411 | K68: 53907.99172 | L68: 0 | M68: 8561765.491 | N68: 20000 | O68: 0 | R68: 980000 | S68: 980000 | T68: 18975.3589 | U68: 18975.3589
A69: 49 | B69: 2024-09-10 | C69: 31 | D69: 8511283.332 | E69: 0 | F69: 29565.63325 | G69: 29565.63325 | H69: 31682.15976 | I69: 61247.79301 | J69: 61247.79301 | K69: 53764.82165 | L69: 0 | M69: 8511283.332 | N69: 20000 | O69: 0 | R69: 1000000 | S69: 1000000 | T69: 3473.69863 | U69: 0
A70: 50 | B70: 2024-10-10 | C70: 30 | D70: 8479601.172 | E70: 0 | F70: 28505.39901 | G70: 28505.39901 | H70: 32742.394 | I70: 61247.79301 | J70: 61247.79301 | K70: 53622.0318 | L70: 0 | M70: 8479601.172 | N70: 20000 | O70: 0 | R70: 1020000 | S70: 1020000 | T70: 3428.876712 | U70: 0
A71: 51 | B71: 2024-11-10 | C71: 31 | D71: 8446858.778 | E71: 0 | F71: 29341.84177 | G71: 29341.84177 | H71: 31905.95124 | I71: 61247.79301 | J71: 61247.79301 | K71: 53479.62118 | L71: 0 | M71: 8446858.778 | N71: 20000 | O71: 0 | R71: 1040000 | S71: 1040000 | T71: 3612.646575 | U71: 0
A72: 52 | B72: 2024-12-10 | C72: 30 | D72: 8414952.827 | E72: 0 | F72: 28288.0743 | G72: 28288.0743 | H72: 32959.71871 | I72: 61247.79301 | J72: 61247.79301 | K72: 53337.58878 | L72: 0 | M72: 8414952.827 | N72: 20000 | O72: 0 | R72: 1060000 | S72: 1060000 | T72: 3563.342466 | U72: 0
A73: 53 | B73: 2025-01-10 | C73: 31 | D73: 8381993.108 | E73: 0 | F73: 29116.51798 | G73: 29116.51798 | H73: 32131.27503 | I73: 61247.79301 | J73: 61247.79301 | K73: 53195.93359 | L73: 0 | M73: 8381993.108 | N73: 20000 | O73: 0 | R73: 1080000 | S73: 1080000 | T73: 3751.594521 | U73: 0
A74: 54 | B74: 2025-02-10 | C74: 31 | D74: 8349861.833 | E74: 0 | F74: 29004.90361 | G74: 29004.90361 | H74: 53894.1168 | I74: 61247.79301 | J74: 39596.56561 | K74: 53054.65462 | L74: 0 | M74: 8349861.833 | N74: 20000 | O74: 0 | R74: 1100000 | S74: 1100000 | T74: 21651.2274 | U74: 21651.2274
A75: 55 | B75: 2025-03-10 | C75: 28 | D75: 8295967.716 | E75: 0 | F75: 26028.88282 | G75: 26028.88282 | H75: 35218.91019 | I75: 61247.79301 | J75: 61247.79301 | K75: 52913.75085 | L75: 0 | M75: 8295967.716 | N75: 20000 | O75: 0 | R75: 1120000 | S75: 1120000 | T75: 3514.038356 | U75: 0
A76: 56 | B76: 2025-04-10 | C76: 31 | D76: 8260748.806 | E76: 0 | F76: 28695.35181 | G76: 28695.35181 | H76: 32552.4412 | I76: 61247.79301 | J76: 61247.79301 | K76: 52773.2213 | L76: 0 | M76: 8260748.806 | N76: 20000 | O76: 0 | R76: 1140000 | S76: 1140000 | T76: 3960.016438 | U76: 0
A77: 57 | B77: 2025-05-10 | C77: 30 | D77: 8228196.365 | E77: 0 | F77: 27660.26559 | G77: 27660.26559 | H77: 33587.52742 | I77: 61247.79301 | J77: 61247.79301 | K77: 52633.06497 | L77: 0 | M77: 8228196.365 | N77: 20000 | O77: 0 | R77: 1160000 | S77: 1160000 | T77: 3899.506849 | U77: 0
A78: 58 | B78: 2025-06-10 | C78: 31 | D78: 8194608.837 | E78: 0 | F78: 28465.60149 | G78: 28465.60149 | H78: 32782.19152 | I78: 61247.79301 | J78: 61247.79301 | K78: 52493.28088 | L78: 0 | M78: 8194608.837 | N78: 20000 | O78: 0 | R78: 1180000 | S78: 1180000 | T78: 4098.964384 | U78: 0
A79: 59 | B79: 2025-07-10 | C79: 30 | D79: 8161826.646 | E79: 0 | F79: 27437.15423 | G79: 27437.15423 | H79: 33810.63878 | I79: 61247.79301 | J79: 61247.79301 | K79: 52353.86802 | L79: 0 | M79: 8161826.646 | N79: 20000 | O79: 0 | R79: 1200000 | S79: 1200000 | T79: 4033.972603 | U79: 0
A80: 60 | B80: 2025-08-10 | C80: 31 | D80: 8128016.007 | E80: 0 | F80: 28234.27807 | G80: 28234.27807 | H80: 56757.9259 | I80: 61247.79301 | J80: 37503.38205 | K80: 52214.82542 | L80: 0 | M80: 8128016.007 | N80: 20000 | O80: 0 | R80: 1220000 | S80: 1220000 | T80: 23744.41096 | U80: 23744.41096
A81: 61 | B81: 2025-09-10 | C81: 31 | D81: 8071258.081 | E81: 0 | F81: 28037.11814 | G81: 28037.11814 | H81: 33210.67487 | I81: 61247.79301 | J81: 61247.79301 | K81: 52076.15209 | L81: 0 | M81: 8071258.081 | N81: 20000 | O81: 0 | R81: 1240000 | S81: 1240000 | T81: 4307.386301 | U81: 0
A82: 62 | B82: 2025-10-10 | C82: 30 | D82: 8038047.406 | E82: 0 | F82: 27021.05251 | G82: 27021.05251 | H82: 34226.7405 | I82: 61247.79301 | J82: 61247.79301 | K82: 51937.84705 | L82: 0 | M82: 8038047.406 | N82: 20000 | O82: 0 | R82: 1260000 | S82: 1260000 | T82: 4235.671233 | U82: 0
A83: 63 | B83: 2025-11-10 | C83: 31 | D83: 8003820.666 | E83: 0 | F83: 27802.86088 | G83: 27802.86088 | H83: 33444.93213 | I83: 61247.79301 | J83: 61247.79301 | K83: 51799.90933 | L83: 0 | M83: 8003820.666 | N83: 20000 | O83: 0 | R83: 1280000 | S83: 1280000 | T83: 4446.334247 | U83: 0
A84: 64 | B84: 2025-12-10 | C84: 30 | D84: 7970375.734 | E84: 0 | F84: 26793.56445 | G84: 26793.56445 | H84: 34454.22856 | I84: 61247.79301 | J84: 61247.79301 | K84: 51662.33795 | L84: 0 | M84: 7970375.734 | N84: 20000 | O84: 0 | R84: 1300000 | S84: 1300000 | T84: 4370.136986 | U84: 0
A85: 65 | B85: 2026-01-10 | C85: =+IF($B$13=1, 30, B85-B84) -> 31 | D85: 7935921.505 | E85: 0 | F85: =+C85/$B$14*$B$5*D85 -> 27566.99966 | G85: =E85+F85 -> 27566.99966 | H85: =+IF(A85<=$B$6,0,IF(D85>0,IF($F$9-G85+IF(MOD(A85,6)=0,T85,0)>D85,D85,$F$9-G85+IF(MOD(A85,6)=0,T85,0)),0)) -> 33680.79335 | I85: 61247.79301 | J85: 61247.79301 | K85: 51525.13193 | L85: 0 | M85: =D85 -> 7935921.505 | N85: =$M$5 -> 20000 | O85: 0 | R85: 1320000 | S85: 1320000 | T85: 4585.282192 | U85: 0
A86: 66 | B86: =IF(MONTH(B85)=12,DATE(YEAR(B85)+1,1,DAY(B85)),DATE(YEAR(B85),MONTH(B85)+1,DAY(B85))) -> 2026-02-10 | C86: 31 | D86: 7902240.712 | E86: =IF(D86>0,$B$4,0) -> 0 | F86: 27450.00274 | G86: 27450.00274 | H86: 60397.3574 | I86: =IF(D86>0,+G86+H86+L86-IF(MOD(A86,6)=0,T86,0),0) -> 61247.79301 | J86: =IF(I86=0,0,+$M$11-IF(MOD(A86,6)=0,T86,0)) -> 34648.22589 | K86: =+I86/POWER((1+$I$11),A86/12) -> 51388.2903 | L86: =IF(D86>0,IF($F$15="I",($F$9-$B$4)*$F$14,0),0) -> 0 | M86: 7902240.712 | N86: 20000 | O86: =IF(MOD(A86,12)=0,$M$7,0) -> 0 | R86: =IF(D86>0,SUM(N86:Q86)+R85,0) -> 1340000 | S86: =IF(R86<=M86*0.7,R86,M86*0.7) -> 1340000 | T86: =IF(MOD(A86,6)=0,SUM(T81:T85)+S86*$B$5/$B$14*C86,S86*$B$5/$B$14*C86) -> 26599.56712 | U86: =IF(MOD(A86,6)=0,T86,0) -> 26599.56712
A87: 67 | B87: 2026-03-10 | C87: 28 | D87: =IF(D86-IF(H86<0,0,H86)<0,0,D86-IF(H86<0,0,H86)) -> 7841843.354 | E87: 0 | F87: 24604.05208 | G87: 24604.05208 | H87: 36643.74093 | I87: 61247.79301 | J87: 61247.79301 | K87: 51251.81211 | L87: 0 | M87: 7841843.354 | N87: 20000 | O87: 0 | R87: 1360000 | S87: 1360000 | T87: 4267.046575 | U87: 0
A88: 68 | B88: 2026-04-10 | C88: 31 | D88: 7805199.613 | E88: 0 | F88: 27112.9112 | G88: 27112.9112 | H88: 34134.88181 | I88: 61247.79301 | J88: 61247.79301 | K88: 51115.69637 | L88: 0 | M88: 7805199.613 | N88: 20000 | O88: 0 | R88: 1380000 | S88: 1380000 | T88: 4793.70411 | U88: 0
A89: 69 | B89: 2026-05-10 | C89: 30 | D89: 7771064.732 | E89: 0 | F89: 26123.55185 | G89: 26123.55185 | H89: 35124.24116 | I89: 61247.79301 | J89: 61247.79301 | K89: 50979.94214 | L89: 0 | M89: 7771064.732 | N89: 20000 | O89: 0 | R89: 1400000 | S89: 1400000 | T89: 4706.30137 | U89: 0
A90: 70 | B90: 2026-06-10 | C90: 31 | D90: 7735940.49 | E90: 0 | F90: 26872.32588 | G90: 26872.32588 | H90: 34375.46713 | I90: 61247.79301 | J90: 61247.79301 | K90: 50844.54844 | L90: 0 | M90: 7735940.49 | N90: 20000 | O90: 0 | R90: 1420000 | S90: 1420000 | T90: 4932.652055 | U90: 0
A91: 71 | B91: 2026-07-10 | C91: 30 | D91: 7701565.023 | E91: 0 | F91: 25889.91859 | G91: 25889.91859 | H91: 35357.87443 | I91: 61247.79301 | J91: 61247.79301 | K91: 50709.51433 | L91: 0 | M91: 7701565.023 | N91: 20000 | O91: 0 | R91: 1440000 | S91: 1440000 | T91: 4840.767123 | U91: 0
A92: 72 | B92: 2026-08-10 | C92: 31 | D92: 7666207.149 | E92: 0 | F92: 26630.09327 | G92: 26630.09327 | H92: 63229.77097 | I92: 61247.79301 | J92: 32635.72178 | K92: 50574.83884 | L92: 0 | M92: 7666207.149 | N92: 20000 | O92: 0 | R92: 1460000 | S92: 1460000 | T92: 28612.07123 | U92: 28612.07123
A93: 73 | B93: 2026-09-10 | C93: 31 | D93: 7602977.378 | E93: 0 | F93: 26410.4521 | G93: 26410.4521 | H93: 34837.34091 | I93: 61247.79301 | J93: 61247.79301 | K93: 50440.52102 | L93: 0 | M93: 7602977.378 | N93: 20000 | O93: 0 | R93: 1480000 | S93: 1480000 | T93: 5141.073973 | U93: 0
A94: 74 | B94: 2026-10-10 | C94: 30 | D94: 7568140.037 | E94: 0 | F94: 25441.3913 | G94: 25441.3913 | H94: 35806.40171 | I94: 61247.79301 | J94: 61247.79301 | K94: 50306.55993 | L94: 0 | M94: 7568140.037 | N94: 20000 | O94: 0 | R94: 1500000 | S94: 1500000 | T94: 5042.465753 | U94: 0
A95: 75 | B95: 2026-11-10 | C95: 31 | D95: 7532333.635 | E95: 0 | F95: 26165.05703 | G95: 26165.05703 | H95: 35082.73598 | I95: 61247.79301 | J95: 61247.79301 | K95: 50172.95462 | L95: 0 | M95: 7532333.635 | N95: 20000 | O95: 0 | R95: 1520000 | S95: 1520000 | T95: 5280.021918 | U95: 0
A96: 76 | B96: 2026-12-10 | C96: 30 | D96: 7497250.899 | E96: 0 | F96: 25203.08727 | G96: 25203.08727 | H96: 36044.70574 | I96: 61247.79301 | J96: 61247.79301 | K96: 50039.70414 | L96: 0 | M96: 7497250.899 | N96: 20000 | O96: 0 | R96: 1540000 | S96: 1540000 | T96: 5176.931507 | U96: 0
A97: 77 | B97: 2027-01-10 | C97: 31 | D97: 7461206.194 | E97: 0 | F97: 25917.98173 | G97: 25917.98173 | H97: 35329.81128 | I97: 61247.79301 | J97: 61247.79301 | K97: 49906.80755 | L97: 0 | M97: 7461206.194 | N97: 20000 | O97: 0 | R97: 1560000 | S97: 1560000 | T97: 5418.969863 | U97: 0
A98: 78 | B98: 2027-02-10 | C98: 31 | D98: 7425876.382 | E98: 0 | F98: 25795.25662 | G98: 25795.25662 | H98: 67000.44324 | I98: 61247.79301 | J98: 29699.88616 | K98: 49774.26391 | L98: 0 | M98: 7425876.382 | N98: 20000 | O98: 0 | R98: 1580000 | S98: 1580000 | T98: 31547.90685 | U98: 31547.90685
A99: 79 | B99: 2027-03-10 | C99: 28 | D99: 7358875.939 | E99: 0 | F99: 23088.72528 | G99: 23088.72528 | H99: 38159.06774 | I99: 61247.79301 | J99: 61247.79301 | K99: 49642.07228 | L99: 0 | M99: 7358875.939 | N99: 20000 | O99: 0 | R99: 1600000 | S99: 1600000 | T99: 5020.054795 | U99: 0
A100: 80 | B100: 2027-04-10 | C100: 31 | D100: 7320716.871 | E100: 0 | F100: 25429.96417 | G100: 25429.96417 | H100: 35817.82884 | I100: 61247.79301 | J100: 61247.79301 | K100: 49510.23173 | L100: 0 | M100: 7320716.871 | N100: 20000 | O100: 0 | R100: 1620000 | S100: 1620000 | T100: 5627.391781 | U100: 0
A101: 81 | B101: 2027-05-10 | C101: 30 | D101: 7284899.042 | E101: 0 | F101: 24489.23596 | G101: 24489.23596 | H101: 36758.55705 | I101: 61247.79301 | J101: 61247.79301 | K101: 49378.74132 | L101: 0 | M101: 7284899.042 | N101: 20000 | O101: 0 | R101: 1640000 | S101: 1640000 | T101: 5513.09589 | U101: 0
A102: 82 | B102: 2027-06-10 | C102: 31 | D102: 7248140.485 | E102: 0 | F102: 25177.85568 | G102: 25177.85568 | H102: 36069.93734 | I102: 61247.79301 | J102: 61247.79301 | K102: 49247.60013 | L102: 0 | M102: 7248140.485 | N102: 20000 | O102: 0 | R102: 1660000 | S102: 1660000 | T102: 5766.339726 | U102: 0
A103: 83 | B103: 2027-07-10 | C103: 30 | D103: 7212070.548 | E103: 0 | F103: 24244.4125 | G103: 24244.4125 | H103: 37003.38051 | I103: 61247.79301 | J103: 61247.79301 | K103: 49116.80723 | L103: 0 | M103: 7212070.548 | N103: 20000 | O103: 0 | R103: 1680000 | S103: 1680000 | T103: 5647.561644 | U103: 0
A104: 84 | B104: 2027-08-10 | C104: 31 | D104: 7175067.168 | E104: 0 | F104: 24924.02099 | G104: 24924.02099 | H104: 69803.50353 | I104: 61247.79301 | J104: 27768.0615 | K104: 48986.36169 | L104: 0 | M104: 7175067.168 | N104: 20000 | O104: 0 | R104: 1700000 | S104: 1700000 | T104: 33479.73151 | U104: 33479.73151
A105: 85 | B105: 2027-09-10 | C105: 31 | D105: 7105263.664 | E105: 0 | F105: 24681.54466 | G105: 24681.54466 | H105: 36566.24835 | I105: 61247.79301 | J105: 61247.79301 | K105: 48856.26259 | L105: 0 | M105: 7105263.664 | N105: 20000 | O105: 0 | R105: 1720000 | S105: 1720000 | T105: 5974.761644 | U105: 0
A106: 86 | B106: 2027-10-10 | C106: 30 | D106: 7068697.416 | E106: 0 | F106: 23762.44309 | G106: 23762.44309 | H106: 37485.34992 | I106: 61247.79301 | J106: 61247.79301 | K106: 48726.50901 | L106: 0 | M106: 7068697.416 | N106: 20000 | O106: 0 | R106: 1740000 | S106: 1740000 | T106: 5849.260274 | U106: 0
A107: 87 | B107: 2027-11-10 | C107: 31 | D107: 7031212.066 | E107: 0 | F107: 24424.31172 | G107: 24424.31172 | H107: 36823.48129 | I107: 61247.79301 | J107: 61247.79301 | K107: 48597.10003 | L107: 0 | M107: 7031212.066 | N107: 20000 | O107: 0 | R107: 1760000 | S107: 1760000 | T107: 6113.709589 | U107: 0
A108: 88 | B108: 2027-12-10 | C108: 30 | D108: 6994388.584 | E108: 0 | F108: 23512.64327 | G108: 23512.64327 | H108: 37735.14974 | I108: 61247.79301 | J108: 61247.79301 | K108: 48468.03474 | L108: 0 | M108: 6994388.584 | N108: 20000 | O108: 0 | R108: 1780000 | S108: 1780000 | T108: 5983.726027 | U108: 0
A109: 89 | B109: 2028-01-10 | C109: 31 | D109: 6956653.435 | E109: 0 | F109: 24165.31751 | G109: 24165.31751 | H109: 37082.4755 | I109: 61247.79301 | J109: 61247.79301 | K109: 48339.31222 | L109: 0 | M109: 6956653.435 | N109: 20000 | O109: 0 | R109: 1800000 | S109: 1800000 | T109: 6252.657534 | U109: 0
A110: 90 | B110: 2028-02-10 | C110: 31 | D110: 6919570.959 | E110: 0 | F110: 24036.50416 | G110: 24036.50416 | H110: 73707.53542 | I110: 61247.79301 | J110: 24751.54644 | K110: 48210.93157 | L110: 0 | M110: 6919570.959 | N110: 20000 | O110: 0 | R110: 1820000 | S110: 1820000 | T110: 36496.24658 | U110: 36496.24658
A111: 91 | B111: 2028-03-10 | C111: 29 | D111: 6845863.424 | E111: 0 | F111: 22246.24276 | G111: 22246.24276 | H111: 39001.55025 | I111: 61247.79301 | J111: 61247.79301 | K111: 48082.89188 | L111: 0 | M111: 6845863.424 | N111: 20000 | O111: 0 | R111: 1840000 | S111: 1840000 | T111: 5979.243836 | U111: 0
A112: 92 | B112: 2028-04-10 | C112: 31 | D112: 6806861.874 | E112: 0 | F112: 23644.98677 | G112: 23644.98677 | H112: 37602.80624 | I112: 61247.79301 | J112: 61247.79301 | K112: 47955.19223 | L112: 0 | M112: 6806861.874 | N112: 20000 | O112: 0 | R112: 1860000 | S112: 1860000 | T112: 6461.079452 | U112: 0
A113: 93 | B113: 2028-05-10 | C113: 30 | D113: 6769259.067 | E113: 0 | F113: 22755.83802 | G113: 22755.83802 | H113: 38491.955 | I113: 61247.79301 | J113: 61247.79301 | K113: 47827.83174 | L113: 0 | M113: 6769259.067 | N113: 20000 | O113: 0 | R113: 1880000 | S113: 1880000 | T113: 6319.890411 | U113: 0
A114: 94 | B114: 2028-06-10 | C114: 31 | D114: 6730767.112 | E114: 0 | F114: 23380.6565 | G114: 23380.6565 | H114: 37867.13651 | I114: 61247.79301 | J114: 61247.79301 | K114: 47700.80949 | L114: 0 | M114: 6730767.112 | N114: 20000 | O114: 0 | R114: 1900000 | S114: 1900000 | T114: 6600.027397 | U114: 0
A115: 95 | B115: 2028-07-10 | C115: 30 | D115: 6692899.976 | E115: 0 | F115: 22499.14595 | G115: 22499.14595 | H115: 38748.64706 | I115: 61247.79301 | J115: 61247.79301 | K115: 47574.12459 | L115: 0 | M115: 6692899.976 | N115: 20000 | O115: 0 | R115: 1920000 | S115: 1920000 | T115: 6454.356164 | U115: 0
A116: 96 | B116: 2028-08-10 | C116: 31 | D116: 6654151.329 | E116: 0 | F116: 23114.51636 | G116: 23114.51636 | H116: 76686.84926 | I116: 61247.79301 | J116: 22694.22041 | K116: 47447.77614 | L116: 0 | M116: 6654151.329 | N116: 20000 | O116: 0 | R116: 1940000 | S116: 1940000 | T116: 38553.5726 | U116: 38553.5726
A117: 97 | B117: 2028-09-10 | C117: 31 | D117: 6577464.479 | E117: 0 | F117: 22848.12935 | G117: 22848.12935 | H117: 38399.66366 | I117: 61247.79301 | J117: 61247.79301 | K117: 47321.76325 | L117: 0 | M117: 6577464.479 | N117: 20000 | O117: 0 | R117: 1960000 | S117: 1960000 | T117: 6808.449315 | U117: 0
A118: 98 | B118: 2028-10-10 | C118: 30 | D118: 6539064.816 | E118: 0 | F118: 21982.00693 | G118: 21982.00693 | H118: 39265.78608 | I118: 61247.79301 | J118: 61247.79301 | K118: 47196.08503 | L118: 0 | M118: 6539064.816 | N118: 20000 | O118: 0 | R118: 1980000 | S118: 1980000 | T118: 6656.054795 | U118: 0
A119: 99 | B119: 2028-11-10 | C119: 31 | D119: 6499799.03 | E119: 0 | F119: 22578.34299 | G119: 22578.34299 | H119: 38669.45002 | I119: 61247.79301 | J119: 61247.79301 | K119: 47070.74059 | L119: 0 | M119: 6499799.03 | N119: 20000 | O119: 0 | R119: 2000000 | S119: 2000000 | T119: 6947.39726 | U119: 0
A120: 100 | B120: 2028-12-10 | C120: 30 | D120: 6461129.58 | E120: 0 | F120: 21720.01642 | G120: 21720.01642 | H120: 39527.77659 | I120: 61247.79301 | J120: 61247.79301 | K120: 46945.72904 | L120: 0 | M120: 6461129.58 | N120: 20000 | O120: 0 | R120: 2020000 | S120: 2020000 | T120: 6790.520548 | U120: 0
A121: 101 | B121: 2029-01-10 | C121: 31 | D121: 6421601.803 | E121: 0 | F121: 22306.70939 | G121: 22306.70939 | H121: 38941.08362 | I121: 61247.79301 | J121: 61247.79301 | K121: 46821.04949 | L121: 0 | M121: 6421601.803 | N121: 20000 | O121: 0 | R121: 2040000 | S121: 2040000 | T121: 7086.345205 | U121: 0
A122: 102 | B122: 2029-02-10 | C122: 31 | D122: 6382660.72 | E122: 0 | F122: 22171.4398 | G122: 22171.4398 | H122: 80520.93951 | I122: 61247.79301 | J122: 19803.20671 | K122: 46696.70108 | L122: 0 | M122: 6382660.72 | N122: 20000 | O122: 0 | R122: 2060000 | S122: 2060000 | T122: 41444.5863 | U122: 41444.5863
A123: 103 | B123: 2029-03-10 | C123: 28 | D123: 6302139.78 | E123: 0 | F123: 19773.17939 | G123: 19773.17939 | H123: 41474.61362 | I123: 61247.79301 | J123: 61247.79301 | K123: 46572.68291 | L123: 0 | M123: 6302139.78 | N123: 20000 | O123: 0 | R123: 2080000 | S123: 2080000 | T123: 6526.071233 | U123: 0
A124: 104 | B124: 2029-04-10 | C124: 31 | D124: 6260665.166 | E124: 0 | F124: 21747.66401 | G124: 21747.66401 | H124: 39500.129 | I124: 61247.79301 | J124: 61247.79301 | K124: 46448.99412 | L124: 0 | M124: 6260665.166 | N124: 20000 | O124: 0 | R124: 2100000 | S124: 2100000 | T124: 7294.767123 | U124: 0
A125: 105 | B125: 2029-05-10 | C125: 30 | D125: 6221165.037 | E125: 0 | F125: 20913.3411 | G125: 20913.3411 | H125: 40334.45191 | I125: 61247.79301 | J125: 61247.79301 | K125: 46325.63382 | L125: 0 | M125: 6221165.037 | N125: 20000 | O125: 0 | R125: 2120000 | S125: 2120000 | T125: 7126.684932 | U125: 0
A126: 106 | B126: 2029-06-10 | C126: 31 | D126: 6180830.585 | E126: 0 | F126: 21470.34274 | G126: 21470.34274 | H126: 39777.45027 | I126: 61247.79301 | J126: 61247.79301 | K126: 46202.60114 | L126: 0 | M126: 6180830.585 | N126: 20000 | O126: 0 | R126: 2140000 | S126: 2140000 | T126: 7433.715068 | U126: 0
A127: 107 | B127: 2029-07-10 | C127: 30 | D127: 6141053.135 | E127: 0 | F127: 20644.03342 | G127: 20644.03342 | H127: 40603.75959 | I127: 61247.79301 | J127: 61247.79301 | K127: 46079.89521 | L127: 0 | M127: 6141053.135 | N127: 20000 | O127: 0 | R127: 2160000 | S127: 2160000 | T127: 7261.150685 | U127: 0
A128: 108 | B128: 2029-08-10 | C128: 31 | D128: 6100449.376 | E128: 0 | F128: 21191.12264 | G128: 21191.12264 | H128: 83271.72243 | I128: 61247.79301 | J128: 18032.74096 | K128: 45957.51517 | L128: 0 | M128: 6100449.376 | N128: 20000 | O128: 0 | R128: 2180000 | S128: 2180000 | T128: 43215.05205 | U128: 43215.05205
A129: 109 | B129: 2029-09-10 | C129: 31 | D129: 6017177.653 | E129: 0 | F129: 20901.86177 | G129: 20901.86177 | H129: 40345.93124 | I129: 61247.79301 | J129: 61247.79301 | K129: 45835.46015 | L129: 0 | M129: 6017177.653 | N129: 20000 | O129: 0 | R129: 2200000 | S129: 2200000 | T129: 7642.136986 | U129: 0
A130: 110 | B130: 2029-10-10 | C130: 30 | D130: 5976831.722 | E130: 0 | F130: 20091.97951 | G130: 20091.97951 | H130: 41155.8135 | I130: 61247.79301 | J130: 61247.79301 | K130: 45713.72929 | L130: 0 | M130: 5976831.722 | N130: 20000 | O130: 0 | R130: 2220000 | S130: 2220000 | T130: 7462.849315 | U130: 0
A131: 111 | B131: 2029-11-10 | C131: 31 | D131: 5935675.908 | E131: 0 | F131: 20618.74927 | G131: 20618.74927 | H131: 40629.04374 | I131: 61247.79301 | J131: 61247.79301 | K131: 45592.32172 | L131: 0 | M131: 5935675.908 | N131: 20000 | O131: 0 | R131: 2240000 | S131: 2240000 | T131: 7781.084932 | U131: 0
A132: 112 | B132: 2029-12-10 | C132: 30 | D132: 5895046.865 | E132: 0 | F132: 19817.04795 | G132: 19817.04795 | H132: 41430.74506 | I132: 61247.79301 | J132: 61247.79301 | K132: 45471.23659 | L132: 0 | M132: 5895046.865 | N132: 20000 | O132: 0 | R132: 2260000 | S132: 2260000 | T132: 7597.315068 | U132: 0
A133: 113 | B133: 2030-01-10 | C133: 31 | D133: 5853616.12 | E133: 0 | F133: 20333.6983 | G133: 20333.6983 | H133: 40914.09471 | I133: 61247.79301 | J133: 61247.79301 | K133: 45350.47304 | L133: 0 | M133: 5853616.12 | N133: 20000 | O133: 0 | R133: 2280000 | S133: 2280000 | T133: 7920.032877 | U133: 0
A134: 114 | B134: 2030-02-10 | C134: 31 | D134: 5812702.025 | E134: 0 | F134: 20191.57506 | G134: 20191.57506 | H134: 87449.14398 | I134: 61247.79301 | J134: 14854.86698 | K134: 45230.03021 | L134: 0 | M134: 5812702.025 | N134: 20000 | O134: 0 | R134: 2300000 | S134: 2300000 | T134: 46392.92603 | U134: 46392.92603
A135: 115 | B135: 2030-03-10 | C135: 28 | D135: 5725252.881 | E135: 0 | F135: 17963.17698 | G135: 17963.17698 | H135: 43284.61603 | I135: 61247.79301 | J135: 61247.79301 | K135: 45109.90727 | L135: 0 | M135: 5725252.881 | N135: 20000 | O135: 0 | R135: 2320000 | S135: 2320000 | T135: 7279.079452 | U135: 0
A136: 116 | B136: 2030-04-10 | C136: 31 | D136: 5681968.265 | E136: 0 | F136: 19737.44538 | G136: 19737.44538 | H136: 41510.34763 | I136: 61247.79301 | J136: 61247.79301 | K136: 44990.10334 | L136: 0 | M136: 5681968.265 | N136: 20000 | O136: 0 | R136: 2340000 | S136: 2340000 | T136: 8128.454795 | U136: 0
A137: 117 | B137: 2030-05-10 | C137: 30 | D137: 5640457.917 | E137: 0 | F137: 18961.21059 | G137: 18961.21059 | H137: 42286.58242 | I137: 61247.79301 | J137: 61247.79301 | K137: 44870.6176 | L137: 0 | M137: 5640457.917 | N137: 20000 | O137: 0 | R137: 2360000 | S137: 2360000 | T137: 7933.479452 | U137: 0
A138: 118 | B138: 2030-06-10 | C138: 31 | D138: 5598171.335 | E138: 0 | F138: 19446.3601 | G138: 19446.3601 | H138: 41801.43291 | I138: 61247.79301 | J138: 61247.79301 | K138: 44751.44918 | L138: 0 | M138: 5598171.335 | N138: 20000 | O138: 0 | R138: 2380000 | S138: 2380000 | T138: 8267.40274 | U138: 0
A139: 119 | B139: 2030-07-10 | C139: 30 | D139: 5556369.902 | E139: 0 | F139: 18678.53663 | G139: 18678.53663 | H139: 42569.25638 | I139: 61247.79301 | J139: 61247.79301 | K139: 44632.59726 | L139: 0 | M139: 5556369.902 | N139: 20000 | O139: 0 | R139: 2400000 | S139: 2400000 | T139: 8067.945205 | U139: 0
A140: 120 | B140: 2030-08-10 | C140: 31 | D140: 5513800.646 | E140: 0 | F140: 19153.28175 | G140: 19153.28175 | H140: 90177.22359 | I140: 61247.79301 | J140: 13165.08068 | K140: 44514.06099 | L140: 0 | M140: 5513800.646 | N140: 20000 | O140: 0 | R140: 2420000 | S140: 2420000 | T140: 48082.71233 | U140: 48082.71233
A141: 121 | B141: 2030-09-10 | C141: 31 | D141: 5423623.422 | E141: 0 | F141: 18840.03325 | G141: 18840.03325 | H141: 42407.75976 | I141: 61247.79301 | J141: 61247.79301 | K141: 44395.83953 | L141: 0 | M141: 5423623.422 | N141: 20000 | O141: 0 | R141: 2440000 | S141: 2440000 | T141: 8475.824658 | U141: 0
A142: 122 | B142: 2030-10-10 | C142: 30 | D142: 5381215.662 | E142: 0 | F142: 18089.73046 | G142: 18089.73046 | H142: 43158.06255 | I142: 61247.79301 | J142: 61247.79301 | K142: 44277.93204 | L142: 0 | M142: 5381215.662 | N142: 20000 | O142: 0 | R142: 2460000 | S142: 2460000 | T142: 8269.643836 | U142: 0
A143: 123 | B143: 2030-11-10 | C143: 31 | D143: 5338057.6 | E143: 0 | F143: 18542.80337 | G143: 18542.80337 | H143: 42704.98964 | I143: 61247.79301 | J143: 61247.79301 | K143: 44160.3377 | L143: 0 | M143: 5338057.6 | N143: 20000 | O143: 0 | R143: 2480000 | S143: 2480000 | T143: 8614.772603 | U143: 0
A144: 124 | B144: 2030-12-10 | C144: 30 | D144: 5295352.61 | E144: 0 | F144: 17801.08946 | G144: 17801.08946 | H144: 43446.70355 | I144: 61247.79301 | J144: 61247.79301 | K144: 44043.05566 | L144: 0 | M144: 5295352.61 | N144: 20000 | O144: 0 | R144: 2500000 | S144: 2500000 | T144: 8404.109589 | U144: 0
A145: 125 | B145: 2031-01-10 | C145: 31 | D145: 5251905.906 | E145: 0 | F145: 18243.53835 | G145: 18243.53835 | H145: 43004.25466 | I145: 61247.79301 | J145: 61247.79301 | K145: 43926.08511 | L145: 0 | M145: 5251905.906 | N145: 20000 | O145: 0 | R145: 2520000 | S145: 2520000 | T145: 8753.720548 | U145: 0
A146: 126 | B146: 2031-02-10 | C146: 31 | D146: 5208901.652 | E146: 0 | F146: 18094.15453 | G146: 18094.15453 | H146: 94494.90423 | I146: 61247.79301 | J146: 9906.527257 | K146: 43809.4252 | L146: 0 | M146: 5208901.652 | N146: 20000 | O146: 0 | R146: 2540000 | S146: 2540000 | T146: 51341.26575 | U146: 51341.26575
A147: 127 | B147: 2031-03-10 | C147: 28 | D147: 5114406.748 | E147: 0 | F147: 16046.62632 | G147: 16046.62632 | H147: 45201.16669 | I147: 61247.79301 | J147: 61247.79301 | K147: 43693.07513 | L147: 0 | M147: 5114406.748 | N147: 20000 | O147: 0 | R147: 2560000 | S147: 2560000 | T147: 8032.087671 | U147: 0
A148: 128 | B148: 2031-04-10 | C148: 31 | D148: 5069205.581 | E148: 0 | F148: 17608.89248 | G148: 17608.89248 | H148: 43638.90053 | I148: 61247.79301 | J148: 61247.79301 | K148: 43577.03406 | L148: 0 | M148: 5069205.581 | N148: 20000 | O148: 0 | R148: 2580000 | S148: 2580000 | T148: 8962.142466 | U148: 0
A149: 129 | B149: 2031-05-10 | C149: =+IF($B$13=1, 30, B149-B148) -> 30 | D149: 5025566.68 | E149: 0 | F149: =+C149/$B$14*$B$5*D149 -> 16894.16525 | G149: =E149+F149 -> 16894.16525 | H149: =+IF(A149<=$B$6,0,IF(D149>0,IF($F$9-G149+IF(MOD(A149,6)=0,T149,0)>D149,D149,$F$9-G149+IF(MOD(A149,6)=0,T149,0)),0)) -> 44353.62776 | I149: 61247.79301 | J149: 61247.79301 | K149: 43461.30118 | L149: 0 | M149: =D149 -> 5025566.68 | N149: =$M$5 -> 20000 | O149: 0 | R149: 2600000 | S149: 2600000 | T149: 8740.273973 | U149: 0
A150: 130 | B150: =IF(MONTH(B149)=12,DATE(YEAR(B149)+1,1,DAY(B149)),DATE(YEAR(B149),MONTH(B149)+1,DAY(B149))) -> 2031-06-10 | C150: 31 | D150: 4981213.053 | E150: =IF(D150>0,$B$4,0) -> 0 | F150: 17303.23296 | G150: 17303.23296 | H150: 43944.56005 | I150: =IF(D150>0,+G150+H150+L150-IF(MOD(A150,6)=0,T150,0),0) -> 61247.79301 | J150: =IF(I150=0,0,+$M$11-IF(MOD(A150,6)=0,T150,0)) -> 61247.79301 | K150: =+I150/POWER((1+$I$11),A150/12) -> 43345.87566 | L150: =IF(D150>0,IF($F$15="I",($F$9-$B$4)*$F$14,0),0) -> 0 | M150: 4981213.053 | N150: 20000 | O150: =IF(MOD(A150,12)=0,$M$7,0) -> 0 | R150: =IF(D150>0,SUM(N150:Q150)+R149,0) -> 2620000 | S150: =IF(R150<=M150*0.7,R150,M150*0.7) -> 2620000 | T150: =IF(MOD(A150,6)=0,SUM(T145:T149)+S150*$B$5/$B$14*C150,S150*$B$5/$B$14*C150) -> 9101.090411 | U150: =IF(MOD(A150,6)=0,T150,0) -> 0
A151: 131 | B151: 2031-07-10 | C151: 30 | D151: =IF(D150-IF(H150<0,0,H150)<0,0,D150-IF(H150<0,0,H150)) -> 4937268.493 | E151: 0 | F151: 16597.33819 | G151: 16597.33819 | H151: 44650.45482 | I151: 61247.79301 | J151: 61247.79301 | K151: 43230.75669 | L151: 0 | M151: 4937268.493 | N151: 20000 | O151: 0 | R151: 2640000 | S151: 2640000 | T151: 8874.739726 | U151: 0
A152: 132 | B152: 2031-08-10 | C152: 31 | D152: 4892618.038 | E152: 0 | F152: 16995.48058 | G152: 16995.48058 | H152: 97202.68504 | I152: 61247.79301 | J152: 8297.420408 | K152: 43115.94346 | L152: 0 | M152: 4892618.038 | N152: 20000 | O152: 0 | R152: 2660000 | S152: 2660000 | T152: 52950.3726 | U152: 52950.3726
A153: 133 | B153: 2031-09-10 | C153: 31 | D153: 4795415.353 | E153: 0 | F153: 16657.82774 | G153: 16657.82774 | H153: 44589.96527 | I153: 61247.79301 | J153: 61247.79301 | K153: 43001.43515 | L153: 0 | M153: 4795415.353 | N153: 20000 | O153: 0 | R153: 2680000 | S153: 2680000 | T153: 9309.512329 | U153: 0
A154: 134 | B154: 2031-10-10 | C154: 30 | D154: 4750825.387 | E154: 0 | F154: 15970.58288 | G154: 15970.58288 | H154: 45277.21013 | I154: 61247.79301 | J154: 61247.79301 | K154: 42887.23095 | L154: 0 | M154: 4750825.387 | N154: 20000 | O154: 0 | R154: 2700000 | S154: 2700000 | T154: 9076.438356 | U154: 0
A155: 135 | B155: 2031-11-10 | C155: 31 | D155: 4705548.177 | E155: 0 | F155: 16345.65626 | G155: 16345.65626 | H155: 44902.13675 | I155: 61247.79301 | J155: 61247.79301 | K155: 42773.33007 | L155: 0 | M155: 4705548.177 | N155: 20000 | O155: 0 | R155: 2720000 | S155: 2720000 | T155: 9448.460274 | U155: 0
A156: 136 | B156: 2031-12-10 | C156: 30 | D156: 4660646.041 | E156: 0 | F156: 15667.43203 | G156: 15667.43203 | H156: 45580.36098 | I156: 61247.79301 | J156: 61247.79301 | K156: 42659.73168 | L156: 0 | M156: 4660646.041 | N156: 20000 | O156: 0 | R156: 2740000 | S156: 2740000 | T156: 9210.90411 | U156: 0
A157: 137 | B157: 2032-01-10 | C157: 31 | D157: 4615065.68 | E157: 0 | F157: 16031.34733 | G157: 16031.34733 | H157: 45216.44568 | I157: 61247.79301 | J157: 61247.79301 | K157: 42546.43499 | L157: 0 | M157: 4615065.68 | N157: 20000 | O157: 0 | R157: 2760000 | S157: 2760000 | T157: 9587.408219 | U157: 0
A158: 138 | B158: 2032-02-10 | C158: 31 | D158: 4569849.234 | E158: 0 | F158: 15874.27902 | G158: 15874.27902 | H158: 101663.1195 | I158: 61247.79301 | J158: 4958.187531 | K158: 42433.43919 | L158: 0 | M158: 4569849.234 | N158: 20000 | O158: 0 | R158: 2780000 | S158: 2780000 | T158: 56289.60548 | U158: 56289.60548
A159: 139 | B159: 2032-03-10 | C159: 29 | D159: 4468186.114 | E159: 0 | F159: 14519.76863 | G159: 14519.76863 | H159: 46728.02438 | I159: 61247.79301 | J159: 61247.79301 | K159: 42320.74349 | L159: 0 | M159: 4468186.114 | N159: 20000 | O159: 0 | R159: 2800000 | S159: 2800000 | T159: 9098.849315 | U159: 0
A160: 140 | B160: 2032-04-10 | C160: 31 | D160: 4421458.09 | E160: 0 | F160: 15358.81291 | G160: 15358.81291 | H160: 45888.9801 | I160: 61247.79301 | J160: 61247.79301 | K160: 42208.34709 | L160: 0 | M160: 4421458.09 | N160: 20000 | O160: 0 | R160: 2820000 | S160: 2820000 | T160: 9795.830137 | U160: 0
A161: 141 | B161: 2032-05-10 | C161: 30 | D161: 4375569.11 | E161: 0 | F161: 14709.10493 | G161: 14709.10493 | H161: 46538.68808 | I161: 61247.79301 | J161: 61247.79301 | K161: 42096.2492 | L161: 0 | M161: 4375569.11 | N161: 20000 | O161: 0 | R161: 2840000 | S161: 2840000 | T161: 9547.068493 | U161: 0
A162: 142 | B162: 2032-06-10 | C162: 31 | D162: 4329030.422 | E162: 0 | F162: 15037.74705 | G162: 15037.74705 | H162: 46210.04596 | I162: 61247.79301 | J162: 61247.79301 | K162: 41984.44902 | L162: 0 | M162: 4329030.422 | N162: 20000 | O162: 0 | R162: 2860000 | S162: 2860000 | T162: 9934.778082 | U162: 0
A163: 143 | B163: 2032-07-10 | C163: 30 | D163: 4282820.376 | E163: 0 | F163: 14397.31672 | G163: 14397.31672 | H163: 46850.4763 | I163: 61247.79301 | J163: 61247.79301 | K163: 41872.94576 | L163: 0 | M163: 4282820.376 | N163: 20000 | O163: 0 | R163: 2880000 | S163: 2880000 | T163: 9681.534247 | U163: 0
A164: 144 | B164: 2032-08-10 | C164: 31 | D164: 4235969.9 | E164: 0 | F164: 14714.48284 | G164: 14714.48284 | H164: 104665.0965 | I164: 61247.79301 | J164: 3116.006709 | K164: 41761.73863 | L164: 0 | M164: 4235969.9 | N164: 20000 | O164: 0 | R164: 2900000 | S164: 2900000 | T164: 58131.7863 | U164: 58131.7863
A165: 145 | B165: 2032-09-10 | C165: 31 | D165: 4131304.803 | E165: 0 | F165: 14350.90784 | G165: 14350.90784 | H165: 46896.88518 | I165: 61247.79301 | J165: 61247.79301 | K165: 41650.82685 | L165: 0 | M165: 4131304.803 | N165: 20000 | O165: 0 | R165: 2920000 | S165: 2891913.362 | T165: 10045.63548 | U165: 0
A166: 146 | B166: 2032-10-10 | C166: 30 | D166: 4084407.918 | E166: 0 | F166: 13730.3247 | G166: 13730.3247 | H166: 47517.46831 | I166: 61247.79301 | J166: 61247.79301 | K166: 41540.20963 | L166: 0 | M166: 4084407.918 | N166: 20000 | O166: 0 | R166: 2940000 | S166: 2859085.543 | T166: 9611.22729 | U166: 0
A167: 147 | B167: 2032-11-10 | C167: 31 | D167: 4036890.45 | E167: 0 | F167: 14022.94082 | G167: 14022.94082 | H167: 47224.85219 | I167: 61247.79301 | J167: 61247.79301 | K167: 41429.88619 | L167: 0 | M167: 4036890.45 | N167: 20000 | O167: 0 | R167: 2960000 | S167: 2825823.315 | T167: 9816.058577 | U167: 0
A168: 148 | B168: 2032-12-10 | C168: 30 | D168: 3989665.597 | E168: 0 | F168: 13411.83476 | G168: 13411.83476 | H168: 47835.95825 | I168: 61247.79301 | J168: 61247.79301 | K168: 41319.85575 | L168: 0 | M168: 3989665.597 | N168: 20000 | O168: 0 | R168: 2980000 | S168: 2792765.918 | T168: 9388.284333 | U168: 0
A169: 149 | B169: 2033-01-10 | C169: 31 | D169: 3941829.639 | E169: 0 | F169: 13692.72822 | G169: 13692.72822 | H169: 47555.06479 | I169: 61247.79301 | J169: 61247.79301 | K169: 41210.11753 | L169: 0 | M169: 3941829.639 | N169: 20000 | O169: 0 | R169: 3000000 | S169: 2759280.747 | T169: 9584.909753 | U169: 0
A170: 150 | B170: 2033-02-10 | C170: 31 | D170: 3894274.574 | E170: 0 | F170: 13527.53625 | G170: 13527.53625 | H170: 105635.6476 | I170: 61247.79301 | J170: 3332.402195 | K170: 41100.67076 | L170: 0 | M170: 3894274.574 | N170: 20000 | O170: 0 | R170: 3020000 | S170: 2725992.202 | T170: 57915.39082 | U170: 57915.39082
A171: 151 | B171: 2033-03-10 | C171: 28 | D171: 3788638.927 | E171: 0 | F171: 11886.98438 | G171: 11886.98438 | H171: 49360.80863 | I171: 61247.79301 | J171: 61247.79301 | K171: 40991.51466 | L171: 0 | M171: 3788638.927 | N171: 20000 | O171: 0 | R171: 3040000 | S171: 2652047.249 | T171: 8320.889067 | U171: 0
A172: 152 | B172: 2033-04-10 | C172: 31 | D172: 3739278.118 | E172: 0 | F172: 12989.12528 | G172: 12989.12528 | H172: 48258.66773 | I172: 61247.79301 | J172: 61247.79301 | K172: 40882.64846 | L172: 0 | M172: 3739278.118 | N172: 20000 | O172: 0 | R172: 3060000 | S172: 2617494.683 | T172: 9092.387694 | U172: 0
A173: 153 | B173: 2033-05-10 | C173: 30 | D173: 3691019.45 | E173: 0 | F173: 12407.89278 | G173: 12407.89278 | H173: 48839.90023 | I173: 61247.79301 | J173: 61247.79301 | K173: 40774.07138 | L173: 0 | M173: 3691019.45 | N173: 20000 | O173: 0 | R173: 3080000 | S173: 2583713.615 | T173: 8685.524948 | U173: 0
A174: 154 | B174: 2033-06-10 | C174: 31 | D174: 3642179.55 | E174: 0 | F174: 12651.83411 | G174: 12651.83411 | H174: 48595.9589 | I174: 61247.79301 | J174: 61247.79301 | K174: 40665.78267 | L174: 0 | M174: 3642179.55 | N174: 20000 | O174: 0 | R174: 3100000 | S174: 2549525.685 | T174: 8856.28388 | U174: 0
A175: 155 | B175: 2033-07-10 | C175: 30 | D175: 3593583.591 | E175: 0 | F175: 12080.34813 | G175: 12080.34813 | H175: 49167.44488 | I175: 61247.79301 | J175: 61247.79301 | K175: 40557.78156 | L175: 0 | M175: 3593583.591 | N175: 20000 | O175: 0 | R175: 3120000 | S175: 2515508.514 | T175: 8456.243689 | U175: 0
A176: 156 | B176: 2033-08-10 | C176: 31 | D176: 3544416.146 | E176: 0 | F176: 12312.23351 | G176: 12312.23351 | H176: 100965.4522 | I176: 61247.79301 | J176: 9217.900274 | K176: 40450.06727 | L176: 0 | M176: 3544416.146 | N176: 20000 | O176: 0 | R176: 3140000 | S176: 2481091.303 | T176: 52029.89274 | U176: 52029.89274
A177: 157 | B177: 2033-09-10 | C177: 31 | D177: 3443450.694 | E177: 0 | F177: 11961.50996 | G177: 11961.50996 | H177: 49286.28305 | I177: 61247.79301 | J177: 61247.79301 | K177: 40342.63906 | L177: 0 | M177: 3443450.694 | N177: 20000 | O177: 0 | R177: 3160000 | S177: 2410415.486 | T177: 8373.056972 | U177: 0
A178: 158 | B178: 2033-10-10 | C178: 30 | D178: 3394164.411 | E178: 0 | F178: 11409.97187 | G178: 11409.97187 | H178: 49837.82114 | I178: 61247.79301 | J178: 61247.79301 | K178: 40235.49615 | L178: 0 | M178: 3394164.411 | N178: 20000 | O178: 0 | R178: 3180000 | S178: 2375915.088 | T178: 7986.980309 | U178: 0
A179: 159 | B179: 2033-11-10 | C179: 31 | D179: 3344326.59 | E179: 0 | F179: 11617.18269 | G179: 11617.18269 | H179: 49630.61032 | I179: 61247.79301 | J179: 61247.79301 | K179: 40128.6378 | L179: 0 | M179: 3344326.59 | N179: 20000 | O179: 0 | R179: 3200000 | S179: 2341028.613 | T179: 8132.027886 | U179: 0
A180: 160 | B180: 2033-12-10 | C180: 30 | D180: 3294695.98 | E180: 0 | F180: 11075.59443 | G180: 11075.59443 | H180: 50172.19858 | I180: 61247.79301 | J180: 61247.79301 | K180: 40022.06325 | L180: 0 | M180: 3294695.98 | N180: 20000 | O180: 0 | R180: 3220000 | S180: 2306287.186 | T180: 7752.916101 | U180: 0
A181: 161 | B181: 2034-01-10 | C181: 31 | D181: 3244523.781 | E181: 0 | F181: 11270.49781 | G181: 11270.49781 | H181: 49977.2952 | I181: 61247.79301 | J181: 61247.79301 | K181: 39915.77174 | L181: 0 | M181: 3244523.781 | N181: 20000 | O181: 0 | R181: 3240000 | S181: 2271166.647 | T181: 7889.34847 | U181: 0
A182: 162 | B182: 2034-02-10 | C182: 31 | D182: 3194546.486 | E182: 0 | F182: 11096.89175 | G182: 11096.89175 | H182: 98053.05522 | I182: 61247.79301 | J182: 13345.63905 | K182: 39809.76252 | L182: 0 | M182: 3194546.486 | N182: 20000 | O182: 0 | R182: 3260000 | S182: 2236182.54 | T182: 47902.15396 | U182: 47902.15396
A183: 163 | B183: 2034-03-10 | C183: 28 | D183: 3096493.431 | E183: 0 | F183: 9715.354183 | G183: 9715.354183 | H183: 51532.43883 | I183: 61247.79301 | J183: 61247.79301 | K183: 39704.03484 | L183: 0 | M183: 3096493.431 | N183: 20000 | O183: 0 | R183: 3280000 | S183: 2167545.401 | T183: 6800.747928 | U183: 0
A184: 164 | B184: 2034-04-10 | C184: 31 | D184: 3044960.992 | E184: 0 | F184: 10577.27683 | G184: 10577.27683 | H184: 50670.51618 | I184: 61247.79301 | J184: 61247.79301 | K184: 39598.58796 | L184: 0 | M184: 3044960.992 | N184: 20000 | O184: 0 | R184: 3300000 | S184: 2131472.694 | T184: 7404.093778 | U184: 0
A185: 165 | B185: 2034-05-10 | C185: 30 | D185: 2994290.476 | E185: 0 | F185: 10065.73812 | G185: 10065.73812 | H185: 51182.05489 | I185: 61247.79301 | J185: 61247.79301 | K185: 39493.42112 | L185: 0 | M185: 2994290.476 | N185: 20000 | O185: 0 | R185: 3320000 | S185: 2096003.333 | T185: 7046.016684 | U185: 0
A186: 166 | B186: 2034-06-10 | C186: 31 | D186: 2943108.421 | E186: 0 | F186: 10223.47169 | G186: 10223.47169 | H186: 51024.32132 | I186: 61247.79301 | J186: 61247.79301 | K186: 39388.53359 | L186: 0 | M186: 2943108.421 | N186: 20000 | O186: 0 | R186: 3340000 | S186: 2060175.895 | T186: 7156.430183 | U186: 0
A187: 167 | B187: 2034-07-10 | C187: 30 | D187: 2892084.099 | E187: 0 | F187: 9722.156685 | G187: 9722.156685 | H187: 51525.63633 | I187: 61247.79301 | J187: 61247.79301 | K187: 39283.92462 | L187: 0 | M187: 2892084.099 | N187: 20000 | O187: 0 | R187: 3360000 | S187: 2024458.87 | T187: 6805.50968 | U187: 0
A188: 168 | B188: 2034-08-10 | C188: 31 | D188: 2840558.463 | E188: 0 | F188: 9867.244042 | G188: 9867.244042 | H188: 93500.41805 | I188: 61247.79301 | J188: 19127.92393 | K188: 39179.59347 | L188: 0 | M188: 2840558.463 | N188: 20000 | O188: 0 | R188: 3380000 | S188: 1988390.924 | T188: 42119.86908 | U188: 42119.86908
A189: 169 | B189: 2034-09-10 | C189: 31 | D189: 2747058.045 | E189: 0 | F189: 9542.451768 | G189: 9542.451768 | H189: 51705.34124 | I189: 61247.79301 | J189: 61247.79301 | K189: 39075.53941 | L189: 0 | M189: 2747058.045 | N189: 20000 | O189: 0 | R189: 3400000 | S189: 1922940.632 | T189: 6679.716238 | U189: 0
A190: 170 | B190: 2034-10-10 | C190: 30 | D190: 2695352.704 | E190: 0 | F190: 9060.815802 | G190: 9060.815802 | H190: 52186.97721 | I190: 61247.79301 | J190: 61247.79301 | K190: 38971.7617 | L190: 0 | M190: 2695352.704 | N190: 20000 | O190: 0 | R190: 3420000 | S190: 1886746.893 | T190: 6342.571061 | U190: 0
A191: 171 | B191: 2034-11-10 | C191: 31 | D191: 2643165.727 | E191: 0 | F191: 9181.561164 | G191: 9181.561164 | H191: 52066.23185 | I191: 61247.79301 | J191: 61247.79301 | K191: 38868.25961 | L191: 0 | M191: 2643165.727 | N191: 20000 | O191: 0 | R191: 3440000 | S191: 1850216.009 | T191: 6427.092815 | U191: 0
A192: 172 | B192: 2034-12-10 | C192: 30 | D192: 2591099.495 | E192: 0 | F192: 8710.353644 | G192: 8710.353644 | H192: 52537.43937 | I192: 61247.79301 | J192: 61247.79301 | K192: 38765.03239 | L192: 0 | M192: 2591099.495 | N192: 20000 | O192: 0 | R192: 3460000 | S192: 1813769.646 | T192: 6097.247551 | U192: 0
A193: 173 | B193: 2035-01-10 | C193: 31 | D193: 2538562.055 | E193: 0 | F193: 8818.199535 | G193: 8818.199535 | H193: 52429.59348 | I193: 61247.79301 | J193: 61247.79301 | K193: 38662.07933 | L193: 0 | M193: 2538562.055 | N193: 20000 | O193: 0 | R193: 3480000 | S193: 1776993.439 | T193: 6172.739674 | U193: 0
A194: 174 | B194: 2035-02-10 | C194: 31 | D194: 2486132.462 | E194: 0 | F194: 8636.074927 | G194: 8636.074927 | H194: 90376.33787 | I194: 61247.79301 | J194: 23483.17322 | K194: 38559.3997 | L194: 0 | M194: 2486132.462 | N194: 20000 | O194: 0 | R194: 3500000 | S194: 1740292.723 | T194: 37764.61979 | U194: 37764.61979
A195: 175 | B195: 2035-03-10 | C195: 28 | D195: 2395756.124 | E195: 0 | F195: 7516.766886 | G195: 7516.766886 | H195: 53731.02612 | I195: 61247.79301 | J195: 61247.79301 | K195: 38456.99276 | L195: 0 | M195: 2395756.124 | N195: 20000 | O195: 0 | R195: 3520000 | S195: 1677029.287 | T195: 5261.73682 | U195: 0
A196: 176 | B196: 2035-04-10 | C196: 31 | D196: 2342025.098 | E196: 0 | F196: 8135.489375 | G196: 8135.489375 | H196: 53112.30364 | I196: 61247.79301 | J196: 61247.79301 | K196: 38354.8578 | L196: 0 | M196: 2342025.098 | N196: 20000 | O196: 0 | R196: 3540000 | S196: 1639417.569 | T196: 5694.842562 | U196: 0
A197: 177 | B197: 2035-05-10 | C197: 30 | D197: 2288912.794 | E197: 0 | F197: 7694.509585 | G197: 7694.509585 | H197: 53553.28343 | I197: 61247.79301 | J197: 61247.79301 | K197: 38252.99409 | L197: 0 | M197: 2288912.794 | N197: 20000 | O197: 0 | R197: 3560000 | S197: 1602238.956 | T197: 5386.15671 | U197: 0
A198: 178 | B198: 2035-06-10 | C198: 31 | D198: 2235359.511 | E198: 0 | F198: 7764.965271 | G198: 7764.965271 | H198: 53482.82774 | I198: 61247.79301 | J198: 61247.79301 | K198: 38151.40092 | L198: 0 | M198: 2235359.511 | N198: 20000 | O198: 0 | R198: 3580000 | S198: 1564751.658 | T198: 5435.47569 | U198: 0
A199: 179 | B199: 2035-07-10 | C199: 30 | D199: 2181876.683 | E199: 0 | F199: 7334.692302 | G199: 7334.692302 | H199: 53913.10071 | I199: 61247.79301 | J199: 61247.79301 | K199: 38050.07755 | L199: 0 | M199: 2181876.683 | N199: 20000 | O199: 0 | R199: 3600000 | S199: 1527313.678 | T199: 5134.284611 | U199: 0
A200: 180 | B200: 2035-08-10 | C200: 31 | D200: 2127963.582 | E200: 0 | F200: 7391.904181 | G200: 7391.904181 | H200: 85942.71815 | I200: 61247.79301 | J200: 29160.96369 | K200: 37949.02329 | L200: 0 | M200: 2127963.582 | N200: 20000 | O200: 0 | R200: 3620000 | S200: 1489574.508 | T200: 32086.82932 | U200: 32086.82932
... 180 more rows

Sheet MFL_5 (hidden)
A1: Input | B1: 2 | C1: 3 | D1: 4 | E1: 5 | F1: 6 | G1: 7 | H1: 8 | I1: 9 | J1: 10 | K1: 11 | S1: 12 | AP1: =+#REF! -> 
A2: Disbursement Date | B2: 2019-07-01 | E2: Output | AP2: =+#REF! -> 
A3: Loan Amount | B3: =IF(Kalkulátor!C4<55000001,Kalkulátor!C4,0) -> 10000000 | C3: =+F4+B9 -> 3401245.821 | E3: Fee Income | F3: =SUM(E21:E380) -> 0 | AP3: =+#REF! -> 
A4: Monthly Hand Fee (fix Amt) | B4: 0 | C4: =+B3+C3 -> 13401245.82 | E4: Interest Income | F4: =SUM(F21:F380) -> 3372118.821 | AP4: =+#REF! -> 
A5: Interest | B5: =Kalkulátor!C22 -> 0.0304 | H5: Output | I5: Communication | K5: havi megtakarítás | L5: 0
A6: Interest Only Period | E6: Starting Date | F6: =+First_payment(B2,B15) -> 2019-08-10 | H6: Loan Amount | I6: =+B3 -> 10000000 | K6: Havi számlára érkező pénz | L6: 0
A7: Term | B7: =Kalkulátor!C5 -> 240 | E7: First Duedate | F7: =+F6 -> 2019-08-10 | H7: Term | I7: =+B7 -> 240 | K7: Éves egyszeri megtakarítás | L7: 0
A8: HUF Upfront Fee % of the Disb Amt | B8: 0 | C8: Utalási díj | D8: FH költség | E8: Ending Date | F8: =+VLOOKUP(B7+B6, A20:D45,2) -> 2021-08-10 | H8: Interest Only Period | I8: =+B6 -> 0 | K8: Kezdeti megtakarítás | L8: 0
A9: HUF Upfront Fee Fix Amt | B9: =C9+D9+C11 -> 29127 | C9: 16527 | D9: 12600 | E9: Installment wo TI | F9: =XPMT(IF(B6=0,B2,VLOOKUP(B6,A21:B380,2,)),VLOOKUP(B6+1,A21:B380,2,),B7-B6,0,B3,B5,B4, B14,B13) -> 55717.16175 | H9: Installment w TI | I9: =+F10 -> 55717.16175
A10: FX Upfront Fee Fix Amt (to be paid in FX) | B10: 0 | C10: ÉB díj | D10: Trkpmás | E10: Installment | F10: =F9*B$12 / B11 -> 55717.16175 | H10: APR | K10: Törlesztőrészlet | L10: =F9-B4 -> 55717.16175
A11: FX bid currency | B11: 1 | C11: 0 | D11: 0 | E11: XIRR | F11: =XIRR(I20:I380,B20:B380) -> 0.03115876615 | H11: XIRR | I11: =+F11 -> 0.03115876615 | K11: PPI-al | L11: =L10+K21 -> 55717.16175
A12: FX ask currency | B12: 1 | K12: Ügyfél által megfizetett tőke | L12: =SUM(H21:H380)-SUM(T20:T380) -> 10000000 | N12: =+L12+L13+B9 -> 13401245.82
A13: 30-days (if not then real calendar days) | B13: 0 | K13: Ügyfél által megfizetett kamat | L13: =SUM(F21:F380) -> 3372118.821
A14: Days in Years | B14: 365 | E14: PPI díj | F14: 0.047 | H14: Módusuló futamidő | K14: Tényleges futamidő | L14: =MATCH(0,D21:D380,0)-1 -> 241
A15: Product | B15: Mortgage | C15: Maradványérték | E15: PPI díjjal kell számolni? | F15: n | K15: Meg nem fizetett törlesztőrészletek száma és összege | L15: =CONCATENATE(B7-L14," db., ",TEXT((B7-L14)*L10,"0 000 Ft")) -> -1 db., -55 717 Ft
C16: =+D81/B3 -> 0.8044344544 | K16: Felhalmozott megtakarítások | L16: =MAX(Q20:Q380) -> 0
C17: =D141/B3 -> 0.5758320427
A18: Details
A19: Term | B19: PaymentDate | C19: DaysBetween | D19: Capital | E19: Fee | F19: Interest | G19: Interest+Fee | H19: Principal | I19: CF- with TradeIncome | J19: THM Calculation | K19: PPI | L19: Módosított tőke | M19: Megtakarítás | N19: Éves egyszeri | O19: havi bejövő | P19: Kezdeti | Q19: Összeg | R19: 70%-os korláttal | S19: Kedvezmény | T19: Kedvezmény tőke számításhoz
A20: 0- Disbursement | B20: =+B2 -> 2019-07-01 | C20: 0 | D20: 0 | E20: 0 | F20: 0 | G20: 0 | H20: 0 | I20: =- B3 + B8*B3 + B9 + B10 / B11 -> -9970873 | J20: =SUM(J21:J380)+I20 -> 10326.52334 | L20: =D20 -> 0 | M20: =$L$5 -> 0 | O20: =L6/2 -> 0 | P20: =$L$8 -> 0 | Q20: =SUM(M20:P20) -> 0 | R20: =IF(Q20<=L21*0.7,Q20,L21*0.7) -> 0 | S20: =R20*$B$5/$B$14*C21 -> 0
A21: 1 | B21: =+F6 -> 2019-08-10 | C21: =+IF($B$13=1, 30, B21-B20) -> 40 | D21: =$B$3 -> 10000000 | E21: =IF(D21>0,$B$4,0) -> 0 | F21: =+C21/$B$14*$B$5*D21 -> 33315.06849 | G21: =E21+F21 -> 33315.06849 | H21: =+IF(A21<=$B$6,0,IF(D21>0,IF($F$9-G21+IF(MOD(A21,6)=0,S21,0)>D21,D21,$F$9-G21+IF(MOD(A21,6)=0,S21,0)),0)) -> 22402.09326 | I21: =IF(D21>0,+G21+H21+K21-IF(MOD(A21,6)=0,S21,0),0) -> 55717.16175 | J21: =+I21/POWER((1+$I$11),A21/12) -> 55574.87873 | K21: =IF(D21>0,IF($F$15="I",($F$9-$B$4)*$F$14,0),0) -> 0 | L21: =D21 -> 10000000 | M21: =$L$5 -> 0 | N21: =IF(MOD(A21,12)=0,$L$7,0) -> 0 | Q21: =IF(D21>0,SUM(M21:P21)+Q20,0) -> 0 | R21: =IF(Q21<=L21*0.7,Q21,L21*0.7) -> 0 | S21: =IF(MOD(A21,6)=0,SUM(S16:S20)+R21*$B$5/$B$14*C21,R21*$B$5/$B$14*C21) -> 0 | T21: =IF(MOD(A21,6)=0,S21,0) -> 0
A22: 2 | B22: =IF(MONTH(B21)=12,DATE(YEAR(B21)+1,1,DAY(B21)),DATE(YEAR(B21),MONTH(B21)+1,DAY(B21))) -> 2019-09-10 | C22: 31 | D22: =IF(D21-IF(H21<0,0,H21)<0,0,D21-IF(H21<0,0,H21)) -> 9977597.907 | E22: =IF(D22>0,$B$4,0) -> 0 | F22: 25761.33772 | G22: 25761.33772 | H22: 29955.82404 | I22: =IF(D22>0,+G22+H22+K22-IF(MOD(A22,6)=0,S22,0),0) -> 55717.16175 | J22: =+I22/POWER((1+$I$11),A22/12) -> 55432.95906 | K22: =IF(D22>0,IF($F$15="I",($F$9-$B$4)*$F$14,0),0) -> 0 | L22: 9977597.907 | M22: 0 | N22: =IF(MOD(A22,12)=0,$L$7,0) -> 0 | Q22: =IF(D22>0,SUM(M22:P22)+Q21,0) -> 0 | R22: =IF(Q22<=L22*0.7,Q22,L22*0.7) -> 0 | S22: =IF(MOD(A22,6)=0,SUM(S17:S21)+R22*$B$5/$B$14*C22,R22*$B$5/$B$14*C22) -> 0 | T22: =IF(MOD(A22,6)=0,S22,0) -> 0
A23: 3 | B23: 2019-10-10 | C23: 30 | D23: =IF(D22-IF(H22<0,0,H22)<0,0,D22-IF(H22<0,0,H22)) -> 9947642.083 | E23: 0 | F23: 24855.4783 | G23: 24855.4783 | H23: 30861.68345 | I23: 55717.16175 | J23: 55291.4018 | K23: 0 | L23: 9947642.083 | M23: 0 | N23: 0 | Q23: 0 | R23: 0 | S23: 0 | T23: 0
A24: 4 | B24: 2019-11-10 | C24: 31 | D24: 9916780.399 | E24: 0 | F24: 25604.31191 | G24: 25604.31191 | H24: 30112.84984 | I24: 55717.16175 | J24: 55150.20603 | K24: 0 | L24: 9916780.399 | M24: 0 | N24: 0 | Q24: 0 | R24: 0 | S24: 0 | T24: 0
A25: 5 | B25: 2019-12-10 | C25: 30 | D25: 9886667.549 | E25: 0 | F25: 24703.12549 | G25: 24703.12549 | H25: 31014.03626 | I25: 55717.16175 | J25: 55009.37082 | K25: 0 | L25: 9886667.549 | M25: 0 | N25: 0 | Q25: 0 | R25: 0 | S25: 0 | T25: 0
A26: 6 | B26: 2020-01-10 | C26: 31 | D26: 9855653.513 | E26: 0 | F26: =+C26/$B$14*$B$5*D26 -> 25446.48732 | G26: 25446.48732 | H26: 30270.67444 | I26: 55717.16175 | J26: 54868.89526 | K26: 0 | L26: 9855653.513 | M26: 0 | N26: 0 | Q26: 0 | R26: 0 | S26: 0 | T26: 0
A27: 7 | B27: 2020-02-10 | C27: 31 | D27: 9825382.839 | E27: 0 | F27: 25368.33092 | G27: 25368.33092 | H27: 30348.83083 | I27: 55717.16175 | J27: 54728.77843 | K27: 0 | L27: 9825382.839 | M27: 0 | N27: 0 | Q27: 0 | R27: 0 | S27: 0 | T27: 0
A28: 8 | B28: 2020-03-10 | C28: 29 | D28: 9795034.008 | E28: 0 | F28: 23658.36159 | G28: 23658.36159 | H28: 32058.80016 | I28: 55717.16175 | J28: 54589.01942 | K28: 0 | L28: 9795034.008 | M28: 0 | N28: 0 | Q28: 0 | R28: 0 | S28: 0 | T28: 0
A29: 9 | B29: 2020-04-10 | C29: 31 | D29: 9762975.208 | E29: 0 | F29: 25207.19955 | G29: 25207.19955 | H29: 30509.9622 | I29: 55717.16175 | J29: 54449.61729 | K29: 0 | L29: 9762975.208 | M29: 0 | N29: 0 | Q29: 0 | R29: 0 | S29: 0 | T29: 0
A30: 10 | B30: 2020-05-10 | C30: 30 | D30: 9732465.246 | E30: 0 | F30: 24317.83097 | G30: 24317.83097 | H30: 31399.33078 | I30: 55717.16175 | J30: 54310.57116 | K30: 0 | L30: 9732465.246 | M30: 0 | N30: 0 | Q30: 0 | R30: 0 | S30: 0 | T30: 0
A31: 11 | B31: 2020-06-10 | C31: 31 | D31: 9701065.915 | E31: 0 | F31: 25047.35484 | G31: 25047.35484 | H31: 30669.80691 | I31: 55717.16175 | J31: 54171.8801 | K31: 0 | L31: 9701065.915 | M31: 0 | N31: 0 | Q31: 0 | R31: 0 | S31: 0 | T31: 0
A32: 12 | B32: 2020-07-10 | C32: 30 | D32: 9670396.108 | E32: 0 | F32: 24162.74315 | G32: 24162.74315 | H32: 31554.4186 | I32: 55717.16175 | J32: 54033.54322 | K32: 0 | L32: 9670396.108 | M32: 0 | N32: 0 | Q32: 0 | R32: 0 | S32: 0 | T32: 0
A33: 13 | B33: 2020-08-10 | C33: 31 | D33: 9638841.689 | E33: 0 | F33: 24886.69701 | G33: 24886.69701 | H33: 30830.46475 | I33: 55717.16175 | J33: 53895.5596 | K33: 0 | L33: 9638841.689 | M33: 0 | N33: 0 | Q33: 0 | R33: 0 | S33: 0 | T33: 0
A34: 14 | B34: 2020-09-10 | C34: 31 | D34: 9608011.224 | E34: 0 | F34: 24807.09528 | G34: 24807.09528 | H34: 30910.06647 | I34: 55717.16175 | J34: 53757.92834 | K34: 0 | L34: 9608011.224 | M34: 0 | N34: 0 | Q34: 0 | R34: 0 | S34: 0 | T34: 0
A35: 15 | B35: 2020-10-10 | C35: 30 | D35: 9577101.158 | E35: 0 | F35: 23929.63358 | G35: 23929.63358 | H35: 31787.52818 | I35: 55717.16175 | J35: 53620.64855 | K35: 0 | L35: 9577101.158 | M35: 0 | N35: 0 | Q35: 0 | R35: 0 | S35: 0 | T35: 0
A36: 16 | B36: 2020-11-10 | C36: 31 | D36: 9545313.63 | E36: 0 | F36: 24645.21525 | G36: 24645.21525 | H36: 31071.94651 | I36: 55717.16175 | J36: 53483.71932 | K36: 0 | L36: 9545313.63 | M36: 0 | N36: 0 | Q36: 0 | R36: 0 | S36: 0 | T36: 0
A37: 17 | B37: 2020-12-10 | C37: 30 | D37: 9514241.683 | E37: 0 | F37: 23772.571 | G37: 23772.571 | H37: 31944.59075 | I37: 55717.16175 | J37: 53347.13977 | K37: 0 | L37: 9514241.683 | M37: 0 | N37: 0 | Q37: 0 | R37: 0 | S37: 0 | T37: 0
A38: 18 | B38: 2021-01-10 | C38: 31 | D38: 9482297.093 | E38: 0 | F38: 24482.51173 | G38: 24482.51173 | H38: 31234.65003 | I38: 55717.16175 | J38: 53210.90899 | K38: 0 | L38: 9482297.093 | M38: 0 | N38: 0 | Q38: 0 | R38: 0 | S38: 0 | T38: 0
A39: 19 | B39: 2021-02-10 | C39: 31 | D39: 9451062.443 | E39: 0 | F39: 24401.86643 | G39: 24401.86643 | H39: 31315.29533 | I39: 55717.16175 | J39: 53075.02611 | K39: 0 | L39: 9451062.443 | M39: 0 | N39: 0 | Q39: 0 | R39: 0 | S39: 0 | T39: 0
A40: 20 | B40: 2021-03-10 | C40: 28 | D40: 9419747.147 | E40: 0 | F40: 21967.3665 | G40: 21967.3665 | H40: 33749.79526 | I40: 55717.16175 | J40: 52939.49022 | K40: 0 | L40: 9419747.147 | M40: 0 | N40: 0 | Q40: 0 | R40: 0 | S40: 0 | T40: 0
A41: 21 | B41: 2021-04-10 | C41: 31 | D41: 9385997.352 | E41: 0 | F41: 24233.87371 | G41: 24233.87371 | H41: 31483.28804 | I41: 55717.16175 | J41: 52804.30045 | K41: 0 | L41: 9385997.352 | M41: 0 | N41: 0 | Q41: 0 | R41: 0 | S41: 0 | T41: 0
A42: 22 | B42: 2021-05-10 | C42: 30 | D42: 9354514.064 | E42: 0 | F42: 23373.47076 | G42: 23373.47076 | H42: 32343.691 | I42: 55717.16175 | J42: 52669.4559 | K42: 0 | L42: 9354514.064 | M42: 0 | N42: 0 | Q42: 0 | R42: 0 | S42: 0 | T42: 0
A43: 23 | B43: 2021-06-10 | C43: 31 | D43: 9322170.373 | E43: 0 | F43: 24069.0777 | G43: 24069.0777 | H43: 31648.08406 | I43: 55717.16175 | J43: 52534.9557 | K43: 0 | L43: 9322170.373 | M43: 0 | N43: 0 | Q43: 0 | R43: 0 | S43: 0 | T43: 0
A44: 24 | B44: 2021-07-10 | C44: 30 | D44: 9290522.289 | E44: 0 | F44: 23213.57898 | G44: 23213.57898 | H44: 32503.58278 | I44: 55717.16175 | J44: 52400.79898 | K44: 0 | L44: 9290522.289 | M44: 0 | N44: 0 | Q44: 0 | R44: 0 | S44: 0 | T44: 0
A45: 25 | B45: 2021-08-10 | C45: 31 | D45: 9258018.706 | E45: 0 | F45: 23903.44337 | G45: 23903.44337 | H45: 31813.71839 | I45: 55717.16175 | J45: 52266.98484 | K45: 0 | L45: 9258018.706 | M45: 0 | N45: 0 | Q45: 0 | R45: 0 | S45: 0 | T45: 0
A46: 26 | B46: 2021-09-10 | C46: 31 | D46: 9226204.988 | E46: 0 | F46: 23821.30296 | G46: 23821.30296 | H46: 31895.85879 | I46: 55717.16175 | J46: 52133.51242 | K46: 0 | L46: 9226204.988 | M46: 0 | N46: 0 | Q46: 0 | R46: 0 | S46: 0 | T46: 0
A47: 27 | B47: 2021-10-10 | C47: 30 | D47: 9194309.129 | E47: 0 | F47: 22973.17788 | G47: 22973.17788 | H47: 32743.98388 | I47: 55717.16175 | J47: 52000.38084 | K47: 0 | L47: 9194309.129 | M47: 0 | N47: 0 | Q47: 0 | R47: 0 | S47: 0 | T47: 0
A48: 28 | B48: 2021-11-10 | C48: 31 | D48: 9161565.145 | E48: 0 | F48: 23654.4082 | G48: 23654.4082 | H48: 32062.75356 | I48: 55717.16175 | J48: 51867.58924 | K48: 0 | L48: 9161565.145 | M48: 0 | N48: 0 | Q48: 0 | R48: 0 | S48: 0 | T48: 0
A49: 29 | B49: 2021-12-10 | C49: 30 | D49: 9129502.391 | E49: 0 | F49: 22811.24981 | G49: 22811.24981 | H49: 32905.91194 | I49: 55717.16175 | J49: 51735.13674 | K49: 0 | L49: 9129502.391 | M49: 0 | N49: 0 | Q49: 0 | R49: 0 | S49: 0 | T49: 0
A50: 30 | B50: 2022-01-10 | C50: 31 | D50: 9096596.48 | E50: 0 | F50: 23486.66444 | G50: 23486.66444 | H50: 32230.49731 | I50: 55717.16175 | J50: 51603.02248 | K50: 0 | L50: 9096596.48 | M50: 0 | N50: 0 | Q50: 0 | R50: 0 | S50: 0 | T50: 0
A51: 31 | B51: 2022-02-10 | C51: 31 | D51: 9064365.982 | E51: 0 | F51: 23403.44795 | G51: 23403.44795 | H51: 32313.7138 | I51: 55717.16175 | J51: 51471.2456 | K51: 0 | L51: 9064365.982 | M51: 0 | N51: 0 | Q51: 0 | R51: 0 | S51: 0 | T51: 0
A52: 32 | B52: 2022-03-10 | C52: 28 | D52: 9032052.268 | E52: 0 | F52: 21063.2408 | G52: 21063.2408 | H52: 34653.92096 | I52: 55717.16175 | J52: 51339.80523 | K52: 0 | L52: 9032052.268 | M52: 0 | N52: 0 | Q52: 0 | R52: 0 | S52: 0 | T52: 0
A53: 33 | B53: 2022-04-10 | C53: 31 | D53: 8997398.347 | E53: 0 | F53: 23230.54302 | G53: 23230.54302 | H53: 32486.61873 | I53: 55717.16175 | J53: 51208.70052 | K53: 0 | L53: 8997398.347 | M53: 0 | N53: 0 | Q53: 0 | R53: 0 | S53: 0 | T53: 0
A54: 34 | B54: 2022-05-10 | C54: 30 | D54: 8964911.729 | E54: 0 | F54: 22399.99862 | G54: 22399.99862 | H54: 33317.16313 | I54: 55717.16175 | J54: 51077.93061 | K54: 0 | L54: 8964911.729 | M54: 0 | N54: 0 | Q54: 0 | R54: 0 | S54: 0 | T54: 0
A55: 35 | B55: 2022-06-10 | C55: 31 | D55: 8931594.566 | E55: 0 | F55: 23060.64306 | G55: 23060.64306 | H55: 32656.51869 | I55: 55717.16175 | J55: 50947.49463 | K55: 0 | L55: 8931594.566 | M55: 0 | N55: 0 | Q55: 0 | R55: 0 | S55: 0 | T55: 0
A56: 36 | B56: 2022-07-10 | C56: 30 | D56: 8898938.047 | E56: 0 | F56: 22235.15479 | G56: 22235.15479 | H56: 33482.00696 | I56: 55717.16175 | J56: 50817.39175 | K56: 0 | L56: 8898938.047 | M56: 0 | N56: 0 | Q56: 0 | R56: 0 | S56: 0 | T56: 0
A57: 37 | B57: 2022-08-10 | C57: 31 | D57: 8865456.04 | E57: 0 | F57: 22889.87883 | G57: 22889.87883 | H57: 32827.28293 | I57: 55717.16175 | J57: 50687.62111 | K57: 0 | L57: 8865456.04 | M57: 0 | N57: 0 | Q57: 0 | R57: 0 | S57: 0 | T57: 0
A58: 38 | B58: 2022-09-10 | C58: 31 | D58: 8832628.757 | E58: 0 | F58: 22805.12148 | G58: 22805.12148 | H58: 32912.04027 | I58: 55717.16175 | J58: 50558.18185 | K58: 0 | L58: 8832628.757 | M58: 0 | N58: 0 | Q58: 0 | R58: 0 | S58: 0 | T58: 0
A59: 39 | B59: 2022-10-10 | C59: 30 | D59: 8799716.717 | E59: 0 | F59: 21987.23739 | G59: 21987.23739 | H59: 33729.92437 | I59: 55717.16175 | J59: 50429.07315 | K59: 0 | L59: 8799716.717 | M59: 0 | N59: 0 | Q59: 0 | R59: 0 | S59: 0 | T59: 0
A60: 40 | B60: 2022-11-10 | C60: 31 | D60: 8765986.792 | E60: 0 | F60: 22633.05741 | G60: 22633.05741 | H60: 33084.10435 | I60: 55717.16175 | J60: 50300.29414 | K60: 0 | L60: 8765986.792 | M60: 0 | N60: 0 | Q60: 0 | R60: 0 | S60: 0 | T60: 0
A61: 41 | B61: 2022-12-10 | C61: 30 | D61: 8732902.688 | E61: 0 | F61: 21820.29384 | G61: 21820.29384 | H61: 33896.86791 | I61: 55717.16175 | J61: 50171.84399 | K61: 0 | L61: 8732902.688 | M61: 0 | N61: 0 | Q61: 0 | R61: 0 | S61: 0 | T61: 0
A62: 42 | B62: 2023-01-10 | C62: 31 | D62: 8699005.82 | E62: 0 | F62: 22460.11804 | G62: 22460.11804 | H62: 33257.04371 | I62: 55717.16175 | J62: 50043.72186 | K62: 0 | L62: 8699005.82 | M62: 0 | N62: 0 | Q62: 0 | R62: 0 | S62: 0 | T62: 0
A63: 43 | B63: 2023-02-10 | C63: 31 | D63: 8665748.776 | E63: 0 | F63: 22374.25109 | G63: 22374.25109 | H63: 33342.91067 | I63: 55717.16175 | J63: 49915.92691 | K63: 0 | L63: 8665748.776 | M63: 0 | N63: 0 | Q63: 0 | R63: 0 | S63: 0 | T63: 0
A64: 44 | B64: 2023-03-10 | C64: 28 | D64: 8632405.866 | E64: 0 | F64: 20131.24349 | G64: 20131.24349 | H64: 35585.91827 | I64: 55717.16175 | J64: 49788.45831 | K64: 0 | L64: 8632405.866 | M64: 0 | N64: 0 | Q64: 0 | R64: 0 | S64: 0 | T64: 0
A65: 45 | B65: 2023-04-10 | C65: 31 | D65: 8596819.947 | E65: 0 | F65: 22196.28252 | G65: 22196.28252 | H65: 33520.87924 | I65: 55717.16175 | J65: 49661.31521 | K65: 0 | L65: 8596819.947 | M65: 0 | N65: 0 | Q65: 0 | R65: 0 | S65: 0 | T65: 0
A66: 46 | B66: 2023-05-10 | C66: 30 | D66: 8563299.068 | E66: 0 | F66: 21396.51712 | G66: 21396.51712 | H66: 34320.64463 | I66: 55717.16175 | J66: 49534.4968 | K66: 0 | L66: 8563299.068 | M66: 0 | N66: 0 | Q66: 0 | R66: 0 | S66: 0 | T66: 0
A67: 47 | B67: 2023-06-10 | C67: 31 | D67: 8528978.424 | E67: 0 | F67: 22021.12128 | G67: 22021.12128 | H67: 33696.04048 | I67: 55717.16175 | J67: 49408.00224 | K67: 0 | L67: 8528978.424 | M67: 0 | N67: 0 | Q67: 0 | R67: 0 | S67: 0 | T67: 0
A68: 48 | B68: 2023-07-10 | C68: 30 | D68: 8495282.383 | E68: 0 | F68: 21226.56858 | G68: 21226.56858 | H68: 34490.59317 | I68: 55717.16175 | J68: 49281.83071 | K68: 0 | L68: 8495282.383 | M68: 0 | N68: 0 | Q68: 0 | R68: 0 | S68: 0 | T68: 0
A69: 49 | B69: 2023-08-10 | C69: 31 | D69: 8460791.79 | E69: 0 | F69: 21845.06899 | G69: 21845.06899 | H69: 33872.09276 | I69: 55717.16175 | J69: 49155.98138 | K69: 0 | L69: 8460791.79 | M69: 0 | N69: 0 | Q69: 0 | R69: 0 | S69: 0 | T69: 0
A70: 50 | B70: 2023-09-10 | C70: 31 | D70: 8426919.697 | E70: 0 | F70: 21757.61403 | G70: 21757.61403 | H70: 33959.54772 | I70: 55717.16175 | J70: 49030.45342 | K70: 0 | L70: 8426919.697 | M70: 0 | N70: 0 | Q70: 0 | R70: 0 | S70: 0 | T70: 0
A71: 51 | B71: 2023-10-10 | C71: 30 | D71: 8392960.149 | E71: 0 | F71: 20970.90317 | G71: 20970.90317 | H71: 34746.25859 | I71: 55717.16175 | J71: 48905.24602 | K71: 0 | L71: 8392960.149 | M71: 0 | N71: 0 | Q71: 0 | R71: 0 | S71: 0 | T71: 0
A72: 52 | B72: 2023-11-10 | C72: 31 | D72: 8358213.891 | E72: 0 | F72: 21580.22129 | G72: 21580.22129 | H72: 34136.94046 | I72: 55717.16175 | J72: 48780.35836 | K72: 0 | L72: 8358213.891 | M72: 0 | N72: 0 | Q72: 0 | R72: 0 | S72: 0 | T72: 0
A73: 53 | B73: 2023-12-10 | C73: 30 | D73: 8324076.95 | E73: 0 | F73: 20798.78953 | G73: 20798.78953 | H73: 34918.37222 | I73: 55717.16175 | J73: 48655.78962 | K73: 0 | L73: 8324076.95 | M73: 0 | N73: 0 | Q73: 0 | R73: 0 | S73: 0 | T73: 0
A74: 54 | B74: 2024-01-10 | C74: 31 | D74: 8289158.578 | E74: 0 | F74: 21401.92615 | G74: 21401.92615 | H74: 34315.23561 | I74: 55717.16175 | J74: 48531.53898 | K74: 0 | L74: 8289158.578 | M74: 0 | N74: 0 | Q74: 0 | R74: 0 | S74: 0 | T74: 0
A75: 55 | B75: 2024-02-10 | C75: 31 | D75: 8254843.343 | E75: 0 | F75: 21313.32703 | G75: 21313.32703 | H75: 34403.83472 | I75: 55717.16175 | J75: 48407.60564 | K75: 0 | L75: 8254843.343 | M75: 0 | N75: 0 | Q75: 0 | R75: 0 | S75: 0 | T75: 0
A76: 56 | B76: 2024-03-10 | C76: 29 | D76: 8220439.508 | E76: 0 | F76: 19855.17663 | G76: 19855.17663 | H76: 35861.98512 | I76: 55717.16175 | J76: 48283.98879 | K76: 0 | L76: 8220439.508 | M76: 0 | N76: 0 | Q76: 0 | R76: 0 | S76: 0 | T76: 0
A77: 57 | B77: 2024-04-10 | C77: 31 | D77: 8184577.523 | E77: 0 | F77: 21131.90646 | G77: 21131.90646 | H77: 34585.2553 | I77: 55717.16175 | J77: 48160.68761 | K77: 0 | L77: 8184577.523 | M77: 0 | N77: 0 | Q77: 0 | R77: 0 | S77: 0 | T77: 0
A78: 58 | B78: 2024-05-10 | C78: 30 | D78: 8149992.267 | E78: 0 | F78: 20363.8163 | G78: 20363.8163 | H78: 35353.34546 | I78: 55717.16175 | J78: 48037.7013 | K78: 0 | L78: 8149992.267 | M78: 0 | N78: 0 | Q78: 0 | R78: 0 | S78: 0 | T78: 0
A79: 59 | B79: 2024-06-10 | C79: 31 | D79: 8114638.922 | E79: 0 | F79: 20951.33074 | G79: 20951.33074 | H79: 34765.83101 | I79: 55717.16175 | J79: 47915.02906 | K79: 0 | L79: 8114638.922 | M79: 0 | N79: 0 | Q79: 0 | R79: 0 | S79: 0 | T79: 0
A80: 60 | B80: 2024-07-10 | C80: 30 | D80: 8079873.091 | E80: 0 | F80: 20188.61441 | G80: 20188.61441 | H80: 35528.54735 | I80: 55717.16175 | J80: 47792.67008 | K80: 0 | L80: 8079873.091 | M80: 0 | N80: 0 | Q80: 0 | R80: 0 | S80: 0 | T80: 0
A81: 61 | B81: 2024-08-10 | C81: 31 | D81: 8044344.544 | E81: 0 | F81: 20769.83643 | G81: 20769.83643 | H81: 34947.32532 | I81: 55717.16175 | J81: 47670.62357 | K81: 0 | L81: 8044344.544 | M81: 0 | N81: 0 | Q81: 0 | R81: 0 | S81: 0 | T81: 0
A82: 62 | B82: 2024-09-10 | C82: 31 | D82: 8009397.218 | E82: 0 | F82: 20679.60531 | G82: 20679.60531 | H82: 35037.55644 | I82: 55717.16175 | J82: 47548.88872 | K82: 0 | L82: 8009397.218 | M82: 0 | N82: 0 | Q82: 0 | R82: 0 | S82: 0 | T82: 0
A83: 63 | B83: 2024-10-10 | C83: 30 | D83: 7974359.662 | E83: 0 | F83: 19924.97537 | G83: 19924.97537 | H83: 35792.18638 | I83: 55717.16175 | J83: 47427.46474 | K83: 0 | L83: 7974359.662 | M83: 0 | N83: 0 | Q83: 0 | R83: 0 | S83: 0 | T83: 0
A84: 64 | B84: 2024-11-10 | C84: 31 | D84: 7938567.475 | E84: 0 | F84: 20496.72874 | G84: 20496.72874 | H84: 35220.43302 | I84: 55717.16175 | J84: 47306.35084 | K84: 0 | L84: 7938567.475 | M84: 0 | N84: 0 | Q84: 0 | R84: 0 | S84: 0 | T84: 0
A85: 65 | B85: 2024-12-10 | C85: =+IF($B$13=1, 30, B85-B84) -> 30 | D85: 7903347.042 | E85: 0 | F85: =+C85/$B$14*$B$5*D85 -> 19747.5411 | G85: =E85+F85 -> 19747.5411 | H85: =+IF(A85<=$B$6,0,IF(D85>0,IF($F$9-G85+IF(MOD(A85,6)=0,S85,0)>D85,D85,$F$9-G85+IF(MOD(A85,6)=0,S85,0)),0)) -> 35969.62065 | I85: 55717.16175 | J85: 47185.54622 | K85: 0 | L85: =D85 -> 7903347.042 | M85: =$L$5 -> 0 | N85: 0 | Q85: 0 | R85: 0 | S85: 0 | T85: 0
A86: 66 | B86: =IF(MONTH(B85)=12,DATE(YEAR(B85)+1,1,DAY(B85)),DATE(YEAR(B85),MONTH(B85)+1,DAY(B85))) -> 2025-01-10 | C86: 31 | D86: 7867377.422 | E86: =IF(D86>0,$B$4,0) -> 0 | F86: 20312.92187 | G86: 20312.92187 | H86: 35404.23989 | I86: =IF(D86>0,+G86+H86+K86-IF(MOD(A86,6)=0,S86,0),0) -> 55717.16175 | J86: =+I86/POWER((1+$I$11),A86/12) -> 47065.05009 | K86: =IF(D86>0,IF($F$15="I",($F$9-$B$4)*$F$14,0),0) -> 0 | L86: 7867377.422 | M86: 0 | N86: =IF(MOD(A86,12)=0,$L$7,0) -> 0 | Q86: =IF(D86>0,SUM(M86:P86)+Q85,0) -> 0 | R86: =IF(Q86<=L86*0.7,Q86,L86*0.7) -> 0 | S86: =IF(MOD(A86,6)=0,SUM(S81:S85)+R86*$B$5/$B$14*C86,R86*$B$5/$B$14*C86) -> 0 | T86: =IF(MOD(A86,6)=0,S86,0) -> 0
A87: 67 | B87: 2025-02-10 | C87: 31 | D87: =IF(D86-IF(H86<0,0,H86)<0,0,D86-IF(H86<0,0,H86)) -> 7831973.182 | E87: 0 | F87: 20221.51103 | G87: 20221.51103 | H87: 35495.65072 | I87: 55717.16175 | J87: 46944.86168 | K87: 0 | L87: 7831973.182 | M87: 0 | N87: 0 | Q87: 0 | R87: 0 | S87: 0 | T87: 0
A88: 68 | B88: 2025-03-10 | C88: 28 | D88: 7796477.531 | E88: 0 | F88: 18181.81281 | G88: 18181.81281 | H88: 37535.34895 | I88: 55717.16175 | J88: 46824.98018 | K88: 0 | L88: 7796477.531 | M88: 0 | N88: 0 | Q88: 0 | R88: 0 | S88: 0 | T88: 0
A89: 69 | B89: 2025-04-10 | C89: 31 | D89: 7758942.182 | E89: 0 | F89: 20032.95099 | G89: 20032.95099 | H89: 35684.21076 | I89: 55717.16175 | J89: 46705.40482 | K89: 0 | L89: 7758942.182 | M89: 0 | N89: 0 | Q89: 0 | R89: 0 | S89: 0 | T89: 0
A90: 70 | B90: 2025-05-10 | C90: 30 | D90: 7723257.971 | E90: 0 | F90: 19297.56512 | G90: 19297.56512 | H90: 36419.59663 | I90: 55717.16175 | J90: 46586.13482 | K90: 0 | L90: 7723257.971 | M90: 0 | N90: 0 | Q90: 0 | R90: 0 | S90: 0 | T90: 0
A91: 71 | B91: 2025-06-10 | C91: 31 | D91: 7686838.375 | E91: 0 | F91: 19846.78489 | G91: 19846.78489 | H91: 35870.37687 | I91: 55717.16175 | J91: 46467.16939 | K91: 0 | L91: 7686838.375 | M91: 0 | N91: 0 | Q91: 0 | R91: 0 | S91: 0 | T91: 0
A92: 72 | B92: 2025-07-10 | C92: 30 | D92: 7650967.998 | E92: 0 | F92: 19116.93922 | G92: 19116.93922 | H92: 36600.22254 | I92: 55717.16175 | J92: 46348.50777 | K92: 0 | L92: 7650967.998 | M92: 0 | N92: 0 | Q92: 0 | R92: 0 | S92: 0 | T92: 0
A93: 73 | B93: 2025-08-10 | C93: 31 | D93: 7614367.775 | E93: 0 | F93: 19659.67176 | G93: 19659.67176 | H93: 36057.49 | I93: 55717.16175 | J93: 46230.14916 | K93: 0 | L93: 7614367.775 | M93: 0 | N93: 0 | Q93: 0 | R93: 0 | S93: 0 | T93: 0
A94: 74 | B94: 2025-09-10 | C94: 31 | D94: 7578310.285 | E94: 0 | F94: 19566.57428 | G94: 19566.57428 | H94: 36150.58747 | I94: 55717.16175 | J94: 46112.0928 | K94: 0 | L94: 7578310.285 | M94: 0 | N94: 0 | Q94: 0 | R94: 0 | S94: 0 | T94: 0
A95: 75 | B95: 2025-10-10 | C95: 30 | D95: 7542159.698 | E95: 0 | F95: 18845.06752 | G95: 18845.06752 | H95: 36872.09424 | I95: 55717.16175 | J95: 45994.33792 | K95: 0 | L95: 7542159.698 | M95: 0 | N95: 0 | Q95: 0 | R95: 0 | S95: 0 | T95: 0
A96: 76 | B96: 2025-11-10 | C96: 31 | D96: 7505287.604 | E96: 0 | F96: 19378.03572 | G96: 19378.03572 | H96: 36339.12603 | I96: 55717.16175 | J96: 45876.88374 | K96: 0 | L96: 7505287.604 | M96: 0 | N96: 0 | Q96: 0 | R96: 0 | S96: 0 | T96: 0
A97: 77 | B97: 2025-12-10 | C97: 30 | D97: 7468948.478 | E97: 0 | F97: 18662.13976 | G97: 18662.13976 | H97: 37055.022 | I97: 55717.16175 | J97: 45759.72951 | K97: 0 | L97: 7468948.478 | M97: 0 | N97: 0 | Q97: 0 | R97: 0 | S97: 0 | T97: 0
A98: 78 | B98: 2026-01-10 | C98: 31 | D98: 7431893.456 | E98: 0 | F98: 19188.53806 | G98: 19188.53806 | H98: 36528.62369 | I98: 55717.16175 | J98: 45642.87444 | K98: 0 | L98: 7431893.456 | M98: 0 | N98: 0 | Q98: 0 | R98: 0 | S98: 0 | T98: 0
A99: 79 | B99: 2026-02-10 | C99: 31 | D99: 7395364.832 | E99: 0 | F99: 19094.22416 | G99: 19094.22416 | H99: 36622.9376 | I99: 55717.16175 | J99: 45526.31779 | K99: 0 | L99: 7395364.832 | M99: 0 | N99: 0 | Q99: 0 | R99: 0 | S99: 0 | T99: 0
A100: 80 | B100: 2026-03-10 | C100: 28 | D100: 7358741.894 | E100: 0 | F100: 17160.98932 | G100: 17160.98932 | H100: 38556.17244 | I100: 55717.16175 | J100: 45410.05878 | K100: 0 | L100: 7358741.894 | M100: 0 | N100: 0 | Q100: 0 | R100: 0 | S100: 0 | T100: 0
A101: 81 | B101: 2026-04-10 | C101: 31 | D101: 7320185.722 | E101: 0 | F101: 18900.11788 | G101: 18900.11788 | H101: 36817.04388 | I101: 55717.16175 | J101: 45294.09666 | K101: 0 | L101: 7320185.722 | M101: 0 | N101: 0 | Q101: 0 | R101: 0 | S101: 0 | T101: 0
A102: 82 | B102: 2026-05-10 | C102: 30 | D102: 7283368.678 | E102: 0 | F102: 18198.44448 | G102: 18198.44448 | H102: 37518.71728 | I102: 55717.16175 | J102: 45178.43067 | K102: 0 | L102: 7283368.678 | M102: 0 | N102: 0 | Q102: 0 | R102: 0 | S102: 0 | T102: 0
A103: 83 | B103: 2026-06-10 | C103: 31 | D103: 7245849.961 | E103: 0 | F103: 18708.18905 | G103: 18708.18905 | H103: 37008.9727 | I103: 55717.16175 | J103: 45063.06004 | K103: 0 | L103: 7245849.961 | M103: 0 | N103: 0 | Q103: 0 | R103: 0 | S103: 0 | T103: 0
A104: 84 | B104: 2026-07-10 | C104: 30 | D104: 7208840.988 | E104: 0 | F104: 18012.22735 | G104: 18012.22735 | H104: 37704.93441 | I104: 55717.16175 | J104: 44947.98404 | K104: 0 | L104: 7208840.988 | M104: 0 | N104: 0 | Q104: 0 | R104: 0 | S104: 0 | T104: 0
A105: 85 | B105: 2026-08-10 | C105: 31 | D105: 7171136.054 | E105: 0 | F105: 18515.28388 | G105: 18515.28388 | H105: 37201.87787 | I105: 55717.16175 | J105: 44833.2019 | K105: 0 | L105: 7171136.054 | M105: 0 | N105: 0 | Q105: 0 | R105: 0 | S105: 0 | T105: 0
A106: 86 | B106: 2026-09-10 | C106: 31 | D106: 7133934.176 | E106: 0 | F106: 18419.23169 | G106: 18419.23169 | H106: 37297.93006 | I106: 55717.16175 | J106: 44718.71288 | K106: 0 | L106: 7133934.176 | M106: 0 | N106: 0 | Q106: 0 | R106: 0 | S106: 0 | T106: 0
A107: 87 | B107: 2026-10-10 | C107: 30 | D107: 7096636.246 | E107: 0 | F107: 17731.86919 | G107: 17731.86919 | H107: 37985.29256 | I107: 55717.16175 | J107: 44604.51623 | K107: 0 | L107: 7096636.246 | M107: 0 | N107: 0 | Q107: 0 | R107: 0 | S107: 0 | T107: 0
A108: 88 | B108: 2026-11-10 | C108: 31 | D108: 7058650.953 | E108: 0 | F108: 18224.8566 | G108: 18224.8566 | H108: 37492.30516 | I108: 55717.16175 | J108: 44490.61119 | K108: 0 | L108: 7058650.953 | M108: 0 | N108: 0 | Q108: 0 | R108: 0 | S108: 0 | T108: 0
A109: 89 | B109: 2026-12-10 | C109: 30 | D109: 7021158.648 | E109: 0 | F109: 17543.27859 | G109: 17543.27859 | H109: 38173.88316 | I109: 55717.16175 | J109: 44376.99703 | K109: 0 | L109: 7021158.648 | M109: 0 | N109: 0 | Q109: 0 | R109: 0 | S109: 0 | T109: 0
A110: 90 | B110: 2027-01-10 | C110: 31 | D110: 6982984.765 | E110: 0 | F110: 18029.49272 | G110: 18029.49272 | H110: 37687.66904 | I110: 55717.16175 | J110: 44263.67301 | K110: 0 | L110: 6982984.765 | M110: 0 | N110: 0 | Q110: 0 | R110: 0 | S110: 0 | T110: 0
A111: 91 | B111: 2027-02-10 | C111: 31 | D111: 6945297.096 | E111: 0 | F111: 17932.18626 | G111: 17932.18626 | H111: 37784.9755 | I111: 55717.16175 | J111: 44150.63837 | K111: 0 | L111: 6945297.096 | M111: 0 | N111: 0 | Q111: 0 | R111: 0 | S111: 0 | T111: 0
A112: 92 | B112: 2027-03-10 | C112: 28 | D112: 6907512.12 | E112: 0 | F112: 16108.69676 | G112: 16108.69676 | H112: 39608.465 | I112: 55717.16175 | J112: 44037.89239 | K112: 0 | L112: 6907512.12 | M112: 0 | N112: 0 | Q112: 0 | R112: 0 | S112: 0 | T112: 0
A113: 93 | B113: 2027-04-10 | C113: 31 | D113: 6867903.655 | E113: 0 | F113: 17732.36275 | G113: 17732.36275 | H113: 37984.799 | I113: 55717.16175 | J113: 43925.43432 | K113: 0 | L113: 6867903.655 | M113: 0 | N113: 0 | Q113: 0 | R113: 0 | S113: 0 | T113: 0
A114: 94 | B114: 2027-05-10 | C114: 30 | D114: 6829918.856 | E114: 0 | F114: 17065.44109 | G114: 17065.44109 | H114: 38651.72067 | I114: 55717.16175 | J114: 43813.26344 | K114: 0 | L114: 6829918.856 | M114: 0 | N114: 0 | Q114: 0 | R114: 0 | S114: 0 | T114: 0
A115: 95 | B115: 2027-06-10 | C115: 31 | D115: 6791267.136 | E115: 0 | F115: 17534.49356 | G115: 17534.49356 | H115: 38182.6682 | I115: 55717.16175 | J115: 43701.379 | K115: 0 | L115: 6791267.136 | M115: 0 | N115: 0 | Q115: 0 | R115: 0 | S115: 0 | T115: 0
A116: 96 | B116: 2027-07-10 | C116: 30 | D116: 6753084.468 | E116: 0 | F116: 16873.46037 | G116: 16873.46037 | H116: 38843.70139 | I116: 55717.16175 | J116: 43589.78027 | K116: 0 | L116: 6753084.468 | M116: 0 | N116: 0 | Q116: 0 | R116: 0 | S116: 0 | T116: 0
A117: 97 | B117: 2027-08-10 | C117: 31 | D117: 6714240.766 | E117: 0 | F117: 17335.6178 | G117: 17335.6178 | H117: 38381.54395 | I117: 55717.16175 | J117: 43478.46653 | K117: 0 | L117: 6714240.766 | M117: 0 | N117: 0 | Q117: 0 | R117: 0 | S117: 0 | T117: 0
A118: 98 | B118: 2027-09-10 | C118: 31 | D118: 6675859.222 | E118: 0 | F118: 17236.51981 | G118: 17236.51981 | H118: 38480.64194 | I118: 55717.16175 | J118: 43367.43705 | K118: 0 | L118: 6675859.222 | M118: 0 | N118: 0 | Q118: 0 | R118: 0 | S118: 0 | T118: 0
A119: 99 | B119: 2027-10-10 | C119: 30 | D119: 6637378.58 | E119: 0 | F119: 16584.35415 | G119: 16584.35415 | H119: 39132.8076 | I119: 55717.16175 | J119: 43256.69111 | K119: 0 | L119: 6637378.58 | M119: 0 | N119: 0 | Q119: 0 | R119: 0 | S119: 0 | T119: 0
A120: 100 | B120: 2027-11-10 | C120: 31 | D120: 6598245.773 | E120: 0 | F120: 17036.12826 | G120: 17036.12826 | H120: 38681.03349 | I120: 55717.16175 | J120: 43146.22797 | K120: 0 | L120: 6598245.773 | M120: 0 | N120: 0 | Q120: 0 | R120: 0 | S120: 0 | T120: 0
A121: 101 | B121: 2027-12-10 | C121: 30 | D121: 6559564.739 | E121: 0 | F121: 16389.92614 | G121: 16389.92614 | H121: 39327.23561 | I121: 55717.16175 | J121: 43036.04691 | K121: 0 | L121: 6559564.739 | M121: 0 | N121: 0 | Q121: 0 | R121: 0 | S121: 0 | T121: 0
A122: 102 | B122: 2028-01-10 | C122: 31 | D122: 6520237.504 | E122: 0 | F122: 16834.71732 | G122: 16834.71732 | H122: 38882.44443 | I122: 55717.16175 | J122: 42926.14722 | K122: 0 | L122: 6520237.504 | M122: 0 | N122: 0 | Q122: 0 | R122: 0 | S122: 0 | T122: 0
A123: 103 | B123: 2028-02-10 | C123: 31 | D123: 6481355.059 | E123: 0 | F123: 16734.32605 | G123: 16734.32605 | H123: 38982.83571 | I123: 55717.16175 | J123: 42816.52818 | K123: 0 | L123: 6481355.059 | M123: 0 | N123: 0 | Q123: 0 | R123: 0 | S123: 0 | T123: 0
A124: 104 | B124: 2028-03-10 | C124: 29 | D124: 6442372.223 | E124: 0 | F124: 15560.53521 | G124: 15560.53521 | H124: 40156.62654 | I124: 55717.16175 | J124: 42707.18907 | K124: 0 | L124: 6442372.223 | M124: 0 | N124: 0 | Q124: 0 | R124: 0 | S124: 0 | T124: 0
A125: 105 | B125: 2028-04-10 | C125: 31 | D125: 6402215.597 | E125: 0 | F125: 16529.99446 | G125: 16529.99446 | H125: 39187.16729 | I125: 55717.16175 | J125: 42598.12918 | K125: 0 | L125: 6402215.597 | M125: 0 | N125: 0 | Q125: 0 | R125: 0 | S125: 0 | T125: 0
A126: 106 | B126: 2028-05-10 | C126: 30 | D126: 6363028.43 | E126: 0 | F126: 15898.8546 | G126: 15898.8546 | H126: 39818.30716 | I126: 55717.16175 | J126: 42489.34778 | K126: 0 | L126: 6363028.43 | M126: 0 | N126: 0 | Q126: 0 | R126: 0 | S126: 0 | T126: 0
A127: 107 | B127: 2028-06-10 | C127: 31 | D127: 6323210.122 | E127: 0 | F127: 16326.00882 | G127: 16326.00882 | H127: 39391.15293 | I127: 55717.16175 | J127: 42380.84418 | K127: 0 | L127: 6323210.122 | M127: 0 | N127: 0 | Q127: 0 | R127: 0 | S127: 0 | T127: 0
A128: 108 | B128: 2028-07-10 | C128: 30 | D128: 6283818.969 | E128: 0 | F128: 15700.93945 | G128: 15700.93945 | H128: 40016.2223 | I128: 55717.16175 | J128: 42272.61766 | K128: 0 | L128: 6283818.969 | M128: 0 | N128: 0 | Q128: 0 | R128: 0 | S128: 0 | T128: 0
A129: 109 | B129: 2028-08-10 | C129: 31 | D129: 6243802.747 | E129: 0 | F129: 16120.9855 | G129: 16120.9855 | H129: 39596.17625 | I129: 55717.16175 | J129: 42164.66752 | K129: 0 | L129: 6243802.747 | M129: 0 | N129: 0 | Q129: 0 | R129: 0 | S129: 0 | T129: 0
A130: 110 | B130: 2028-09-10 | C130: 31 | D130: 6204206.571 | E130: 0 | F130: 16018.75143 | G130: 16018.75143 | H130: 39698.41032 | I130: 55717.16175 | J130: 42056.99304 | K130: 0 | L130: 6204206.571 | M130: 0 | N130: 0 | Q130: 0 | R130: 0 | S130: 0 | T130: 0
A131: 111 | B131: 2028-10-10 | C131: 30 | D131: 6164508.161 | E131: 0 | F131: 15402.82587 | G131: 15402.82587 | H131: 40314.33588 | I131: 55717.16175 | J131: 41949.59353 | K131: 0 | L131: 6164508.161 | M131: 0 | N131: 0 | Q131: 0 | R131: 0 | S131: 0 | T131: 0
A132: 112 | B132: 2028-11-10 | C132: 31 | D132: 6124193.825 | E132: 0 | F132: 15812.1651 | G132: 15812.1651 | H132: 39904.99666 | I132: 55717.16175 | J132: 41842.46828 | K132: 0 | L132: 6124193.825 | M132: 0 | N132: 0 | Q132: 0 | R132: 0 | S132: 0 | T132: 0
A133: 113 | B133: 2028-12-10 | C133: 30 | D133: 6084288.828 | E133: 0 | F133: 15202.38743 | G133: 15202.38743 | H133: 40514.77433 | I133: 55717.16175 | J133: 41735.61659 | K133: 0 | L133: 6084288.828 | M133: 0 | N133: 0 | Q133: 0 | R133: 0 | S133: 0 | T133: 0
A134: 114 | B134: 2029-01-10 | C134: 31 | D134: 6043774.054 | E134: 0 | F134: 15604.52786 | G134: 15604.52786 | H134: 40112.6339 | I134: 55717.16175 | J134: 41629.03777 | K134: 0 | L134: 6043774.054 | M134: 0 | N134: 0 | Q134: 0 | R134: 0 | S134: 0 | T134: 0
A135: 115 | B135: 2029-02-10 | C135: 31 | D135: 6003661.42 | E135: 0 | F135: 15500.96033 | G135: 15500.96033 | H135: 40216.20142 | I135: 55717.16175 | J135: 41522.73111 | K135: 0 | L135: 6003661.42 | M135: 0 | N135: 0 | Q135: 0 | R135: 0 | S135: 0 | T135: 0
A136: 116 | B136: 2029-03-10 | C136: 28 | D136: 5963445.218 | E136: 0 | F136: 13907.08101 | G136: 13907.08101 | H136: 41810.08074 | I136: 55717.16175 | J136: 41416.69593 | K136: 0 | L136: 5963445.218 | M136: 0 | N136: 0 | Q136: 0 | R136: 0 | S136: 0 | T136: 0
A137: 117 | B137: 2029-04-10 | C137: 31 | D137: 5921635.138 | E137: 0 | F137: 15289.17522 | G137: 15289.17522 | H137: 40427.98654 | I137: 55717.16175 | J137: 41310.93152 | K137: 0 | L137: 5921635.138 | M137: 0 | N137: 0 | Q137: 0 | R137: 0 | S137: 0 | T137: 0
A138: 118 | B138: 2029-05-10 | C138: 30 | D138: 5881207.151 | E138: 0 | F138: 14694.96143 | G138: 14694.96143 | H138: 41022.20032 | I138: 55717.16175 | J138: 41205.4372 | K138: 0 | L138: 5881207.151 | M138: 0 | N138: 0 | Q138: 0 | R138: 0 | S138: 0 | T138: 0
A139: 119 | B139: 2029-06-10 | C139: 31 | D139: 5840184.951 | E139: 0 | F139: 15078.87753 | G139: 15078.87753 | H139: 40638.28423 | I139: 55717.16175 | J139: 41100.21228 | K139: 0 | L139: 5840184.951 | M139: 0 | N139: 0 | Q139: 0 | R139: 0 | S139: 0 | T139: 0
A140: 120 | B140: 2029-07-10 | C140: 30 | D140: 5799546.667 | E140: 0 | F140: 14490.92208 | G140: 14490.92208 | H140: 41226.23967 | I140: 55717.16175 | J140: 40995.25607 | K140: 0 | L140: 5799546.667 | M140: 0 | N140: 0 | Q140: 0 | R140: 0 | S140: 0 | T140: 0
A141: 121 | B141: 2029-08-10 | C141: 31 | D141: 5758320.427 | E141: 0 | F141: 14867.51006 | G141: 14867.51006 | H141: 40849.6517 | I141: 55717.16175 | J141: 40890.56788 | K141: 0 | L141: 5758320.427 | M141: 0 | N141: 0 | Q141: 0 | R141: 0 | S141: 0 | T141: 0
A142: 122 | B142: 2029-09-10 | C142: 31 | D142: 5717470.775 | E142: 0 | F142: 14762.03961 | G142: 14762.03961 | H142: 40955.12214 | I142: 55717.16175 | J142: 40786.14702 | K142: 0 | L142: 5717470.775 | M142: 0 | N142: 0 | Q142: 0 | R142: 0 | S142: 0 | T142: 0
A143: 123 | B143: 2029-10-10 | C143: 30 | D143: 5676515.653 | E143: 0 | F143: 14183.51308 | G143: 14183.51308 | H143: 41533.64867 | I143: 55717.16175 | J143: 40681.99283 | K143: 0 | L143: 5676515.653 | M143: 0 | N143: 0 | Q143: 0 | R143: 0 | S143: 0 | T143: 0
A144: 124 | B144: 2029-11-10 | C144: 31 | D144: 5634982.004 | E144: 0 | F144: 14549.06039 | G144: 14549.06039 | H144: 41168.10137 | I144: 55717.16175 | J144: 40578.10461 | K144: 0 | L144: 5634982.004 | M144: 0 | N144: 0 | Q144: 0 | R144: 0 | S144: 0 | T144: 0
A145: 125 | B145: 2029-12-10 | C145: 30 | D145: 5593813.903 | E145: 0 | F145: 13976.872 | G145: 13976.872 | H145: 41740.28976 | I145: 55717.16175 | J145: 40474.48168 | K145: 0 | L145: 5593813.903 | M145: 0 | N145: 0 | Q145: 0 | R145: 0 | S145: 0 | T145: 0
A146: 126 | B146: 2030-01-10 | C146: 31 | D146: 5552073.613 | E146: 0 | F146: 14334.99773 | G146: 14334.99773 | H146: 41382.16402 | I146: 55717.16175 | J146: 40371.12338 | K146: 0 | L146: 5552073.613 | M146: 0 | N146: 0 | Q146: 0 | R146: 0 | S146: 0 | T146: 0
A147: 127 | B147: 2030-02-10 | C147: 31 | D147: 5510691.449 | E147: 0 | F147: 14228.15239 | G147: 14228.15239 | H147: 41489.00937 | I147: 55717.16175 | J147: 40268.02901 | K147: 0 | L147: 5510691.449 | M147: 0 | N147: 0 | Q147: 0 | R147: 0 | S147: 0 | T147: 0
A148: 128 | B148: 2030-03-10 | C148: 28 | D148: 5469202.44 | E148: 0 | F148: 12754.47977 | G148: 12754.47977 | H148: 42962.68198 | I148: 55717.16175 | J148: 40165.19792 | K148: 0 | L148: 5469202.44 | M148: 0 | N148: 0 | Q148: 0 | R148: 0 | S148: 0 | T148: 0
A149: 129 | B149: 2030-04-10 | C149: =+IF($B$13=1, 30, B149-B148) -> 31 | D149: 5426239.758 | E149: 0 | F149: =+C149/$B$14*$B$5*D149 -> 14010.10506 | G149: =E149+F149 -> 14010.10506 | H149: =+IF(A149<=$B$6,0,IF(D149>0,IF($F$9-G149+IF(MOD(A149,6)=0,S149,0)>D149,D149,$F$9-G149+IF(MOD(A149,6)=0,S149,0)),0)) -> 41707.05669 | I149: 55717.16175 | J149: 40062.62942 | K149: 0 | L149: =D149 -> 5426239.758 | M149: =$L$5 -> 0 | N149: 0 | Q149: 0 | R149: 0 | S149: 0 | T149: 0
A150: 130 | B150: =IF(MONTH(B149)=12,DATE(YEAR(B149)+1,1,DAY(B149)),DATE(YEAR(B149),MONTH(B149)+1,DAY(B149))) -> 2030-05-10 | C150: 30 | D150: 5384532.701 | E150: =IF(D150>0,$B$4,0) -> 0 | F150: 13453.95568 | G150: 13453.95568 | H150: 42263.20607 | I150: =IF(D150>0,+G150+H150+K150-IF(MOD(A150,6)=0,S150,0),0) -> 55717.16175 | J150: =+I150/POWER((1+$I$11),A150/12) -> 39960.32285 | K150: =IF(D150>0,IF($F$15="I",($F$9-$B$4)*$F$14,0),0) -> 0 | L150: 5384532.701 | M150: 0 | N150: =IF(MOD(A150,12)=0,$L$7,0) -> 0 | Q150: =IF(D150>0,SUM(M150:P150)+Q149,0) -> 0 | R150: =IF(Q150<=L150*0.7,Q150,L150*0.7) -> 0 | S150: =IF(MOD(A150,6)=0,SUM(S145:S149)+R150*$B$5/$B$14*C150,R150*$B$5/$B$14*C150) -> 0 | T150: =IF(MOD(A150,6)=0,S150,0) -> 0
A151: 131 | B151: 2030-06-10 | C151: 31 | D151: =IF(D150-IF(H150<0,0,H150)<0,0,D150-IF(H150<0,0,H150)) -> 5342269.495 | E151: 0 | F151: 13793.30075 | G151: 13793.30075 | H151: 41923.86101 | I151: 55717.16175 | J151: 39858.27753 | K151: 0 | L151: 5342269.495 | M151: 0 | N151: 0 | Q151: 0 | R151: 0 | S151: 0 | T151: 0
A152: 132 | B152: 2030-07-10 | C152: 30 | D152: 5300345.634 | E152: 0 | F152: 13243.60334 | G152: 13243.60334 | H152: 42473.55842 | I152: 55717.16175 | J152: 39756.4928 | K152: 0 | L152: 5300345.634 | M152: 0 | N152: 0 | Q152: 0 | R152: 0 | S152: 0 | T152: 0
A153: 133 | B153: 2030-08-10 | C153: 31 | D153: 5257872.076 | E153: 0 | F153: 13575.39355 | G153: 13575.39355 | H153: 42141.76821 | I153: 55717.16175 | J153: 39654.968 | K153: 0 | L153: 5257872.076 | M153: 0 | N153: 0 | Q153: 0 | R153: 0 | S153: 0 | T153: 0
A154: 134 | B154: 2030-09-10 | C154: 31 | D154: 5215730.307 | E154: 0 | F154: 13466.58696 | G154: 13466.58696 | H154: 42250.57479 | I154: 55717.16175 | J154: 39553.70246 | K154: 0 | L154: 5215730.307 | M154: 0 | N154: 0 | Q154: 0 | R154: 0 | S154: 0 | T154: 0
A155: 135 | B155: 2030-10-10 | C155: 30 | D155: 5173479.733 | E155: 0 | F155: 12926.61237 | G155: 12926.61237 | H155: 42790.54938 | I155: 55717.16175 | J155: 39452.69552 | K155: 0 | L155: 5173479.733 | M155: 0 | N155: 0 | Q155: 0 | R155: 0 | S155: 0 | T155: 0
A156: 136 | B156: 2030-11-10 | C156: 31 | D156: 5130689.183 | E156: 0 | F156: 13247.01777 | G156: 13247.01777 | H156: 42470.14398 | I156: 55717.16175 | J156: 39351.94651 | K156: 0 | L156: 5130689.183 | M156: 0 | N156: 0 | Q156: 0 | R156: 0 | S156: 0 | T156: 0
A157: 137 | B157: 2030-12-10 | C157: 30 | D157: 5088219.039 | E157: 0 | F157: 12713.57744 | G157: 12713.57744 | H157: 43003.58432 | I157: 55717.16175 | J157: 39251.45478 | K157: 0 | L157: 5088219.039 | M157: 0 | N157: 0 | Q157: 0 | R157: 0 | S157: 0 | T157: 0
A158: 138 | B158: 2031-01-10 | C158: 31 | D158: 5045215.455 | E158: 0 | F158: 13026.33163 | G158: 13026.33163 | H158: 42690.83012 | I158: 55717.16175 | J158: 39151.21968 | K158: 0 | L158: 5045215.455 | M158: 0 | N158: 0 | Q158: 0 | R158: 0 | S158: 0 | T158: 0
A159: 139 | B159: 2031-02-10 | C159: 31 | D159: 5002524.625 | E159: 0 | F159: 12916.10742 | G159: 12916.10742 | H159: 42801.05434 | I159: 55717.16175 | J159: 39051.24054 | K159: 0 | L159: 5002524.625 | M159: 0 | N159: 0 | Q159: 0 | R159: 0 | S159: 0 | T159: 0
A160: 140 | B160: 2031-03-10 | C160: 28 | D160: 4959723.571 | E160: 0 | F160: 11566.34713 | G160: 11566.34713 | H160: 44150.81462 | I160: 55717.16175 | J160: 38951.51672 | K160: 0 | L160: 4959723.571 | M160: 0 | N160: 0 | Q160: 0 | R160: 0 | S160: 0 | T160: 0
A161: 141 | B161: 2031-04-10 | C161: 31 | D161: 4915572.756 | E161: 0 | F161: 12691.60484 | G161: 12691.60484 | H161: 43025.55692 | I161: 55717.16175 | J161: 38852.04756 | K161: 0 | L161: 4915572.756 | M161: 0 | N161: 0 | Q161: 0 | R161: 0 | S161: 0 | T161: 0
A162: 142 | B162: 2031-05-10 | C162: 30 | D162: 4872547.199 | E162: 0 | F162: 12174.69328 | G162: 12174.69328 | H162: 43542.46848 | I162: 55717.16175 | J162: 38752.8324 | K162: 0 | L162: 4872547.199 | M162: 0 | N162: 0 | Q162: 0 | R162: 0 | S162: 0 | T162: 0
A163: 143 | B163: 2031-06-10 | C163: 31 | D163: 4829004.731 | E163: 0 | F163: 12468.09331 | G163: 12468.09331 | H163: 43249.06844 | I163: 55717.16175 | J163: 38653.87062 | K163: 0 | L163: 4829004.731 | M163: 0 | N163: 0 | Q163: 0 | R163: 0 | S163: 0 | T163: 0
A164: 144 | B164: 2031-07-10 | C164: 30 | D164: 4785755.662 | E164: 0 | F164: 11957.83333 | G164: 11957.83333 | H164: 43759.32843 | I164: 55717.16175 | J164: 38555.16154 | K164: 0 | L164: 4785755.662 | M164: 0 | N164: 0 | Q164: 0 | R164: 0 | S164: 0 | T164: 0
A165: 145 | B165: 2031-08-10 | C165: 31 | D165: 4741996.334 | E165: 0 | F165: 12243.44478 | G165: 12243.44478 | H165: 43473.71697 | I165: 55717.16175 | J165: 38456.70454 | K165: 0 | L165: 4741996.334 | M165: 0 | N165: 0 | Q165: 0 | R165: 0 | S165: 0 | T165: 0
A166: 146 | B166: 2031-09-10 | C166: 31 | D166: 4698522.617 | E166: 0 | F166: 12131.19922 | G166: 12131.19922 | H166: 43585.96254 | I166: 55717.16175 | J166: 38358.49896 | K166: 0 | L166: 4698522.617 | M166: 0 | N166: 0 | Q166: 0 | R166: 0 | S166: 0 | T166: 0
A167: 147 | B167: 2031-10-10 | C167: 30 | D167: 4654936.654 | E167: 0 | F167: 11630.96501 | G167: 11630.96501 | H167: 44086.19674 | I167: 55717.16175 | J167: 38260.54417 | K167: 0 | L167: 4654936.654 | M167: 0 | N167: 0 | Q167: 0 | R167: 0 | S167: 0 | T167: 0
A168: 148 | B168: 2031-11-10 | C168: 31 | D168: 4610850.457 | E168: 0 | F168: 11904.83691 | G168: 11904.83691 | H168: 43812.32485 | I168: 55717.16175 | J168: 38162.83952 | K168: 0 | L168: 4610850.457 | M168: 0 | N168: 0 | Q168: 0 | R168: 0 | S168: 0 | T168: 0
A169: 149 | B169: 2031-12-10 | C169: 30 | D169: 4567038.133 | E169: 0 | F169: 11411.33911 | G169: 11411.33911 | H169: 44305.82264 | I169: 55717.16175 | J169: 38065.38437 | K169: 0 | L169: 4567038.133 | M169: 0 | N169: 0 | Q169: 0 | R169: 0 | S169: 0 | T169: 0
A170: 150 | B170: 2032-01-10 | C170: 31 | D170: 4522732.31 | E170: 0 | F170: 11677.32309 | G170: 11677.32309 | H170: 44039.83866 | I170: 55717.16175 | J170: 37968.1781 | K170: 0 | L170: 4522732.31 | M170: 0 | N170: 0 | Q170: 0 | R170: 0 | S170: 0 | T170: 0
A171: 151 | B171: 2032-02-10 | C171: 31 | D171: 4478692.471 | E171: 0 | F171: 11563.61585 | G171: 11563.61585 | H171: 44153.54591 | I171: 55717.16175 | J171: 37871.22005 | K171: 0 | L171: 4478692.471 | M171: 0 | N171: 0 | Q171: 0 | R171: 0 | S171: 0 | T171: 0
A172: 152 | B172: 2032-03-10 | C172: 29 | D172: 4434538.925 | E172: 0 | F172: 10710.93018 | G172: 10710.93018 | H172: 45006.23157 | I172: 55717.16175 | J172: 37774.50961 | K172: 0 | L172: 4434538.925 | M172: 0 | N172: 0 | Q172: 0 | R172: 0 | S172: 0 | T172: 0
A173: 153 | B173: 2032-04-10 | C173: 31 | D173: 4389532.694 | E173: 0 | F173: 11333.41263 | G173: 11333.41263 | H173: 44383.74912 | I173: 55717.16175 | J173: 37678.04613 | K173: 0 | L173: 4389532.694 | M173: 0 | N173: 0 | Q173: 0 | R173: 0 | S173: 0 | T173: 0
A174: 154 | B174: 2032-05-10 | C174: 30 | D174: 4345148.945 | E174: 0 | F174: 10856.9201 | G174: 10856.9201 | H174: 44860.24165 | I174: 55717.16175 | J174: 37581.82898 | K174: 0 | L174: 4345148.945 | M174: 0 | N174: 0 | Q174: 0 | R174: 0 | S174: 0 | T174: 0
A175: 155 | B175: 2032-06-10 | C175: 31 | D175: 4300288.703 | E175: 0 | F175: 11102.99198 | G175: 11102.99198 | H175: 44614.16977 | I175: 55717.16175 | J175: 37485.85755 | K175: 0 | L175: 4300288.703 | M175: 0 | N175: 0 | Q175: 0 | R175: 0 | S175: 0 | T175: 0
A176: 156 | B176: 2032-07-10 | C176: 30 | D176: 4255674.533 | E176: 0 | F176: 10633.35664 | G176: 10633.35664 | H176: 45083.80511 | I176: 55717.16175 | J176: 37390.13119 | K176: 0 | L176: 4255674.533 | M176: 0 | N176: 0 | Q176: 0 | R176: 0 | S176: 0 | T176: 0
A177: 157 | B177: 2032-08-10 | C177: 31 | D177: 4210590.728 | E177: 0 | F177: 10871.39918 | G177: 10871.39918 | H177: 44845.76257 | I177: 55717.16175 | J177: 37294.64928 | K177: 0 | L177: 4210590.728 | M177: 0 | N177: 0 | Q177: 0 | R177: 0 | S177: 0 | T177: 0
A178: 158 | B178: 2032-09-10 | C178: 31 | D178: 4165744.966 | E178: 0 | F178: 10755.61111 | G178: 10755.61111 | H178: 44961.55064 | I178: 55717.16175 | J178: 37199.41121 | K178: 0 | L178: 4165744.966 | M178: 0 | N178: 0 | Q178: 0 | R178: 0 | S178: 0 | T178: 0
A179: 159 | B179: 2032-10-10 | C179: 30 | D179: 4120783.415 | E179: 0 | F179: 10296.31363 | G179: 10296.31363 | H179: 45420.84813 | I179: 55717.16175 | J179: 37104.41634 | K179: 0 | L179: 4120783.415 | M179: 0 | N179: 0 | Q179: 0 | R179: 0 | S179: 0 | T179: 0
A180: 160 | B180: 2032-11-10 | C180: 31 | D180: 4075362.567 | E180: 0 | F180: 10522.25119 | G180: 10522.25119 | H180: 45194.91057 | I180: 55717.16175 | J180: 37009.66405 | K180: 0 | L180: 4075362.567 | M180: 0 | N180: 0 | Q180: 0 | R180: 0 | S180: 0 | T180: 0
A181: 161 | B181: 2032-12-10 | C181: 30 | D181: 4030167.656 | E181: 0 | F181: 10069.89836 | G181: 10069.89836 | H181: 45647.26339 | I181: 55717.16175 | J181: 36915.15373 | K181: 0 | L181: 4030167.656 | M181: 0 | N181: 0 | Q181: 0 | R181: 0 | S181: 0 | T181: 0
A182: 162 | B182: 2033-01-10 | C182: 31 | D182: 3984520.393 | E182: 0 | F182: 10287.70416 | G182: 10287.70416 | H182: 45429.45759 | I182: 55717.16175 | J182: 36820.88476 | K182: 0 | L182: 3984520.393 | M182: 0 | N182: 0 | Q182: 0 | R182: 0 | S182: 0 | T182: 0
A183: 163 | B183: 2033-02-10 | C183: 31 | D183: 3939090.935 | E183: 0 | F183: 10170.40903 | G183: 10170.40903 | H183: 45546.75272 | I183: 55717.16175 | J183: 36726.85652 | K183: 0 | L183: 3939090.935 | M183: 0 | N183: 0 | Q183: 0 | R183: 0 | S183: 0 | T183: 0
A184: 164 | B184: 2033-03-10 | C184: 28 | D184: 3893544.182 | E184: 0 | F184: 9079.958378 | G184: 9079.958378 | H184: 46637.20338 | I184: 55717.16175 | J184: 36633.0684 | K184: 0 | L184: 3893544.182 | M184: 0 | N184: 0 | Q184: 0 | R184: 0 | S184: 0 | T184: 0
A185: 165 | B185: 2033-04-10 | C185: 31 | D185: 3846906.979 | E185: 0 | F185: 9932.397636 | G185: 9932.397636 | H185: 45784.76412 | I185: 55717.16175 | J185: 36539.51978 | K185: 0 | L185: 3846906.979 | M185: 0 | N185: 0 | Q185: 0 | R185: 0 | S185: 0 | T185: 0
A186: 166 | B186: 2033-05-10 | C186: 30 | D186: 3801122.215 | E186: 0 | F186: 9497.598521 | G186: 9497.598521 | H186: 46219.56323 | I186: 55717.16175 | J186: 36446.21005 | K186: 0 | L186: 3801122.215 | M186: 0 | N186: 0 | Q186: 0 | R186: 0 | S186: 0 | T186: 0
A187: 167 | B187: 2033-06-10 | C187: 31 | D187: 3754902.652 | E187: 0 | F187: 9694.850025 | G187: 9694.850025 | H187: 46022.31173 | I187: 55717.16175 | J187: 36353.1386 | K187: 0 | L187: 3754902.652 | M187: 0 | N187: 0 | Q187: 0 | R187: 0 | S187: 0 | T187: 0
A188: 168 | B188: 2033-07-10 | C188: 30 | D188: 3708880.34 | E188: 0 | F188: 9267.120192 | G188: 9267.120192 | H188: 46450.04156 | I188: 55717.16175 | J188: 36260.30483 | K188: 0 | L188: 3708880.34 | M188: 0 | N188: 0 | Q188: 0 | R188: 0 | S188: 0 | T188: 0
A189: 169 | B189: 2033-08-10 | C189: 31 | D189: 3662430.298 | E189: 0 | F189: 9456.094009 | G189: 9456.094009 | H189: 46261.06775 | I189: 55717.16175 | J189: 36167.70812 | K189: 0 | L189: 3662430.298 | M189: 0 | N189: 0 | Q189: 0 | R189: 0 | S189: 0 | T189: 0
A190: 170 | B190: 2033-09-10 | C190: 31 | D190: 3616169.231 | E190: 0 | F190: 9336.651734 | G190: 9336.651734 | H190: 46380.51002 | I190: 55717.16175 | J190: 36075.34788 | K190: 0 | L190: 3616169.231 | M190: 0 | N190: 0 | Q190: 0 | R190: 0 | S190: 0 | T190: 0
A191: 171 | B191: 2033-10-10 | C191: 30 | D191: 3569788.721 | E191: 0 | F191: 8919.58168 | G191: 8919.58168 | H191: 46797.58007 | I191: 55717.16175 | J191: 35983.22349 | K191: 0 | L191: 3569788.721 | M191: 0 | N191: 0 | Q191: 0 | R191: 0 | S191: 0 | T191: 0
A192: 172 | B192: 2033-11-10 | C192: 31 | D192: 3522991.141 | E192: 0 | F192: 9096.073564 | G192: 9096.073564 | H192: 46621.08819 | I192: 55717.16175 | J192: 35891.33436 | K192: 0 | L192: 3522991.141 | M192: 0 | N192: 0 | Q192: 0 | R192: 0 | S192: 0 | T192: 0
A193: 173 | B193: 2033-12-10 | C193: 30 | D193: 3476370.052 | E193: 0 | F193: 8686.16298 | G193: 8686.16298 | H193: 47030.99877 | I193: 55717.16175 | J193: 35799.67988 | K193: 0 | L193: 3476370.052 | M193: 0 | N193: 0 | Q193: 0 | R193: 0 | S193: 0 | T193: 0
A194: 174 | B194: 2034-01-10 | C194: 31 | D194: 3429339.054 | E194: 0 | F194: 8854.271573 | G194: 8854.271573 | H194: 46862.89018 | I194: 55717.16175 | J194: 35708.25945 | K194: 0 | L194: 3429339.054 | M194: 0 | N194: 0 | Q194: 0 | R194: 0 | S194: 0 | T194: 0
A195: 175 | B195: 2034-02-10 | C195: 31 | D195: 3382476.163 | E195: 0 | F195: 8733.275442 | G195: 8733.275442 | H195: 46983.88631 | I195: 55717.16175 | J195: 35617.07249 | K195: 0 | L195: 3382476.163 | M195: 0 | N195: 0 | Q195: 0 | R195: 0 | S195: 0 | T195: 0
A196: 176 | B196: 2034-03-10 | C196: 28 | D196: 3335492.277 | E196: 0 | F196: 7778.550757 | G196: 7778.550757 | H196: 47938.611 | I196: 55717.16175 | J196: 35526.11838 | K196: 0 | L196: 3335492.277 | M196: 0 | N196: 0 | Q196: 0 | R196: 0 | S196: 0 | T196: 0
A197: 177 | B197: 2034-04-10 | C197: 31 | D197: 3287553.666 | E197: 0 | F197: 8488.193356 | G197: 8488.193356 | H197: 47228.9684 | I197: 55717.16175 | J197: 35435.39654 | K197: 0 | L197: 3287553.666 | M197: 0 | N197: 0 | Q197: 0 | R197: 0 | S197: 0 | T197: 0
A198: 178 | B198: 2034-05-10 | C198: 30 | D198: 3240324.698 | E198: 0 | F198: 8096.372943 | G198: 8096.372943 | H198: 47620.78881 | I198: 55717.16175 | J198: 35344.90638 | K198: 0 | L198: 3240324.698 | M198: 0 | N198: 0 | Q198: 0 | R198: 0 | S198: 0 | T198: 0
A199: 179 | B199: 2034-06-10 | C199: 31 | D199: 3192703.909 | E199: 0 | F199: 8243.299079 | G199: 8243.299079 | H199: 47473.86268 | I199: 55717.16175 | J199: 35254.64729 | K199: 0 | L199: 3192703.909 | M199: 0 | N199: 0 | Q199: 0 | R199: 0 | S199: 0 | T199: 0
A200: 180 | B200: 2034-07-10 | C200: 30 | D200: 3145230.046 | E200: 0 | F200: 7858.766581 | G200: 7858.766581 | H200: 47858.39517 | I200: 55717.16175 | J200: 35164.6187 | K200: 0 | L200: 3145230.046 | M200: 0 | N200: 0 | Q200: 0 | R200: 0 | S200: 0 | T200: 0
... 180 more rows

Sheet MFL_10 (hidden)
A1: Input | B1: 2 | C1: 3 | D1: 4 | E1: 5 | F1: 6 | G1: 7 | H1: 8 | I1: 9 | J1: 10 | K1: 11 | S1: 12 | AP1: =+#REF! -> 
A2: Disbursement Date | B2: 2019-07-01 | E2: Output | AP2: =+#REF! -> 
A3: Loan Amount | B3: =IF(Kalkulátor!C4<55000001,Kalkulátor!C4,0) -> 10000000 | C3: =+F4+B9 -> 4113673.332 | E3: Fee Income | F3: =SUM(E21:E380) -> 0 | AP3: =+#REF! -> 
A4: Monthly Hand Fee (fix Amt) | B4: 0 | C4: =+B3+C3 -> 14113673.33 | E4: Interest Income | F4: =SUM(F21:F380) -> 4084546.332 | AP4: =+#REF! -> 
A5: Interest | B5: =Kalkulátor!D22 -> 0.0362 | H5: Output | I5: Communication | K5: havi megtakarítás | L5: 0
A6: Interest Only Period | E6: Starting Date | F6: =+First_payment(B2,B15) -> 2019-08-10 | H6: Loan Amount | I6: =+B3 -> 10000000 | K6: Havi számlára érkező pénz | L6: 0
A7: Term | B7: =Kalkulátor!C5 -> 240 | E7: First Duedate | F7: =+F6 -> 2019-08-10 | H7: Term | I7: =+B7 -> 240 | K7: Éves egyszeri megtakarítás | L7: 0
A8: HUF Upfront Fee % of the Disb Amt | B8: 0 | C8: Utalási díj | D8: FH költség | E8: Ending Date | F8: =+VLOOKUP(B7+B6, A20:D45,2) -> 2021-08-10 | H8: Interest Only Period | I8: =+B6 -> 0 | K8: Kezdeti megtakarítás | L8: 0
A9: HUF Upfront Fee Fix Amt | B9: =C9+D9+C11 -> 29127 | C9: 16527 | D9: 12600 | E9: Installment wo TI | F9: =XPMT(IF(B6=0,B2,VLOOKUP(B6,A21:B380,2,)),VLOOKUP(B6+1,A21:B380,2,),B7-B6,0,B3,B5,B4, B14,B13) -> 58685.60972 | H9: Installment w TI | I9: =+F10 -> 58685.60972
A10: FX Upfront Fee Fix Amt (to be paid in FX) | B10: 0 | C10: ÉB díj | D10: Trkpmás | E10: Installment | F10: =F9*B$12 / B11 -> 58685.60972 | H10: APR | K10: Törlesztőrészlet | L10: =F9-B4 -> 58685.60972
A11: FX bid currency | B11: 1 | C11: 0 | D11: 0 | E11: XIRR | F11: =XIRR(I20:I380,B20:B380) -> 0.03714722693 | H11: XIRR | I11: =+F11 -> 0.03714722693 | K11: PPI-al | L11: =L10+K21 -> 58685.60972
A12: FX ask currency | B12: 1 | K12: Ügyfél által megfizetett tőke | L12: =SUM(H21:H380)-SUM(T20:T380) -> 10000000 | N12: =+L12+L13+B9 -> 14113673.33
A13: 30-days (if not then real calendar days) | B13: 0 | K13: Ügyfél által megfizetett kamat | L13: =SUM(F21:F380) -> 4084546.332
A14: Days in Years | B14: 365 | E14: PPI díj | F14: 0.047 | H14: Módusuló futamidő | K14: Tényleges futamidő | L14: =MATCH(0,D21:D380,0)-1 -> 240
A15: Product | B15: Mortgage | C15: Maradványérték | E15: PPI díjjal kell számolni? | F15: n | K15: Meg nem fizetett törlesztőrészletek száma és összege | L15: =CONCATENATE(B7-L14," db., ",TEXT((B7-L14)*L10,"0 000 Ft")) -> 0 db., 0 000 Ft
C16: =+D81/B3 -> 0.8140212921 | K16: Felhalmozott megtakarítások | L16: =MAX(Q20:Q380) -> 0
C17: =D141/B3 -> 0.5900074556
A18: Details
A19: Term | B19: PaymentDate | C19: DaysBetween | D19: Capital | E19: Fee | F19: Interest | G19: Interest+Fee | H19: Principal | I19: CF- with TradeIncome | J19: THM Calculation | K19: PPI | L19: Módosított tőke | M19: Megtakarítás | N19: Éves egyszeri | O19: havi bejövő | P19: Kezdeti | Q19: Összeg | R19: 70%-os korláttal | S19: Kedvezmény | T19: Kedvezmény tőke számításhoz
A20: 0- Disbursement | B20: =+B2 -> 2019-07-01 | C20: 0 | D20: 0 | E20: 0 | F20: 0 | G20: 0 | H20: 0 | I20: =- B3 + B8*B3 + B9 + B10 / B11 -> -9970873 | J20: =SUM(J21:J380)+I20 -> 12230.80109 | L20: =D20 -> 0 | M20: =$L$5 -> 0 | O20: =L6/2 -> 0 | P20: =$L$8 -> 0 | Q20: =SUM(M20:P20) -> 0 | R20: =IF(Q20<=L21*0.7,Q20,L21*0.7) -> 0 | S20: =R20*$B$5/$B$14*C21 -> 0
A21: 1 | B21: =+F6 -> 2019-08-10 | C21: =+IF($B$13=1, 30, B21-B20) -> 40 | D21: =$B$3 -> 10000000 | E21: =IF(D21>0,$B$4,0) -> 0 | F21: =+C21/$B$14*$B$5*D21 -> 39671.23288 | G21: =E21+F21 -> 39671.23288 | H21: =+IF(A21<=$B$6,0,IF(D21>0,IF($F$9-G21+IF(MOD(A21,6)=0,S21,0)>D21,D21,$F$9-G21+IF(MOD(A21,6)=0,S21,0)),0)) -> 19014.37684 | I21: =IF(D21>0,+G21+H21+K21-IF(MOD(A21,6)=0,S21,0),0) -> 58685.60972 | J21: =+I21/POWER((1+$I$11),A21/12) -> 58507.50614 | K21: =IF(D21>0,IF($F$15="I",($F$9-$B$4)*$F$14,0),0) -> 0 | L21: =D21 -> 10000000 | M21: =$L$5 -> 0 | N21: =IF(MOD(A21,12)=0,$L$7,0) -> 0 | Q21: =IF(D21>0,SUM(M21:P21)+Q20,0) -> 0 | R21: =IF(Q21<=L21*0.7,Q21,L21*0.7) -> 0 | S21: =IF(MOD(A21,6)=0,SUM(S16:S20)+R21*$B$5/$B$14*C21,R21*$B$5/$B$14*C21) -> 0 | T21: =IF(MOD(A21,6)=0,S21,0) -> 0
A22: 2 | B22: =IF(MONTH(B21)=12,DATE(YEAR(B21)+1,1,DAY(B21)),DATE(YEAR(B21),MONTH(B21)+1,DAY(B21))) -> 2019-09-10 | C22: 31 | D22: =IF(D21-IF(H21<0,0,H21)<0,0,D21-IF(H21<0,0,H21)) -> 9980985.623 | E22: =IF(D22>0,$B$4,0) -> 0 | F22: 30686.74539 | G22: 30686.74539 | H22: 27998.86433 | I22: =IF(D22>0,+G22+H22+K22-IF(MOD(A22,6)=0,S22,0),0) -> 58685.60972 | J22: =+I22/POWER((1+$I$11),A22/12) -> 58329.94308 | K22: =IF(D22>0,IF($F$15="I",($F$9-$B$4)*$F$14,0),0) -> 0 | L22: 9980985.623 | M22: 0 | N22: =IF(MOD(A22,12)=0,$L$7,0) -> 0 | Q22: =IF(D22>0,SUM(M22:P22)+Q21,0) -> 0 | R22: =IF(Q22<=L22*0.7,Q22,L22*0.7) -> 0 | S22: =IF(MOD(A22,6)=0,SUM(S17:S21)+R22*$B$5/$B$14*C22,R22*$B$5/$B$14*C22) -> 0 | T22: =IF(MOD(A22,6)=0,S22,0) -> 0
A23: 3 | B23: 2019-10-10 | C23: 30 | D23: =IF(D22-IF(H22<0,0,H22)<0,0,D22-IF(H22<0,0,H22)) -> 9952986.759 | E23: 0 | F23: 29613.54416 | G23: 29613.54416 | H23: 29072.06555 | I23: 58685.60972 | J23: 58152.91891 | K23: 0 | L23: 9952986.759 | M23: 0 | N23: 0 | Q23: 0 | R23: 0 | S23: 0 | T23: 0
A24: 4 | B24: 2019-11-10 | C24: 31 | D24: 9923914.693 | E24: 0 | F24: 30511.27964 | G24: 30511.27964 | H24: 28174.33008 | I24: 58685.60972 | J24: 57976.43198 | K24: 0 | L24: 9923914.693 | M24: 0 | N24: 0 | Q24: 0 | R24: 0 | S24: 0 | T24: 0
A25: 5 | B25: 2019-12-10 | C25: 30 | D25: 9895740.363 | E25: 0 | F25: 29443.21653 | G25: 29443.21653 | H25: 29242.39319 | I25: 58685.60972 | J25: 57800.48067 | K25: 0 | L25: 9895740.363 | M25: 0 | N25: 0 | Q25: 0 | R25: 0 | S25: 0 | T25: 0
A26: 6 | B26: 2020-01-10 | C26: 31 | D26: 9866497.97 | E26: 0 | F26: =+C26/$B$14*$B$5*D26 -> 30334.75075 | G26: 30334.75075 | H26: 28350.85897 | I26: 58685.60972 | J26: 57625.06335 | K26: 0 | L26: 9866497.97 | M26: 0 | N26: 0 | Q26: 0 | R26: 0 | S26: 0 | T26: 0
A27: 7 | B27: 2020-02-10 | C27: 31 | D27: 9838147.111 | E27: 0 | F27: 30247.58545 | G27: 30247.58545 | H27: 28438.02427 | I27: 58685.60972 | J27: 57450.1784 | K27: 0 | L27: 9838147.111 | M27: 0 | N27: 0 | Q27: 0 | R27: 0 | S27: 0 | T27: 0
A28: 8 | B28: 2020-03-10 | C28: 29 | D28: 9809709.087 | E28: 0 | F28: 28214.33589 | G28: 28214.33589 | H28: 30471.27383 | I28: 58685.60972 | J28: 57275.8242 | K28: 0 | L28: 9809709.087 | M28: 0 | N28: 0 | Q28: 0 | R28: 0 | S28: 0 | T28: 0
A29: 9 | B29: 2020-04-10 | C29: 31 | D29: 9779237.813 | E29: 0 | F29: 30066.4676 | G29: 30066.4676 | H29: 28619.14212 | I29: 58685.60972 | J29: 57101.99915 | K29: 0 | L29: 9779237.813 | M29: 0 | N29: 0 | Q29: 0 | R29: 0 | S29: 0 | T29: 0
A30: 10 | B30: 2020-05-10 | C30: 30 | D30: 9750618.671 | E30: 0 | F30: 29011.4298 | G30: 29011.4298 | H30: 29674.17992 | I30: 58685.60972 | J30: 56928.70163 | K30: 0 | L30: 9750618.671 | M30: 0 | N30: 0 | Q30: 0 | R30: 0 | S30: 0 | T30: 0
A31: 11 | B31: 2020-06-10 | C31: 31 | D31: 9720944.491 | E31: 0 | F31: 29887.24358 | G31: 29887.24358 | H31: 28798.36614 | I31: 58685.60972 | J31: 56755.93005 | K31: 0 | L31: 9720944.491 | M31: 0 | N31: 0 | Q31: 0 | R31: 0 | S31: 0 | T31: 0
A32: 12 | B32: 2020-07-10 | C32: 30 | D32: 9692146.125 | E32: 0 | F32: 28837.45395 | G32: 28837.45395 | H32: 29848.15577 | I32: 58685.60972 | J32: 56583.68281 | K32: 0 | L32: 9692146.125 | M32: 0 | N32: 0 | Q32: 0 | R32: 0 | S32: 0 | T32: 0
A33: 13 | B33: 2020-08-10 | C33: 31 | D33: 9662297.969 | E33: 0 | F33: 29706.93365 | G33: 29706.93365 | H33: 28978.67607 | I33: 58685.60972 | J33: 56411.95832 | K33: 0 | L33: 9662297.969 | M33: 0 | N33: 0 | Q33: 0 | R33: 0 | S33: 0 | T33: 0
A34: 14 | B34: 2020-09-10 | C34: 31 | D34: 9633319.293 | E34: 0 | F34: 29617.83811 | G34: 29617.83811 | H34: 29067.77161 | I34: 58685.60972 | J34: 56240.75499 | K34: 0 | L34: 9633319.293 | M34: 0 | N34: 0 | Q34: 0 | R34: 0 | S34: 0 | T34: 0
A35: 15 | B35: 2020-10-10 | C35: 30 | D35: 9604251.521 | E35: 0 | F35: 28575.9374 | G35: 28575.9374 | H35: 30109.67231 | I35: 58685.60972 | J35: 56070.07125 | K35: 0 | L35: 9604251.521 | M35: 0 | N35: 0 | Q35: 0 | R35: 0 | S35: 0 | T35: 0
A36: 16 | B36: 2020-11-10 | C36: 31 | D36: 9574141.849 | E36: 0 | F36: 29435.89584 | G36: 29435.89584 | H36: 29249.71387 | I36: 58685.60972 | J36: 55899.90551 | K36: 0 | L36: 9574141.849 | M36: 0 | N36: 0 | Q36: 0 | R36: 0 | S36: 0 | T36: 0
A37: 17 | B37: 2020-12-10 | C37: 30 | D37: 9544892.135 | E37: 0 | F37: 28399.3229 | G37: 28399.3229 | H37: 30286.28682 | I37: 58685.60972 | J37: 55730.2562 | K37: 0 | L37: 9544892.135 | M37: 0 | N37: 0 | Q37: 0 | R37: 0 | S37: 0 | T37: 0
A38: 18 | B38: 2021-01-10 | C38: 31 | D38: 9514605.848 | E38: 0 | F38: 29252.85119 | G38: 29252.85119 | H38: 29432.75853 | I38: 58685.60972 | J38: 55561.12175 | K38: 0 | L38: 9514605.848 | M38: 0 | N38: 0 | Q38: 0 | R38: 0 | S38: 0 | T38: 0
A39: 19 | B39: 2021-02-10 | C39: 31 | D39: 9485173.09 | E39: 0 | F39: 29162.35957 | G39: 29162.35957 | H39: 29523.25015 | I39: 58685.60972 | J39: 55392.50061 | K39: 0 | L39: 9485173.09 | M39: 0 | N39: 0 | Q39: 0 | R39: 0 | S39: 0 | T39: 0
A40: 20 | B40: 2021-03-10 | C40: 28 | D40: 9455649.84 | E40: 0 | F40: 26258.21008 | G40: 26258.21008 | H40: 32427.39964 | I40: 58685.60972 | J40: 55224.39121 | K40: 0 | L40: 9455649.84 | M40: 0 | N40: 0 | Q40: 0 | R40: 0 | S40: 0 | T40: 0
A41: 21 | B41: 2021-04-10 | C41: 31 | D41: 9423222.44 | E41: 0 | F41: 28971.89102 | G41: 28971.89102 | H41: 29713.7187 | I41: 58685.60972 | J41: 55056.792 | K41: 0 | L41: 9423222.44 | M41: 0 | N41: 0 | Q41: 0 | R41: 0 | S41: 0 | T41: 0
A42: 22 | B42: 2021-05-10 | C42: 30 | D42: 9393508.721 | E42: 0 | F42: 27948.9054 | G42: 27948.9054 | H42: 30736.70432 | I42: 58685.60972 | J42: 54889.70144 | K42: 0 | L42: 9393508.721 | M42: 0 | N42: 0 | Q42: 0 | R42: 0 | S42: 0 | T42: 0
A43: 23 | B43: 2021-06-10 | C43: 31 | D43: 9362772.017 | E43: 0 | F43: 28786.03495 | G43: 28786.03495 | H43: 29899.57477 | I43: 58685.60972 | J43: 54723.11797 | K43: 0 | L43: 9362772.017 | M43: 0 | N43: 0 | Q43: 0 | R43: 0 | S43: 0 | T43: 0
A44: 24 | B44: 2021-07-10 | C44: 30 | D44: 9332872.442 | E44: 0 | F44: 27768.4917 | G44: 27768.4917 | H44: 30917.11801 | I44: 58685.60972 | J44: 54557.04006 | K44: 0 | L44: 9332872.442 | M44: 0 | N44: 0 | Q44: 0 | R44: 0 | S44: 0 | T44: 0
A45: 25 | B45: 2021-08-10 | C45: 31 | D45: 9301955.324 | E45: 0 | F45: 28599.05278 | G45: 28599.05278 | H45: 30086.55694 | I45: 58685.60972 | J45: 54391.46618 | K45: 0 | L45: 9301955.324 | M45: 0 | N45: 0 | Q45: 0 | R45: 0 | S45: 0 | T45: 0
A46: 26 | B46: 2021-09-10 | C46: 31 | D46: 9271868.767 | E46: 0 | F46: 28506.55104 | G46: 28506.55104 | H46: 30179.05868 | I46: 58685.60972 | J46: 54226.3948 | K46: 0 | L46: 9271868.767 | M46: 0 | N46: 0 | Q46: 0 | R46: 0 | S46: 0 | T46: 0
A47: 27 | B47: 2021-10-10 | C47: 30 | D47: 9241689.709 | E47: 0 | F47: 27497.19185 | G47: 27497.19185 | H47: 31188.41787 | I47: 58685.60972 | J47: 54061.82439 | K47: 0 | L47: 9241689.709 | M47: 0 | N47: 0 | Q47: 0 | R47: 0 | S47: 0 | T47: 0
A48: 28 | B48: 2021-11-10 | C48: 31 | D48: 9210501.291 | E48: 0 | F48: 28317.87548 | G48: 28317.87548 | H48: 30367.73424 | I48: 58685.60972 | J48: 53897.75343 | K48: 0 | L48: 9210501.291 | M48: 0 | N48: 0 | Q48: 0 | R48: 0 | S48: 0 | T48: 0
A49: 29 | B49: 2021-12-10 | C49: 30 | D49: 9180133.556 | E49: 0 | F49: 27314.04121 | G49: 27314.04121 | H49: 31371.56851 | I49: 58685.60972 | J49: 53734.1804 | K49: 0 | L49: 9180133.556 | M49: 0 | N49: 0 | Q49: 0 | R49: 0 | S49: 0 | T49: 0
A50: 30 | B50: 2022-01-10 | C50: 31 | D50: 9148761.988 | E50: 0 | F50: 28128.05672 | G50: 28128.05672 | H50: 30557.553 | I50: 58685.60972 | J50: 53571.1038 | K50: 0 | L50: 9148761.988 | M50: 0 | N50: 0 | Q50: 0 | R50: 0 | S50: 0 | T50: 0
A51: 31 | B51: 2022-02-10 | C51: 31 | D51: 9118204.435 | E51: 0 | F51: 28034.1069 | G51: 28034.1069 | H51: 30651.50282 | I51: 58685.60972 | J51: 53408.52212 | K51: 0 | L51: 9118204.435 | M51: 0 | N51: 0 | Q51: 0 | R51: 0 | S51: 0 | T51: 0
A52: 32 | B52: 2022-03-10 | C52: 28 | D52: 9087552.932 | E52: 0 | F52: 25236.01001 | G52: 25236.01001 | H52: 33449.59971 | I52: 58685.60972 | J52: 53246.43385 | K52: 0 | L52: 9087552.932 | M52: 0 | N52: 0 | Q52: 0 | R52: 0 | S52: 0 | T52: 0
A53: 33 | B53: 2022-04-10 | C53: 31 | D53: 9054103.332 | E53: 0 | F53: 27837.02674 | G53: 27837.02674 | H53: 30848.58298 | I53: 58685.60972 | J53: 53084.8375 | K53: 0 | L53: 9054103.332 | M53: 0 | N53: 0 | Q53: 0 | R53: 0 | S53: 0 | T53: 0
A54: 34 | B54: 2022-05-10 | C54: 30 | D54: 9023254.749 | E54: 0 | F54: 26847.27304 | G54: 26847.27304 | H54: 31838.33668 | I54: 58685.60972 | J54: 52923.73157 | K54: 0 | L54: 9023254.749 | M54: 0 | N54: 0 | Q54: 0 | R54: 0 | S54: 0 | T54: 0
A55: 35 | B55: 2022-06-10 | C55: 31 | D55: 8991416.413 | E55: 0 | F55: 27644.29452 | G55: 27644.29452 | H55: 31041.3152 | I55: 58685.60972 | J55: 52763.11458 | K55: 0 | L55: 8991416.413 | M55: 0 | N55: 0 | Q55: 0 | R55: 0 | S55: 0 | T55: 0
A56: 36 | B56: 2022-07-10 | C56: 30 | D56: 8960375.098 | E56: 0 | F56: 26660.18454 | G56: 26660.18454 | H56: 32025.42518 | I56: 58685.60972 | J56: 52602.98504 | K56: 0 | L56: 8960375.098 | M56: 0 | N56: 0 | Q56: 0 | R56: 0 | S56: 0 | T56: 0
A57: 37 | B57: 2022-08-10 | C57: 31 | D57: 8928349.672 | E57: 0 | F57: 27450.39453 | G57: 27450.39453 | H57: 31235.21519 | I57: 58685.60972 | J57: 52443.34148 | K57: 0 | L57: 8928349.672 | M57: 0 | N57: 0 | Q57: 0 | R57: 0 | S57: 0 | T57: 0
A58: 38 | B58: 2022-09-10 | C58: 31 | D58: 8897114.457 | E58: 0 | F58: 27354.36122 | G58: 27354.36122 | H58: 31331.2485 | I58: 58685.60972 | J58: 52284.18241 | K58: 0 | L58: 8897114.457 | M58: 0 | N58: 0 | Q58: 0 | R58: 0 | S58: 0 | T58: 0
A59: 39 | B59: 2022-10-10 | C59: 30 | D59: 8865783.209 | E59: 0 | F59: 26378.74127 | G59: 26378.74127 | H59: 32306.86845 | I59: 58685.60972 | J59: 52125.50638 | K59: 0 | L59: 8865783.209 | M59: 0 | N59: 0 | Q59: 0 | R59: 0 | S59: 0 | T59: 0
A60: 40 | B60: 2022-11-10 | C60: 31 | D60: 8833476.34 | E60: 0 | F60: 27158.70452 | G60: 27158.70452 | H60: 31526.9052 | I60: 58685.60972 | J60: 51967.3119 | K60: 0 | L60: 8833476.34 | M60: 0 | N60: 0 | Q60: 0 | R60: 0 | S60: 0 | T60: 0
A61: 41 | B61: 2022-12-10 | C61: 30 | D61: 8801949.435 | E61: 0 | F61: 26188.81394 | G61: 26188.81394 | H61: 32496.79578 | I61: 58685.60972 | J61: 51809.59753 | K61: 0 | L61: 8801949.435 | M61: 0 | N61: 0 | Q61: 0 | R61: 0 | S61: 0 | T61: 0
A62: 42 | B62: 2023-01-10 | C62: 31 | D62: 8769452.639 | E62: 0 | F62: 26961.86233 | G62: 26961.86233 | H62: 31723.74738 | I62: 58685.60972 | J62: 51652.3618 | K62: 0 | L62: 8769452.639 | M62: 0 | N62: 0 | Q62: 0 | R62: 0 | S62: 0 | T62: 0
A63: 43 | B63: 2023-02-10 | C63: 31 | D63: 8737728.892 | E63: 0 | F63: 26864.32702 | G63: 26864.32702 | H63: 31821.2827 | I63: 58685.60972 | J63: 51495.60326 | K63: 0 | L63: 8737728.892 | M63: 0 | N63: 0 | Q63: 0 | R63: 0 | S63: 0 | T63: 0
A64: 44 | B64: 2023-03-10 | C64: 28 | D64: 8705907.609 | E64: 0 | F64: 24176.18617 | G64: 24176.18617 | H64: 34509.42355 | I64: 58685.60972 | J64: 51339.32046 | K64: 0 | L64: 8705907.609 | M64: 0 | N64: 0 | Q64: 0 | R64: 0 | S64: 0 | T64: 0
A65: 45 | B65: 2023-04-10 | C65: 31 | D65: 8671398.186 | E65: 0 | F65: 26660.3919 | G65: 26660.3919 | H65: 32025.21782 | I65: 58685.60972 | J65: 51183.51196 | K65: 0 | L65: 8671398.186 | M65: 0 | N65: 0 | Q65: 0 | R65: 0 | S65: 0 | T65: 0
A66: 46 | B66: 2023-05-10 | C66: 30 | D66: 8639372.968 | E66: 0 | F66: 25705.09327 | G66: 25705.09327 | H66: 32980.51645 | I66: 58685.60972 | J66: 51028.17632 | K66: 0 | L66: 8639372.968 | M66: 0 | N66: 0 | Q66: 0 | R66: 0 | S66: 0 | T66: 0
A67: 47 | B67: 2023-06-10 | C67: 31 | D67: 8606392.451 | E67: 0 | F67: 26460.53044 | G67: 26460.53044 | H67: 32225.07928 | I67: 58685.60972 | J67: 50873.31211 | K67: 0 | L67: 8606392.451 | M67: 0 | N67: 0 | Q67: 0 | R67: 0 | S67: 0 | T67: 0
A68: 48 | B68: 2023-07-10 | C68: 30 | D68: 8574167.372 | E68: 0 | F68: 25511.08429 | G68: 25511.08429 | H68: 33174.52543 | I68: 58685.60972 | J68: 50718.91789 | K68: 0 | L68: 8574167.372 | M68: 0 | N68: 0 | Q68: 0 | R68: 0 | S68: 0 | T68: 0
A69: 49 | B69: 2023-08-10 | C69: 31 | D69: 8540992.847 | E69: 0 | F69: 26259.45801 | G69: 26259.45801 | H69: 32426.15171 | I69: 58685.60972 | J69: 50564.99224 | K69: 0 | L69: 8540992.847 | M69: 0 | N69: 0 | Q69: 0 | R69: 0 | S69: 0 | T69: 0
A70: 50 | B70: 2023-09-10 | C70: 31 | D70: 8508566.695 | E70: 0 | F70: 26159.76314 | G70: 26159.76314 | H70: 32525.84658 | I70: 58685.60972 | J70: 50411.53373 | K70: 0 | L70: 8508566.695 | M70: 0 | N70: 0 | Q70: 0 | R70: 0 | S70: 0 | T70: 0
A71: 51 | B71: 2023-10-10 | C71: 30 | D71: 8476040.848 | E71: 0 | F71: 25219.12428 | G71: 25219.12428 | H71: 33466.48544 | I71: 58685.60972 | J71: 50258.54095 | K71: 0 | L71: 8476040.848 | M71: 0 | N71: 0 | Q71: 0 | R71: 0 | S71: 0 | T71: 0
A72: 52 | B72: 2023-11-10 | C72: 31 | D72: 8442574.363 | E72: 0 | F72: 25956.86836 | G72: 25956.86836 | H72: 32728.74136 | I72: 58685.60972 | J72: 50106.01248 | K72: 0 | L72: 8442574.363 | M72: 0 | N72: 0 | Q72: 0 | R72: 0 | S72: 0 | T72: 0
A73: 53 | B73: 2023-12-10 | C73: 30 | D73: 8409845.622 | E73: 0 | F73: 25022.17081 | G73: 25022.17081 | H73: 33663.43891 | I73: 58685.60972 | J73: 49953.94692 | K73: 0 | L73: 8409845.622 | M73: 0 | N73: 0 | Q73: 0 | R73: 0 | S73: 0 | T73: 0
A74: 54 | B74: 2024-01-10 | C74: 31 | D74: 8376182.183 | E74: 0 | F74: 25752.74423 | G74: 25752.74423 | H74: 32932.86548 | I74: 58685.60972 | J74: 49802.34286 | K74: 0 | L74: 8376182.183 | M74: 0 | N74: 0 | Q74: 0 | R74: 0 | S74: 0 | T74: 0
A75: 55 | B75: 2024-02-10 | C75: 31 | D75: 8343249.317 | E75: 0 | F75: 25651.49146 | G75: 25651.49146 | H75: 33034.11826 | I75: 58685.60972 | J75: 49651.1989 | K75: 0 | L75: 8343249.317 | M75: 0 | N75: 0 | Q75: 0 | R75: 0 | S75: 0 | T75: 0
A76: 56 | B76: 2024-03-10 | C76: 29 | D76: 8310215.199 | E76: 0 | F76: 23901.54497 | G76: 23901.54497 | H76: 34784.06474 | I76: 58685.60972 | J76: 49500.51365 | K76: 0 | L76: 8310215.199 | M76: 0 | N76: 0 | Q76: 0 | R76: 0 | S76: 0 | T76: 0
A77: 57 | B77: 2024-04-10 | C77: 31 | D77: 8275431.134 | E77: 0 | F77: 25442.98307 | G77: 25442.98307 | H77: 33242.62665 | I77: 58685.60972 | J77: 49350.2857 | K77: 0 | L77: 8275431.134 | M77: 0 | N77: 0 | Q77: 0 | R77: 0 | S77: 0 | T77: 0
A78: 58 | B78: 2024-05-10 | C78: 30 | D78: 8242188.508 | E78: 0 | F78: 24523.33348 | G78: 24523.33348 | H78: 34162.27624 | I78: 58685.60972 | J78: 49200.51368 | K78: 0 | L78: 8242188.508 | M78: 0 | N78: 0 | Q78: 0 | R78: 0 | S78: 0 | T78: 0
A79: 59 | B79: 2024-06-10 | C79: 31 | D79: 8208026.231 | E79: 0 | F79: 25235.74531 | G79: 25235.74531 | H79: 33449.86441 | I79: 58685.60972 | J79: 49051.19619 | K79: 0 | L79: 8208026.231 | M79: 0 | N79: 0 | Q79: 0 | R79: 0 | S79: 0 | T79: 0
A80: 60 | B80: 2024-07-10 | C80: 30 | D80: 8174576.367 | E80: 0 | F80: 24322.1642 | G80: 24322.1642 | H80: 34363.44551 | I80: 58685.60972 | J80: 48902.33187 | K80: 0 | L80: 8174576.367 | M80: 0 | N80: 0 | Q80: 0 | R80: 0 | S80: 0 | T80: 0
A81: 61 | B81: 2024-08-10 | C81: 31 | D81: 8140212.921 | E81: 0 | F81: 25027.25189 | G81: 25027.25189 | H81: 33658.35783 | I81: 58685.60972 | J81: 48753.91933 | K81: 0 | L81: 8140212.921 | M81: 0 | N81: 0 | Q81: 0 | R81: 0 | S81: 0 | T81: 0
A82: 62 | B82: 2024-09-10 | C82: 31 | D82: 8106554.564 | E82: 0 | F82: 24923.76858 | G82: 24923.76858 | H82: 33761.84114 | I82: 58685.60972 | J82: 48605.95721 | K82: 0 | L82: 8106554.564 | M82: 0 | N82: 0 | Q82: 0 | R82: 0 | S82: 0 | T82: 0
A83: 63 | B83: 2024-10-10 | C83: 30 | D83: 8072792.722 | E83: 0 | F83: 24019.323 | G83: 24019.323 | H83: 34666.28671 | I83: 58685.60972 | J83: 48458.44413 | K83: 0 | L83: 8072792.722 | M83: 0 | N83: 0 | Q83: 0 | R83: 0 | S83: 0 | T83: 0
A84: 64 | B84: 2024-11-10 | C84: 31 | D84: 8038126.436 | E84: 0 | F84: 24713.38489 | G84: 24713.38489 | H84: 33972.22482 | I84: 58685.60972 | J84: 48311.37874 | K84: 0 | L84: 8038126.436 | M84: 0 | N84: 0 | Q84: 0 | R84: 0 | S84: 0 | T84: 0
A85: 65 | B85: 2024-12-10 | C85: =+IF($B$13=1, 30, B85-B84) -> 30 | D85: 8004154.211 | E85: 0 | F85: =+C85/$B$14*$B$5*D85 -> 23815.09993 | G85: =E85+F85 -> 23815.09993 | H85: =+IF(A85<=$B$6,0,IF(D85>0,IF($F$9-G85+IF(MOD(A85,6)=0,S85,0)>D85,D85,$F$9-G85+IF(MOD(A85,6)=0,S85,0)),0)) -> 34870.50979 | I85: 58685.60972 | J85: 48164.75967 | K85: 0 | L85: =D85 -> 8004154.211 | M85: =$L$5 -> 0 | N85: 0 | Q85: 0 | R85: 0 | S85: 0 | T85: 0
A86: 66 | B86: =IF(MONTH(B85)=12,DATE(YEAR(B85)+1,1,DAY(B85)),DATE(YEAR(B85),MONTH(B85)+1,DAY(B85))) -> 2025-01-10 | C86: 31 | D86: 7969283.701 | E86: =IF(D86>0,$B$4,0) -> 0 | F86: 24501.72649 | G86: 24501.72649 | H86: 34183.88323 | I86: =IF(D86>0,+G86+H86+K86-IF(MOD(A86,6)=0,S86,0),0) -> 58685.60972 | J86: =+I86/POWER((1+$I$11),A86/12) -> 48018.58557 | K86: =IF(D86>0,IF($F$15="I",($F$9-$B$4)*$F$14,0),0) -> 0 | L86: 7969283.701 | M86: 0 | N86: =IF(MOD(A86,12)=0,$L$7,0) -> 0 | Q86: =IF(D86>0,SUM(M86:P86)+Q85,0) -> 0 | R86: =IF(Q86<=L86*0.7,Q86,L86*0.7) -> 0 | S86: =IF(MOD(A86,6)=0,SUM(S81:S85)+R86*$B$5/$B$14*C86,R86*$B$5/$B$14*C86) -> 0 | T86: =IF(MOD(A86,6)=0,S86,0) -> 0
A87: 67 | B87: 2025-02-10 | C87: 31 | D87: =IF(D86-IF(H86<0,0,H86)<0,0,D86-IF(H86<0,0,H86)) -> 7935099.818 | E87: 0 | F87: 24396.62744 | G87: 24396.62744 | H87: 34288.98228 | I87: 58685.60972 | J87: 47872.85509 | K87: 0 | L87: 7935099.818 | M87: 0 | N87: 0 | Q87: 0 | R87: 0 | S87: 0 | T87: 0
A88: 68 | B88: 2025-03-10 | C88: 28 | D88: 7900810.836 | E88: 0 | F88: 21940.44346 | G88: 21940.44346 | H88: 36745.16626 | I88: 58685.60972 | J88: 47727.56689 | K88: 0 | L88: 7900810.836 | M88: 0 | N88: 0 | Q88: 0 | R88: 0 | S88: 0 | T88: 0
A89: 69 | B89: 2025-04-10 | C89: 31 | D89: 7864065.669 | E89: 0 | F89: 24178.23149 | G89: 24178.23149 | H89: 34507.37823 | I89: 58685.60972 | J89: 47582.71962 | K89: 0 | L89: 7864065.669 | M89: 0 | N89: 0 | Q89: 0 | R89: 0 | S89: 0 | T89: 0
A90: 70 | B90: 2025-05-10 | C90: 30 | D90: 7829558.291 | E90: 0 | F90: 23295.61727 | G90: 23295.61727 | H90: 35389.99245 | I90: 58685.60972 | J90: 47438.31194 | K90: 0 | L90: 7829558.291 | M90: 0 | N90: 0 | Q90: 0 | R90: 0 | S90: 0 | T90: 0
A91: 71 | B91: 2025-06-10 | C91: 31 | D91: 7794168.299 | E91: 0 | F91: 23963.33059 | G91: 23963.33059 | H91: 34722.27913 | I91: 58685.60972 | J91: 47294.34252 | K91: 0 | L91: 7794168.299 | M91: 0 | N91: 0 | Q91: 0 | R91: 0 | S91: 0 | T91: 0
A92: 72 | B92: 2025-07-10 | C92: 30 | D92: 7759446.019 | E92: 0 | F92: 23087.00925 | G92: 23087.00925 | H92: 35598.60047 | I92: 58685.60972 | J92: 47150.81003 | K92: 0 | L92: 7759446.019 | M92: 0 | N92: 0 | Q92: 0 | R92: 0 | S92: 0 | T92: 0
A93: 73 | B93: 2025-08-10 | C93: 31 | D93: 7723847.419 | E93: 0 | F93: 23747.1276 | G93: 23747.1276 | H93: 34938.48212 | I93: 58685.60972 | J93: 47007.71314 | K93: 0 | L93: 7723847.419 | M93: 0 | N93: 0 | Q93: 0 | R93: 0 | S93: 0 | T93: 0
A94: 74 | B94: 2025-09-10 | C94: 31 | D94: 7688908.937 | E94: 0 | F94: 23639.70852 | G94: 23639.70852 | H94: 35045.9012 | I94: 58685.60972 | J94: 46865.05054 | K94: 0 | L94: 7688908.937 | M94: 0 | N94: 0 | Q94: 0 | R94: 0 | S94: 0 | T94: 0
A95: 75 | B95: 2025-10-10 | C95: 30 | D95: 7653863.036 | E95: 0 | F95: 22772.86372 | G95: 22772.86372 | H95: 35912.746 | I95: 58685.60972 | J95: 46722.8209 | K95: 0 | L95: 7653863.036 | M95: 0 | N95: 0 | Q95: 0 | R95: 0 | S95: 0 | T95: 0
A96: 76 | B96: 2025-11-10 | C96: 31 | D96: 7617950.29 | E96: 0 | F96: 23421.5447 | G96: 23421.5447 | H96: 35264.06502 | I96: 58685.60972 | J96: 46581.02291 | K96: 0 | L96: 7617950.29 | M96: 0 | N96: 0 | Q96: 0 | R96: 0 | S96: 0 | T96: 0
A97: 77 | B97: 2025-12-10 | C97: 30 | D97: 7582686.225 | E97: 0 | F97: 22561.08833 | G97: 22561.08833 | H97: 36124.52139 | I97: 58685.60972 | J97: 46439.65525 | K97: 0 | L97: 7582686.225 | M97: 0 | N97: 0 | Q97: 0 | R97: 0 | S97: 0 | T97: 0
A98: 78 | B98: 2026-01-10 | C98: 31 | D98: 7546561.703 | E98: 0 | F98: 23202.05902 | G98: 23202.05902 | H98: 35483.5507 | I98: 58685.60972 | J98: 46298.71664 | K98: 0 | L98: 7546561.703 | M98: 0 | N98: 0 | Q98: 0 | R98: 0 | S98: 0 | T98: 0
A99: 79 | B99: 2026-02-10 | C99: 31 | D99: 7511078.153 | E99: 0 | F99: 23092.96412 | G99: 23092.96412 | H99: 35592.6456 | I99: 58685.60972 | J99: 46158.20575 | K99: 0 | L99: 7511078.153 | M99: 0 | N99: 0 | Q99: 0 | R99: 0 | S99: 0 | T99: 0
